{"text_format":"1","workbook":"xlsx","n_sheets":4,"sheets":["Location 1","New Location (2)","New Location","JobsTable"],"not_rendered":{"charts":0,"images":1,"macros":1,"external_links":0,"defined_names":15,"comments":0,"pivot_tables":0},"unopened":[],"bounds":{"document_bytes":16777216,"sheet_cells":100000,"rows_first":2000,"rows_last":500,"rows_between":2000,"halvings":0,"cell_chars":16384,"cell_head_chars":4096},"cells_cut":0,"cells_raw":0,"read":"whole","date_system":"1900"}

{"sheet":"Location 1","index":0,"n_rows":1531,"n_cols":10,"rows_kept":1531,"cut":false,"hidden":false,"merged":[[2,1,2,8],[0,1,1,8],[5,0,5,8],[6,1,6,2],[6,3,6,5],[97,0,107,0],[33,0,43,0],[65,0,75,0],[9,1,9,2],[13,2,13,5],[25,1,25,8],[9,3,9,7],[4,9,5,13],[6,9,7,13],[31,9,34,13],[39,9,40,13],[26,0,26,8],[13,7,13,8],[10,1,10,8],[11,1,11,3],[4,1,4,2],[8,1,8,2],[27,1,27,8],[7,3,7,5],[4,3,4,7],[8,3,8,7],[7,1,7,2]]}
[]
[]
[null,"Data and Response Form",null,null,null,null,null,null,null,"Email your completed form to:"]
[null,"Organization Name: ",null,null,null,null,null,null,null,"wagesurvey@aehr.org"]
[null,"Person Completing Questionnaire:",null,null,null,null,null,null,null,"Due Date:"]
["Contact Name and Address to receive final results:"]
[null,"Person to receive final results:                     NAME - TITLE",null,null,null,null,null,"phone #:",null,"2018-03-02"]
[null,"Email Address:"]
[null,"Mailing Address:"]
[null,"City, State, Zip "]
[null,"Demographic Information:"]
[null,"Total # of Employees (entire organization):"]
[null,null,null,"Location:  County:",null,null,null,"State:"]
[null,null,"Place an X by your industry (Select only one)",null,null,null,null,"Member of Associated Employers?"]
[null,null,null,"Natural Resources/ Mining/ Oil Field",null,"Transportation/Warehousing",null,"Yes:"]
[null,null,null,"Utilities/Co-Op's",null,"Health Care; Clinic, Office, Hospital",null,"No:"]
[null,null,null,"Construction",null,"Professional / Business Services"]
[null,null,null,"Non-Durable Goods Manufacturing",null,"Educational Services"]
[null,null,null,"Durable Goods Manufacturing",null,"Social Services",null,null,null,"Did you check an \"industry\" box?"]
[null,null,null,"Wholesale Trade",null,"Leisure / Hospitality Services"]
[null,null,null,"Retail Trade",null,"Financial Activities; Ins./Real Estate"]
[null,null,null,"Services, not elsewhere classified",null,"Public Administration; City, County, School"]
[]
[null,"This company is    ",null,"For Profit",null,"Not For Profit",null,null,null,"Is your company \"For / Not for Profit\"?"]
[]
[null,"Create a different response tab for each County"]
["List each individual even when wage and/or job code are the same"]
[null,"List each individual even when wage and/or job code are the same"]
[null,null,null,"Survey Job Title                       (This Column is automated - Do Not Populate)",null,"Your Job Title","Company Code (Do Not Populate)","Survey Job Code","Base Pay Rate"]
[null,"example",null,"Accounting Clerk I  (Entry)",null,"Accounting Clerk",null,"40-04",11]
[null,"example",null,"Accounting Clerk I  (Entry)",null,"Accounts Payable",null,"40-04",12.45]
[null,1,null,{"$f":"IF(H32=\"\", \" \", VLOOKUP(H32,JobsTable,4,FALSE))","v":" "},null,null,null,null,null,"For each position response, please report an hourly rate.  This ensures that we are working with the same numbers in the calculations whether they are part-time or full-time and whether they are hourly or salaried."]
[null,2,null," "]
["each row represents an individual employee",3,null," "]
[null,4,null," "]
[null,5,null," "]
[null,6,null," "]
[null,7,null," "]
[null,8,null," "]
[null,9,null," "]
[null,10,null," "]
[null,11,null," "]
[null,12,null," "]
[null,13,null," "]
[null,14,null," "]
[null,15,null," "]
[null,16,null," "]
[null,17,null," "]
[null,18,null," "]
[null,19,null," "]
[null,20,null," "]
[null,21,null," "]
[null,22,null," "]
[null,23,null," "]
[null,24,null," "]
[null,25,null," "]
[null,26,null," "]
[null,27,null," "]
[null,28,null," "]
[null,29,null," "]
[null,30,null," "]
[null,31,null," "]
[null,32,null," "]
[null,33,null," "]
[null,34,null," "]
["each row represents an individual employee",35,null," "]
[null,36,null," "]
[null,37,null," "]
[null,38,null," "]
[null,39,null," "]
[null,40,null," "]
[null,41,null," "]
[null,42,null," "]
[null,43,null," "]
[null,44,null," "]
[null,45,null," "]
[null,46,null," "]
[null,47,null," "]
[null,48,null," "]
[null,49,null," "]
[null,50,null," "]
[null,51,null," "]
[null,52,null," "]
[null,53,null," "]
[null,54,null," "]
[null,55,null," "]
[null,56,null," "]
[null,57,null," "]
[null,58,null," "]
[null,59,null," "]
[null,60,null," "]
[null,61,null," "]
[null,62,null," "]
[null,63,null," "]
[null,64,null," "]
[null,65,null,{"$f":"IF(H96=\"\", \" \", VLOOKUP(H96,JobsTable,4,FALSE))","v":" "}]
[null,66,null," "]
["each row represents an individual employee",67,null," "]
[null,68,null," "]
[null,69,null," "]
[null,70,null," "]
[null,71,null," "]
[null,72,null," "]
[null,73,null," "]
[null,74,null," "]
[null,75,null," "]
[null,76,null," "]
[null,77,null," "]
[null,78,null," "]
[null,79,null," "]
[null,80,null," "]
[null,81,null," "]
[null,82,null," "]
[null,83,null," "]
[null,84,null," "]
[null,85,null," "]
[null,86,null," "]
[null,87,null," "]
[null,88,null," "]
[null,89,null," "]
[null,90,null," "]
[null,91,null," "]
[null,92,null," "]
[null,93,null," "]
[null,94,null," "]
[null,95,null," "]
[null,96,null," "]
[null,97,null," "]
[null,98,null," "]
[null,99,null," "]
[null,100,null," "]
[null,101,null," "]
[null,102,null," "]
[null,103,null," "]
[null,104,null," "]
[null,105,null," "]
[null,106,null," "]
[null,107,null," "]
[null,108,null," "]
[null,109,null," "]
[null,110,null," "]
[null,111,null," "]
[null,112,null," "]
[null,113,null," "]
[null,114,null," "]
[null,115,null," "]
[null,116,null," "]
[null,117,null," "]
[null,118,null," "]
[null,119,null," "]
[null,120,null," "]
[null,121,null," "]
[null,122,null," "]
[null,123,null," "]
[null,124,null," "]
[null,125,null," "]
[null,126,null," "]
[null,127,null," "]
[null,128,null," "]
[null,129,null,{"$f":"IF(H160=\"\", \" \", VLOOKUP(H160,JobsTable,4,FALSE))","v":" "}]
[null,130,null," "]
[null,131,null," "]
[null,132,null," "]
[null,133,null," "]
[null,134,null," "]
[null,135,null," "]
[null,136,null," "]
[null,137,null," "]
[null,138,null," "]
[null,139,null," "]
[null,140,null," "]
[null,141,null," "]
[null,142,null," "]
[null,143,null," "]
[null,144,null," "]
[null,145,null," "]
[null,146,null," "]
[null,147,null," "]
[null,148,null," "]
[null,149,null," "]
[null,150,null," "]
[null,151,null," "]
[null,152,null," "]
[null,153,null," "]
[null,154,null," "]
[null,155,null," "]
[null,156,null," "]
[null,157,null," "]
[null,158,null," "]
[null,159,null," "]
[null,160,null," "]
[null,161,null," "]
[null,162,null," "]
[null,163,null," "]
[null,164,null," "]
[null,165,null," "]
[null,166,null," "]
[null,167,null," "]
[null,168,null," "]
[null,169,null," "]
[null,170,null," "]
[null,171,null," "]
[null,172,null," "]
[null,173,null," "]
[null,174,null," "]
[null,175,null," "]
[null,176,null," "]
[null,177,null," "]
[null,178,null," "]
[null,179,null," "]
[null,180,null," "]
[null,181,null," "]
[null,182,null," "]
[null,183,null," "]
[null,184,null," "]
[null,185,null," "]
[null,186,null," "]
[null,187,null," "]
[null,188,null," "]
[null,189,null," "]
[null,190,null," "]
[null,191,null," "]
[null,192,null," "]
[null,193,null,{"$f":"IF(H224=\"\", \" \", VLOOKUP(H224,JobsTable,4,FALSE))","v":" "}]
[null,194,null," "]
[null,195,null," "]
[null,196,null," "]
[null,197,null," "]
[null,198,null," "]
[null,199,null," "]
[null,200,null," "]
[null,201,null," "]
[null,202,null," "]
[null,203,null," "]
[null,204,null," "]
[null,205,null," "]
[null,206,null," "]
[null,207,null," "]
[null,208,null," "]
[null,209,null," "]
[null,210,null," "]
[null,211,null," "]
[null,212,null," "]
[null,213,null," "]
[null,214,null," "]
[null,215,null," "]
[null,216,null," "]
[null,217,null," "]
[null,218,null," "]
[null,219,null," "]
[null,220,null," "]
[null,221,null," "]
[null,222,null," "]
[null,223,null," "]
[null,224,null," "]
[null,225,null," "]
[null,226,null," "]
[null,227,null," "]
[null,228,null," "]
[null,229,null," "]
[null,230,null," "]
[null,231,null," "]
[null,232,null," "]
[null,233,null," "]
[null,234,null," "]
[null,235,null," "]
[null,236,null," "]
[null,237,null," "]
[null,238,null," "]
[null,239,null," "]
[null,240,null," "]
[null,241,null," "]
[null,242,null," "]
[null,243,null," "]
[null,244,null," "]
[null,245,null," "]
[null,246,null," "]
[null,247,null," "]
[null,248,null," "]
[null,249,null," "]
[null,250,null," "]
[null,251,null," "]
[null,252,null," "]
[null,253,null," "]
[null,254,null," "]
[null,255,null," "]
[null,256,null," "]
[null,257,null,{"$f":"IF(H288=\"\", \" \", VLOOKUP(H288,JobsTable,4,FALSE))","v":" "}]
[null,258,null," "]
[null,259,null," "]
[null,260,null," "]
[null,261,null," "]
[null,262,null," "]
[null,263,null," "]
[null,264,null," "]
[null,265,null," "]
[null,266,null," "]
[null,267,null," "]
[null,268,null," "]
[null,269,null," "]
[null,270,null," "]
[null,271,null," "]
[null,272,null," "]
[null,273,null," "]
[null,274,null," "]
[null,275,null," "]
[null,276,null," "]
[null,277,null," "]
[null,278,null," "]
[null,279,null," "]
[null,280,null," "]
[null,281,null," "]
[null,282,null," "]
[null,283,null," "]
[null,284,null," "]
[null,285,null," "]
[null,286,null," "]
[null,287,null," "]
[null,288,null," "]
[null,289,null," "]
[null,290,null," "]
[null,291,null," "]
[null,292,null," "]
[null,293,null," "]
[null,294,null," "]
[null,295,null," "]
[null,296,null," "]
[null,297,null," "]
[null,298,null," "]
[null,299,null," "]
[null,300,null," "]
[null,301,null," "]
[null,302,null," "]
[null,303,null," "]
[null,304,null," "]
[null,305,null," "]
[null,306,null," "]
[null,307,null," "]
[null,308,null," "]
[null,309,null," "]
[null,310,null," "]
[null,311,null," "]
[null,312,null," "]
[null,313,null," "]
[null,314,null," "]
[null,315,null," "]
[null,316,null," "]
[null,317,null," "]
[null,318,null," "]
[null,319,null," "]
[null,320,null," "]
[null,321,null,{"$f":"IF(H352=\"\", \" \", VLOOKUP(H352,JobsTable,4,FALSE))","v":" "}]
[null,322,null," "]
[null,323,null," "]
[null,324,null," "]
[null,325,null," "]
[null,326,null," "]
[null,327,null," "]
[null,328,null," "]
[null,329,null," "]
[null,330,null," "]
[null,331,null," "]
[null,332,null," "]
[null,333,null," "]
[null,334,null," "]
[null,335,null," "]
[null,336,null," "]
[null,337,null," "]
[null,338,null," "]
[null,339,null," "]
[null,340,null," "]
[null,341,null," "]
[null,342,null," "]
[null,343,null," "]
[null,344,null," "]
[null,345,null," "]
[null,346,null," "]
[null,347,null," "]
[null,348,null," "]
[null,349,null," "]
[null,350,null," "]
[null,351,null," "]
[null,352,null," "]
[null,353,null," "]
[null,354,null," "]
[null,355,null," "]
[null,356,null," "]
[null,357,null," "]
[null,358,null," "]
[null,359,null," "]
[null,360,null," "]
[null,361,null," "]
[null,362,null," "]
[null,363,null," "]
[null,364,null," "]
[null,365,null," "]
[null,366,null," "]
[null,367,null," "]
[null,368,null," "]
[null,369,null," "]
[null,370,null," "]
[null,371,null," "]
[null,372,null," "]
[null,373,null," "]
[null,374,null," "]
[null,375,null," "]
[null,376,null," "]
[null,377,null," "]
[null,378,null," "]
[null,379,null," "]
[null,380,null," "]
[null,381,null," "]
[null,382,null," "]
[null,383,null," "]
[null,384,null," "]
[null,385,null,{"$f":"IF(H416=\"\", \" \", VLOOKUP(H416,JobsTable,4,FALSE))","v":" "}]
[null,386,null," "]
[null,387,null," "]
[null,388,null," "]
[null,389,null," "]
[null,390,null," "]
[null,391,null," "]
[null,392,null," "]
[null,393,null," "]
[null,394,null," "]
[null,395,null," "]
[null,396,null," "]
[null,397,null," "]
[null,398,null," "]
[null,399,null," "]
[null,400,null," "]
[null,401,null," "]
[null,402,null," "]
[null,403,null," "]
[null,404,null," "]
[null,405,null," "]
[null,406,null," "]
[null,407,null," "]
[null,408,null," "]
[null,409,null," "]
[null,410,null," "]
[null,411,null," "]
[null,412,null," "]
[null,413,null," "]
[null,414,null," "]
[null,415,null," "]
[null,416,null," "]
[null,417,null," "]
[null,418,null," "]
[null,419,null," "]
[null,420,null," "]
[null,421,null," "]
[null,422,null," "]
[null,423,null," "]
[null,424,null," "]
[null,425,null," "]
[null,426,null," "]
[null,427,null," "]
[null,428,null," "]
[null,429,null," "]
[null,430,null," "]
[null,431,null," "]
[null,432,null," "]
[null,433,null," "]
[null,434,null," "]
[null,435,null," "]
[null,436,null," "]
[null,437,null," "]
[null,438,null," "]
[null,439,null," "]
[null,440,null," "]
[null,441,null," "]
[null,442,null," "]
[null,443,null," "]
[null,444,null," "]
[null,445,null," "]
[null,446,null," "]
[null,447,null," "]
[null,448,null," "]
[null,449,null,{"$f":"IF(H480=\"\", \" \", VLOOKUP(H480,JobsTable,4,FALSE))","v":" "}]
[null,450,null," "]
[null,451,null," "]
[null,452,null," "]
[null,453,null," "]
[null,454,null," "]
[null,455,null," "]
[null,456,null," "]
[null,457,null," "]
[null,458,null," "]
[null,459,null," "]
[null,460,null," "]
[null,461,null," "]
[null,462,null," "]
[null,463,null," "]
[null,464,null," "]
[null,465,null," "]
[null,466,null," "]
[null,467,null," "]
[null,468,null," "]
[null,469,null," "]
[null,470,null," "]
[null,471,null," "]
[null,472,null," "]
[null,473,null," "]
[null,474,null," "]
[null,475,null," "]
[null,476,null," "]
[null,477,null," "]
[null,478,null," "]
[null,479,null," "]
[null,480,null," "]
[null,481,null," "]
[null,482,null," "]
[null,483,null," "]
[null,484,null," "]
[null,485,null," "]
[null,486,null," "]
[null,487,null," "]
[null,488,null," "]
[null,489,null," "]
[null,490,null," "]
[null,491,null," "]
[null,492,null," "]
[null,493,null," "]
[null,494,null," "]
[null,495,null," "]
[null,496,null," "]
[null,497,null," "]
[null,498,null," "]
[null,499,null," "]
[null,500,null," "]
[null,501,null," "]
[null,502,null," "]
[null,503,null," "]
[null,504,null," "]
[null,505,null," "]
[null,506,null," "]
[null,507,null," "]
[null,508,null," "]
[null,509,null," "]
[null,510,null," "]
[null,511,null," "]
[null,512,null," "]
[null,513,null,{"$f":"IF(H544=\"\", \" \", VLOOKUP(H544,JobsTable,4,FALSE))","v":" "}]
[null,514,null," "]
[null,515,null," "]
[null,516,null," "]
[null,517,null," "]
[null,518,null," "]
[null,519,null," "]
[null,520,null," "]
[null,521,null," "]
[null,522,null," "]
[null,523,null," "]
[null,524,null," "]
[null,525,null," "]
[null,526,null," "]
[null,527,null," "]
[null,528,null," "]
[null,529,null," "]
[null,530,null," "]
[null,531,null," "]
[null,532,null," "]
[null,533,null," "]
[null,534,null," "]
[null,535,null," "]
[null,536,null," "]
[null,537,null," "]
[null,538,null," "]
[null,539,null," "]
[null,540,null," "]
[null,541,null," "]
[null,542,null," "]
[null,543,null," "]
[null,544,null," "]
[null,545,null," "]
[null,546,null," "]
[null,547,null," "]
[null,548,null," "]
[null,549,null," "]
[null,550,null," "]
[null,551,null," "]
[null,552,null," "]
[null,553,null," "]
[null,554,null," "]
[null,555,null," "]
[null,556,null," "]
[null,557,null," "]
[null,558,null," "]
[null,559,null," "]
[null,560,null," "]
[null,561,null," "]
[null,562,null," "]
[null,563,null," "]
[null,564,null," "]
[null,565,null," "]
[null,566,null," "]
[null,567,null," "]
[null,568,null," "]
[null,569,null," "]
[null,570,null," "]
[null,571,null," "]
[null,572,null," "]
[null,573,null," "]
[null,574,null," "]
[null,575,null," "]
[null,576,null," "]
[null,577,null,{"$f":"IF(H608=\"\", \" \", VLOOKUP(H608,JobsTable,4,FALSE))","v":" "}]
[null,578,null," "]
[null,579,null," "]
[null,580,null," "]
[null,581,null," "]
[null,582,null," "]
[null,583,null," "]
[null,584,null," "]
[null,585,null," "]
[null,586,null," "]
[null,587,null," "]
[null,588,null," "]
[null,589,null," "]
[null,590,null," "]
[null,591,null," "]
[null,592,null," "]
[null,593,null," "]
[null,594,null," "]
[null,595,null," "]
[null,596,null," "]
[null,597,null," "]
[null,598,null," "]
[null,599,null," "]
[null,600,null," "]
[null,601,null," "]
[null,602,null," "]
[null,603,null," "]
[null,604,null," "]
[null,605,null," "]
[null,606,null," "]
[null,607,null," "]
[null,608,null," "]
[null,609,null," "]
[null,610,null," "]
[null,611,null," "]
[null,612,null," "]
[null,613,null," "]
[null,614,null," "]
[null,615,null," "]
[null,616,null," "]
[null,617,null," "]
[null,618,null," "]
[null,619,null," "]
[null,620,null," "]
[null,621,null," "]
[null,622,null," "]
[null,623,null," "]
[null,624,null," "]
[null,625,null," "]
[null,626,null," "]
[null,627,null," "]
[null,628,null," "]
[null,629,null," "]
[null,630,null," "]
[null,631,null," "]
[null,632,null," "]
[null,633,null," "]
[null,634,null," "]
[null,635,null," "]
[null,636,null," "]
[null,637,null," "]
[null,638,null," "]
[null,639,null," "]
[null,640,null," "]
[null,641,null,{"$f":"IF(H672=\"\", \" \", VLOOKUP(H672,JobsTable,4,FALSE))","v":" "}]
[null,642,null," "]
[null,643,null," "]
[null,644,null," "]
[null,645,null," "]
[null,646,null," "]
[null,647,null," "]
[null,648,null," "]
[null,649,null," "]
[null,650,null," "]
[null,651,null," "]
[null,652,null," "]
[null,653,null," "]
[null,654,null," "]
[null,655,null," "]
[null,656,null," "]
[null,657,null," "]
[null,658,null," "]
[null,659,null," "]
[null,660,null," "]
[null,661,null," "]
[null,662,null," "]
[null,663,null," "]
[null,664,null," "]
[null,665,null," "]
[null,666,null," "]
[null,667,null," "]
[null,668,null," "]
[null,669,null," "]
[null,670,null," "]
[null,671,null," "]
[null,672,null," "]
[null,673,null," "]
[null,674,null," "]
[null,675,null," "]
[null,676,null," "]
[null,677,null," "]
[null,678,null," "]
[null,679,null," "]
[null,680,null," "]
[null,681,null," "]
[null,682,null," "]
[null,683,null," "]
[null,684,null," "]
[null,685,null," "]
[null,686,null," "]
[null,687,null," "]
[null,688,null," "]
[null,689,null," "]
[null,690,null," "]
[null,691,null," "]
[null,692,null," "]
[null,693,null," "]
[null,694,null," "]
[null,695,null," "]
[null,696,null," "]
[null,697,null," "]
[null,698,null," "]
[null,699,null," "]
[null,700,null," "]
[null,701,null," "]
[null,702,null," "]
[null,703,null," "]
[null,704,null," "]
[null,705,null,{"$f":"IF(H736=\"\", \" \", VLOOKUP(H736,JobsTable,4,FALSE))","v":" "}]
[null,706,null," "]
[null,707,null," "]
[null,708,null," "]
[null,709,null," "]
[null,710,null," "]
[null,711,null," "]
[null,712,null," "]
[null,713,null," "]
[null,714,null," "]
[null,715,null," "]
[null,716,null," "]
[null,717,null," "]
[null,718,null," "]
[null,719,null," "]
[null,720,null," "]
[null,721,null," "]
[null,722,null," "]
[null,723,null," "]
[null,724,null," "]
[null,725,null," "]
[null,726,null," "]
[null,727,null," "]
[null,728,null," "]
[null,729,null," "]
[null,730,null," "]
[null,731,null," "]
[null,732,null," "]
[null,733,null," "]
[null,734,null," "]
[null,735,null," "]
[null,736,null," "]
[null,737,null," "]
[null,738,null," "]
[null,739,null," "]
[null,740,null," "]
[null,741,null," "]
[null,742,null," "]
[null,743,null," "]
[null,744,null," "]
[null,745,null," "]
[null,746,null," "]
[null,747,null," "]
[null,748,null," "]
[null,749,null," "]
[null,750,null," "]
[null,751,null," "]
[null,752,null," "]
[null,753,null," "]
[null,754,null," "]
[null,755,null," "]
[null,756,null," "]
[null,757,null," "]
[null,758,null," "]
[null,759,null," "]
[null,760,null," "]
[null,761,null," "]
[null,762,null," "]
[null,763,null," "]
[null,764,null," "]
[null,765,null," "]
[null,766,null," "]
[null,767,null," "]
[null,768,null," "]
[null,769,null,{"$f":"IF(H800=\"\", \" \", VLOOKUP(H800,JobsTable,4,FALSE))","v":" "}]
[null,770,null," "]
[null,771,null," "]
[null,772,null," "]
[null,773,null," "]
[null,774,null," "]
[null,775,null," "]
[null,776,null," "]
[null,777,null," "]
[null,778,null," "]
[null,779,null," "]
[null,780,null," "]
[null,781,null," "]
[null,782,null," "]
[null,783,null," "]
[null,784,null," "]
[null,785,null," "]
[null,786,null," "]
[null,787,null," "]
[null,788,null," "]
[null,789,null," "]
[null,790,null," "]
[null,791,null," "]
[null,792,null," "]
[null,793,null," "]
[null,794,null," "]
[null,795,null," "]
[null,796,null," "]
[null,797,null," "]
[null,798,null," "]
[null,799,null," "]
[null,800,null," "]
[null,801,null," "]
[null,802,null," "]
[null,803,null," "]
[null,804,null," "]
[null,805,null," "]
[null,806,null," "]
[null,807,null," "]
[null,808,null," "]
[null,809,null," "]
[null,810,null," "]
[null,811,null," "]
[null,812,null," "]
[null,813,null," "]
[null,814,null," "]
[null,815,null," "]
[null,816,null," "]
[null,817,null," "]
[null,818,null," "]
[null,819,null," "]
[null,820,null," "]
[null,821,null," "]
[null,822,null," "]
[null,823,null," "]
[null,824,null," "]
[null,825,null," "]
[null,826,null," "]
[null,827,null," "]
[null,828,null," "]
[null,829,null," "]
[null,830,null," "]
[null,831,null," "]
[null,832,null," "]
[null,833,null,{"$f":"IF(H864=\"\", \" \", VLOOKUP(H864,JobsTable,4,FALSE))","v":" "}]
[null,834,null," "]
[null,835,null," "]
[null,836,null," "]
[null,837,null," "]
[null,838,null," "]
[null,839,null," "]
[null,840,null," "]
[null,841,null," "]
[null,842,null," "]
[null,843,null," "]
[null,844,null," "]
[null,845,null," "]
[null,846,null," "]
[null,847,null," "]
[null,848,null," "]
[null,849,null," "]
[null,850,null," "]
[null,851,null," "]
[null,852,null," "]
[null,853,null," "]
[null,854,null," "]
[null,855,null," "]
[null,856,null," "]
[null,857,null," "]
[null,858,null," "]
[null,859,null," "]
[null,860,null," "]
[null,861,null," "]
[null,862,null," "]
[null,863,null," "]
[null,864,null," "]
[null,865,null," "]
[null,866,null," "]
[null,867,null," "]
[null,868,null," "]
[null,869,null," "]
[null,870,null," "]
[null,871,null," "]
[null,872,null," "]
[null,873,null," "]
[null,874,null," "]
[null,875,null," "]
[null,876,null," "]
[null,877,null," "]
[null,878,null," "]
[null,879,null," "]
[null,880,null," "]
[null,881,null," "]
[null,882,null," "]
[null,883,null," "]
[null,884,null," "]
[null,885,null," "]
[null,886,null," "]
[null,887,null," "]
[null,888,null," "]
[null,889,null," "]
[null,890,null," "]
[null,891,null," "]
[null,892,null," "]
[null,893,null," "]
[null,894,null," "]
[null,895,null," "]
[null,896,null," "]
[null,897,null,{"$f":"IF(H928=\"\", \" \", VLOOKUP(H928,JobsTable,4,FALSE))","v":" "}]
[null,898,null," "]
[null,899,null," "]
[null,900,null," "]
[null,901,null," "]
[null,902,null," "]
[null,903,null," "]
[null,904,null," "]
[null,905,null," "]
[null,906,null," "]
[null,907,null," "]
[null,908,null," "]
[null,909,null," "]
[null,910,null," "]
[null,911,null," "]
[null,912,null," "]
[null,913,null," "]
[null,914,null," "]
[null,915,null," "]
[null,916,null," "]
[null,917,null," "]
[null,918,null," "]
[null,919,null," "]
[null,920,null," "]
[null,921,null," "]
[null,922,null," "]
[null,923,null," "]
[null,924,null," "]
[null,925,null," "]
[null,926,null," "]
[null,927,null," "]
[null,928,null," "]
[null,929,null," "]
[null,930,null," "]
[null,931,null," "]
[null,932,null," "]
[null,933,null," "]
[null,934,null," "]
[null,935,null," "]
[null,936,null," "]
[null,937,null," "]
[null,938,null," "]
[null,939,null," "]
[null,940,null," "]
[null,941,null," "]
[null,942,null," "]
[null,943,null," "]
[null,944,null," "]
[null,945,null," "]
[null,946,null," "]
[null,947,null," "]
[null,948,null," "]
[null,949,null," "]
[null,950,null," "]
[null,951,null," "]
[null,952,null," "]
[null,953,null," "]
[null,954,null," "]
[null,955,null," "]
[null,956,null," "]
[null,957,null," "]
[null,958,null," "]
[null,959,null," "]
[null,960,null," "]
[null,961,null,{"$f":"IF(H992=\"\", \" \", VLOOKUP(H992,JobsTable,4,FALSE))","v":" "}]
[null,962,null," "]
[null,963,null," "]
[null,964,null," "]
[null,965,null," "]
[null,966,null," "]
[null,967,null," "]
[null,968,null," "]
[null,969,null," "]
[null,970,null," "]
[null,971,null," "]
[null,972,null," "]
[null,973,null," "]
[null,974,null," "]
[null,975,null," "]
[null,976,null," "]
[null,977,null," "]
[null,978,null," "]
[null,979,null," "]
[null,980,null," "]
[null,981,null," "]
[null,982,null," "]
[null,983,null," "]
[null,984,null," "]
[null,985,null," "]
[null,986,null," "]
[null,987,null," "]
[null,988,null," "]
[null,989,null," "]
[null,990,null," "]
[null,991,null," "]
[null,992,null," "]
[null,993,null," "]
[null,994,null," "]
[null,995,null," "]
[null,996,null," "]
[null,997,null," "]
[null,998,null," "]
[null,999,null," "]
[null,1000,null," "]
[null,1001,null," "]
[null,1002,null," "]
[null,1003,null," "]
[null,1004,null," "]
[null,1005,null," "]
[null,1006,null," "]
[null,1007,null," "]
[null,1008,null," "]
[null,1009,null," "]
[null,1010,null," "]
[null,1011,null," "]
[null,1012,null," "]
[null,1013,null," "]
[null,1014,null," "]
[null,1015,null," "]
[null,1016,null," "]
[null,1017,null," "]
[null,1018,null," "]
[null,1019,null," "]
[null,1020,null," "]
[null,1021,null," "]
[null,1022,null," "]
[null,1023,null," "]
[null,1024,null," "]
[null,1025,null,{"$f":"IF(H1056=\"\", \" \", VLOOKUP(H1056,JobsTable,4,FALSE))","v":" "}]
[null,1026,null," "]
[null,1027,null," "]
[null,1028,null," "]
[null,1029,null," "]
[null,1030,null," "]
[null,1031,null," "]
[null,1032,null," "]
[null,1033,null," "]
[null,1034,null," "]
[null,1035,null," "]
[null,1036,null," "]
[null,1037,null," "]
[null,1038,null," "]
[null,1039,null," "]
[null,1040,null," "]
[null,1041,null," "]
[null,1042,null," "]
[null,1043,null," "]
[null,1044,null," "]
[null,1045,null," "]
[null,1046,null," "]
[null,1047,null," "]
[null,1048,null," "]
[null,1049,null," "]
[null,1050,null," "]
[null,1051,null," "]
[null,1052,null," "]
[null,1053,null," "]
[null,1054,null," "]
[null,1055,null," "]
[null,1056,null," "]
[null,1057,null," "]
[null,1058,null," "]
[null,1059,null," "]
[null,1060,null," "]
[null,1061,null," "]
[null,1062,null," "]
[null,1063,null," "]
[null,1064,null," "]
[null,1065,null," "]
[null,1066,null," "]
[null,1067,null," "]
[null,1068,null," "]
[null,1069,null," "]
[null,1070,null," "]
[null,1071,null," "]
[null,1072,null," "]
[null,1073,null," "]
[null,1074,null," "]
[null,1075,null," "]
[null,1076,null," "]
[null,1077,null," "]
[null,1078,null," "]
[null,1079,null," "]
[null,1080,null," "]
[null,1081,null," "]
[null,1082,null," "]
[null,1083,null," "]
[null,1084,null," "]
[null,1085,null," "]
[null,1086,null," "]
[null,1087,null," "]
[null,1088,null," "]
[null,1089,null,{"$f":"IF(H1120=\"\", \" \", VLOOKUP(H1120,JobsTable,4,FALSE))","v":" "}]
[null,1090,null," "]
[null,1091,null," "]
[null,1092,null," "]
[null,1093,null," "]
[null,1094,null," "]
[null,1095,null," "]
[null,1096,null," "]
[null,1097,null," "]
[null,1098,null," "]
[null,1099,null," "]
[null,1100,null," "]
[null,1101,null," "]
[null,1102,null," "]
[null,1103,null," "]
[null,1104,null," "]
[null,1105,null," "]
[null,1106,null," "]
[null,1107,null," "]
[null,1108,null," "]
[null,1109,null," "]
[null,1110,null," "]
[null,1111,null," "]
[null,1112,null," "]
[null,1113,null," "]
[null,1114,null," "]
[null,1115,null," "]
[null,1116,null," "]
[null,1117,null," "]
[null,1118,null," "]
[null,1119,null," "]
[null,1120,null," "]
[null,1121,null," "]
[null,1122,null," "]
[null,1123,null," "]
[null,1124,null," "]
[null,1125,null," "]
[null,1126,null," "]
[null,1127,null," "]
[null,1128,null," "]
[null,1129,null," "]
[null,1130,null," "]
[null,1131,null," "]
[null,1132,null," "]
[null,1133,null," "]
[null,1134,null," "]
[null,1135,null," "]
[null,1136,null," "]
[null,1137,null," "]
[null,1138,null," "]
[null,1139,null," "]
[null,1140,null," "]
[null,1141,null," "]
[null,1142,null," "]
[null,1143,null," "]
[null,1144,null," "]
[null,1145,null," "]
[null,1146,null," "]
[null,1147,null," "]
[null,1148,null," "]
[null,1149,null," "]
[null,1150,null," "]
[null,1151,null," "]
[null,1152,null," "]
[null,1153,null,{"$f":"IF(H1184=\"\", \" \", VLOOKUP(H1184,JobsTable,4,FALSE))","v":" "}]
[null,1154,null," "]
[null,1155,null," "]
[null,1156,null," "]
[null,1157,null," "]
[null,1158,null," "]
[null,1159,null," "]
[null,1160,null," "]
[null,1161,null," "]
[null,1162,null," "]
[null,1163,null," "]
[null,1164,null," "]
[null,1165,null," "]
[null,1166,null," "]
[null,1167,null," "]
[null,1168,null," "]
[null,1169,null," "]
[null,1170,null," "]
[null,1171,null," "]
[null,1172,null," "]
[null,1173,null," "]
[null,1174,null," "]
[null,1175,null," "]
[null,1176,null," "]
[null,1177,null," "]
[null,1178,null," "]
[null,1179,null," "]
[null,1180,null," "]
[null,1181,null," "]
[null,1182,null," "]
[null,1183,null," "]
[null,1184,null," "]
[null,1185,null," "]
[null,1186,null," "]
[null,1187,null," "]
[null,1188,null," "]
[null,1189,null," "]
[null,1190,null," "]
[null,1191,null," "]
[null,1192,null," "]
[null,1193,null," "]
[null,1194,null," "]
[null,1195,null," "]
[null,1196,null," "]
[null,1197,null," "]
[null,1198,null," "]
[null,1199,null," "]
[null,1200,null," "]
[null,1201,null," "]
[null,1202,null," "]
[null,1203,null," "]
[null,1204,null," "]
[null,1205,null," "]
[null,1206,null," "]
[null,1207,null," "]
[null,1208,null," "]
[null,1209,null," "]
[null,1210,null," "]
[null,1211,null," "]
[null,1212,null," "]
[null,1213,null," "]
[null,1214,null," "]
[null,1215,null," "]
[null,1216,null," "]
[null,1217,null,{"$f":"IF(H1248=\"\", \" \", VLOOKUP(H1248,JobsTable,4,FALSE))","v":" "}]
[null,1218,null," "]
[null,1219,null," "]
[null,1220,null," "]
[null,1221,null," "]
[null,1222,null," "]
[null,1223,null," "]
[null,1224,null," "]
[null,1225,null," "]
[null,1226,null," "]
[null,1227,null," "]
[null,1228,null," "]
[null,1229,null," "]
[null,1230,null," "]
[null,1231,null," "]
[null,1232,null," "]
[null,1233,null," "]
[null,1234,null," "]
[null,1235,null," "]
[null,1236,null," "]
[null,1237,null," "]
[null,1238,null," "]
[null,1239,null," "]
[null,1240,null," "]
[null,1241,null," "]
[null,1242,null," "]
[null,1243,null," "]
[null,1244,null," "]
[null,1245,null," "]
[null,1246,null," "]
[null,1247,null," "]
[null,1248,null," "]
[null,1249,null," "]
[null,1250,null," "]
[null,1251,null," "]
[null,1252,null," "]
[null,1253,null," "]
[null,1254,null," "]
[null,1255,null," "]
[null,1256,null," "]
[null,1257,null," "]
[null,1258,null," "]
[null,1259,null," "]
[null,1260,null," "]
[null,1261,null," "]
[null,1262,null," "]
[null,1263,null," "]
[null,1264,null," "]
[null,1265,null," "]
[null,1266,null," "]
[null,1267,null," "]
[null,1268,null," "]
[null,1269,null," "]
[null,1270,null," "]
[null,1271,null," "]
[null,1272,null," "]
[null,1273,null," "]
[null,1274,null," "]
[null,1275,null," "]
[null,1276,null," "]
[null,1277,null," "]
[null,1278,null," "]
[null,1279,null," "]
[null,1280,null," "]
[null,1281,null,{"$f":"IF(H1312=\"\", \" \", VLOOKUP(H1312,JobsTable,4,FALSE))","v":" "}]
[null,1282,null," "]
[null,1283,null," "]
[null,1284,null," "]
[null,1285,null," "]
[null,1286,null," "]
[null,1287,null," "]
[null,1288,null," "]
[null,1289,null," "]
[null,1290,null," "]
[null,1291,null," "]
[null,1292,null," "]
[null,1293,null," "]
[null,1294,null," "]
[null,1295,null," "]
[null,1296,null," "]
[null,1297,null," "]
[null,1298,null," "]
[null,1299,null," "]
[null,1300,null," "]
[null,1301,null," "]
[null,1302,null," "]
[null,1303,null," "]
[null,1304,null," "]
[null,1305,null," "]
[null,1306,null," "]
[null,1307,null," "]
[null,1308,null," "]
[null,1309,null," "]
[null,1310,null," "]
[null,1311,null," "]
[null,1312,null," "]
[null,1313,null," "]
[null,1314,null," "]
[null,1315,null," "]
[null,1316,null," "]
[null,1317,null," "]
[null,1318,null," "]
[null,1319,null," "]
[null,1320,null," "]
[null,1321,null," "]
[null,1322,null," "]
[null,1323,null," "]
[null,1324,null," "]
[null,1325,null," "]
[null,1326,null," "]
[null,1327,null," "]
[null,1328,null," "]
[null,1329,null," "]
[null,1330,null," "]
[null,1331,null," "]
[null,1332,null," "]
[null,1333,null," "]
[null,1334,null," "]
[null,1335,null," "]
[null,1336,null," "]
[null,1337,null," "]
[null,1338,null," "]
[null,1339,null," "]
[null,1340,null," "]
[null,1341,null," "]
[null,1342,null," "]
[null,1343,null," "]
[null,1344,null," "]
[null,1345,null,{"$f":"IF(H1376=\"\", \" \", VLOOKUP(H1376,JobsTable,4,FALSE))","v":" "}]
[null,1346,null," "]
[null,1347,null," "]
[null,1348,null," "]
[null,1349,null," "]
[null,1350,null," "]
[null,1351,null," "]
[null,1352,null," "]
[null,1353,null," "]
[null,1354,null," "]
[null,1355,null," "]
[null,1356,null," "]
[null,1357,null," "]
[null,1358,null," "]
[null,1359,null," "]
[null,1360,null," "]
[null,1361,null," "]
[null,1362,null," "]
[null,1363,null," "]
[null,1364,null," "]
[null,1365,null," "]
[null,1366,null," "]
[null,1367,null," "]
[null,1368,null," "]
[null,1369,null," "]
[null,1370,null," "]
[null,1371,null," "]
[null,1372,null," "]
[null,1373,null," "]
[null,1374,null," "]
[null,1375,null," "]
[null,1376,null," "]
[null,1377,null," "]
[null,1378,null," "]
[null,1379,null," "]
[null,1380,null," "]
[null,1381,null," "]
[null,1382,null," "]
[null,1383,null," "]
[null,1384,null," "]
[null,1385,null," "]
[null,1386,null," "]
[null,1387,null," "]
[null,1388,null," "]
[null,1389,null," "]
[null,1390,null," "]
[null,1391,null," "]
[null,1392,null," "]
[null,1393,null," "]
[null,1394,null," "]
[null,1395,null," "]
[null,1396,null," "]
[null,1397,null," "]
[null,1398,null," "]
[null,1399,null," "]
[null,1400,null," "]
[null,1401,null," "]
[null,1402,null," "]
[null,1403,null," "]
[null,1404,null," "]
[null,1405,null," "]
[null,1406,null," "]
[null,1407,null," "]
[null,1408,null," "]
[null,1409,null,{"$f":"IF(H1440=\"\", \" \", VLOOKUP(H1440,JobsTable,4,FALSE))","v":" "}]
[null,1410,null," "]
[null,1411,null," "]
[null,1412,null," "]
[null,1413,null," "]
[null,1414,null," "]
[null,1415,null," "]
[null,1416,null," "]
[null,1417,null," "]
[null,1418,null," "]
[null,1419,null," "]
[null,1420,null," "]
[null,1421,null," "]
[null,1422,null," "]
[null,1423,null," "]
[null,1424,null," "]
[null,1425,null," "]
[null,1426,null," "]
[null,1427,null," "]
[null,1428,null," "]
[null,1429,null," "]
[null,1430,null," "]
[null,1431,null," "]
[null,1432,null," "]
[null,1433,null," "]
[null,1434,null," "]
[null,1435,null," "]
[null,1436,null," "]
[null,1437,null," "]
[null,1438,null," "]
[null,1439,null," "]
[null,1440,null," "]
[null,1441,null," "]
[null,1442,null," "]
[null,1443,null," "]
[null,1444,null," "]
[null,1445,null," "]
[null,1446,null," "]
[null,1447,null," "]
[null,1448,null," "]
[null,1449,null," "]
[null,1450,null," "]
[null,1451,null," "]
[null,1452,null," "]
[null,1453,null," "]
[null,1454,null," "]
[null,1455,null," "]
[null,1456,null," "]
[null,1457,null," "]
[null,1458,null," "]
[null,1459,null," "]
[null,1460,null," "]
[null,1461,null," "]
[null,1462,null," "]
[null,1463,null," "]
[null,1464,null," "]
[null,1465,null," "]
[null,1466,null," "]
[null,1467,null," "]
[null,1468,null," "]
[null,1469,null," "]
[null,1470,null," "]
[null,1471,null," "]
[null,1472,null," "]
[null,1473,null,{"$f":"IF(H1504=\"\", \" \", VLOOKUP(H1504,JobsTable,4,FALSE))","v":" "}]
[null,1474,null," "]
[null,1475,null," "]
[null,1476,null," "]
[null,1477,null," "]
[null,1478,null," "]
[null,1479,null," "]
[null,1480,null," "]
[null,1481,null," "]
[null,1482,null," "]
[null,1483,null," "]
[null,1484,null," "]
[null,1485,null," "]
[null,1486,null," "]
[null,1487,null," "]
[null,1488,null," "]
[null,1489,null," "]
[null,1490,null," "]
[null,1491,null," "]
[null,1492,null," "]
[null,1493,null," "]
[null,1494,null," "]
[null,1495,null," "]
[null,1496,null," "]
[null,1497,null," "]
[null,1498,null," "]
[null,1499,null," "]
[null,1500,null," "]

{"sheet":"New Location (2)","index":1,"n_rows":1515,"n_cols":10,"rows_kept":1515,"cut":false,"hidden":true,"merged":[[41,0,51,0],[73,0,83,0],[0,1,1,8],[2,1,2,8],[4,9,5,13],[6,9,7,13],[7,2,8,6],[9,0,19,0],[9,1,9,8],[11,1,11,8]]}
[]
[]
[null,"Data and Response Form",null,null,null,null,null,null,null,"Email your completed form to:"]
[null,null,"Organization Name: ",{"$f":"[0]!Organization","v":0},null,null,null,null,null,"wagesurvey@aehr.org"]
[null,null,null,null,"This Location:",null,null,null,null,"Due Date:"]
[null,null,"City:",null,"St:"]
[null,null,"County:",null,null,null,null,null,null,"2018-03-02"]
[null,null,"Use this spreadsheet for your second and multiple locations"]
[]
["each row represents an individual employee","Use a different response tab for each County"]
[]
[null,"List each individual even when wage and/or job code are the same"]
[null,null,null,"Survey Job Title                       (This Column is automated - Do Not Populate)",null,"Your Job Title","Company Code (Do Not Populate)","Survey Job Code","Base Pay Rate"]
[null,"example",null,"Accounting Clerk I  (Entry)",null,"Accounting Clerk",null,"40-04",11]
[null,"example",null,"Accounting Clerk I  (Entry)",null,"Accounts Payable",null,"40-04",12.45]
[null,1,null,{"$f":"IF(H16=\"\", \" \", VLOOKUP(H16,JobsTable,4,FALSE))","v":" "}]
[null,2,null," "]
[null,3,null," "]
[null,4,null," "]
[null,5,null," "]
[null,6,null," "]
[null,7,null," "]
[null,8,null," "]
[null,9,null," "]
[null,10,null," "]
[null,11,null," "]
[null,12,null," "]
[null,13,null," "]
[null,14,null," "]
[null,15,null," "]
[null,16,null," "]
[null,17,null," "]
[null,18,null," "]
[null,19,null," "]
[null,20,null," "]
[null,21,null," "]
[null,22,null," "]
[null,23,null," "]
[null,24,null," "]
[null,25,null," "]
[null,26,null," "]
["each row represents an individual employee",27,null," "]
[null,28,null," "]
[null,29,null," "]
[null,30,null," "]
[null,31,null," "]
[null,32,null," "]
[null,33,null," "]
[null,34,null," "]
[null,35,null," "]
[null,36,null," "]
[null,37,null," "]
[null,38,null," "]
[null,39,null," "]
[null,40,null," "]
[null,41,null," "]
[null,42,null," "]
[null,43,null," "]
[null,44,null," "]
[null,45,null," "]
[null,46,null," "]
[null,47,null," "]
[null,48,null," "]
[null,49,null," "]
[null,50,null," "]
[null,51,null," "]
[null,52,null," "]
[null,53,null," "]
[null,54,null," "]
[null,55,null," "]
[null,56,null," "]
[null,57,null," "]
[null,58,null," "]
["each row represents an individual employee",59,null," "]
[null,60,null," "]
[null,61,null," "]
[null,62,null," "]
[null,63,null," "]
[null,64,null," "]
[null,65,null,{"$f":"IF(H80=\"\", \" \", VLOOKUP(H80,JobsTable,4,FALSE))","v":" "}]
[null,66,null," "]
[null,67,null," "]
[null,68,null," "]
[null,69,null," "]
[null,70,null," "]
[null,71,null," "]
[null,72,null," "]
[null,73,null," "]
[null,74,null," "]
[null,75,null," "]
[null,76,null," "]
[null,77,null," "]
[null,78,null," "]
[null,79,null," "]
[null,80,null," "]
[null,81,null," "]
[null,82,null," "]
[null,83,null," "]
[null,84,null," "]
[null,85,null," "]
[null,86,null," "]
[null,87,null," "]
[null,88,null," "]
[null,89,null," "]
[null,90,null," "]
[null,91,null," "]
[null,92,null," "]
[null,93,null," "]
[null,94,null," "]
[null,95,null," "]
[null,96,null," "]
[null,97,null," "]
[null,98,null," "]
[null,99,null," "]
[null,100,null," "]
[null,101,null," "]
[null,102,null," "]
[null,103,null," "]
[null,104,null," "]
[null,105,null," "]
[null,106,null," "]
[null,107,null," "]
[null,108,null," "]
[null,109,null," "]
[null,110,null," "]
[null,111,null," "]
[null,112,null," "]
[null,113,null," "]
[null,114,null," "]
[null,115,null," "]
[null,116,null," "]
[null,117,null," "]
[null,118,null," "]
[null,119,null," "]
[null,120,null," "]
[null,121,null," "]
[null,122,null," "]
[null,123,null," "]
[null,124,null," "]
[null,125,null," "]
[null,126,null," "]
[null,127,null," "]
[null,128,null," "]
[null,129,null,{"$f":"IF(H144=\"\", \" \", VLOOKUP(H144,JobsTable,4,FALSE))","v":" "}]
[null,130,null," "]
[null,131,null," "]
[null,132,null," "]
[null,133,null," "]
[null,134,null," "]
[null,135,null," "]
[null,136,null," "]
[null,137,null," "]
[null,138,null," "]
[null,139,null," "]
[null,140,null," "]
[null,141,null," "]
[null,142,null," "]
[null,143,null," "]
[null,144,null," "]
[null,145,null," "]
[null,146,null," "]
[null,147,null," "]
[null,148,null," "]
[null,149,null," "]
[null,150,null," "]
[null,151,null," "]
[null,152,null," "]
[null,153,null," "]
[null,154,null," "]
[null,155,null," "]
[null,156,null," "]
[null,157,null," "]
[null,158,null," "]
[null,159,null," "]
[null,160,null," "]
[null,161,null," "]
[null,162,null," "]
[null,163,null," "]
[null,164,null," "]
[null,165,null," "]
[null,166,null," "]
[null,167,null," "]
[null,168,null," "]
[null,169,null," "]
[null,170,null," "]
[null,171,null," "]
[null,172,null," "]
[null,173,null," "]
[null,174,null," "]
[null,175,null," "]
[null,176,null," "]
[null,177,null," "]
[null,178,null," "]
[null,179,null," "]
[null,180,null," "]
[null,181,null," "]
[null,182,null," "]
[null,183,null," "]
[null,184,null," "]
[null,185,null," "]
[null,186,null," "]
[null,187,null," "]
[null,188,null," "]
[null,189,null," "]
[null,190,null," "]
[null,191,null," "]
[null,192,null," "]
[null,193,null,{"$f":"IF(H208=\"\", \" \", VLOOKUP(H208,JobsTable,4,FALSE))","v":" "}]
[null,194,null," "]
[null,195,null," "]
[null,196,null," "]
[null,197,null," "]
[null,198,null," "]
[null,199,null," "]
[null,200,null," "]
[null,201,null," "]
[null,202,null," "]
[null,203,null," "]
[null,204,null," "]
[null,205,null," "]
[null,206,null," "]
[null,207,null," "]
[null,208,null," "]
[null,209,null," "]
[null,210,null," "]
[null,211,null," "]
[null,212,null," "]
[null,213,null," "]
[null,214,null," "]
[null,215,null," "]
[null,216,null," "]
[null,217,null," "]
[null,218,null," "]
[null,219,null," "]
[null,220,null," "]
[null,221,null," "]
[null,222,null," "]
[null,223,null," "]
[null,224,null," "]
[null,225,null," "]
[null,226,null," "]
[null,227,null," "]
[null,228,null," "]
[null,229,null," "]
[null,230,null," "]
[null,231,null," "]
[null,232,null," "]
[null,233,null," "]
[null,234,null," "]
[null,235,null," "]
[null,236,null," "]
[null,237,null," "]
[null,238,null," "]
[null,239,null," "]
[null,240,null," "]
[null,241,null," "]
[null,242,null," "]
[null,243,null," "]
[null,244,null," "]
[null,245,null," "]
[null,246,null," "]
[null,247,null," "]
[null,248,null," "]
[null,249,null," "]
[null,250,null," "]
[null,251,null," "]
[null,252,null," "]
[null,253,null," "]
[null,254,null," "]
[null,255,null," "]
[null,256,null," "]
[null,257,null,{"$f":"IF(H272=\"\", \" \", VLOOKUP(H272,JobsTable,4,FALSE))","v":" "}]
[null,258,null," "]
[null,259,null," "]
[null,260,null," "]
[null,261,null," "]
[null,262,null," "]
[null,263,null," "]
[null,264,null," "]
[null,265,null," "]
[null,266,null," "]
[null,267,null," "]
[null,268,null," "]
[null,269,null," "]
[null,270,null," "]
[null,271,null," "]
[null,272,null," "]
[null,273,null," "]
[null,274,null," "]
[null,275,null," "]
[null,276,null," "]
[null,277,null," "]
[null,278,null," "]
[null,279,null," "]
[null,280,null," "]
[null,281,null," "]
[null,282,null," "]
[null,283,null," "]
[null,284,null," "]
[null,285,null," "]
[null,286,null," "]
[null,287,null," "]
[null,288,null," "]
[null,289,null," "]
[null,290,null," "]
[null,291,null," "]
[null,292,null," "]
[null,293,null," "]
[null,294,null," "]
[null,295,null," "]
[null,296,null," "]
[null,297,null," "]
[null,298,null," "]
[null,299,null," "]
[null,300,null," "]
[null,301,null," "]
[null,302,null," "]
[null,303,null," "]
[null,304,null," "]
[null,305,null," "]
[null,306,null," "]
[null,307,null," "]
[null,308,null," "]
[null,309,null," "]
[null,310,null," "]
[null,311,null," "]
[null,312,null," "]
[null,313,null," "]
[null,314,null," "]
[null,315,null," "]
[null,316,null," "]
[null,317,null," "]
[null,318,null," "]
[null,319,null," "]
[null,320,null," "]
[null,321,null,{"$f":"IF(H336=\"\", \" \", VLOOKUP(H336,JobsTable,4,FALSE))","v":" "}]
[null,322,null," "]
[null,323,null," "]
[null,324,null," "]
[null,325,null," "]
[null,326,null," "]
[null,327,null," "]
[null,328,null," "]
[null,329,null," "]
[null,330,null," "]
[null,331,null," "]
[null,332,null," "]
[null,333,null," "]
[null,334,null," "]
[null,335,null," "]
[null,336,null," "]
[null,337,null," "]
[null,338,null," "]
[null,339,null," "]
[null,340,null," "]
[null,341,null," "]
[null,342,null," "]
[null,343,null," "]
[null,344,null," "]
[null,345,null," "]
[null,346,null," "]
[null,347,null," "]
[null,348,null," "]
[null,349,null," "]
[null,350,null," "]
[null,351,null," "]
[null,352,null," "]
[null,353,null," "]
[null,354,null," "]
[null,355,null," "]
[null,356,null," "]
[null,357,null," "]
[null,358,null," "]
[null,359,null," "]
[null,360,null," "]
[null,361,null," "]
[null,362,null," "]
[null,363,null," "]
[null,364,null," "]
[null,365,null," "]
[null,366,null," "]
[null,367,null," "]
[null,368,null," "]
[null,369,null," "]
[null,370,null," "]
[null,371,null," "]
[null,372,null," "]
[null,373,null," "]
[null,374,null," "]
[null,375,null," "]
[null,376,null," "]
[null,377,null," "]
[null,378,null," "]
[null,379,null," "]
[null,380,null," "]
[null,381,null," "]
[null,382,null," "]
[null,383,null," "]
[null,384,null," "]
[null,385,null,{"$f":"IF(H400=\"\", \" \", VLOOKUP(H400,JobsTable,4,FALSE))","v":" "}]
[null,386,null," "]
[null,387,null," "]
[null,388,null," "]
[null,389,null," "]
[null,390,null," "]
[null,391,null," "]
[null,392,null," "]
[null,393,null," "]
[null,394,null," "]
[null,395,null," "]
[null,396,null," "]
[null,397,null," "]
[null,398,null," "]
[null,399,null," "]
[null,400,null," "]
[null,401,null," "]
[null,402,null," "]
[null,403,null," "]
[null,404,null," "]
[null,405,null," "]
[null,406,null," "]
[null,407,null," "]
[null,408,null," "]
[null,409,null," "]
[null,410,null," "]
[null,411,null," "]
[null,412,null," "]
[null,413,null," "]
[null,414,null," "]
[null,415,null," "]
[null,416,null," "]
[null,417,null," "]
[null,418,null," "]
[null,419,null," "]
[null,420,null," "]
[null,421,null," "]
[null,422,null," "]
[null,423,null," "]
[null,424,null," "]
[null,425,null," "]
[null,426,null," "]
[null,427,null," "]
[null,428,null," "]
[null,429,null," "]
[null,430,null," "]
[null,431,null," "]
[null,432,null," "]
[null,433,null," "]
[null,434,null," "]
[null,435,null," "]
[null,436,null," "]
[null,437,null," "]
[null,438,null," "]
[null,439,null," "]
[null,440,null," "]
[null,441,null," "]
[null,442,null," "]
[null,443,null," "]
[null,444,null," "]
[null,445,null," "]
[null,446,null," "]
[null,447,null," "]
[null,448,null," "]
[null,449,null,{"$f":"IF(H464=\"\", \" \", VLOOKUP(H464,JobsTable,4,FALSE))","v":" "}]
[null,450,null," "]
[null,451,null," "]
[null,452,null," "]
[null,453,null," "]
[null,454,null," "]
[null,455,null," "]
[null,456,null," "]
[null,457,null," "]
[null,458,null," "]
[null,459,null," "]
[null,460,null," "]
[null,461,null," "]
[null,462,null," "]
[null,463,null," "]
[null,464,null," "]
[null,465,null," "]
[null,466,null," "]
[null,467,null," "]
[null,468,null," "]
[null,469,null," "]
[null,470,null," "]
[null,471,null," "]
[null,472,null," "]
[null,473,null," "]
[null,474,null," "]
[null,475,null," "]
[null,476,null," "]
[null,477,null," "]
[null,478,null," "]
[null,479,null," "]
[null,480,null," "]
[null,481,null," "]
[null,482,null," "]
[null,483,null," "]
[null,484,null," "]
[null,485,null," "]
[null,486,null," "]
[null,487,null," "]
[null,488,null," "]
[null,489,null," "]
[null,490,null," "]
[null,491,null," "]
[null,492,null," "]
[null,493,null," "]
[null,494,null," "]
[null,495,null," "]
[null,496,null," "]
[null,497,null," "]
[null,498,null," "]
[null,499,null," "]
[null,500,null," "]
[null,501,null," "]
[null,502,null," "]
[null,503,null," "]
[null,504,null," "]
[null,505,null," "]
[null,506,null," "]
[null,507,null," "]
[null,508,null," "]
[null,509,null," "]
[null,510,null," "]
[null,511,null," "]
[null,512,null," "]
[null,513,null,{"$f":"IF(H528=\"\", \" \", VLOOKUP(H528,JobsTable,4,FALSE))","v":" "}]
[null,514,null," "]
[null,515,null," "]
[null,516,null," "]
[null,517,null," "]
[null,518,null," "]
[null,519,null," "]
[null,520,null," "]
[null,521,null," "]
[null,522,null," "]
[null,523,null," "]
[null,524,null," "]
[null,525,null," "]
[null,526,null," "]
[null,527,null," "]
[null,528,null," "]
[null,529,null," "]
[null,530,null," "]
[null,531,null," "]
[null,532,null," "]
[null,533,null," "]
[null,534,null," "]
[null,535,null," "]
[null,536,null," "]
[null,537,null," "]
[null,538,null," "]
[null,539,null," "]
[null,540,null," "]
[null,541,null," "]
[null,542,null," "]
[null,543,null," "]
[null,544,null," "]
[null,545,null," "]
[null,546,null," "]
[null,547,null," "]
[null,548,null," "]
[null,549,null," "]
[null,550,null," "]
[null,551,null," "]
[null,552,null," "]
[null,553,null," "]
[null,554,null," "]
[null,555,null," "]
[null,556,null," "]
[null,557,null," "]
[null,558,null," "]
[null,559,null," "]
[null,560,null," "]
[null,561,null," "]
[null,562,null," "]
[null,563,null," "]
[null,564,null," "]
[null,565,null," "]
[null,566,null," "]
[null,567,null," "]
[null,568,null," "]
[null,569,null," "]
[null,570,null," "]
[null,571,null," "]
[null,572,null," "]
[null,573,null," "]
[null,574,null," "]
[null,575,null," "]
[null,576,null," "]
[null,577,null,{"$f":"IF(H592=\"\", \" \", VLOOKUP(H592,JobsTable,4,FALSE))","v":" "}]
[null,578,null," "]
[null,579,null," "]
[null,580,null," "]
[null,581,null," "]
[null,582,null," "]
[null,583,null," "]
[null,584,null," "]
[null,585,null," "]
[null,586,null," "]
[null,587,null," "]
[null,588,null," "]
[null,589,null," "]
[null,590,null," "]
[null,591,null," "]
[null,592,null," "]
[null,593,null," "]
[null,594,null," "]
[null,595,null," "]
[null,596,null," "]
[null,597,null," "]
[null,598,null," "]
[null,599,null," "]
[null,600,null," "]
[null,601,null," "]
[null,602,null," "]
[null,603,null," "]
[null,604,null," "]
[null,605,null," "]
[null,606,null," "]
[null,607,null," "]
[null,608,null," "]
[null,609,null," "]
[null,610,null," "]
[null,611,null," "]
[null,612,null," "]
[null,613,null," "]
[null,614,null," "]
[null,615,null," "]
[null,616,null," "]
[null,617,null," "]
[null,618,null," "]
[null,619,null," "]
[null,620,null," "]
[null,621,null," "]
[null,622,null," "]
[null,623,null," "]
[null,624,null," "]
[null,625,null," "]
[null,626,null," "]
[null,627,null," "]
[null,628,null," "]
[null,629,null," "]
[null,630,null," "]
[null,631,null," "]
[null,632,null," "]
[null,633,null," "]
[null,634,null," "]
[null,635,null," "]
[null,636,null," "]
[null,637,null," "]
[null,638,null," "]
[null,639,null," "]
[null,640,null," "]
[null,641,null,{"$f":"IF(H656=\"\", \" \", VLOOKUP(H656,JobsTable,4,FALSE))","v":" "}]
[null,642,null," "]
[null,643,null," "]
[null,644,null," "]
[null,645,null," "]
[null,646,null," "]
[null,647,null," "]
[null,648,null," "]
[null,649,null," "]
[null,650,null," "]
[null,651,null," "]
[null,652,null," "]
[null,653,null," "]
[null,654,null," "]
[null,655,null," "]
[null,656,null," "]
[null,657,null," "]
[null,658,null," "]
[null,659,null," "]
[null,660,null," "]
[null,661,null," "]
[null,662,null," "]
[null,663,null," "]
[null,664,null," "]
[null,665,null," "]
[null,666,null," "]
[null,667,null," "]
[null,668,null," "]
[null,669,null," "]
[null,670,null," "]
[null,671,null," "]
[null,672,null," "]
[null,673,null," "]
[null,674,null," "]
[null,675,null," "]
[null,676,null," "]
[null,677,null," "]
[null,678,null," "]
[null,679,null," "]
[null,680,null," "]
[null,681,null," "]
[null,682,null," "]
[null,683,null," "]
[null,684,null," "]
[null,685,null," "]
[null,686,null," "]
[null,687,null," "]
[null,688,null," "]
[null,689,null," "]
[null,690,null," "]
[null,691,null," "]
[null,692,null," "]
[null,693,null," "]
[null,694,null," "]
[null,695,null," "]
[null,696,null," "]
[null,697,null," "]
[null,698,null," "]
[null,699,null," "]
[null,700,null," "]
[null,701,null," "]
[null,702,null," "]
[null,703,null," "]
[null,704,null," "]
[null,705,null,{"$f":"IF(H720=\"\", \" \", VLOOKUP(H720,JobsTable,4,FALSE))","v":" "}]
[null,706,null," "]
[null,707,null," "]
[null,708,null," "]
[null,709,null," "]
[null,710,null," "]
[null,711,null," "]
[null,712,null," "]
[null,713,null," "]
[null,714,null," "]
[null,715,null," "]
[null,716,null," "]
[null,717,null," "]
[null,718,null," "]
[null,719,null," "]
[null,720,null," "]
[null,721,null," "]
[null,722,null," "]
[null,723,null," "]
[null,724,null," "]
[null,725,null," "]
[null,726,null," "]
[null,727,null," "]
[null,728,null," "]
[null,729,null," "]
[null,730,null," "]
[null,731,null," "]
[null,732,null," "]
[null,733,null," "]
[null,734,null," "]
[null,735,null," "]
[null,736,null," "]
[null,737,null," "]
[null,738,null," "]
[null,739,null," "]
[null,740,null," "]
[null,741,null," "]
[null,742,null," "]
[null,743,null," "]
[null,744,null," "]
[null,745,null," "]
[null,746,null," "]
[null,747,null," "]
[null,748,null," "]
[null,749,null," "]
[null,750,null," "]
[null,751,null," "]
[null,752,null," "]
[null,753,null," "]
[null,754,null," "]
[null,755,null," "]
[null,756,null," "]
[null,757,null," "]
[null,758,null," "]
[null,759,null," "]
[null,760,null," "]
[null,761,null," "]
[null,762,null," "]
[null,763,null," "]
[null,764,null," "]
[null,765,null," "]
[null,766,null," "]
[null,767,null," "]
[null,768,null," "]
[null,769,null,{"$f":"IF(H784=\"\", \" \", VLOOKUP(H784,JobsTable,4,FALSE))","v":" "}]
[null,770,null," "]
[null,771,null," "]
[null,772,null," "]
[null,773,null," "]
[null,774,null," "]
[null,775,null," "]
[null,776,null," "]
[null,777,null," "]
[null,778,null," "]
[null,779,null," "]
[null,780,null," "]
[null,781,null," "]
[null,782,null," "]
[null,783,null," "]
[null,784,null," "]
[null,785,null," "]
[null,786,null," "]
[null,787,null," "]
[null,788,null," "]
[null,789,null," "]
[null,790,null," "]
[null,791,null," "]
[null,792,null," "]
[null,793,null," "]
[null,794,null," "]
[null,795,null," "]
[null,796,null," "]
[null,797,null," "]
[null,798,null," "]
[null,799,null," "]
[null,800,null," "]
[null,801,null," "]
[null,802,null," "]
[null,803,null," "]
[null,804,null," "]
[null,805,null," "]
[null,806,null," "]
[null,807,null," "]
[null,808,null," "]
[null,809,null," "]
[null,810,null," "]
[null,811,null," "]
[null,812,null," "]
[null,813,null," "]
[null,814,null," "]
[null,815,null," "]
[null,816,null," "]
[null,817,null," "]
[null,818,null," "]
[null,819,null," "]
[null,820,null," "]
[null,821,null," "]
[null,822,null," "]
[null,823,null," "]
[null,824,null," "]
[null,825,null," "]
[null,826,null," "]
[null,827,null," "]
[null,828,null," "]
[null,829,null," "]
[null,830,null," "]
[null,831,null," "]
[null,832,null," "]
[null,833,null,{"$f":"IF(H848=\"\", \" \", VLOOKUP(H848,JobsTable,4,FALSE))","v":" "}]
[null,834,null," "]
[null,835,null," "]
[null,836,null," "]
[null,837,null," "]
[null,838,null," "]
[null,839,null," "]
[null,840,null," "]
[null,841,null," "]
[null,842,null," "]
[null,843,null," "]
[null,844,null," "]
[null,845,null," "]
[null,846,null," "]
[null,847,null," "]
[null,848,null," "]
[null,849,null," "]
[null,850,null," "]
[null,851,null," "]
[null,852,null," "]
[null,853,null," "]
[null,854,null," "]
[null,855,null," "]
[null,856,null," "]
[null,857,null," "]
[null,858,null," "]
[null,859,null," "]
[null,860,null," "]
[null,861,null," "]
[null,862,null," "]
[null,863,null," "]
[null,864,null," "]
[null,865,null," "]
[null,866,null," "]
[null,867,null," "]
[null,868,null," "]
[null,869,null," "]
[null,870,null," "]
[null,871,null," "]
[null,872,null," "]
[null,873,null," "]
[null,874,null," "]
[null,875,null," "]
[null,876,null," "]
[null,877,null," "]
[null,878,null," "]
[null,879,null," "]
[null,880,null," "]
[null,881,null," "]
[null,882,null," "]
[null,883,null," "]
[null,884,null," "]
[null,885,null," "]
[null,886,null," "]
[null,887,null," "]
[null,888,null," "]
[null,889,null," "]
[null,890,null," "]
[null,891,null," "]
[null,892,null," "]
[null,893,null," "]
[null,894,null," "]
[null,895,null," "]
[null,896,null," "]
[null,897,null,{"$f":"IF(H912=\"\", \" \", VLOOKUP(H912,JobsTable,4,FALSE))","v":" "}]
[null,898,null," "]
[null,899,null," "]
[null,900,null," "]
[null,901,null," "]
[null,902,null," "]
[null,903,null," "]
[null,904,null," "]
[null,905,null," "]
[null,906,null," "]
[null,907,null," "]
[null,908,null," "]
[null,909,null," "]
[null,910,null," "]
[null,911,null," "]
[null,912,null," "]
[null,913,null," "]
[null,914,null," "]
[null,915,null," "]
[null,916,null," "]
[null,917,null," "]
[null,918,null," "]
[null,919,null," "]
[null,920,null," "]
[null,921,null," "]
[null,922,null," "]
[null,923,null," "]
[null,924,null," "]
[null,925,null," "]
[null,926,null," "]
[null,927,null," "]
[null,928,null," "]
[null,929,null," "]
[null,930,null," "]
[null,931,null," "]
[null,932,null," "]
[null,933,null," "]
[null,934,null," "]
[null,935,null," "]
[null,936,null," "]
[null,937,null," "]
[null,938,null," "]
[null,939,null," "]
[null,940,null," "]
[null,941,null," "]
[null,942,null," "]
[null,943,null," "]
[null,944,null," "]
[null,945,null," "]
[null,946,null," "]
[null,947,null," "]
[null,948,null," "]
[null,949,null," "]
[null,950,null," "]
[null,951,null," "]
[null,952,null," "]
[null,953,null," "]
[null,954,null," "]
[null,955,null," "]
[null,956,null," "]
[null,957,null," "]
[null,958,null," "]
[null,959,null," "]
[null,960,null," "]
[null,961,null,{"$f":"IF(H976=\"\", \" \", VLOOKUP(H976,JobsTable,4,FALSE))","v":" "}]
[null,962,null," "]
[null,963,null," "]
[null,964,null," "]
[null,965,null," "]
[null,966,null," "]
[null,967,null," "]
[null,968,null," "]
[null,969,null," "]
[null,970,null," "]
[null,971,null," "]
[null,972,null," "]
[null,973,null," "]
[null,974,null," "]
[null,975,null," "]
[null,976,null," "]
[null,977,null," "]
[null,978,null," "]
[null,979,null," "]
[null,980,null," "]
[null,981,null," "]
[null,982,null," "]
[null,983,null," "]
[null,984,null," "]
[null,985,null," "]
[null,986,null," "]
[null,987,null," "]
[null,988,null," "]
[null,989,null," "]
[null,990,null," "]
[null,991,null," "]
[null,992,null," "]
[null,993,null," "]
[null,994,null," "]
[null,995,null," "]
[null,996,null," "]
[null,997,null," "]
[null,998,null," "]
[null,999,null," "]
[null,1000,null," "]
[null,1001,null," "]
[null,1002,null," "]
[null,1003,null," "]
[null,1004,null," "]
[null,1005,null," "]
[null,1006,null," "]
[null,1007,null," "]
[null,1008,null," "]
[null,1009,null," "]
[null,1010,null," "]
[null,1011,null," "]
[null,1012,null," "]
[null,1013,null," "]
[null,1014,null," "]
[null,1015,null," "]
[null,1016,null," "]
[null,1017,null," "]
[null,1018,null," "]
[null,1019,null," "]
[null,1020,null," "]
[null,1021,null," "]
[null,1022,null," "]
[null,1023,null," "]
[null,1024,null," "]
[null,1025,null,{"$f":"IF(H1040=\"\", \" \", VLOOKUP(H1040,JobsTable,4,FALSE))","v":" "}]
[null,1026,null," "]
[null,1027,null," "]
[null,1028,null," "]
[null,1029,null," "]
[null,1030,null," "]
[null,1031,null," "]
[null,1032,null," "]
[null,1033,null," "]
[null,1034,null," "]
[null,1035,null," "]
[null,1036,null," "]
[null,1037,null," "]
[null,1038,null," "]
[null,1039,null," "]
[null,1040,null," "]
[null,1041,null," "]
[null,1042,null," "]
[null,1043,null," "]
[null,1044,null," "]
[null,1045,null," "]
[null,1046,null," "]
[null,1047,null," "]
[null,1048,null," "]
[null,1049,null," "]
[null,1050,null," "]
[null,1051,null," "]
[null,1052,null," "]
[null,1053,null," "]
[null,1054,null," "]
[null,1055,null," "]
[null,1056,null," "]
[null,1057,null," "]
[null,1058,null," "]
[null,1059,null," "]
[null,1060,null," "]
[null,1061,null," "]
[null,1062,null," "]
[null,1063,null," "]
[null,1064,null," "]
[null,1065,null," "]
[null,1066,null," "]
[null,1067,null," "]
[null,1068,null," "]
[null,1069,null," "]
[null,1070,null," "]
[null,1071,null," "]
[null,1072,null," "]
[null,1073,null," "]
[null,1074,null," "]
[null,1075,null," "]
[null,1076,null," "]
[null,1077,null," "]
[null,1078,null," "]
[null,1079,null," "]
[null,1080,null," "]
[null,1081,null," "]
[null,1082,null," "]
[null,1083,null," "]
[null,1084,null," "]
[null,1085,null," "]
[null,1086,null," "]
[null,1087,null," "]
[null,1088,null," "]
[null,1089,null,{"$f":"IF(H1104=\"\", \" \", VLOOKUP(H1104,JobsTable,4,FALSE))","v":" "}]
[null,1090,null," "]
[null,1091,null," "]
[null,1092,null," "]
[null,1093,null," "]
[null,1094,null," "]
[null,1095,null," "]
[null,1096,null," "]
[null,1097,null," "]
[null,1098,null," "]
[null,1099,null," "]
[null,1100,null," "]
[null,1101,null," "]
[null,1102,null," "]
[null,1103,null," "]
[null,1104,null," "]
[null,1105,null," "]
[null,1106,null," "]
[null,1107,null," "]
[null,1108,null," "]
[null,1109,null," "]
[null,1110,null," "]
[null,1111,null," "]
[null,1112,null," "]
[null,1113,null," "]
[null,1114,null," "]
[null,1115,null," "]
[null,1116,null," "]
[null,1117,null," "]
[null,1118,null," "]
[null,1119,null," "]
[null,1120,null," "]
[null,1121,null," "]
[null,1122,null," "]
[null,1123,null," "]
[null,1124,null," "]
[null,1125,null," "]
[null,1126,null," "]
[null,1127,null," "]
[null,1128,null," "]
[null,1129,null," "]
[null,1130,null," "]
[null,1131,null," "]
[null,1132,null," "]
[null,1133,null," "]
[null,1134,null," "]
[null,1135,null," "]
[null,1136,null," "]
[null,1137,null," "]
[null,1138,null," "]
[null,1139,null," "]
[null,1140,null," "]
[null,1141,null," "]
[null,1142,null," "]
[null,1143,null," "]
[null,1144,null," "]
[null,1145,null," "]
[null,1146,null," "]
[null,1147,null," "]
[null,1148,null," "]
[null,1149,null," "]
[null,1150,null," "]
[null,1151,null," "]
[null,1152,null," "]
[null,1153,null,{"$f":"IF(H1168=\"\", \" \", VLOOKUP(H1168,JobsTable,4,FALSE))","v":" "}]
[null,1154,null," "]
[null,1155,null," "]
[null,1156,null," "]
[null,1157,null," "]
[null,1158,null," "]
[null,1159,null," "]
[null,1160,null," "]
[null,1161,null," "]
[null,1162,null," "]
[null,1163,null," "]
[null,1164,null," "]
[null,1165,null," "]
[null,1166,null," "]
[null,1167,null," "]
[null,1168,null," "]
[null,1169,null," "]
[null,1170,null," "]
[null,1171,null," "]
[null,1172,null," "]
[null,1173,null," "]
[null,1174,null," "]
[null,1175,null," "]
[null,1176,null," "]
[null,1177,null," "]
[null,1178,null," "]
[null,1179,null," "]
[null,1180,null," "]
[null,1181,null," "]
[null,1182,null," "]
[null,1183,null," "]
[null,1184,null," "]
[null,1185,null," "]
[null,1186,null," "]
[null,1187,null," "]
[null,1188,null," "]
[null,1189,null," "]
[null,1190,null," "]
[null,1191,null," "]
[null,1192,null," "]
[null,1193,null," "]
[null,1194,null," "]
[null,1195,null," "]
[null,1196,null," "]
[null,1197,null," "]
[null,1198,null," "]
[null,1199,null," "]
[null,1200,null," "]
[null,1201,null," "]
[null,1202,null," "]
[null,1203,null," "]
[null,1204,null," "]
[null,1205,null," "]
[null,1206,null," "]
[null,1207,null," "]
[null,1208,null," "]
[null,1209,null," "]
[null,1210,null," "]
[null,1211,null," "]
[null,1212,null," "]
[null,1213,null," "]
[null,1214,null," "]
[null,1215,null," "]
[null,1216,null," "]
[null,1217,null,{"$f":"IF(H1232=\"\", \" \", VLOOKUP(H1232,JobsTable,4,FALSE))","v":" "}]
[null,1218,null," "]
[null,1219,null," "]
[null,1220,null," "]
[null,1221,null," "]
[null,1222,null," "]
[null,1223,null," "]
[null,1224,null," "]
[null,1225,null," "]
[null,1226,null," "]
[null,1227,null," "]
[null,1228,null," "]
[null,1229,null," "]
[null,1230,null," "]
[null,1231,null," "]
[null,1232,null," "]
[null,1233,null," "]
[null,1234,null," "]
[null,1235,null," "]
[null,1236,null," "]
[null,1237,null," "]
[null,1238,null," "]
[null,1239,null," "]
[null,1240,null," "]
[null,1241,null," "]
[null,1242,null," "]
[null,1243,null," "]
[null,1244,null," "]
[null,1245,null," "]
[null,1246,null," "]
[null,1247,null," "]
[null,1248,null," "]
[null,1249,null," "]
[null,1250,null," "]
[null,1251,null," "]
[null,1252,null," "]
[null,1253,null," "]
[null,1254,null," "]
[null,1255,null," "]
[null,1256,null," "]
[null,1257,null," "]
[null,1258,null," "]
[null,1259,null," "]
[null,1260,null," "]
[null,1261,null," "]
[null,1262,null," "]
[null,1263,null," "]
[null,1264,null," "]
[null,1265,null," "]
[null,1266,null," "]
[null,1267,null," "]
[null,1268,null," "]
[null,1269,null," "]
[null,1270,null," "]
[null,1271,null," "]
[null,1272,null," "]
[null,1273,null," "]
[null,1274,null," "]
[null,1275,null," "]
[null,1276,null," "]
[null,1277,null," "]
[null,1278,null," "]
[null,1279,null," "]
[null,1280,null," "]
[null,1281,null,{"$f":"IF(H1296=\"\", \" \", VLOOKUP(H1296,JobsTable,4,FALSE))","v":" "}]
[null,1282,null," "]
[null,1283,null," "]
[null,1284,null," "]
[null,1285,null," "]
[null,1286,null," "]
[null,1287,null," "]
[null,1288,null," "]
[null,1289,null," "]
[null,1290,null," "]
[null,1291,null," "]
[null,1292,null," "]
[null,1293,null," "]
[null,1294,null," "]
[null,1295,null," "]
[null,1296,null," "]
[null,1297,null," "]
[null,1298,null," "]
[null,1299,null," "]
[null,1300,null," "]
[null,1301,null," "]
[null,1302,null," "]
[null,1303,null," "]
[null,1304,null," "]
[null,1305,null," "]
[null,1306,null," "]
[null,1307,null," "]
[null,1308,null," "]
[null,1309,null," "]
[null,1310,null," "]
[null,1311,null," "]
[null,1312,null," "]
[null,1313,null," "]
[null,1314,null," "]
[null,1315,null," "]
[null,1316,null," "]
[null,1317,null," "]
[null,1318,null," "]
[null,1319,null," "]
[null,1320,null," "]
[null,1321,null," "]
[null,1322,null," "]
[null,1323,null," "]
[null,1324,null," "]
[null,1325,null," "]
[null,1326,null," "]
[null,1327,null," "]
[null,1328,null," "]
[null,1329,null," "]
[null,1330,null," "]
[null,1331,null," "]
[null,1332,null," "]
[null,1333,null," "]
[null,1334,null," "]
[null,1335,null," "]
[null,1336,null," "]
[null,1337,null," "]
[null,1338,null," "]
[null,1339,null," "]
[null,1340,null," "]
[null,1341,null," "]
[null,1342,null," "]
[null,1343,null," "]
[null,1344,null," "]
[null,1345,null,{"$f":"IF(H1360=\"\", \" \", VLOOKUP(H1360,JobsTable,4,FALSE))","v":" "}]
[null,1346,null," "]
[null,1347,null," "]
[null,1348,null," "]
[null,1349,null," "]
[null,1350,null," "]
[null,1351,null," "]
[null,1352,null," "]
[null,1353,null," "]
[null,1354,null," "]
[null,1355,null," "]
[null,1356,null," "]
[null,1357,null," "]
[null,1358,null," "]
[null,1359,null," "]
[null,1360,null," "]
[null,1361,null," "]
[null,1362,null," "]
[null,1363,null," "]
[null,1364,null," "]
[null,1365,null," "]
[null,1366,null," "]
[null,1367,null," "]
[null,1368,null," "]
[null,1369,null," "]
[null,1370,null," "]
[null,1371,null," "]
[null,1372,null," "]
[null,1373,null," "]
[null,1374,null," "]
[null,1375,null," "]
[null,1376,null," "]
[null,1377,null," "]
[null,1378,null," "]
[null,1379,null," "]
[null,1380,null," "]
[null,1381,null," "]
[null,1382,null," "]
[null,1383,null," "]
[null,1384,null," "]
[null,1385,null," "]
[null,1386,null," "]
[null,1387,null," "]
[null,1388,null," "]
[null,1389,null," "]
[null,1390,null," "]
[null,1391,null," "]
[null,1392,null," "]
[null,1393,null," "]
[null,1394,null," "]
[null,1395,null," "]
[null,1396,null," "]
[null,1397,null," "]
[null,1398,null," "]
[null,1399,null," "]
[null,1400,null," "]
[null,1401,null," "]
[null,1402,null," "]
[null,1403,null," "]
[null,1404,null," "]
[null,1405,null," "]
[null,1406,null," "]
[null,1407,null," "]
[null,1408,null," "]
[null,1409,null,{"$f":"IF(H1424=\"\", \" \", VLOOKUP(H1424,JobsTable,4,FALSE))","v":" "}]
[null,1410,null," "]
[null,1411,null," "]
[null,1412,null," "]
[null,1413,null," "]
[null,1414,null," "]
[null,1415,null," "]
[null,1416,null," "]
[null,1417,null," "]
[null,1418,null," "]
[null,1419,null," "]
[null,1420,null," "]
[null,1421,null," "]
[null,1422,null," "]
[null,1423,null," "]
[null,1424,null," "]
[null,1425,null," "]
[null,1426,null," "]
[null,1427,null," "]
[null,1428,null," "]
[null,1429,null," "]
[null,1430,null," "]
[null,1431,null," "]
[null,1432,null," "]
[null,1433,null," "]
[null,1434,null," "]
[null,1435,null," "]
[null,1436,null," "]
[null,1437,null," "]
[null,1438,null," "]
[null,1439,null," "]
[null,1440,null," "]
[null,1441,null," "]
[null,1442,null," "]
[null,1443,null," "]
[null,1444,null," "]
[null,1445,null," "]
[null,1446,null," "]
[null,1447,null," "]
[null,1448,null," "]
[null,1449,null," "]
[null,1450,null," "]
[null,1451,null," "]
[null,1452,null," "]
[null,1453,null," "]
[null,1454,null," "]
[null,1455,null," "]
[null,1456,null," "]
[null,1457,null," "]
[null,1458,null," "]
[null,1459,null," "]
[null,1460,null," "]
[null,1461,null," "]
[null,1462,null," "]
[null,1463,null," "]
[null,1464,null," "]
[null,1465,null," "]
[null,1466,null," "]
[null,1467,null," "]
[null,1468,null," "]
[null,1469,null," "]
[null,1470,null," "]
[null,1471,null," "]
[null,1472,null," "]
[null,1473,null,{"$f":"IF(H1488=\"\", \" \", VLOOKUP(H1488,JobsTable,4,FALSE))","v":" "}]
[null,1474,null," "]
[null,1475,null," "]
[null,1476,null," "]
[null,1477,null," "]
[null,1478,null," "]
[null,1479,null," "]
[null,1480,null," "]
[null,1481,null," "]
[null,1482,null," "]
[null,1483,null," "]
[null,1484,null," "]
[null,1485,null," "]
[null,1486,null," "]
[null,1487,null," "]
[null,1488,null," "]
[null,1489,null," "]
[null,1490,null," "]
[null,1491,null," "]
[null,1492,null," "]
[null,1493,null," "]
[null,1494,null," "]
[null,1495,null," "]
[null,1496,null," "]
[null,1497,null," "]
[null,1498,null," "]
[null,1499,null," "]
[null,1500,null," "]

{"sheet":"New Location","index":2,"n_rows":1515,"n_cols":10,"rows_kept":1515,"cut":false,"hidden":true,"merged":[[41,0,51,0],[73,0,83,0],[0,1,1,8],[2,1,2,8],[4,9,5,13],[6,9,7,13],[7,2,8,6],[9,0,19,0],[9,1,9,8],[11,1,11,8]]}
[]
[]
[null,"Data and Response Form",null,null,null,null,null,null,null,"Email your completed form to:"]
[null,null,"Organization Name: ",{"$f":"[0]!Organization","v":0},null,null,null,null,null,"wagesurvey@aehr.org"]
[null,null,null,null,"This Location:",null,null,null,null,"Due Date:"]
[null,null,"City:",null,"St:"]
[null,null,"County:",null,null,null,null,null,null,"2018-03-02"]
[null,null,"Use this spreadsheet for your second and multiple locations"]
[]
["each row represents an individual employee","Use a different response tab for each County"]
[]
[null,"List each individual even when wage and/or job code are the same"]
[null,null,null,"Survey Job Title                       (This Column is automated - Do Not Populate)",null,"Your Job Title","Company Code (Do Not Populate)","Survey Job Code","Base Pay Rate"]
[null,"example",null,"Accounting Clerk I  (Entry)",null,"Accounting Clerk",null,"40-04",11]
[null,"example",null,"Accounting Clerk I  (Entry)",null,"Accounts Payable",null,"40-04",12.45]
[null,1,null,{"$f":"IF(H16=\"\", \" \", VLOOKUP(H16,JobsTable,4,FALSE))","v":" "}]
[null,2,null," "]
[null,3,null," "]
[null,4,null," "]
[null,5,null," "]
[null,6,null," "]
[null,7,null," "]
[null,8,null," "]
[null,9,null," "]
[null,10,null," "]
[null,11,null," "]
[null,12,null," "]
[null,13,null," "]
[null,14,null," "]
[null,15,null," "]
[null,16,null," "]
[null,17,null," "]
[null,18,null," "]
[null,19,null," "]
[null,20,null," "]
[null,21,null," "]
[null,22,null," "]
[null,23,null," "]
[null,24,null," "]
[null,25,null," "]
[null,26,null," "]
["each row represents an individual employee",27,null," "]
[null,28,null," "]
[null,29,null," "]
[null,30,null," "]
[null,31,null," "]
[null,32,null," "]
[null,33,null," "]
[null,34,null," "]
[null,35,null," "]
[null,36,null," "]
[null,37,null," "]
[null,38,null," "]
[null,39,null," "]
[null,40,null," "]
[null,41,null," "]
[null,42,null," "]
[null,43,null," "]
[null,44,null," "]
[null,45,null," "]
[null,46,null," "]
[null,47,null," "]
[null,48,null," "]
[null,49,null," "]
[null,50,null," "]
[null,51,null," "]
[null,52,null," "]
[null,53,null," "]
[null,54,null," "]
[null,55,null," "]
[null,56,null," "]
[null,57,null," "]
[null,58,null," "]
["each row represents an individual employee",59,null," "]
[null,60,null," "]
[null,61,null," "]
[null,62,null," "]
[null,63,null," "]
[null,64,null," "]
[null,65,null,{"$f":"IF(H80=\"\", \" \", VLOOKUP(H80,JobsTable,4,FALSE))","v":" "}]
[null,66,null," "]
[null,67,null," "]
[null,68,null," "]
[null,69,null," "]
[null,70,null," "]
[null,71,null," "]
[null,72,null," "]
[null,73,null," "]
[null,74,null," "]
[null,75,null," "]
[null,76,null," "]
[null,77,null," "]
[null,78,null," "]
[null,79,null," "]
[null,80,null," "]
[null,81,null," "]
[null,82,null," "]
[null,83,null," "]
[null,84,null," "]
[null,85,null," "]
[null,86,null," "]
[null,87,null," "]
[null,88,null," "]
[null,89,null," "]
[null,90,null," "]
[null,91,null," "]
[null,92,null," "]
[null,93,null," "]
[null,94,null," "]
[null,95,null," "]
[null,96,null," "]
[null,97,null," "]
[null,98,null," "]
[null,99,null," "]
[null,100,null," "]
[null,101,null," "]
[null,102,null," "]
[null,103,null," "]
[null,104,null," "]
[null,105,null," "]
[null,106,null," "]
[null,107,null," "]
[null,108,null," "]
[null,109,null," "]
[null,110,null," "]
[null,111,null," "]
[null,112,null," "]
[null,113,null," "]
[null,114,null," "]
[null,115,null," "]
[null,116,null," "]
[null,117,null," "]
[null,118,null," "]
[null,119,null," "]
[null,120,null," "]
[null,121,null," "]
[null,122,null," "]
[null,123,null," "]
[null,124,null," "]
[null,125,null," "]
[null,126,null," "]
[null,127,null," "]
[null,128,null," "]
[null,129,null,{"$f":"IF(H144=\"\", \" \", VLOOKUP(H144,JobsTable,4,FALSE))","v":" "}]
[null,130,null," "]
[null,131,null," "]
[null,132,null," "]
[null,133,null," "]
[null,134,null," "]
[null,135,null," "]
[null,136,null," "]
[null,137,null," "]
[null,138,null," "]
[null,139,null," "]
[null,140,null," "]
[null,141,null," "]
[null,142,null," "]
[null,143,null," "]
[null,144,null," "]
[null,145,null," "]
[null,146,null," "]
[null,147,null," "]
[null,148,null," "]
[null,149,null," "]
[null,150,null," "]
[null,151,null," "]
[null,152,null," "]
[null,153,null," "]
[null,154,null," "]
[null,155,null," "]
[null,156,null," "]
[null,157,null," "]
[null,158,null," "]
[null,159,null," "]
[null,160,null," "]
[null,161,null," "]
[null,162,null," "]
[null,163,null," "]
[null,164,null," "]
[null,165,null," "]
[null,166,null," "]
[null,167,null," "]
[null,168,null," "]
[null,169,null," "]
[null,170,null," "]
[null,171,null," "]
[null,172,null," "]
[null,173,null," "]
[null,174,null," "]
[null,175,null," "]
[null,176,null," "]
[null,177,null," "]
[null,178,null," "]
[null,179,null," "]
[null,180,null," "]
[null,181,null," "]
[null,182,null," "]
[null,183,null," "]
[null,184,null," "]
[null,185,null," "]
[null,186,null," "]
[null,187,null," "]
[null,188,null," "]
[null,189,null," "]
[null,190,null," "]
[null,191,null," "]
[null,192,null," "]
[null,193,null,{"$f":"IF(H208=\"\", \" \", VLOOKUP(H208,JobsTable,4,FALSE))","v":" "}]
[null,194,null," "]
[null,195,null," "]
[null,196,null," "]
[null,197,null," "]
[null,198,null," "]
[null,199,null," "]
[null,200,null," "]
[null,201,null," "]
[null,202,null," "]
[null,203,null," "]
[null,204,null," "]
[null,205,null," "]
[null,206,null," "]
[null,207,null," "]
[null,208,null," "]
[null,209,null," "]
[null,210,null," "]
[null,211,null," "]
[null,212,null," "]
[null,213,null," "]
[null,214,null," "]
[null,215,null," "]
[null,216,null," "]
[null,217,null," "]
[null,218,null," "]
[null,219,null," "]
[null,220,null," "]
[null,221,null," "]
[null,222,null," "]
[null,223,null," "]
[null,224,null," "]
[null,225,null," "]
[null,226,null," "]
[null,227,null," "]
[null,228,null," "]
[null,229,null," "]
[null,230,null," "]
[null,231,null," "]
[null,232,null," "]
[null,233,null," "]
[null,234,null," "]
[null,235,null," "]
[null,236,null," "]
[null,237,null," "]
[null,238,null," "]
[null,239,null," "]
[null,240,null," "]
[null,241,null," "]
[null,242,null," "]
[null,243,null," "]
[null,244,null," "]
[null,245,null," "]
[null,246,null," "]
[null,247,null," "]
[null,248,null," "]
[null,249,null," "]
[null,250,null," "]
[null,251,null," "]
[null,252,null," "]
[null,253,null," "]
[null,254,null," "]
[null,255,null," "]
[null,256,null," "]
[null,257,null,{"$f":"IF(H272=\"\", \" \", VLOOKUP(H272,JobsTable,4,FALSE))","v":" "}]
[null,258,null," "]
[null,259,null," "]
[null,260,null," "]
[null,261,null," "]
[null,262,null," "]
[null,263,null," "]
[null,264,null," "]
[null,265,null," "]
[null,266,null," "]
[null,267,null," "]
[null,268,null," "]
[null,269,null," "]
[null,270,null," "]
[null,271,null," "]
[null,272,null," "]
[null,273,null," "]
[null,274,null," "]
[null,275,null," "]
[null,276,null," "]
[null,277,null," "]
[null,278,null," "]
[null,279,null," "]
[null,280,null," "]
[null,281,null," "]
[null,282,null," "]
[null,283,null," "]
[null,284,null," "]
[null,285,null," "]
[null,286,null," "]
[null,287,null," "]
[null,288,null," "]
[null,289,null," "]
[null,290,null," "]
[null,291,null," "]
[null,292,null," "]
[null,293,null," "]
[null,294,null," "]
[null,295,null," "]
[null,296,null," "]
[null,297,null," "]
[null,298,null," "]
[null,299,null," "]
[null,300,null," "]
[null,301,null," "]
[null,302,null," "]
[null,303,null," "]
[null,304,null," "]
[null,305,null," "]
[null,306,null," "]
[null,307,null," "]
[null,308,null," "]
[null,309,null," "]
[null,310,null," "]
[null,311,null," "]
[null,312,null," "]
[null,313,null," "]
[null,314,null," "]
[null,315,null," "]
[null,316,null," "]
[null,317,null," "]
[null,318,null," "]
[null,319,null," "]
[null,320,null," "]
[null,321,null,{"$f":"IF(H336=\"\", \" \", VLOOKUP(H336,JobsTable,4,FALSE))","v":" "}]
[null,322,null," "]
[null,323,null," "]
[null,324,null," "]
[null,325,null," "]
[null,326,null," "]
[null,327,null," "]
[null,328,null," "]
[null,329,null," "]
[null,330,null," "]
[null,331,null," "]
[null,332,null," "]
[null,333,null," "]
[null,334,null," "]
[null,335,null," "]
[null,336,null," "]
[null,337,null," "]
[null,338,null," "]
[null,339,null," "]
[null,340,null," "]
[null,341,null," "]
[null,342,null," "]
[null,343,null," "]
[null,344,null," "]
[null,345,null," "]
[null,346,null," "]
[null,347,null," "]
[null,348,null," "]
[null,349,null," "]
[null,350,null," "]
[null,351,null," "]
[null,352,null," "]
[null,353,null," "]
[null,354,null," "]
[null,355,null," "]
[null,356,null," "]
[null,357,null," "]
[null,358,null," "]
[null,359,null," "]
[null,360,null," "]
[null,361,null," "]
[null,362,null," "]
[null,363,null," "]
[null,364,null," "]
[null,365,null," "]
[null,366,null," "]
[null,367,null," "]
[null,368,null," "]
[null,369,null," "]
[null,370,null," "]
[null,371,null," "]
[null,372,null," "]
[null,373,null," "]
[null,374,null," "]
[null,375,null," "]
[null,376,null," "]
[null,377,null," "]
[null,378,null," "]
[null,379,null," "]
[null,380,null," "]
[null,381,null," "]
[null,382,null," "]
[null,383,null," "]
[null,384,null," "]
[null,385,null,{"$f":"IF(H400=\"\", \" \", VLOOKUP(H400,JobsTable,4,FALSE))","v":" "}]
[null,386,null," "]
[null,387,null," "]
[null,388,null," "]
[null,389,null," "]
[null,390,null," "]
[null,391,null," "]
[null,392,null," "]
[null,393,null," "]
[null,394,null," "]
[null,395,null," "]
[null,396,null," "]
[null,397,null," "]
[null,398,null," "]
[null,399,null," "]
[null,400,null," "]
[null,401,null," "]
[null,402,null," "]
[null,403,null," "]
[null,404,null," "]
[null,405,null," "]
[null,406,null," "]
[null,407,null," "]
[null,408,null," "]
[null,409,null," "]
[null,410,null," "]
[null,411,null," "]
[null,412,null," "]
[null,413,null," "]
[null,414,null," "]
[null,415,null," "]
[null,416,null," "]
[null,417,null," "]
[null,418,null," "]
[null,419,null," "]
[null,420,null," "]
[null,421,null," "]
[null,422,null," "]
[null,423,null," "]
[null,424,null," "]
[null,425,null," "]
[null,426,null," "]
[null,427,null," "]
[null,428,null," "]
[null,429,null," "]
[null,430,null," "]
[null,431,null," "]
[null,432,null," "]
[null,433,null," "]
[null,434,null," "]
[null,435,null," "]
[null,436,null," "]
[null,437,null," "]
[null,438,null," "]
[null,439,null," "]
[null,440,null," "]
[null,441,null," "]
[null,442,null," "]
[null,443,null," "]
[null,444,null," "]
[null,445,null," "]
[null,446,null," "]
[null,447,null," "]
[null,448,null," "]
[null,449,null,{"$f":"IF(H464=\"\", \" \", VLOOKUP(H464,JobsTable,4,FALSE))","v":" "}]
[null,450,null," "]
[null,451,null," "]
[null,452,null," "]
[null,453,null," "]
[null,454,null," "]
[null,455,null," "]
[null,456,null," "]
[null,457,null," "]
[null,458,null," "]
[null,459,null," "]
[null,460,null," "]
[null,461,null," "]
[null,462,null," "]
[null,463,null," "]
[null,464,null," "]
[null,465,null," "]
[null,466,null," "]
[null,467,null," "]
[null,468,null," "]
[null,469,null," "]
[null,470,null," "]
[null,471,null," "]
[null,472,null," "]
[null,473,null," "]
[null,474,null," "]
[null,475,null," "]
[null,476,null," "]
[null,477,null," "]
[null,478,null," "]
[null,479,null," "]
[null,480,null," "]
[null,481,null," "]
[null,482,null," "]
[null,483,null," "]
[null,484,null," "]
[null,485,null," "]
[null,486,null," "]
[null,487,null," "]
[null,488,null," "]
[null,489,null," "]
[null,490,null," "]
[null,491,null," "]
[null,492,null," "]
[null,493,null," "]
[null,494,null," "]
[null,495,null," "]
[null,496,null," "]
[null,497,null," "]
[null,498,null," "]
[null,499,null," "]
[null,500,null," "]
[null,501,null," "]
[null,502,null," "]
[null,503,null," "]
[null,504,null," "]
[null,505,null," "]
[null,506,null," "]
[null,507,null," "]
[null,508,null," "]
[null,509,null," "]
[null,510,null," "]
[null,511,null," "]
[null,512,null," "]
[null,513,null,{"$f":"IF(H528=\"\", \" \", VLOOKUP(H528,JobsTable,4,FALSE))","v":" "}]
[null,514,null," "]
[null,515,null," "]
[null,516,null," "]
[null,517,null," "]
[null,518,null," "]
[null,519,null," "]
[null,520,null," "]
[null,521,null," "]
[null,522,null," "]
[null,523,null," "]
[null,524,null," "]
[null,525,null," "]
[null,526,null," "]
[null,527,null," "]
[null,528,null," "]
[null,529,null," "]
[null,530,null," "]
[null,531,null," "]
[null,532,null," "]
[null,533,null," "]
[null,534,null," "]
[null,535,null," "]
[null,536,null," "]
[null,537,null," "]
[null,538,null," "]
[null,539,null," "]
[null,540,null," "]
[null,541,null," "]
[null,542,null," "]
[null,543,null," "]
[null,544,null," "]
[null,545,null," "]
[null,546,null," "]
[null,547,null," "]
[null,548,null," "]
[null,549,null," "]
[null,550,null," "]
[null,551,null," "]
[null,552,null," "]
[null,553,null," "]
[null,554,null," "]
[null,555,null," "]
[null,556,null," "]
[null,557,null," "]
[null,558,null," "]
[null,559,null," "]
[null,560,null," "]
[null,561,null," "]
[null,562,null," "]
[null,563,null," "]
[null,564,null," "]
[null,565,null," "]
[null,566,null," "]
[null,567,null," "]
[null,568,null," "]
[null,569,null," "]
[null,570,null," "]
[null,571,null," "]
[null,572,null," "]
[null,573,null," "]
[null,574,null," "]
[null,575,null," "]
[null,576,null," "]
[null,577,null,{"$f":"IF(H592=\"\", \" \", VLOOKUP(H592,JobsTable,4,FALSE))","v":" "}]
[null,578,null," "]
[null,579,null," "]
[null,580,null," "]
[null,581,null," "]
[null,582,null," "]
[null,583,null," "]
[null,584,null," "]
[null,585,null," "]
[null,586,null," "]
[null,587,null," "]
[null,588,null," "]
[null,589,null," "]
[null,590,null," "]
[null,591,null," "]
[null,592,null," "]
[null,593,null," "]
[null,594,null," "]
[null,595,null," "]
[null,596,null," "]
[null,597,null," "]
[null,598,null," "]
[null,599,null," "]
[null,600,null," "]
[null,601,null," "]
[null,602,null," "]
[null,603,null," "]
[null,604,null," "]
[null,605,null," "]
[null,606,null," "]
[null,607,null," "]
[null,608,null," "]
[null,609,null," "]
[null,610,null," "]
[null,611,null," "]
[null,612,null," "]
[null,613,null," "]
[null,614,null," "]
[null,615,null," "]
[null,616,null," "]
[null,617,null," "]
[null,618,null," "]
[null,619,null," "]
[null,620,null," "]
[null,621,null," "]
[null,622,null," "]
[null,623,null," "]
[null,624,null," "]
[null,625,null," "]
[null,626,null," "]
[null,627,null," "]
[null,628,null," "]
[null,629,null," "]
[null,630,null," "]
[null,631,null," "]
[null,632,null," "]
[null,633,null," "]
[null,634,null," "]
[null,635,null," "]
[null,636,null," "]
[null,637,null," "]
[null,638,null," "]
[null,639,null," "]
[null,640,null," "]
[null,641,null,{"$f":"IF(H656=\"\", \" \", VLOOKUP(H656,JobsTable,4,FALSE))","v":" "}]
[null,642,null," "]
[null,643,null," "]
[null,644,null," "]
[null,645,null," "]
[null,646,null," "]
[null,647,null," "]
[null,648,null," "]
[null,649,null," "]
[null,650,null," "]
[null,651,null," "]
[null,652,null," "]
[null,653,null," "]
[null,654,null," "]
[null,655,null," "]
[null,656,null," "]
[null,657,null," "]
[null,658,null," "]
[null,659,null," "]
[null,660,null," "]
[null,661,null," "]
[null,662,null," "]
[null,663,null," "]
[null,664,null," "]
[null,665,null," "]
[null,666,null," "]
[null,667,null," "]
[null,668,null," "]
[null,669,null," "]
[null,670,null," "]
[null,671,null," "]
[null,672,null," "]
[null,673,null," "]
[null,674,null," "]
[null,675,null," "]
[null,676,null," "]
[null,677,null," "]
[null,678,null," "]
[null,679,null," "]
[null,680,null," "]
[null,681,null," "]
[null,682,null," "]
[null,683,null," "]
[null,684,null," "]
[null,685,null," "]
[null,686,null," "]
[null,687,null," "]
[null,688,null," "]
[null,689,null," "]
[null,690,null," "]
[null,691,null," "]
[null,692,null," "]
[null,693,null," "]
[null,694,null," "]
[null,695,null," "]
[null,696,null," "]
[null,697,null," "]
[null,698,null," "]
[null,699,null," "]
[null,700,null," "]
[null,701,null," "]
[null,702,null," "]
[null,703,null," "]
[null,704,null," "]
[null,705,null,{"$f":"IF(H720=\"\", \" \", VLOOKUP(H720,JobsTable,4,FALSE))","v":" "}]
[null,706,null," "]
[null,707,null," "]
[null,708,null," "]
[null,709,null," "]
[null,710,null," "]
[null,711,null," "]
[null,712,null," "]
[null,713,null," "]
[null,714,null," "]
[null,715,null," "]
[null,716,null," "]
[null,717,null," "]
[null,718,null," "]
[null,719,null," "]
[null,720,null," "]
[null,721,null," "]
[null,722,null," "]
[null,723,null," "]
[null,724,null," "]
[null,725,null," "]
[null,726,null," "]
[null,727,null," "]
[null,728,null," "]
[null,729,null," "]
[null,730,null," "]
[null,731,null," "]
[null,732,null," "]
[null,733,null," "]
[null,734,null," "]
[null,735,null," "]
[null,736,null," "]
[null,737,null," "]
[null,738,null," "]
[null,739,null," "]
[null,740,null," "]
[null,741,null," "]
[null,742,null," "]
[null,743,null," "]
[null,744,null," "]
[null,745,null," "]
[null,746,null," "]
[null,747,null," "]
[null,748,null," "]
[null,749,null," "]
[null,750,null," "]
[null,751,null," "]
[null,752,null," "]
[null,753,null," "]
[null,754,null," "]
[null,755,null," "]
[null,756,null," "]
[null,757,null," "]
[null,758,null," "]
[null,759,null," "]
[null,760,null," "]
[null,761,null," "]
[null,762,null," "]
[null,763,null," "]
[null,764,null," "]
[null,765,null," "]
[null,766,null," "]
[null,767,null," "]
[null,768,null," "]
[null,769,null,{"$f":"IF(H784=\"\", \" \", VLOOKUP(H784,JobsTable,4,FALSE))","v":" "}]
[null,770,null," "]
[null,771,null," "]
[null,772,null," "]
[null,773,null," "]
[null,774,null," "]
[null,775,null," "]
[null,776,null," "]
[null,777,null," "]
[null,778,null," "]
[null,779,null," "]
[null,780,null," "]
[null,781,null," "]
[null,782,null," "]
[null,783,null," "]
[null,784,null," "]
[null,785,null," "]
[null,786,null," "]
[null,787,null," "]
[null,788,null," "]
[null,789,null," "]
[null,790,null," "]
[null,791,null," "]
[null,792,null," "]
[null,793,null," "]
[null,794,null," "]
[null,795,null," "]
[null,796,null," "]
[null,797,null," "]
[null,798,null," "]
[null,799,null," "]
[null,800,null," "]
[null,801,null," "]
[null,802,null," "]
[null,803,null," "]
[null,804,null," "]
[null,805,null," "]
[null,806,null," "]
[null,807,null," "]
[null,808,null," "]
[null,809,null," "]
[null,810,null," "]
[null,811,null," "]
[null,812,null," "]
[null,813,null," "]
[null,814,null," "]
[null,815,null," "]
[null,816,null," "]
[null,817,null," "]
[null,818,null," "]
[null,819,null," "]
[null,820,null," "]
[null,821,null," "]
[null,822,null," "]
[null,823,null," "]
[null,824,null," "]
[null,825,null," "]
[null,826,null," "]
[null,827,null," "]
[null,828,null," "]
[null,829,null," "]
[null,830,null," "]
[null,831,null," "]
[null,832,null," "]
[null,833,null,{"$f":"IF(H848=\"\", \" \", VLOOKUP(H848,JobsTable,4,FALSE))","v":" "}]
[null,834,null," "]
[null,835,null," "]
[null,836,null," "]
[null,837,null," "]
[null,838,null," "]
[null,839,null," "]
[null,840,null," "]
[null,841,null," "]
[null,842,null," "]
[null,843,null," "]
[null,844,null," "]
[null,845,null," "]
[null,846,null," "]
[null,847,null," "]
[null,848,null," "]
[null,849,null," "]
[null,850,null," "]
[null,851,null," "]
[null,852,null," "]
[null,853,null," "]
[null,854,null," "]
[null,855,null," "]
[null,856,null," "]
[null,857,null," "]
[null,858,null," "]
[null,859,null," "]
[null,860,null," "]
[null,861,null," "]
[null,862,null," "]
[null,863,null," "]
[null,864,null," "]
[null,865,null," "]
[null,866,null," "]
[null,867,null," "]
[null,868,null," "]
[null,869,null," "]
[null,870,null," "]
[null,871,null," "]
[null,872,null," "]
[null,873,null," "]
[null,874,null," "]
[null,875,null," "]
[null,876,null," "]
[null,877,null," "]
[null,878,null," "]
[null,879,null," "]
[null,880,null," "]
[null,881,null," "]
[null,882,null," "]
[null,883,null," "]
[null,884,null," "]
[null,885,null," "]
[null,886,null," "]
[null,887,null," "]
[null,888,null," "]
[null,889,null," "]
[null,890,null," "]
[null,891,null," "]
[null,892,null," "]
[null,893,null," "]
[null,894,null," "]
[null,895,null," "]
[null,896,null," "]
[null,897,null,{"$f":"IF(H912=\"\", \" \", VLOOKUP(H912,JobsTable,4,FALSE))","v":" "}]
[null,898,null," "]
[null,899,null," "]
[null,900,null," "]
[null,901,null," "]
[null,902,null," "]
[null,903,null," "]
[null,904,null," "]
[null,905,null," "]
[null,906,null," "]
[null,907,null," "]
[null,908,null," "]
[null,909,null," "]
[null,910,null," "]
[null,911,null," "]
[null,912,null," "]
[null,913,null," "]
[null,914,null," "]
[null,915,null," "]
[null,916,null," "]
[null,917,null," "]
[null,918,null," "]
[null,919,null," "]
[null,920,null," "]
[null,921,null," "]
[null,922,null," "]
[null,923,null," "]
[null,924,null," "]
[null,925,null," "]
[null,926,null," "]
[null,927,null," "]
[null,928,null," "]
[null,929,null," "]
[null,930,null," "]
[null,931,null," "]
[null,932,null," "]
[null,933,null," "]
[null,934,null," "]
[null,935,null," "]
[null,936,null," "]
[null,937,null," "]
[null,938,null," "]
[null,939,null," "]
[null,940,null," "]
[null,941,null," "]
[null,942,null," "]
[null,943,null," "]
[null,944,null," "]
[null,945,null," "]
[null,946,null," "]
[null,947,null," "]
[null,948,null," "]
[null,949,null," "]
[null,950,null," "]
[null,951,null," "]
[null,952,null," "]
[null,953,null," "]
[null,954,null," "]
[null,955,null," "]
[null,956,null," "]
[null,957,null," "]
[null,958,null," "]
[null,959,null," "]
[null,960,null," "]
[null,961,null,{"$f":"IF(H976=\"\", \" \", VLOOKUP(H976,JobsTable,4,FALSE))","v":" "}]
[null,962,null," "]
[null,963,null," "]
[null,964,null," "]
[null,965,null," "]
[null,966,null," "]
[null,967,null," "]
[null,968,null," "]
[null,969,null," "]
[null,970,null," "]
[null,971,null," "]
[null,972,null," "]
[null,973,null," "]
[null,974,null," "]
[null,975,null," "]
[null,976,null," "]
[null,977,null," "]
[null,978,null," "]
[null,979,null," "]
[null,980,null," "]
[null,981,null," "]
[null,982,null," "]
[null,983,null," "]
[null,984,null," "]
[null,985,null," "]
[null,986,null," "]
[null,987,null," "]
[null,988,null," "]
[null,989,null," "]
[null,990,null," "]
[null,991,null," "]
[null,992,null," "]
[null,993,null," "]
[null,994,null," "]
[null,995,null," "]
[null,996,null," "]
[null,997,null," "]
[null,998,null," "]
[null,999,null," "]
[null,1000,null," "]
[null,1001,null," "]
[null,1002,null," "]
[null,1003,null," "]
[null,1004,null," "]
[null,1005,null," "]
[null,1006,null," "]
[null,1007,null," "]
[null,1008,null," "]
[null,1009,null," "]
[null,1010,null," "]
[null,1011,null," "]
[null,1012,null," "]
[null,1013,null," "]
[null,1014,null," "]
[null,1015,null," "]
[null,1016,null," "]
[null,1017,null," "]
[null,1018,null," "]
[null,1019,null," "]
[null,1020,null," "]
[null,1021,null," "]
[null,1022,null," "]
[null,1023,null," "]
[null,1024,null," "]
[null,1025,null,{"$f":"IF(H1040=\"\", \" \", VLOOKUP(H1040,JobsTable,4,FALSE))","v":" "}]
[null,1026,null," "]
[null,1027,null," "]
[null,1028,null," "]
[null,1029,null," "]
[null,1030,null," "]
[null,1031,null," "]
[null,1032,null," "]
[null,1033,null," "]
[null,1034,null," "]
[null,1035,null," "]
[null,1036,null," "]
[null,1037,null," "]
[null,1038,null," "]
[null,1039,null," "]
[null,1040,null," "]
[null,1041,null," "]
[null,1042,null," "]
[null,1043,null," "]
[null,1044,null," "]
[null,1045,null," "]
[null,1046,null," "]
[null,1047,null," "]
[null,1048,null," "]
[null,1049,null," "]
[null,1050,null," "]
[null,1051,null," "]
[null,1052,null," "]
[null,1053,null," "]
[null,1054,null," "]
[null,1055,null," "]
[null,1056,null," "]
[null,1057,null," "]
[null,1058,null," "]
[null,1059,null," "]
[null,1060,null," "]
[null,1061,null," "]
[null,1062,null," "]
[null,1063,null," "]
[null,1064,null," "]
[null,1065,null," "]
[null,1066,null," "]
[null,1067,null," "]
[null,1068,null," "]
[null,1069,null," "]
[null,1070,null," "]
[null,1071,null," "]
[null,1072,null," "]
[null,1073,null," "]
[null,1074,null," "]
[null,1075,null," "]
[null,1076,null," "]
[null,1077,null," "]
[null,1078,null," "]
[null,1079,null," "]
[null,1080,null," "]
[null,1081,null," "]
[null,1082,null," "]
[null,1083,null," "]
[null,1084,null," "]
[null,1085,null," "]
[null,1086,null," "]
[null,1087,null," "]
[null,1088,null," "]
[null,1089,null,{"$f":"IF(H1104=\"\", \" \", VLOOKUP(H1104,JobsTable,4,FALSE))","v":" "}]
[null,1090,null," "]
[null,1091,null," "]
[null,1092,null," "]
[null,1093,null," "]
[null,1094,null," "]
[null,1095,null," "]
[null,1096,null," "]
[null,1097,null," "]
[null,1098,null," "]
[null,1099,null," "]
[null,1100,null," "]
[null,1101,null," "]
[null,1102,null," "]
[null,1103,null," "]
[null,1104,null," "]
[null,1105,null," "]
[null,1106,null," "]
[null,1107,null," "]
[null,1108,null," "]
[null,1109,null," "]
[null,1110,null," "]
[null,1111,null," "]
[null,1112,null," "]
[null,1113,null," "]
[null,1114,null," "]
[null,1115,null," "]
[null,1116,null," "]
[null,1117,null," "]
[null,1118,null," "]
[null,1119,null," "]
[null,1120,null," "]
[null,1121,null," "]
[null,1122,null," "]
[null,1123,null," "]
[null,1124,null," "]
[null,1125,null," "]
[null,1126,null," "]
[null,1127,null," "]
[null,1128,null," "]
[null,1129,null," "]
[null,1130,null," "]
[null,1131,null," "]
[null,1132,null," "]
[null,1133,null," "]
[null,1134,null," "]
[null,1135,null," "]
[null,1136,null," "]
[null,1137,null," "]
[null,1138,null," "]
[null,1139,null," "]
[null,1140,null," "]
[null,1141,null," "]
[null,1142,null," "]
[null,1143,null," "]
[null,1144,null," "]
[null,1145,null," "]
[null,1146,null," "]
[null,1147,null," "]
[null,1148,null," "]
[null,1149,null," "]
[null,1150,null," "]
[null,1151,null," "]
[null,1152,null," "]
[null,1153,null,{"$f":"IF(H1168=\"\", \" \", VLOOKUP(H1168,JobsTable,4,FALSE))","v":" "}]
[null,1154,null," "]
[null,1155,null," "]
[null,1156,null," "]
[null,1157,null," "]
[null,1158,null," "]
[null,1159,null," "]
[null,1160,null," "]
[null,1161,null," "]
[null,1162,null," "]
[null,1163,null," "]
[null,1164,null," "]
[null,1165,null," "]
[null,1166,null," "]
[null,1167,null," "]
[null,1168,null," "]
[null,1169,null," "]
[null,1170,null," "]
[null,1171,null," "]
[null,1172,null," "]
[null,1173,null," "]
[null,1174,null," "]
[null,1175,null," "]
[null,1176,null," "]
[null,1177,null," "]
[null,1178,null," "]
[null,1179,null," "]
[null,1180,null," "]
[null,1181,null," "]
[null,1182,null," "]
[null,1183,null," "]
[null,1184,null," "]
[null,1185,null," "]
[null,1186,null," "]
[null,1187,null," "]
[null,1188,null," "]
[null,1189,null," "]
[null,1190,null," "]
[null,1191,null," "]
[null,1192,null," "]
[null,1193,null," "]
[null,1194,null," "]
[null,1195,null," "]
[null,1196,null," "]
[null,1197,null," "]
[null,1198,null," "]
[null,1199,null," "]
[null,1200,null," "]
[null,1201,null," "]
[null,1202,null," "]
[null,1203,null," "]
[null,1204,null," "]
[null,1205,null," "]
[null,1206,null," "]
[null,1207,null," "]
[null,1208,null," "]
[null,1209,null," "]
[null,1210,null," "]
[null,1211,null," "]
[null,1212,null," "]
[null,1213,null," "]
[null,1214,null," "]
[null,1215,null," "]
[null,1216,null," "]
[null,1217,null,{"$f":"IF(H1232=\"\", \" \", VLOOKUP(H1232,JobsTable,4,FALSE))","v":" "}]
[null,1218,null," "]
[null,1219,null," "]
[null,1220,null," "]
[null,1221,null," "]
[null,1222,null," "]
[null,1223,null," "]
[null,1224,null," "]
[null,1225,null," "]
[null,1226,null," "]
[null,1227,null," "]
[null,1228,null," "]
[null,1229,null," "]
[null,1230,null," "]
[null,1231,null," "]
[null,1232,null," "]
[null,1233,null," "]
[null,1234,null," "]
[null,1235,null," "]
[null,1236,null," "]
[null,1237,null," "]
[null,1238,null," "]
[null,1239,null," "]
[null,1240,null," "]
[null,1241,null," "]
[null,1242,null," "]
[null,1243,null," "]
[null,1244,null," "]
[null,1245,null," "]
[null,1246,null," "]
[null,1247,null," "]
[null,1248,null," "]
[null,1249,null," "]
[null,1250,null," "]
[null,1251,null," "]
[null,1252,null," "]
[null,1253,null," "]
[null,1254,null," "]
[null,1255,null," "]
[null,1256,null," "]
[null,1257,null," "]
[null,1258,null," "]
[null,1259,null," "]
[null,1260,null," "]
[null,1261,null," "]
[null,1262,null," "]
[null,1263,null," "]
[null,1264,null," "]
[null,1265,null," "]
[null,1266,null," "]
[null,1267,null," "]
[null,1268,null," "]
[null,1269,null," "]
[null,1270,null," "]
[null,1271,null," "]
[null,1272,null," "]
[null,1273,null," "]
[null,1274,null," "]
[null,1275,null," "]
[null,1276,null," "]
[null,1277,null," "]
[null,1278,null," "]
[null,1279,null," "]
[null,1280,null," "]
[null,1281,null,{"$f":"IF(H1296=\"\", \" \", VLOOKUP(H1296,JobsTable,4,FALSE))","v":" "}]
[null,1282,null," "]
[null,1283,null," "]
[null,1284,null," "]
[null,1285,null," "]
[null,1286,null," "]
[null,1287,null," "]
[null,1288,null," "]
[null,1289,null," "]
[null,1290,null," "]
[null,1291,null," "]
[null,1292,null," "]
[null,1293,null," "]
[null,1294,null," "]
[null,1295,null," "]
[null,1296,null," "]
[null,1297,null," "]
[null,1298,null," "]
[null,1299,null," "]
[null,1300,null," "]
[null,1301,null," "]
[null,1302,null," "]
[null,1303,null," "]
[null,1304,null," "]
[null,1305,null," "]
[null,1306,null," "]
[null,1307,null," "]
[null,1308,null," "]
[null,1309,null," "]
[null,1310,null," "]
[null,1311,null," "]
[null,1312,null," "]
[null,1313,null," "]
[null,1314,null," "]
[null,1315,null," "]
[null,1316,null," "]
[null,1317,null," "]
[null,1318,null," "]
[null,1319,null," "]
[null,1320,null," "]
[null,1321,null," "]
[null,1322,null," "]
[null,1323,null," "]
[null,1324,null," "]
[null,1325,null," "]
[null,1326,null," "]
[null,1327,null," "]
[null,1328,null," "]
[null,1329,null," "]
[null,1330,null," "]
[null,1331,null," "]
[null,1332,null," "]
[null,1333,null," "]
[null,1334,null," "]
[null,1335,null," "]
[null,1336,null," "]
[null,1337,null," "]
[null,1338,null," "]
[null,1339,null," "]
[null,1340,null," "]
[null,1341,null," "]
[null,1342,null," "]
[null,1343,null," "]
[null,1344,null," "]
[null,1345,null,{"$f":"IF(H1360=\"\", \" \", VLOOKUP(H1360,JobsTable,4,FALSE))","v":" "}]
[null,1346,null," "]
[null,1347,null," "]
[null,1348,null," "]
[null,1349,null," "]
[null,1350,null," "]
[null,1351,null," "]
[null,1352,null," "]
[null,1353,null," "]
[null,1354,null," "]
[null,1355,null," "]
[null,1356,null," "]
[null,1357,null," "]
[null,1358,null," "]
[null,1359,null," "]
[null,1360,null," "]
[null,1361,null," "]
[null,1362,null," "]
[null,1363,null," "]
[null,1364,null," "]
[null,1365,null," "]
[null,1366,null," "]
[null,1367,null," "]
[null,1368,null," "]
[null,1369,null," "]
[null,1370,null," "]
[null,1371,null," "]
[null,1372,null," "]
[null,1373,null," "]
[null,1374,null," "]
[null,1375,null," "]
[null,1376,null," "]
[null,1377,null," "]
[null,1378,null," "]
[null,1379,null," "]
[null,1380,null," "]
[null,1381,null," "]
[null,1382,null," "]
[null,1383,null," "]
[null,1384,null," "]
[null,1385,null," "]
[null,1386,null," "]
[null,1387,null," "]
[null,1388,null," "]
[null,1389,null," "]
[null,1390,null," "]
[null,1391,null," "]
[null,1392,null," "]
[null,1393,null," "]
[null,1394,null," "]
[null,1395,null," "]
[null,1396,null," "]
[null,1397,null," "]
[null,1398,null," "]
[null,1399,null," "]
[null,1400,null," "]
[null,1401,null," "]
[null,1402,null," "]
[null,1403,null," "]
[null,1404,null," "]
[null,1405,null," "]
[null,1406,null," "]
[null,1407,null," "]
[null,1408,null," "]
[null,1409,null,{"$f":"IF(H1424=\"\", \" \", VLOOKUP(H1424,JobsTable,4,FALSE))","v":" "}]
[null,1410,null," "]
[null,1411,null," "]
[null,1412,null," "]
[null,1413,null," "]
[null,1414,null," "]
[null,1415,null," "]
[null,1416,null," "]
[null,1417,null," "]
[null,1418,null," "]
[null,1419,null," "]
[null,1420,null," "]
[null,1421,null," "]
[null,1422,null," "]
[null,1423,null," "]
[null,1424,null," "]
[null,1425,null," "]
[null,1426,null," "]
[null,1427,null," "]
[null,1428,null," "]
[null,1429,null," "]
[null,1430,null," "]
[null,1431,null," "]
[null,1432,null," "]
[null,1433,null," "]
[null,1434,null," "]
[null,1435,null," "]
[null,1436,null," "]
[null,1437,null," "]
[null,1438,null," "]
[null,1439,null," "]
[null,1440,null," "]
[null,1441,null," "]
[null,1442,null," "]
[null,1443,null," "]
[null,1444,null," "]
[null,1445,null," "]
[null,1446,null," "]
[null,1447,null," "]
[null,1448,null," "]
[null,1449,null," "]
[null,1450,null," "]
[null,1451,null," "]
[null,1452,null," "]
[null,1453,null," "]
[null,1454,null," "]
[null,1455,null," "]
[null,1456,null," "]
[null,1457,null," "]
[null,1458,null," "]
[null,1459,null," "]
[null,1460,null," "]
[null,1461,null," "]
[null,1462,null," "]
[null,1463,null," "]
[null,1464,null," "]
[null,1465,null," "]
[null,1466,null," "]
[null,1467,null," "]
[null,1468,null," "]
[null,1469,null," "]
[null,1470,null," "]
[null,1471,null," "]
[null,1472,null," "]
[null,1473,null,{"$f":"IF(H1488=\"\", \" \", VLOOKUP(H1488,JobsTable,4,FALSE))","v":" "}]
[null,1474,null," "]
[null,1475,null," "]
[null,1476,null," "]
[null,1477,null," "]
[null,1478,null," "]
[null,1479,null," "]
[null,1480,null," "]
[null,1481,null," "]
[null,1482,null," "]
[null,1483,null," "]
[null,1484,null," "]
[null,1485,null," "]
[null,1486,null," "]
[null,1487,null," "]
[null,1488,null," "]
[null,1489,null," "]
[null,1490,null," "]
[null,1491,null," "]
[null,1492,null," "]
[null,1493,null," "]
[null,1494,null," "]
[null,1495,null," "]
[null,1496,null," "]
[null,1497,null," "]
[null,1498,null," "]
[null,1499,null," "]
[null,1500,null," "]

{"sheet":"JobsTable","index":3,"n_rows":385,"n_cols":107,"rows_kept":385,"cut":false,"hidden":true,"merged":[]}
["Job Code","General Industry","Job Function","Job Title  ","Job Description        ",null,null,null,null,null,null,null,null,null,null,null,null,null,null,null,null,null,null,null,null,null,null,null,null,null,null,null,null,null,null,null,null,null,null,null,null,null,null,null,null,null,null,null,null,null,null,null,null,null,null,null,null,null,null,null,null,null,null,null,null,null,null,null,null,null,null,null,null,null,null,null,null,null,null,null,null,null,null,null,null,null,null,null,null,null,null,null,null,null,null,null,null,null,null,null,null,null,null,null,null,null,"OLD Job Code"]
["05-01","Administrative","Assistants","Administrative Assistant I","First level administrative assistant job, typically requiring reading, communication, math and problem solving skills equivalent to a high school education or GED and 1+ years of experience, or equivalent.  Performs administrative support work; specific duties vary with department(s) assigned.  Assists the supervisor and other department personnel by performing a variety of duties in support of department functions, such as meeting planning, preparing documents, or coordinating activities.  Collects, compiles, records or otherwise gathers data and prepares standard reports with information necessary for decision-making.  Incumbents typically use computer applications for word processing, spreadsheets, databases, graphics or scheduling.  Other skills may include use of a programmable telephone system, audiovisual equipment or the internet.  Incumbents make routine choices within established guidelines, with readily available supervision.",null,null,null,null,null,null,null,null,null,null,null,null,null,null,null,null,null,null,null,null,null,null,null,null,null,null,null,null,null,null,null,null,null,null,null,null,null,null,null,null,null,null,null,null,null,null,null,null,null,null,null,null,null,null,null,null,null,null,null,null,null,null,null,null,null,null,null,null,null,null,null,null,null,null,null,null,null,null,null,null,null,null,null,null,null,null,null,null,null,null,null,null,null,null,null,null,null,null,null,null,null,"4-050"]
["05-02","Administrative","Assistants","Administrative Assistant II ","Experienced level administrative assistant job.  The job typically requires high school graduate level reading, communication, math and problem solving skills and 3+ years of experience, or equivalent.  Incumbents perform administrative support work; specific duties vary with department(s) assigned.  Assists the department or function manager and other department or function staff by performing a variety of support duties, such as conference or meeting planning, preparing complex documents or coordinating activities.  Collects, compiles, records or otherwise gathers data and prepares standard and custom reports with information necessary for decision-making.  Incumbents typically use computer applications for word processing, spreadsheets, databases, graphics, web page content preparation or scheduling.  Other skills may include use of a programmable telephone system, audiovisual equipment or the internet.  Incumbents must have the ability to exercise independent judgment and discretion.  Incumbents make non-routine choices within established guidelines, with minimal supervision.",null,null,null,null,null,null,null,null,null,null,null,null,null,null,null,null,null,null,null,null,null,null,null,null,null,null,null,null,null,null,null,null,null,null,null,null,null,null,null,null,null,null,null,null,null,null,null,null,null,null,null,null,null,null,null,null,null,null,null,null,null,null,null,null,null,null,null,null,null,null,null,null,null,null,null,null,null,null,null,null,null,null,null,null,null,null,null,null,null,null,null,null,null,null,null,null,null,null,null,null,null,"4-051"]
["05-03","Administrative","Assistants","Administrative Assistant III","Highest level administrative assistant job, not directly supporting the CEO or President.  The job typically requires high school graduate level reading, communication, math and problem solving skills and 5+ years of experience, or equivalent.  Incumbents perform administrative support work; specific duties vary with department(s) assigned.  Assists the department or function manager and other department or function staff by performing a variety of support duties, such as conference or meeting planning, preparing complex documents or coordinating activities.  Collects, compiles, records or otherwise gathers data and prepares standard and custom reports with information necessary for decision-making.  Incumbents typically use, and may train others to use, computer applications for word processing, spreadsheets, databases, graphics, web page content preparation or scheduling. Other skills typically include use of a programmable telephone system, audiovisual equipment or the internet.  Incumbents must have the ability to exercise independent judgment and discretion.  Incumbents may set precedent within limits and/or administer operating rules and procedures under management guidance.  Incumbents may provide work direction to other support staff.",null,null,null,null,null,null,null,null,null,null,null,null,null,null,null,null,null,null,null,null,null,null,null,null,null,null,null,null,null,null,null,null,null,null,null,null,null,null,null,null,null,null,null,null,null,null,null,null,null,null,null,null,null,null,null,null,null,null,null,null,null,null,null,null,null,null,null,null,null,null,null,null,null,null,null,null,null,null,null,null,null,null,null,null,null,null,null,null,null,null,null,null,null,null,null,null,null,null,null,null,null,"4-052"]
["05-04","Administrative","Assistants","Administrative Assistant to Chief Executive Officer","Highest level administrative assistant job, equal in skills to the level III administrative assistant job, but directly supporting the CEO or President, typically requiring skills equivalent to a high school education or GED and related training and experience of 5+ years.  Assists the top executive by performing a variety of support duties, such as screening calls, conference or meeting planning, preparing complex documents or coordinating activities.  Collects, compiles, records or otherwise gathers data and prepares standard and custom reports with information necessary for decision-making.  Incumbents typically use computer applications for word processing, spreadsheets, databases, graphics, web page content preparation or scheduling.  Other skills typically include use of a programmable telephone system, audiovisual equipment or the internet.  Incumbents must have the ability to exercise independent judgment and exercise discretion regarding confidential matters.  Incumbents may provide work direction to other support staff.",null,null,null,null,null,null,null,null,null,null,null,null,null,null,null,null,null,null,null,null,null,null,null,null,null,null,null,null,null,null,null,null,null,null,null,null,null,null,null,null,null,null,null,null,null,null,null,null,null,null,null,null,null,null,null,null,null,null,null,null,null,null,null,null,null,null,null,null,null,null,null,null,null,null,null,null,null,null,null,null,null,null,null,null,null,null,null,null,null,null,null,null,null,null,null,null,null,null,null,null,null,"4-054"]
["05-07","Administrative","Assistants","Secretary","Provides principal clerical support in an office, usually to one individual and in some cases, also to the subordinate staff of that individual.  Performs varied clerical and secretarial duties requiring knowledge of office routines and an understanding of the organization.  This is typically a non-exempt position.",null,null,null,null,null,null,null,null,null,null,null,null,null,null,null,null,null,null,null,null,null,null,null,null,null,null,null,null,null,null,null,null,null,null,null,null,null,null,null,null,null,null,null,null,null,null,null,null,null,null,null,null,null,null,null,null,null,null,null,null,null,null,null,null,null,null,null,null,null,null,null,null,null,null,null,null,null,null,null,null,null,null,null,null,null,null,null,null,null,null,null,null,null,null,null,null,null,null,null,null,null,"4-04"]
["05-08","Administrative","Clerical","General Clerk I   (Entry Level)","First of three levels of general clerical work.  The job typically requires high school graduate level reading, communication and math skills and no previous experience, or equivalent.  Duties include performing routine clerical procedures in support of an assigned department or function.  Duties may include combinations of counter work, filing, checking, redirecting, or entering data into a computer.  Incumbents follow prescribed procedures in handling, classifying, filing or indexing data.  Working under close supervision, incumbents perform simple computations according to clearly defined principles.  Do not report jobs specializing in customer service (see 20-00, 20-01, 20-02), accounting (see 40-04, 40-05, 40-06), data entry (see 05-71, 05-18) or filing (see 05-19 or 05-20).",null,null,null,null,null,null,null,null,null,null,null,null,null,null,null,null,null,null,null,null,null,null,null,null,null,null,null,null,null,null,null,null,null,null,null,null,null,null,null,null,null,null,null,null,null,null,null,null,null,null,null,null,null,null,null,null,null,null,null,null,null,null,null,null,null,null,null,null,null,null,null,null,null,null,null,null,null,null,null,null,null,null,null,null,null,null,null,null,null,null,null,null,null,null,null,null,null,null,null,null,null,"4-07"]
["05-09","Administrative","Clerical","General Clerk II   (Experienced)","Second of three levels of general clerical work.  The job typically requires high school graduate level reading, communication and math skills and 2+ years or experience, or equivalent.  Incumbents normally are familiar with department or functional operations and are able to work with minimal assistance.  Incumbents perform clerical, counter work and typing duties of some diversity, requiring the application of various standard procedures and preparation or use of several types of forms, reports or records.  Incumbents may post data directly to a database from information furnished.  Posting may involve some intermediate operation such as cross-checking, comparison or ordinary calculations.  Incumbents may prepare and type reports, orders or other forms such as requisitions, schedules or control records of various types.  Do not report jobs specializing in customer service (see 20-00, 20-01, 20-02), accounting (see 40-04, 40-05, 40-06), data entry (see 05-71, 05-18) or filing (see 05-19 or 05-20).",null,null,null,null,null,null,null,null,null,null,null,null,null,null,null,null,null,null,null,null,null,null,null,null,null,null,null,null,null,null,null,null,null,null,null,null,null,null,null,null,null,null,null,null,null,null,null,null,null,null,null,null,null,null,null,null,null,null,null,null,null,null,null,null,null,null,null,null,null,null,null,null,null,null,null,null,null,null,null,null,null,null,null,null,null,null,null,null,null,null,null,null,null,null,null,null,null,null,null,null,null,"4-071"]
["05-10","Administrative","Clerical","General Clerk III    (Advanced)","Third of three levels of general clerical work.   This job typically requiring high school graduate level reading, communication and math skills and 5+ years of experience, or equivalent.  Incumbents have a high degree of understanding of the work function and will typically provide work direction to other clerical staff within the area.  Incumbents perform a variety of clerical and typing duties, some non-routine and complex in nature.  Incumbents utilizes knowledge of company policies and procedures in maintaining files, records, and other information.   Incumbents work under minimal supervision, using good judgment in resolving routine problems.  Do not report jobs specializing in customer service (see 20-00, 20-01, 20-02), accounting (see 40-04, 40-05, 40-06), data entry (see 05-71, 05-18) or filing (see 05-19 or 05-20).",null,null,null,null,null,null,null,null,null,null,null,null,null,null,null,null,null,null,null,null,null,null,null,null,null,null,null,null,null,null,null,null,null,null,null,null,null,null,null,null,null,null,null,null,null,null,null,null,null,null,null,null,null,null,null,null,null,null,null,null,null,null,null,null,null,null,null,null,null,null,null,null,null,null,null,null,null,null,null,null,null,null,null,null,null,null,null,null,null,null,null,null,null,null,null,null,null,null,null,null,null,"4-072"]
["05-11","Administrative","Clerical","OFFICE ADMINISTRATOR","Under general direction of a Department Director, performs administrative, budgetary and supervisory work.  The position requires considerable independent judgment and discretion.  Oversees and assumes responsibility for all accounting practices within the office; develops and implements office procedures; prepares periodic reports; plans, schedules, assigns, trains, directs, coordinates, and evaluates the work of departmental staff; hires, disciplines, and discharges staff according to policy and labor laws; oversees and directs the day to day functions of the office.  High school diploma or GED equivalent, plus 3 years of progressively responsible office experience in budget administration, policy development, and supervisory duties; or any equivalent combination of education and experience.",null,null,null,null,null,null,null,null,null,null,null,null,null,null,null,null,null,null,null,null,null,null,null,null,null,null,null,null,null,null,null,null,null,null,null,null,null,null,null,null,null,null,null,null,null,null,null,null,null,null,null,null,null,null,null,null,null,null,null,null,null,null,null,null,null,null,null,null,null,null,null,null,null,null,null,null,null,null,null,null,null,null,null,null,null,null,null,null,null,null,null,null,null,null,null,null,null,null,null,null,null,"4-08"]
["05-13","Administrative","Clerical","Office Assistant-Multi Function","Typically handles ordering of supplies, basic record keeping, some accounting responsibilities, such as accounts payable and receivable, composing routine correspondence and creating reports.  Incumbents may be responsible for handling incoming and outgoing company mail.  Incumbents typically use computer applications for word processing, spreadsheets, databases, graphics, web page content preparation or scheduling.  Other skills typically include use of a programmable telephone system, audiovisual equipment or the internet.  Uses independent judgment in decision making and solves problems with minimal supervision.",null,null,null,null,null,null,null,null,null,null,null,null,null,null,null,null,null,null,null,null,null,null,null,null,null,null,null,null,null,null,null,null,null,null,null,null,null,null,null,null,null,null,null,null,null,null,null,null,null,null,null,null,null,null,null,null,null,null,null,null,null,null,null,null,null,null,null,null,null,null,null,null,null,null,null,null,null,null,null,null,null,null,null,null,null,null,null,null,null,null,null,null,null,null,null,null,null,null,null,null,null,"4-06"]
["05-14","Administrative","Clerical","Receptionist                                     ","This is a specialized job performing reception duties at the corporate, divisional or departmental level, typically requiring communication and problem solving skills equivalent to a high school education or GED with previous experience of 1 year or less.  Receives visitors, secures identification, and determines whom they wish to see.  Announces visitors and directs them to the proper office when authorized.  Issues visitor's badge and registers as required.  Work is task oriented with routine decisions within established guidelines, with readily available supervision.  Incumbents may perform other support tasks that can be done while in the reception area. See job code 4-021 & 4-01",null,null,null,null,null,null,null,null,null,null,null,null,null,null,null,null,null,null,null,null,null,null,null,null,null,null,null,null,null,null,null,null,null,null,null,null,null,null,null,null,null,null,null,null,null,null,null,null,null,null,null,null,null,null,null,null,null,null,null,null,null,null,null,null,null,null,null,null,null,null,null,null,null,null,null,null,null,null,null,null,null,null,null,null,null,null,null,null,null,null,null,null,null,null,null,null,null,null,null,null,null,"4-02"]
["05-15","Administrative","Clerical","Telephone Operator","Operates cord or cordless switchboard to relay incoming, outgoing, and interoffice calls.  May supply information to callers and record messages. See job code 4-02 & 4-021",null,null,null,null,null,null,null,null,null,null,null,null,null,null,null,null,null,null,null,null,null,null,null,null,null,null,null,null,null,null,null,null,null,null,null,null,null,null,null,null,null,null,null,null,null,null,null,null,null,null,null,null,null,null,null,null,null,null,null,null,null,null,null,null,null,null,null,null,null,null,null,null,null,null,null,null,null,null,null,null,null,null,null,null,null,null,null,null,null,null,null,null,null,null,null,null,null,null,null,null,null,"4-01"]
["05-16","Administrative","Clerical","Telephone Operator/Receptionist/\nSecretary","This is a combination job performing at least two of the three listed functions at the corporate, division or departmental level, typically requiring communication and problems solving skills equivalent to a high school education or GED with previous experience of 1 year or less.  Receives visitors, secures identification, and determines whom they wish to see.  (1). Announces visitors and directs them to the proper office when authorized.  Issues visitor's badge and registers as required.  (2). Operates a telephone console, receives incoming calls and connects to the proper party.  Answers general requests for information within established guidelines.  (3). Performs routine secretarial duties such as typing, data entry, schedule coordination, making travel arrangements or handling company mail. See job code 4-02 & 4-01",null,null,null,null,null,null,null,null,null,null,null,null,null,null,null,null,null,null,null,null,null,null,null,null,null,null,null,null,null,null,null,null,null,null,null,null,null,null,null,null,null,null,null,null,null,null,null,null,null,null,null,null,null,null,null,null,null,null,null,null,null,null,null,null,null,null,null,null,null,null,null,null,null,null,null,null,null,null,null,null,null,null,null,null,null,null,null,null,null,null,null,null,null,null,null,null,null,null,null,null,null,"4-021"]
["05-17","Administrative","Data Entry","Data Entry Operator I (Entry)","Entry level data entry.  The job typically requires high school graduate level reading, communication and math skills and no previous experience, or equivalent. Under close supervision, transcribes data from source documents using data entry devices, or a keyboard, following generally standardized procedures and instructions.  Little or no selecting coding or interpreting of data is required.    Incumbents refer problems, such as erroneous items or codes and missing information, to a supervisor.",null,null,null,null,null,null,null,null,null,null,null,null,null,null,null,null,null,null,null,null,null,null,null,null,null,null,null,null,null,null,null,null,null,null,null,null,null,null,null,null,null,null,null,null,null,null,null,null,null,null,null,null,null,null,null,null,null,null,null,null,null,null,null,null,null,null,null,null,null,null,null,null,null,null,null,null,null,null,null,null,null,null,null,null,null,null,null,null,null,null,null,null,null,null,null,null,null,null,null,null,null,"4-03"]
["05-18","Administrative","Data Entry","Data Entry Operator II (Experienced)","Experienced level data entry.  The job typically requires high school graduate reading, communication and math skills and 2+ years of experience, or equivalent.  Under limited supervision, following more complex procedures and instructions, transcribes data from source documents using data entry devices, or a keyboard.  May involve selection of codes or interpretation of data entered.  Incumbents may solve routine problems such as erroneous items or codes and obtain missing information.  More extensive problems are referred to a supervisor.",null,null,null,null,null,null,null,null,null,null,null,null,null,null,null,null,null,null,null,null,null,null,null,null,null,null,null,null,null,null,null,null,null,null,null,null,null,null,null,null,null,null,null,null,null,null,null,null,null,null,null,null,null,null,null,null,null,null,null,null,null,null,null,null,null,null,null,null,null,null,null,null,null,null,null,null,null,null,null,null,null,null,null,null,null,null,null,null,null,null,null,null,null,null,null,null,null,null,null,null,null,"4-031"]
["05-19","Administrative","Filing","File Clerk I (Entry Level)","Entry file maintenance job, typically requiring math and problem solving skills equivalent to a high school diploma or GED and 0-1 year of previous work experience.  Incumbents maintain assigned files under close supervision.  Work may involve setting up folders for new materials, but the overall methods and procedures are set.  Incumbents retrieve material from files upon request and note withdrawals.  Incumbents may maintain a computerized index or perform the more routine elements of maintaining electronic files.  Incumbents may transfer files to storage and periodically purge files per company record retention policies.",null,null,null,null,null,null,null,null,null,null,null,null,null,null,null,null,null,null,null,null,null,null,null,null,null,null,null,null,null,null,null,null,null,null,null,null,null,null,null,null,null,null,null,null,null,null,null,null,null,null,null,null,null,null,null,null,null,null,null,null,null,null,null,null,null,null,null,null,null,null,null,null,null,null,null,null,null,null,null,null,null,null,null,null,null,null,null,null,null,null,null,null,null,null,null,null,null,null,null,null,null,"4-062"]
["05-20","Administrative","Filing","File Clerk II (Experienced)","Experienced file maintenance job, typically requiring math and problem solving skills equivalent to a high school diploma or GED and 1+ years of work experience, or equivalent.  Incumbents maintain assigned files with supervision readily available to address unusual cases.  Work involves setting up folders for new materials.  Incumbents are generally able to determine classification of material without assistance, but are responsible for verifying classification with appropriate staff.  Incumbents retrieve material from files upon request and note withdrawals.  Incumbents may maintain a computerized index or maintain electronic files.  Incumbents will routinely transfer files to storage and periodically purge files per company record retention policies.   Incumbents may provide training and work direction to others in the filing area.",null,null,null,null,null,null,null,null,null,null,null,null,null,null,null,null,null,null,null,null,null,null,null,null,null,null,null,null,null,null,null,null,null,null,null,null,null,null,null,null,null,null,null,null,null,null,null,null,null,null,null,null,null,null,null,null,null,null,null,null,null,null,null,null,null,null,null,null,null,null,null,null,null,null,null,null,null,null,null,null,null,null,null,null,null,null,null,null,null,null,null,null,null,null,null,null,null,null,null,null,null,"4-063"]
["05-21","Administrative","Filing","Records Manager","Managerial job with responsibility for maintaining a system of records important to the operation of the business.   Designs and maintains records retention systems, including computer or microfilm records.  Develops and administers record retention policies based on business needs and legal requirements.  Incumbents will typically supervise records staff.  Hospital medical records jobs are not included.",null,null,null,null,null,null,null,null,null,null,null,null,null,null,null,null,null,null,null,null,null,null,null,null,null,null,null,null,null,null,null,null,null,null,null,null,null,null,null,null,null,null,null,null,null,null,null,null,null,null,null,null,null,null,null,null,null,null,null,null,null,null,null,null,null,null,null,null,null,null,null,null,null,null,null,null,null,null,null,null,null,null,null,null,null,null,null,null,null,null,null,null,null,null,null,null,null,null,null,null,null,"4-13"]
["05-22","Administrative","Filing","Records Specialist","File administration/maintenance job requiring specialized training in records management.  Incumbents maintain records for the entire organization or a major department, such as engineering.  Incumbents are able to independently administer the function with guidance from management.  Work requires recommending or modifying records management methods within the area of responsibility.  Incumbents may maintain a computerized index or maintain electronic files.  Incumbents will routinely transfer files to storage and periodically purge files per company record retention policies.  Incumbents typically provide training and work direction to others using the filing system. Do Not include Medical Records Specialists see 90-80",null,null,null,null,null,null,null,null,null,null,null,null,null,null,null,null,null,null,null,null,null,null,null,null,null,null,null,null,null,null,null,null,null,null,null,null,null,null,null,null,null,null,null,null,null,null,null,null,null,null,null,null,null,null,null,null,null,null,null,null,null,null,null,null,null,null,null,null,null,null,null,null,null,null,null,null,null,null,null,null,null,null,null,null,null,null,null,null,null,null,null,null,null,null,null,null,null,null,null,null,null,"4-12"]
["05-23","Administrative","Library","Librarian","Plans the acquisition, organization and maintenance of books, samples and products. May search computer databases, files and shelves to locate information.  Supervises the cataloging and storage of reference materials.",null,null,null,null,null,null,null,null,null,null,null,null,null,null,null,null,null,null,null,null,null,null,null,null,null,null,null,null,null,null,null,null,null,null,null,null,null,null,null,null,null,null,null,null,null,null,null,null,null,null,null,null,null,null,null,null,null,null,null,null,null,null,null,null,null,null,null,null,null,null,null,null,null,null,null,null,null,null,null,null,null,null,null,null,null,null,null,null,null,null,null,null,null,null,null,null,null,null,null,null,null,"4-50"]
["05-24","Administrative","Mail","Mail Clerk","Support job, typically requiring reading, communication and math skills commensurate with a high school education or GED and no previous experience, or equivalent.   Incumbents sort incoming mail for distribution and dispatch outgoing mail.  Incumbents may open envelopes by hand or machine and may stamp date and time of receipt on incoming mail.  Incumbents may operate mail handling and postage equipment, including folders, collating and insertion equipment.  Incumbents may address mail, using various label/address generation methods.  May check alternative delivery methods.  Incumbents keep records of registered mail or mail sent via courier.  Incumbents must follow instructions and are subject to close supervision.",null,null,null,null,null,null,null,null,null,null,null,null,null,null,null,null,null,null,null,null,null,null,null,null,null,null,null,null,null,null,null,null,null,null,null,null,null,null,null,null,null,null,null,null,null,null,null,null,null,null,null,null,null,null,null,null,null,null,null,null,null,null,null,null,null,null,null,null,null,null,null,null,null,null,null,null,null,null,null,null,null,null,null,null,null,null,null,null,null,null,null,null,null,null,null,null,null,null,null,null,null,"4-10"]
["05-25","Administrative","Mail","Mail Room Supervisor","Supervises mailroom function with responsibility for handling high volumes of incoming or outgoing mail.  Duties include supervising mail and delivery staff and coordinating work schedules to meet work demand.  Researches and decides on the best mode of delivering mail, or small packages, in order to meet customer needs in a timely, cost efficient manner.  May also have responsibility for copy center services or other office support as a secondary function.",null,null,null,null,null,null,null,null,null,null,null,null,null,null,null,null,null,null,null,null,null,null,null,null,null,null,null,null,null,null,null,null,null,null,null,null,null,null,null,null,null,null,null,null,null,null,null,null,null,null,null,null,null,null,null,null,null,null,null,null,null,null,null,null,null,null,null,null,null,null,null,null,null,null,null,null,null,null,null,null,null,null,null,null,null,null,null,null,null,null,null,null,null,null,null,null,null,null,null,null,null,"4-11"]
["05-26","Administrative","Management","Assistant Manager","Assists manager in charge of overall operation of the organization.  May assist in the development and supervision of subordinates.  Manage procedures by doing personally or through subordinates.",null,null,null,null,null,null,null,null,null,null,null,null,null,null,null,null,null,null,null,null,null,null,null,null,null,null,null,null,null,null,null,null,null,null,null,null,null,null,null,null,null,null,null,null,null,null,null,null,null,null,null,null,null,null,null,null,null,null,null,null,null,null,null,null,null,null,null,null,null,null,null,null,null,null,null,null,null,null,null,null,null,null,null,null,null,null,null,null,null,null,null,null,null,null,null,null,null,null,null,null,null,"4-44"]
["05-27","Administrative","Management","Business Development Manager","Oversees and participates in the development and research activities involving building company strengths, identifying potential new markets and business opportunities, increasing share of market and obtaining a competitive position in the industry. Typically reports to director level.",null,null,null,null,null,null,null,null,null,null,null,null,null,null,null,null,null,null,null,null,null,null,null,null,null,null,null,null,null,null,null,null,null,null,null,null,null,null,null,null,null,null,null,null,null,null,null,null,null,null,null,null,null,null,null,null,null,null,null,null,null,null,null,null,null,null,null,null,null,null,null,null,null,null,null,null,null,null,null,null,null,null,null,null,null,null,null,null,null,null,null,null,null,null,null,null,null,null,null,null,null,"4-390"]
["05-28","Administrative","Management","Chief Executive Officer - For Profit","Determines the basic objectives of the organizational unit; formulates plans and policies and allocates resources for the achievement of these objectives.  Interprets and applies policies established by the owners of the enterprise or their representative  Do not report not-for-profit see 30-19",null,null,null,null,null,null,null,null,null,null,null,null,null,null,null,null,null,null,null,null,null,null,null,null,null,null,null,null,null,null,null,null,null,null,null,null,null,null,null,null,null,null,null,null,null,null,null,null,null,null,null,null,null,null,null,null,null,null,null,null,null,null,null,null,null,null,null,null,null,null,null,null,null,null,null,null,null,null,null,null,null,null,null,null,null,null,null,null,null,null,null,null,null,null,null,null,null,null,null,null,null,"4-32"]
["05-29","Administrative","Management","Project Manager","Manager in charge of designated projects.  Typically this job requires a bachelor’s degree and 3-6 years of experience, or equivalent.  The incumbent is responsible for planning, administering and completing assigned projects, which may cross several functional areas, such as facilities, operations, marketing or administration.  Assignments may vary in length and complexity, but are generally not permanent.  The incumbent typically does not supervise staff, but may provide work direction to individuals supporting a project.  Do not report IT Project Managers or individuals managing construction projects see 70-07.",null,null,null,null,null,null,null,null,null,null,null,null,null,null,null,null,null,null,null,null,null,null,null,null,null,null,null,null,null,null,null,null,null,null,null,null,null,null,null,null,null,null,null,null,null,null,null,null,null,null,null,null,null,null,null,null,null,null,null,null,null,null,null,null,null,null,null,null,null,null,null,null,null,null,null,null,null,null,null,null,null,null,null,null,null,null,null,null,null,null,null,null,null,null,null,null,null,null,null,null,null,"4-42"]
["05-30","Administrative","Management","Rental Property Manager","Manager in charge of administration of rental property.  The job may or may not be supervisory.  Responsibilities include acting as an agent to lease and maintain company owned or managed property.  Duties include managing contracts with service vendors, collecting rents, providing customer service to tenants, negotiating rents and seeking renters.  Incumbents may supervise company staff engaged in light maintenance.",null,null,null,null,null,null,null,null,null,null,null,null,null,null,null,null,null,null,null,null,null,null,null,null,null,null,null,null,null,null,null,null,null,null,null,null,null,null,null,null,null,null,null,null,null,null,null,null,null,null,null,null,null,null,null,null,null,null,null,null,null,null,null,null,null,null,null,null,null,null,null,null,null,null,null,null,null,null,null,null,null,null,null,null,null,null,null,null,null,null,null,null,null,null,null,null,null,null,null,null,null,"4-41"]
["70-00","Construction","Buildings","Construction Worker","(Not-carpentry, such as framing/finish work) Works on construction projects, usually working in a utility capacity, by transferring from one task to another where demands require a worker with varied experience and ability to work without close supervision.",null,null,null,null,null,null,null,null,null,null,null,null,null,null,null,null,null,null,null,null,null,null,null,null,null,null,null,null,null,null,null,null,null,null,null,null,null,null,null,null,null,null,null,null,null,null,null,null,null,null,null,null,null,null,null,null,null,null,null,null,null,null,null,null,null,null,null,null,null,null,null,null,null,null,null,null,null,null,null,null,null,null,null,null,null,null,null,null,null,null,null,null,null,null,null,null,null,null,null,null,null,"7-04"]
["70-01","Construction","Buildings","Crew Worker","Weatherize homes, mobiles and apartments by insulating walls, attics, floors, crawl spaces, underbellies and mobile attics. Replace or repair doors and windows, reduce infiltration, minor home repairs to reduce the overall energy consumption of the home.",null,null,null,null,null,null,null,null,null,null,null,null,null,null,null,null,null,null,null,null,null,null,null,null,null,null,null,null,null,null,null,null,null,null,null,null,null,null,null,null,null,null,null,null,null,null,null,null,null,null,null,null,null,null,null,null,null,null,null,null,null,null,null,null,null,null,null,null,null,null,null,null,null,null,null,null,null,null,null,null,null,null,null,null,null,null,null,null,null,null,null,null,null,null,null,null,null,null,null,null,null,"7-041"]
["70-02","Construction","Buildings","Carpenter I (Helper/Assistant)","Works under the supervision of a Carpenter II, Journeyman or Master. Is usually working or providing support laborer work in a utility capacity, such as transferring materials, moving/operating equipment, or working with various tools and materials. Tasks assigned to this position require a worker with varied experience and the ability to work without close supervision at times.",null,null,null,null,null,null,null,null,null,null,null,null,null,null,null,null,null,null,null,null,null,null,null,null,null,null,null,null,null,null,null,null,null,null,null,null,null,null,null,null,null,null,null,null,null,null,null,null,null,null,null,null,null,null,null,null,null,null,null,null,null,null,null,null,null,null,null,null,null,null,null,null,null,null,null,null,null,null,null,null,null,null,null,null,null,null,null,null,null,null,null,null,null,null,null,null,null,null,null,null,null,"7-40"]
["70-03","Construction","Buildings","Carpenter II (Mid-level Apprentice)","Works under the supervision of a Journeyman or Master Plumber.  Can lead entry level project work, that does not require a Jorneyman or Master Plumbers' expertise or direct presence. Can have supervisory responsibilities over laborers or assistants. Tasks assigned to this position require a worker with 1-3 years experience, can be part of the state (or union) sponsored apprenticeship program, and has the ability to work without close supervision at times.",null,null,null,null,null,null,null,null,null,null,null,null,null,null,null,null,null,null,null,null,null,null,null,null,null,null,null,null,null,null,null,null,null,null,null,null,null,null,null,null,null,null,null,null,null,null,null,null,null,null,null,null,null,null,null,null,null,null,null,null,null,null,null,null,null,null,null,null,null,null,null,null,null,null,null,null,null,null,null,null,null,null,null,null,null,null,null,null,null,null,null,null,null,null,null,null,null,null,null,null,null,"7-41"]
["70-04","Construction","Buildings","Carpenter III (Journeyman / Master level)","Can lead mosts of Carpentry projects. Frequently have supervisory responsibilities over Carpenter II, and  laborers or assistants. Tasks assigned to this position generally require a worker having completed an on-the-job training curriculum composed of at least 8000-10,000 hours of work experience, and another 250-450 hours of classroom training. Individuals in this role frequently work without supervision.",null,null,null,null,null,null,null,null,null,null,null,null,null,null,null,null,null,null,null,null,null,null,null,null,null,null,null,null,null,null,null,null,null,null,null,null,null,null,null,null,null,null,null,null,null,null,null,null,null,null,null,null,null,null,null,null,null,null,null,null,null,null,null,null,null,null,null,null,null,null,null,null,null,null,null,null,null,null,null,null,null,null,null,null,null,null,null,null,null,null,null,null,null,null,null,null,null,null,null,null,null,"7-42"]
["70-05","Construction","Buildings","Construction Administrator","Coordinates and oversees activities of contractors or employees engaged in construction, installation and/or repair of structures or fixtures to ensure the design intent is followed.  Examines blueprints, floor plans and/or other design specifications.  May determine sequence of activities or assign work activity. ",null,null,null,null,null,null,null,null,null,null,null,null,null,null,null,null,null,null,null,null,null,null,null,null,null,null,null,null,null,null,null,null,null,null,null,null,null,null,null,null,null,null,null,null,null,null,null,null,null,null,null,null,null,null,null,null,null,null,null,null,null,null,null,null,null,null,null,null,null,null,null,null,null,null,null,null,null,null,null,null,null,null,null,null,null,null,null,null,null,null,null,null,null,null,null,null,null,null,null,null,null,"1-123"]
["70-06","Construction","Buildings","Construction Foreman","Directs activities of workers concerned with the construction of buildings, dams, highways, pipelines, or other construction projects by performing the following duties personally or through subordinates.  Studies specifications by performing the following duties personally or through subordinates.  Studies specifications to plan procedures for construction.  Orders procurement of tools and materials to be delivered at specific times to conform to work schedules.  Inspects work in progress, prepares and reviews reports on progress, materials used and costs.  Examines blueprints to determine dimensions of structure, lays out floor plan, selects materials and structural units (inspects them to ensure conformance with provisions of building codes), determines sequence of activities, assigns workers to tasks, inspect work performed by subcontractors, and makes cost estimates.",null,null,null,null,null,null,null,null,null,null,null,null,null,null,null,null,null,null,null,null,null,null,null,null,null,null,null,null,null,null,null,null,null,null,null,null,null,null,null,null,null,null,null,null,null,null,null,null,null,null,null,null,null,null,null,null,null,null,null,null,null,null,null,null,null,null,null,null,null,null,null,null,null,null,null,null,null,null,null,null,null,null,null,null,null,null,null,null,null,null,null,null,null,null,null,null,null,null,null,null,null,"7-03"]
["70-07","Construction","Buildings","Construction Project Manager","Manager in charge of construction projects with responsibilities that include acting as an owner’s representative in the coordination of project design development, obtaining local government approvals, administration of vendor contracts (general or subcontractors) and other related work associated with the building or remodeling of commercial industrial or rental properties.  Duties include obtaining bids, managing the timing of vendor work, controlling project budgets, approving change orders, monitoring quality of materials and workmanship and authorizing payment.  Incumbents may supervise company employees engaged in construction work.",null,null,null,null,null,null,null,null,null,null,null,null,null,null,null,null,null,null,null,null,null,null,null,null,null,null,null,null,null,null,null,null,null,null,null,null,null,null,null,null,null,null,null,null,null,null,null,null,null,null,null,null,null,null,null,null,null,null,null,null,null,null,null,null,null,null,null,null,null,null,null,null,null,null,null,null,null,null,null,null,null,null,null,null,null,null,null,null,null,null,null,null,null,null,null,null,null,null,null,null,null,"7-29"]
["70-08","Construction","Utilities","Electrician I (Assistant)","First level of electrician work, requiring 0-2 years of formal technical training, or equivalent.  Under close supervision assists others in installing and maintaining electrical equipment such as large control panels, switchboards, junction boxes, switches, motors, etc.  Tests circuits with testing equipment and reports readings for diagnosis by others.  Under direction, performs wiring of ordinary light circuits; setting circuit breakers; repairing switches, small motors and simple starting and control devices; replacing lights and fuses; and minor trouble shooting.  Uses hand and power tools.  May work from simple wiring diagrams.",null,null,null,null,null,null,null,null,null,null,null,null,null,null,null,null,null,null,null,null,null,null,null,null,null,null,null,null,null,null,null,null,null,null,null,null,null,null,null,null,null,null,null,null,null,null,null,null,null,null,null,null,null,null,null,null,null,null,null,null,null,null,null,null,null,null,null,null,null,null,null,null,null,null,null,null,null,null,null,null,null,null,null,null,null,null,null,null,null,null,null,null,null,null,null,null,null,null,null,null,null,"2-09"]
["70-09","Construction","Utilities","Electrician II (Journey)","Experienced electrician requiring completion of 2 years of formal technical school training, 0-4 years of job experience, or equivalent, and successful completion of the board exam for licensing as a journey-level maintenance electrician.  Plans and performs jobs of installing and maintaining a variety of electrical equipment such as control panels, switchboards, junction boxes, switches, etc.  Connects and disconnects electric powered machines; repairs motors and generators; replaces fuses and sets circuit breakers on high and low tension circuits.  Diagnoses electrical trouble.  Uses hand and power tools.  Works from wiring diagrams.  Planning may involve determination of method and sequence of operation and selection of materials to be used.  Works independently and may provide direction to an assistant or to less experienced electricians.",null,null,null,null,null,null,null,null,null,null,null,null,null,null,null,null,null,null,null,null,null,null,null,null,null,null,null,null,null,null,null,null,null,null,null,null,null,null,null,null,null,null,null,null,null,null,null,null,null,null,null,null,null,null,null,null,null,null,null,null,null,null,null,null,null,null,null,null,null,null,null,null,null,null,null,null,null,null,null,null,null,null,null,null,null,null,null,null,null,null,null,null,null,null,null,null,null,null,null,null,null,"2-10"]
["70-10","Construction","Utilities","Electrician III (Master)","Advanced electrician requiring completion of 2 years of formal technical school training and 4-5 years of job experience, or equivalent, and successful completion of the board exam for licensing as a master electrician.  Approves wiring plans for new installations.  Plans and performs jobs of installing and maintaining a variety of electrical equipment such as control panels, switchboards, junction boxes, switches, etc.  Connects and disconnects electric powered machines; repairs motors and generators; replaces fuses and sets circuit breakers on high and low tension circuits.  Diagnoses electrical trouble.  Uses hand and power tools.  Works from wiring diagrams.  Planning may involve determination of method and sequence of operation and selection of materials to be used, establishment of work procedures.  Works independently and may provide direction to assistants or to less experienced electricians.  ",null,null,null,null,null,null,null,null,null,null,null,null,null,null,null,null,null,null,null,null,null,null,null,null,null,null,null,null,null,null,null,null,null,null,null,null,null,null,null,null,null,null,null,null,null,null,null,null,null,null,null,null,null,null,null,null,null,null,null,null,null,null,null,null,null,null,null,null,null,null,null,null,null,null,null,null,null,null,null,null,null,null,null,null,null,null,null,null,null,null,null,null,null,null,null,null,null,null,null,null,null,"2-11"]
["70-11","Construction","Utilities","Equipment Operator","Operates equipment, such as cranes, power shovels, scrapers, paving machines, motor graders, trench digging machines, conveyors, bulldozers, dredges, pumps, compressors, forklifts, and pneumatic tools.",null,null,null,null,null,null,null,null,null,null,null,null,null,null,null,null,null,null,null,null,null,null,null,null,null,null,null,null,null,null,null,null,null,null,null,null,null,null,null,null,null,null,null,null,null,null,null,null,null,null,null,null,null,null,null,null,null,null,null,null,null,null,null,null,null,null,null,null,null,null,null,null,null,null,null,null,null,null,null,null,null,null,null,null,null,null,null,null,null,null,null,null,null,null,null,null,null,null,null,null,null,"7-06"]
["70-12","Construction","Utilities","Plumber (Journeyman / Master level)","Can lead all types of plumbing projects. Frequently have supervisory responsibilities over Plumbing Techs, laborers or assistants. Tasks assigned to this position generally require a worker having completed an on-the-job training curriculum composed of at least 8000-10,000 hours of work experience, and another 250-450 hours of classroom training. Individuals in this role frequently work without supervision.",null,null,null,null,null,null,null,null,null,null,null,null,null,null,null,null,null,null,null,null,null,null,null,null,null,null,null,null,null,null,null,null,null,null,null,null,null,null,null,null,null,null,null,null,null,null,null,null,null,null,null,null,null,null,null,null,null,null,null,null,null,null,null,null,null,null,null,null,null,null,null,null,null,null,null,null,null,null,null,null,null,null,null,null,null,null,null,null,null,null,null,null,null,null,null,null,null,null,null,null,null,"7-32"]
["70-13","Construction","Utilities","Plumber Assistant/Laborer","Works under the supervision of a Plumber Tech, Journeyman or Master. Is usually working or providing support laborer work in a utility capacity, such as transferring materials, moving/operating equipment, or working with various tools and materials. Tasks assigned to this position require a worker with varied experience and the ability to work without close supervision at times.",null,null,null,null,null,null,null,null,null,null,null,null,null,null,null,null,null,null,null,null,null,null,null,null,null,null,null,null,null,null,null,null,null,null,null,null,null,null,null,null,null,null,null,null,null,null,null,null,null,null,null,null,null,null,null,null,null,null,null,null,null,null,null,null,null,null,null,null,null,null,null,null,null,null,null,null,null,null,null,null,null,null,null,null,null,null,null,null,null,null,null,null,null,null,null,null,null,null,null,null,null,"7-30"]
["70-14","Construction","Utilities","Plumbing Tech (Mid-level Apprentice)","Works under the supervision of a Journeyman or Master Plumber.  Can lead entry level project work, that does not require a Jorneyman or Master Plumbers' expertise or direct presence. Can have supervisory responsibilities over laborers or assistants. Tasks assigned to this position require a worker with 1-3 years experience, can be part of the state (or union) sponsored apprenticeship program, and has the ability to work without close supervision at times.",null,null,null,null,null,null,null,null,null,null,null,null,null,null,null,null,null,null,null,null,null,null,null,null,null,null,null,null,null,null,null,null,null,null,null,null,null,null,null,null,null,null,null,null,null,null,null,null,null,null,null,null,null,null,null,null,null,null,null,null,null,null,null,null,null,null,null,null,null,null,null,null,null,null,null,null,null,null,null,null,null,null,null,null,null,null,null,null,null,null,null,null,null,null,null,null,null,null,null,null,null,"7-31"]
["70-15","Construction","Utilities","Line Superintendent","Supervises activities required for constructing and maintaining power transmission and distribution systems.  Assists engineering by designing construction layout.  Supervises line supervisors and foreman.",null,null,null,null,null,null,null,null,null,null,null,null,null,null,null,null,null,null,null,null,null,null,null,null,null,null,null,null,null,null,null,null,null,null,null,null,null,null,null,null,null,null,null,null,null,null,null,null,null,null,null,null,null,null,null,null,null,null,null,null,null,null,null,null,null,null,null,null,null,null,null,null,null,null,null,null,null,null,null,null,null,null,null,null,null,null,null,null,null,null,null,null,null,null,null,null,null,null,null,null,null,"2-26"]
["70-16","Construction","Utilities","Lineman (Journey)","Performs diverse work erecting, repairing and operating distribution and transmission facilities.  Works on energized lines, structures and equipment involving electricity distribution.",null,null,null,null,null,null,null,null,null,null,null,null,null,null,null,null,null,null,null,null,null,null,null,null,null,null,null,null,null,null,null,null,null,null,null,null,null,null,null,null,null,null,null,null,null,null,null,null,null,null,null,null,null,null,null,null,null,null,null,null,null,null,null,null,null,null,null,null,null,null,null,null,null,null,null,null,null,null,null,null,null,null,null,null,null,null,null,null,null,null,null,null,null,null,null,null,null,null,null,null,null,"2-28"]
["20-00","Customer Service","Frontline services","Customer Service Representative I (Entry-level)","First of three levels of customer service work.  The job typically requires high school graduate reading, communication, math and problem solving skills and no previous experience, or equivalent.  Incumbents receive questions from customers and follow established procedures to provide answers or refer calls to appropriate staff.  Typical questions are focused on order status, product information, account status, pricing, product or service.  Incumbents follow established procedures and have readily available supervision.",null,null,null,null,null,null,null,null,null,null,null,null,null,null,null,null,null,null,null,null,null,null,null,null,null,null,null,null,null,null,null,null,null,null,null,null,null,null,null,null,null,null,null,null,null,null,null,null,null,null,null,null,null,null,null,null,null,null,null,null,null,null,null,null,null,null,null,null,null,null,null,null,null,null,null,null,null,null,null,null,null,null,null,null,null,null,null,null,null,null,null,null,null,null,null,null,null,null,null,null,null,"10-29"]
["20-01","Customer Service","Frontline services","Customer Service Representative II (Experienced)","Second of three levels of customer service work.  The job typically requires high school graduate  reading, communication, math and problem solving skills and 2+ years experience.  Incumbents receive questions from customers and follow established procedures to provide answers or refer calls to appropriate staff.  Typical questions are focused on order status, product information, account status, pricing, product or service.  Incumbents require limited supervision.  ",null,null,null,null,null,null,null,null,null,null,null,null,null,null,null,null,null,null,null,null,null,null,null,null,null,null,null,null,null,null,null,null,null,null,null,null,null,null,null,null,null,null,null,null,null,null,null,null,null,null,null,null,null,null,null,null,null,null,null,null,null,null,null,null,null,null,null,null,null,null,null,null,null,null,null,null,null,null,null,null,null,null,null,null,null,null,null,null,null,null,null,null,null,null,null,null,null,null,null,null,null,"10-291"]
["20-02","Customer Service","Frontline services","Customer Service Representative III (Technical Advisor)","Third of three levels of customer service work.  The job typically requires an associate or bachelor’s degree with 2+ years of experience, or equivalent.  Handles the more technical or complex service questions from customers and applies judgment in resolving service, warranty or technical problems falling within established limits of authority and knowledge.  Issues of greater impact or technical complexity are researched and presented to management or referred to the appropriate internal experts for resolution.  Typical customer questions are focused on account status, technical product application or service information, pricing or adjustments.  May provide work direction to others.",null,null,null,null,null,null,null,null,null,null,null,null,null,null,null,null,null,null,null,null,null,null,null,null,null,null,null,null,null,null,null,null,null,null,null,null,null,null,null,null,null,null,null,null,null,null,null,null,null,null,null,null,null,null,null,null,null,null,null,null,null,null,null,null,null,null,null,null,null,null,null,null,null,null,null,null,null,null,null,null,null,null,null,null,null,null,null,null,null,null,null,null,null,null,null,null,null,null,null,null,null,"10-293"]
["20-03","Customer Service","Management","Customer Service Supervisor","Supervisor of a customer service function, typically requiring an associate's degree with 5+ years of experience, or equivalent.  The incumbent fields the most technical or complex service questions from customers and applies experience and judgment in the interpretation and application of guidelines established by senior management.  Issues of major impact or technical complexity are researched and presented to upper management or referred to the appropriate internal experts for resolution.  Typical customer questions are focused on account status, technical product application, service information, pricing or adjustments.  Assists with employee selection and reviews employee performance.  Do not report working supervisors or leads, where a majority of time is spent performing hands-on work of the department. ",null,null,null,null,null,null,null,null,null,null,null,null,null,null,null,null,null,null,null,null,null,null,null,null,null,null,null,null,null,null,null,null,null,null,null,null,null,null,null,null,null,null,null,null,null,null,null,null,null,null,null,null,null,null,null,null,null,null,null,null,null,null,null,null,null,null,null,null,null,null,null,null,null,null,null,null,null,null,null,null,null,null,null,null,null,null,null,null,null,null,null,null,null,null,null,null,null,null,null,null,null,"10-282"]
["20-04","Customer Service","Management","Customer Service Manager","Manager of a customer service function, typically requiring a bachelor’s degree with 5+ years of experience, or equivalent.  Develops and recommends customer service policies and procedures and seeks senior management approval when needed.  Applies experience and judgment in the interpretation and application of direction established by senior management.  Issues of major impact or technical complexity are researched and presented to upper management or referred to the appropriate internal experts for resolution.  Typical customer questions are focused on account status, technical product application, service information, pricing or adjustments.  Manages department staff and budget.",null,null,null,null,null,null,null,null,null,null,null,null,null,null,null,null,null,null,null,null,null,null,null,null,null,null,null,null,null,null,null,null,null,null,null,null,null,null,null,null,null,null,null,null,null,null,null,null,null,null,null,null,null,null,null,null,null,null,null,null,null,null,null,null,null,null,null,null,null,null,null,null,null,null,null,null,null,null,null,null,null,null,null,null,null,null,null,null,null,null,null,null,null,null,null,null,null,null,null,null,null,"10-28"]
["20-05","Customer Service","Techs","Field Service Technician I (Entry)","First of three levels of field service technician work.  The job typically requires completion of a formal technical program and no previous experience, or equivalent.  Work assignments are varied, but limited in scope and complexity.  Work typically is under direction of more experienced staff.  Incumbents assist with installation, servicing and repair of equipment at a customer location.   Areas of specialization will include mechanical, chemical, electronic and others.  Incumbents may use both specialized and standard computer applications in the performance of their duties.  Work may include lifting, handling or maintaining equipment or operation of equipment.  Civil Engineering Technicians and Photocopier Service Technicians are not included.",null,null,null,null,null,null,null,null,null,null,null,null,null,null,null,null,null,null,null,null,null,null,null,null,null,null,null,null,null,null,null,null,null,null,null,null,null,null,null,null,null,null,null,null,null,null,null,null,null,null,null,null,null,null,null,null,null,null,null,null,null,null,null,null,null,null,null,null,null,null,null,null,null,null,null,null,null,null,null,null,null,null,null,null,null,null,null,null,null,null,null,null,null,null,null,null,null,null,null,null,null,"10-297"]
["20-06","Customer Service","Techs","Field Service Technician II (Experienced)","Second of three levels of field service technician work.  The job typically requires completion of a formal technical program and 2+ years of previous experience, or equivalent.  Work assignments are varied, and of moderate scope and complexity.  Supervision received is limited.  Incumbents work independently or as members of a team installing, servicing or repairing equipment at a customer location.  Areas of specialization will include mechanical, chemical, electronic and others.  Incumbents may use both specialized and standard computer applications in the performance of their duties.  Work may include lifting, handling or maintaining equipment or operation of equipment.  Civil Engineering Technicians and Photocopier Service Technicians are not included.",null,null,null,null,null,null,null,null,null,null,null,null,null,null,null,null,null,null,null,null,null,null,null,null,null,null,null,null,null,null,null,null,null,null,null,null,null,null,null,null,null,null,null,null,null,null,null,null,null,null,null,null,null,null,null,null,null,null,null,null,null,null,null,null,null,null,null,null,null,null,null,null,null,null,null,null,null,null,null,null,null,null,null,null,null,null,null,null,null,null,null,null,null,null,null,null,null,null,null,null,null,"10-298"]
["20-07","Customer Service","Techs","Field Service Technician III (Advanced)","Third of three levels of field service technician work.  The job typically requires completion of a formal technical program and 5+ years of previous experience, or equivalent.  Work assignments are of greatest variety and complexity.  Supervision received is limited.  Incumbents work independently or as members of a team installing, servicing or repairing equipment at a customer location.  Incumbents may suggest modifications of equipment or installation to meet customer requirements. Work may include instructing customer personnel in the correct operation of equipment.  Work may include providing training and work direction for other technicians.  Areas of specialization will include mechanical, chemical, electronic and others.  Incumbents may use both specialized and standard computer applications in the performance of their duties.  Work may include lifting, handling or maintaining equipment or operation of equipment.  Civil Engineering Technicians and Photocopier Service Technicians are not included.",null,null,null,null,null,null,null,null,null,null,null,null,null,null,null,null,null,null,null,null,null,null,null,null,null,null,null,null,null,null,null,null,null,null,null,null,null,null,null,null,null,null,null,null,null,null,null,null,null,null,null,null,null,null,null,null,null,null,null,null,null,null,null,null,null,null,null,null,null,null,null,null,null,null,null,null,null,null,null,null,null,null,null,null,null,null,null,null,null,null,null,null,null,null,null,null,null,null,null,null,null,"10-299"]
["20-08","Customer Service","Management","Field Service Manager","Manager of field service, typically requiring completion of a bachelor’s degree and 3+ years of field service experience or a formal technical program and 5+ years of progressively responsible field service experience, or equivalent.  Assigns work and directs staff who install, service and/or repair equipment at a customer location.  Duties include managing staff performance, tracking project status, customer relations, staff recruiting and staff training.  May serve as a technical expert to troubleshoot or modify customer installations.",null,null,null,null,null,null,null,null,null,null,null,null,null,null,null,null,null,null,null,null,null,null,null,null,null,null,null,null,null,null,null,null,null,null,null,null,null,null,null,null,null,null,null,null,null,null,null,null,null,null,null,null,null,null,null,null,null,null,null,null,null,null,null,null,null,null,null,null,null,null,null,null,null,null,null,null,null,null,null,null,null,null,null,null,null,null,null,null,null,null,null,null,null,null,null,null,null,null,null,null,null,"10-295"]
["00-00","Engineering Research & Development","Civil","Civil Engineer I                                           ","Includes occupations concerned with building bridges, roads, airfields, dams, tunnels, and water supply and sewage systems. Also included are occupations concerned with the engineering aspects of environmental health systems and urban planning or renewal.  Frequently requires knowledge of codes and ordinances.  Accessory techniques needed are those used in agricultural, ceramic, chemical, electrical, geological, mechanical, metallurgical, and mining engineering.  Typical specializations are structures, hydraulic, transportation systems, sanitation, water utility systems, airports, city planning, environmental protection, construction, engineering mechanics, irrigations and drainage, power, soil mechanics and foundations, pipeline engineering, and waterways and harbors.  Requires a Bachelor's degree & 0 -1 year of experience, does not have Master's degree.",null,null,null,null,null,null,null,null,null,null,null,null,null,null,null,null,null,null,null,null,null,null,null,null,null,null,null,null,null,null,null,null,null,null,null,null,null,null,null,null,null,null,null,null,null,null,null,null,null,null,null,null,null,null,null,null,null,null,null,null,null,null,null,null,null,null,null,null,null,null,null,null,null,null,null,null,null,null,null,null,null,null,null,null,null,null,null,null,null,null,null,null,null,null,null,null,null,null,null,null,null,"1-10"]
["00-01","Engineering Research & Development","Civil","Civil Engineer II","Includes occupations concerned with building bridges, roads, airfields, dams, tunnels, and water supply and sewage systems. Also included are occupations concerned with the engineering aspects of environmental health systems and urban planning or renewal.  Frequently requires knowledge of codes and ordinances.  Accessory techniques needed are those used in agricultural, ceramic, chemical, electrical, geological, mechanical, metallurgical, and mining engineering.  Typical specialization's are structures, hydraulics, transportation systems, sanitation, water utility systems, airports, city planning, environmental protection, construction, engineering mechanics, irrigations and drainage, power, soil mechanics and foundations, pipeline engineering, and waterways and harbors. May provide work directions to technicians Requires a Bachelor's degree & 1 - 3 years' experience or a Master's degree & 0 - 1 year experience. ",null,null,null,null,null,null,null,null,null,null,null,null,null,null,null,null,null,null,null,null,null,null,null,null,null,null,null,null,null,null,null,null,null,null,null,null,null,null,null,null,null,null,null,null,null,null,null,null,null,null,null,null,null,null,null,null,null,null,null,null,null,null,null,null,null,null,null,null,null,null,null,null,null,null,null,null,null,null,null,null,null,null,null,null,null,null,null,null,null,null,null,null,null,null,null,null,null,null,null,null,null,"1-101"]
["00-02","Engineering Research & Development","Civil","Civil Engineer III","Includes occupations concerned with building bridges, roads, airfields, dams, tunnels, and water supply and sewage systems. Also included are occupations concerned with the engineering aspects of environmental health systems and urban planning or renewal.  Frequently requires knowledge of codes and ordinances.  Accessory techniques needed are those used in agricultural, ceramic, chemical, electrical, geological, mechanical, metallurgical, and mining engineering.  Typical specialization's are structures, hydraulics, transportation systems, sanitation, water utility systems, airports, city planning, environmental protection, construction, engineering mechanics, irrigations and drainage, power, soil mechanics and foundations, pipeline engineering, and waterways and harbors. May act as lead on some projects and guide lower level engineers and technicians . Requires a Bachelor's degree + 3 - 5 years' experience or a Master's degree + 1 - 3 years' experience.  ",null,null,null,null,null,null,null,null,null,null,null,null,null,null,null,null,null,null,null,null,null,null,null,null,null,null,null,null,null,null,null,null,null,null,null,null,null,null,null,null,null,null,null,null,null,null,null,null,null,null,null,null,null,null,null,null,null,null,null,null,null,null,null,null,null,null,null,null,null,null,null,null,null,null,null,null,null,null,null,null,null,null,null,null,null,null,null,null,null,null,null,null,null,null,null,null,null,null,null,null,null,"1-11"]
["00-03","Engineering Research & Development","Civil","Civil Engineer IV","Includes occupations concerned with building bridges, roads, airfields, dams, tunnels, and water supply and sewage systems. Also included are occupations concerned with the engineering aspects of environmental health systems and urban planning or renewal.  Frequently requires knowledge of codes and ordinances.  Accessory techniques needed are those used in agricultural, ceramic, chemical, electrical, geological, mechanical, metallurgical, and mining engineering.  Typical specialization's are structures, hydraulics, transportation systems, sanitation, water utility systems, airports, city planning, environmental protection, construction, engineering mechanics, irrigations and drainage, power, soil mechanics and foundations, pipeline engineering, and waterways and harbors.  Will act as lead on most assigned projects and assist lower level engineers. Requires a Bachelor's degree + 5 -8 years' experience or a Master's degree + 3 - 5 years's experience. ",null,null,null,null,null,null,null,null,null,null,null,null,null,null,null,null,null,null,null,null,null,null,null,null,null,null,null,null,null,null,null,null,null,null,null,null,null,null,null,null,null,null,null,null,null,null,null,null,null,null,null,null,null,null,null,null,null,null,null,null,null,null,null,null,null,null,null,null,null,null,null,null,null,null,null,null,null,null,null,null,null,null,null,null,null,null,null,null,null,null,null,null,null,null,null,null,null,null,null,null,null,"1-12"]
["00-04","Engineering Research & Development","Civil","Civil Engineer V","Includes occupations concerned with building bridges, roads, airfields, dams, tunnels, and water supply and sewage systems. Also included are occupations concerned with the engineering aspects of environmental health systems and urban planning or renewal.  Frequently requires knowledge of codes and ordinances.  Accessory techniques needed are those used in agricultural, ceramic, chemical, electrical, geological, mechanical, metallurgical, and mining engineering.  Typical specialization's are structures, hydraulics, transportation systems, sanitation, water utility systems, airports, city planning, environmental protection, construction, engineering mechanics, irrigations and drainage, power, soil mechanics and foundations, pipeline engineering, and waterways and harbors. Has critical project technical leadership responsibility, may plan work of others. Requires a Bachelor's degree + 8 - 10 years' experience or a Master's degree + 5 - 8 years' experience.  ",null,null,null,null,null,null,null,null,null,null,null,null,null,null,null,null,null,null,null,null,null,null,null,null,null,null,null,null,null,null,null,null,null,null,null,null,null,null,null,null,null,null,null,null,null,null,null,null,null,null,null,null,null,null,null,null,null,null,null,null,null,null,null,null,null,null,null,null,null,null,null,null,null,null,null,null,null,null,null,null,null,null,null,null,null,null,null,null,null,null,null,null,null,null,null,null,null,null,null,null,null,"1-121"]
["00-05","Engineering Research & Development","Design","Design Engineering Tech I","First level of design technician work, typically requiring completion of a formal technical program and no previous experience, or equivalent. Work assignments are varied, but limited in scope and complexity. Supervision is readily available and work is usually reviewed by more experienced staff. Incumbents assist engineering staff with design, testing, prototype building, or other activities relating to design or reliability. Areas of specialization will include mechanical, chemical, electronic and others. Incumbents may use both specialized and standard computer applications in the performance of their duties. Work may include lifting, handling or maintaining equipment or operation of production or process equipment. Civil Engineering and Field Service Technicians are not included.",null,null,null,null,null,null,null,null,null,null,null,null,null,null,null,null,null,null,null,null,null,null,null,null,null,null,null,null,null,null,null,null,null,null,null,null,null,null,null,null,null,null,null,null,null,null,null,null,null,null,null,null,null,null,null,null,null,null,null,null,null,null,null,null,null,null,null,null,null,null,null,null,null,null,null,null,null,null,null,null,null,null,null,null,null,null,null,null,null,null,null,null,null,null,null,null,null,null,null,null,null,"1-43"]
["00-06","Engineering Research & Development","Design","Design Engineering Tech II ","Experienced level of design technician work, typically requiring completion of a formal technical program and 2+ years of previous experience, or equivalent. Work assignments are varied, and of moderate scope and complexity. Supervision received is limited. Incumbents assist engineering staff with design, testing, prototype building, or other activities relating to design or reliability. Areas of specialization will include mechanical, chemical, electronic and others. Incumbents may use both specialized and standard computer applications in the performance of their duties. Work may include lifting, handling or maintaining equipment or operation of production or process equipment. Civil Engineering and Field Service Technicians are not included.",null,null,null,null,null,null,null,null,null,null,null,null,null,null,null,null,null,null,null,null,null,null,null,null,null,null,null,null,null,null,null,null,null,null,null,null,null,null,null,null,null,null,null,null,null,null,null,null,null,null,null,null,null,null,null,null,null,null,null,null,null,null,null,null,null,null,null,null,null,null,null,null,null,null,null,null,null,null,null,null,null,null,null,null,null,null,null,null,null,null,null,null,null,null,null,null,null,null,null,null,null,"1-431"]
["00-07","Engineering Research & Development","Design","Graphic Designer","Manually or by utilizing graphic software prepares design and/or layouts of the finished product for presentation by visual media .  A combination of directly related training and/or experience is typically required. ",null,null,null,null,null,null,null,null,null,null,null,null,null,null,null,null,null,null,null,null,null,null,null,null,null,null,null,null,null,null,null,null,null,null,null,null,null,null,null,null,null,null,null,null,null,null,null,null,null,null,null,null,null,null,null,null,null,null,null,null,null,null,null,null,null,null,null,null,null,null,null,null,null,null,null,null,null,null,null,null,null,null,null,null,null,null,null,null,null,null,null,null,null,null,null,null,null,null,null,null,null,"1-46"]
["00-08","Engineering Research & Development","Drafting","CAD Drafter I (Detail)","First of three levels of technical drafting work.  The job typically requires completion of a formal drafting program and no previous experience, or equivalent.  Work assignments are varied, but limited in scope and complexity.  Supervision is readily available and work is usually reviewed by more experienced staff.  Incumbents break down information obtained from specifications, sketches, customer layout drawings and instructions furnished by others and convert the information into detailed drawings with section views and dimensions.  Incumbents perform a variety of mathematical calculations using standard procedures.  Incumbents have responsibility for coordinating with others to determine whether drawings can be executed efficiently and within expected tolerances.  Incumbents may prepare bills of materials and specifications when drawings are complete.  Most work is completed using computerized drafting applications.",null,null,null,null,null,null,null,null,null,null,null,null,null,null,null,null,null,null,null,null,null,null,null,null,null,null,null,null,null,null,null,null,null,null,null,null,null,null,null,null,null,null,null,null,null,null,null,null,null,null,null,null,null,null,null,null,null,null,null,null,null,null,null,null,null,null,null,null,null,null,null,null,null,null,null,null,null,null,null,null,null,null,null,null,null,null,null,null,null,null,null,null,null,null,null,null,null,null,null,null,null,"1-30"]
["00-09","Engineering Research & Development","Drafting","CAD Drafter II  (Layout)      ","Second of three levels of technical drafting work.  The job typically requires completion of a formal drafting program and 2+ years of drafting experience, or equivalent.  Work assignments are varied and of considerable scope and complexity.  Supervision is limited, but work may be reviewed by peers or by more experienced staff as a quality procedure.  Incumbents break down information obtained from specifications, sketches, customer layout drawings and instructions furnished by others and convert the information into detailed drawings with section views and dimensions.  Incumbents perform a variety of mathematical calculations using standard procedures.  Incumbents have responsibility for coordinating with others to determine whether drawings can be executed efficiently and within expected tolerances, although at this level questions are less frequent due to knowledge and experience.  Incumbents typically prepare bills of materials and specifications when drawings are complete.  Most work is completed using computerized drafting applications.  Some time may be devoted to providing technical help to less experienced staff.",null,null,null,null,null,null,null,null,null,null,null,null,null,null,null,null,null,null,null,null,null,null,null,null,null,null,null,null,null,null,null,null,null,null,null,null,null,null,null,null,null,null,null,null,null,null,null,null,null,null,null,null,null,null,null,null,null,null,null,null,null,null,null,null,null,null,null,null,null,null,null,null,null,null,null,null,null,null,null,null,null,null,null,null,null,null,null,null,null,null,null,null,null,null,null,null,null,null,null,null,null,"1-301"]
["00-10","Engineering Research & Development","Drafting","CAD Drafter III (Design)","Third of three levels of technical drafting work; highest level of non-supervisory work.  The job typically requires completion of a formal drafting program and 5+ years of drafting experience, or equivalent.  Work assignments are varied and of the highest level of scope and complexity, requiring specialized knowledge of the company's products and operations.  Supervision is limited, but engineering staff, as a quality procedure, may review work product.  Incumbents break down information obtained from specifications, sketches, customer layout drawings and instructions furnished by others and convert the information into detailed drawings with section views and dimensions.  Incumbents perform a variety of mathematical calculations using standard procedures.  Incumbents have responsibility for coordinating with others to determine whether drawings can be executed efficiently and within expected tolerances, although at this level questions are rare due to knowledge and experience.  Incumbents typically prepare bills of materials and specifications when drawings are complete.  ",null,null,null,null,null,null,null,null,null,null,null,null,null,null,null,null,null,null,null,null,null,null,null,null,null,null,null,null,null,null,null,null,null,null,null,null,null,null,null,null,null,null,null,null,null,null,null,null,null,null,null,null,null,null,null,null,null,null,null,null,null,null,null,null,null,null,null,null,null,null,null,null,null,null,null,null,null,null,null,null,null,null,null,null,null,null,null,null,null,null,null,null,null,null,null,null,null,null,null,null,null,"1-302"]
["00-11","Engineering Research & Development","Drafting","CAD Manager/Supervisor","Responsible for system management of the CAD to include installation and upgrading of system software, site modifications, controlling system operation and resources and future planning. Provides assistance and support to engineers  or architectural staff n the development and modification of computer programs in both graphics (CAD) and non-graphic applications.",null,null,null,null,null,null,null,null,null,null,null,null,null,null,null,null,null,null,null,null,null,null,null,null,null,null,null,null,null,null,null,null,null,null,null,null,null,null,null,null,null,null,null,null,null,null,null,null,null,null,null,null,null,null,null,null,null,null,null,null,null,null,null,null,null,null,null,null,null,null,null,null,null,null,null,null,null,null,null,null,null,null,null,null,null,null,null,null,null,null,null,null,null,null,null,null,null,null,null,null,null,"1-29"]
["00-12","Engineering Research & Development","Electrical","Electrical/Electronic Engineer I                ","Includes occupations concerned with the application of the laws of electrical energy and the principles of engineering for the generation, transmission, and use of electricity.  Also includes the design and development of machinery and equipment for production and utilization of electric power.  Accessory techniques needed are those used in mechanical and process engineering.  Typical specialization's are electrical power generation, transmission, and distribution, atomic power generation, electrical and electronic components, equipment, and systems manufacturing, radio and television broadcasting, telephone, and telegraph.  Requires a Bachelor's degree and 0 - 1 year experience. (Report the specialties of bioengineering and computer engineering in their respective job families.)",null,null,null,null,null,null,null,null,null,null,null,null,null,null,null,null,null,null,null,null,null,null,null,null,null,null,null,null,null,null,null,null,null,null,null,null,null,null,null,null,null,null,null,null,null,null,null,null,null,null,null,null,null,null,null,null,null,null,null,null,null,null,null,null,null,null,null,null,null,null,null,null,null,null,null,null,null,null,null,null,null,null,null,null,null,null,null,null,null,null,null,null,null,null,null,null,null,null,null,null,null,"1-130"]
["00-13","Engineering Research & Development","Electrical","Electrical/Electronic Engineer II","Includes occupations concerned with the application of the laws of electrical energy and the principles of engineering for the generation, transmission, and use of electricity.  Also includes the design and development of machinery and equipment for production and utilization of electric power.  Accessory techniques needed are those used in mechanical and process engineering.  Typical specialization's are electrical power generation, transmission, and distribution, atomic power generation, electrical and electronic components, equipment, and systems manufacturing, radio and television broadcasting, telephone, and telegraph.   May provide work direction to technicians. Requires a Bachelor's degree  & 1 - 3 years' experience or a Master's degree & 0 -1 year experience.  (Report the specialties of bioengineering and computer engineering in their respective job families.)",null,null,null,null,null,null,null,null,null,null,null,null,null,null,null,null,null,null,null,null,null,null,null,null,null,null,null,null,null,null,null,null,null,null,null,null,null,null,null,null,null,null,null,null,null,null,null,null,null,null,null,null,null,null,null,null,null,null,null,null,null,null,null,null,null,null,null,null,null,null,null,null,null,null,null,null,null,null,null,null,null,null,null,null,null,null,null,null,null,null,null,null,null,null,null,null,null,null,null,null,null,"1-131"]
["00-14","Engineering Research & Development","Electrical","Electrical/Electronic Engineer III              ","Includes occupations concerned with the application of the laws of electrical energy and the principles of engineering for the generation, transmission, and use of electricity.  Also includes the design and development of machinery and equipment for production and utilization of electric power.  Accessory techniques needed are those used in mechanical and process engineering.  Typical specialization's are electrical power generation, transmission, and distribution, atomic power generation, electrical and electronic components, equipment, and systems manufacturing, radio and television broadcasting, telephone, and telegraph. May act as lead on some projects and guide lower level engineers and technicians. Requires a Bachelor's degree + 3 - 5 years' expereince or a Master's degree+ 1 - 3 years' experience.   (Report the specialties of bioengineering and computer engineering in their respective job families.) ",null,null,null,null,null,null,null,null,null,null,null,null,null,null,null,null,null,null,null,null,null,null,null,null,null,null,null,null,null,null,null,null,null,null,null,null,null,null,null,null,null,null,null,null,null,null,null,null,null,null,null,null,null,null,null,null,null,null,null,null,null,null,null,null,null,null,null,null,null,null,null,null,null,null,null,null,null,null,null,null,null,null,null,null,null,null,null,null,null,null,null,null,null,null,null,null,null,null,null,null,null,"1-132"]
["00-15","Engineering Research & Development","Electrical","Electrical/Electronic Engineer IV             ","Includes occupations concerned with the application of the laws of electrical energy and the principles of engineering for the generation, transmission, and use of electricity.  Also includes the design and development of machinery and equipment for production and utilization of electric power.  Accessory techniques needed are those used in mechanical and process engineering.  Typical specialization's are electrical power generation, transmission, and distribution, atomic power generation, electrical and electronic components, equipment, and systems manufacturing, radio and television broadcasting, telephone, and telegraph.  Will act as lead on most assigned projects and assist lower level engineers and technicians. Requires a Bachelor's degree + 5 - 8 years' expereince or a Master's degree+ 3 - 5 years' experience. (Report the specialties of bioengineering and computer engineering in their respective job families.)",null,null,null,null,null,null,null,null,null,null,null,null,null,null,null,null,null,null,null,null,null,null,null,null,null,null,null,null,null,null,null,null,null,null,null,null,null,null,null,null,null,null,null,null,null,null,null,null,null,null,null,null,null,null,null,null,null,null,null,null,null,null,null,null,null,null,null,null,null,null,null,null,null,null,null,null,null,null,null,null,null,null,null,null,null,null,null,null,null,null,null,null,null,null,null,null,null,null,null,null,null,"1-133"]
["00-16","Engineering Research & Development","Electrical","Electrical/Electronic Engineer V","Includes occupations concerned with the application of the laws of electrical energy and the principles of engineering for the generation, transmission, and use of electricity.  Also includes the design and development of machinery and equipment for production and utilization of electric power.  Accessory techniques needed are those used in mechanical and process engineering.  Typical specialization's are electrical power generation, transmission, and distribution, atomic power generation, electrical and electronic components, equipment, and systems manufacturing, radio and television broadcasting, telephone, and telegraph.    Has critical project technical leadership responsibility; may plan work assignments for lower level department employees; may coordinate the work of engineers from other disciplines. Requires a Bachelor's degree + 8 - 10 years' expereince or a Master's degree+ 5 - 8 years' experience. (Report the specialties of bioengineering and computer engineering in their respective job families.)",null,null,null,null,null,null,null,null,null,null,null,null,null,null,null,null,null,null,null,null,null,null,null,null,null,null,null,null,null,null,null,null,null,null,null,null,null,null,null,null,null,null,null,null,null,null,null,null,null,null,null,null,null,null,null,null,null,null,null,null,null,null,null,null,null,null,null,null,null,null,null,null,null,null,null,null,null,null,null,null,null,null,null,null,null,null,null,null,null,null,null,null,null,null,null,null,null,null,null,null,null,"1-134"]
["00-17","Engineering Research & Development","Environmental","Environmental Engineer I               ","Includes occupations performing a variety of engineering works in designing, installing, operating, and maintaining measuring apparatus necessary to determine the level of pollutants involving air, land, and water.  Ascertains levels of pollution and recommends appropriate action to assure conformance with federal, state, and municipal legislation and regulations regarding environmental control.  May also assist in the overall planning and installation of equipment revision relating to the environment.  Performs tests or experiments requiring the use of nonstandard procedures and complex instrumentation.  Other responsibilities may include acting as liaison for an organization and regulatory agencies concerned with environmental control. Requires a Bachelor's degree + 0 - 1 5 year of expereince.",null,null,null,null,null,null,null,null,null,null,null,null,null,null,null,null,null,null,null,null,null,null,null,null,null,null,null,null,null,null,null,null,null,null,null,null,null,null,null,null,null,null,null,null,null,null,null,null,null,null,null,null,null,null,null,null,null,null,null,null,null,null,null,null,null,null,null,null,null,null,null,null,null,null,null,null,null,null,null,null,null,null,null,null,null,null,null,null,null,null,null,null,null,null,null,null,null,null,null,null,null,"1-16"]
["00-18","Engineering Research & Development","Environmental","Environmental Engineer II","Includes occupations performing a variety of engineering works in designing, installing, operating, and maintaining measuring apparatus necessary to determine the level of pollutants involving air, land, and water.  Ascertains levels of pollution and recommends appropriate action to assure conformance with federal, state, and municipal legislation and regulations regarding environmental control.  May also assist in the overall planning and installation of equipment revision relating to the environment.  Performs tests or experiments requiring the use of nonstandard procedures and complex instrumentation.  Other responsibilities may include acting as liaison for an organization and regulatory agencies concerned with environmental control.  Requires a Bachelor's degree + 1 - 3 years' expereince or a Master's degree+ 0 - 1 year of experience.  May provide work direction to technicians.",null,null,null,null,null,null,null,null,null,null,null,null,null,null,null,null,null,null,null,null,null,null,null,null,null,null,null,null,null,null,null,null,null,null,null,null,null,null,null,null,null,null,null,null,null,null,null,null,null,null,null,null,null,null,null,null,null,null,null,null,null,null,null,null,null,null,null,null,null,null,null,null,null,null,null,null,null,null,null,null,null,null,null,null,null,null,null,null,null,null,null,null,null,null,null,null,null,null,null,null,null,"1-161"]
["00-19","Engineering Research & Development","Environmental","Environmental Engineer III                  ","Includes occupations performing a variety of engineering works in designing, installing, operating, and maintaining measuring apparatus necessary to determine the level of pollutants involving air, land, and water.  Ascertains levels of pollution and recommends appropriate action to assure conformance with federal, state, and municipal legislation and regulations regarding environmental control.  May also assist in the overall planning and installation of equipment revision relating to the environment.  Performs tests or experiments requiring the use of nonstandard procedures and complex instrumentation.  Other responsibilities may include acting as liaison for an organization and regulatory agencies concerned with environmental control. May act as lead on some projects and guide lower level engineers and technicians. Requires a Bachelor's degree + 3 - 5 years' expereince or a Master's degree+ 1 - 3 years' experience.",null,null,null,null,null,null,null,null,null,null,null,null,null,null,null,null,null,null,null,null,null,null,null,null,null,null,null,null,null,null,null,null,null,null,null,null,null,null,null,null,null,null,null,null,null,null,null,null,null,null,null,null,null,null,null,null,null,null,null,null,null,null,null,null,null,null,null,null,null,null,null,null,null,null,null,null,null,null,null,null,null,null,null,null,null,null,null,null,null,null,null,null,null,null,null,null,null,null,null,null,null,"1-162"]
["00-20","Engineering Research & Development","Environmental","Environmental Engineer IV                  ","Includes occupations performing a variety of engineering works in designing, installing, operating, and maintaining measuring apparatus necessary to determine the level of pollutants involving air, land, and water.  Ascertains levels of pollution and recommends appropriate action to assure conformance with federal, state, and municipal legislation and regulations regarding environmental control.  May also assist in the overall planning and installation of equipment revision relating to the environment.  Performs tests or experiments requiring the use of nonstandard procedures and complex instrumentation.  Other responsibilities may include acting as liaison for an organization and regulatory agencies concerned with environmental control. Will act as lead on most assigned projects and assist lower level engineers and technicians. Requires a Bachelor's degree + 5 - 8 years' expereince or a Master's degree+ 3 - 5 years' experience. ",null,null,null,null,null,null,null,null,null,null,null,null,null,null,null,null,null,null,null,null,null,null,null,null,null,null,null,null,null,null,null,null,null,null,null,null,null,null,null,null,null,null,null,null,null,null,null,null,null,null,null,null,null,null,null,null,null,null,null,null,null,null,null,null,null,null,null,null,null,null,null,null,null,null,null,null,null,null,null,null,null,null,null,null,null,null,null,null,null,null,null,null,null,null,null,null,null,null,null,null,null,"1-163"]
["00-21","Engineering Research & Development","Environmental","Environmental Engineer V","Includes occupations performing a variety of engineering works in designing, installing, operating, and maintaining measuring apparatus necessary to determine the level of pollutants involving air, land, and water.  Ascertains levels of pollution and recommends appropriate action to assure conformance with federal, state, and municipal legislation and regulations regarding environmental control.  May also assist in the overall planning and installation of equipment revision relating to the environment.  Performs tests or experiments requiring the use of nonstandard procedures and complex instrumentation.  Other responsibilities may include acting as liaison for an organization and regulatory agencies concerned with environmental control. Has critical project technical leadership responsibility; may plan work assignments for lower level department employees; may coordinate the work of engineers from other disciplines. Requires a Bachelor's degree + 8 - 10 years' expereince or a Master's degree+ 5 - 8 years' experience.",null,null,null,null,null,null,null,null,null,null,null,null,null,null,null,null,null,null,null,null,null,null,null,null,null,null,null,null,null,null,null,null,null,null,null,null,null,null,null,null,null,null,null,null,null,null,null,null,null,null,null,null,null,null,null,null,null,null,null,null,null,null,null,null,null,null,null,null,null,null,null,null,null,null,null,null,null,null,null,null,null,null,null,null,null,null,null,null,null,null,null,null,null,null,null,null,null,null,null,null,null,"1-164"]
["00-22","Engineering Research & Development","Management","Director of Engineering","Directs the design, development and implementation of all major engineering projects.  Plans and supervises all phases of engineering.  Develops and initiates procedures, methods, and processes for projects.  Ensures that all corporate policies and procedures are uniformly understood and properly interpreted, implemented and administered.  Has overall project approval including budgets, deadlines, and personnel.",null,null,null,null,null,null,null,null,null,null,null,null,null,null,null,null,null,null,null,null,null,null,null,null,null,null,null,null,null,null,null,null,null,null,null,null,null,null,null,null,null,null,null,null,null,null,null,null,null,null,null,null,null,null,null,null,null,null,null,null,null,null,null,null,null,null,null,null,null,null,null,null,null,null,null,null,null,null,null,null,null,null,null,null,null,null,null,null,null,null,null,null,null,null,null,null,null,null,null,null,null,"1-42"]
["00-23","Engineering Research & Development","Management","Junior Principal / Partner","Usually requires completion of a formal training program plus experience.  Recently made principal or partner; titles may include Vice President or Associate Vice President",null,null,null,null,null,null,null,null,null,null,null,null,null,null,null,null,null,null,null,null,null,null,null,null,null,null,null,null,null,null,null,null,null,null,null,null,null,null,null,null,null,null,null,null,null,null,null,null,null,null,null,null,null,null,null,null,null,null,null,null,null,null,null,null,null,null,null,null,null,null,null,null,null,null,null,null,null,null,null,null,null,null,null,null,null,null,null,null,null,null,null,null,null,null,null,null,null,null,null,null,null,"1-03"]
["00-24","Engineering Research & Development","Management","Manager of Engineering","Has overall responsibility to ensure department goals and objectives are met.  Manages fiscal responsibility for entire department.  Reviews and makes recommendations on policies and procedures to maximize departmental operating performance.  Interacts with all levels of management.  Develops and justifies evaluation, quality, and process criteria.  Identifies technical issues of future importance.  Responsible for in-depth understanding of the overall organization.  Directly supervises Engineering Supervisor(s).",null,null,null,null,null,null,null,null,null,null,null,null,null,null,null,null,null,null,null,null,null,null,null,null,null,null,null,null,null,null,null,null,null,null,null,null,null,null,null,null,null,null,null,null,null,null,null,null,null,null,null,null,null,null,null,null,null,null,null,null,null,null,null,null,null,null,null,null,null,null,null,null,null,null,null,null,null,null,null,null,null,null,null,null,null,null,null,null,null,null,null,null,null,null,null,null,null,null,null,null,null,"1-41"]
["00-25","Engineering Research & Development","Management","Mid-Level Principal / Partner","Usually requires completion of a formal training program plus experience.  Principal or partner; titles may include Executive or Senior Vice President",null,null,null,null,null,null,null,null,null,null,null,null,null,null,null,null,null,null,null,null,null,null,null,null,null,null,null,null,null,null,null,null,null,null,null,null,null,null,null,null,null,null,null,null,null,null,null,null,null,null,null,null,null,null,null,null,null,null,null,null,null,null,null,null,null,null,null,null,null,null,null,null,null,null,null,null,null,null,null,null,null,null,null,null,null,null,null,null,null,null,null,null,null,null,null,null,null,null,null,null,null,"1-02"]
["00-26","Engineering Research & Development","Management","Project Manager / Architect","Responsible for overall project  Including: Consultation with client to determine functional and spatial requirements regarding design, specifications, materials, color, equipment, estimated costs, and construction time.  Licensed architect or nonregistered graduate with more than 10 years experience.",null,null,null,null,null,null,null,null,null,null,null,null,null,null,null,null,null,null,null,null,null,null,null,null,null,null,null,null,null,null,null,null,null,null,null,null,null,null,null,null,null,null,null,null,null,null,null,null,null,null,null,null,null,null,null,null,null,null,null,null,null,null,null,null,null,null,null,null,null,null,null,null,null,null,null,null,null,null,null,null,null,null,null,null,null,null,null,null,null,null,null,null,null,null,null,null,null,null,null,null,null,"1-321"]
["00-27","Engineering Research & Development","Management","Senior Manager / Architect","Senior management architect or nonregistered graduate. Responsible for the department or function's) of the architectural team. Reports directly to a principal or partner",null,null,null,null,null,null,null,null,null,null,null,null,null,null,null,null,null,null,null,null,null,null,null,null,null,null,null,null,null,null,null,null,null,null,null,null,null,null,null,null,null,null,null,null,null,null,null,null,null,null,null,null,null,null,null,null,null,null,null,null,null,null,null,null,null,null,null,null,null,null,null,null,null,null,null,null,null,null,null,null,null,null,null,null,null,null,null,null,null,null,null,null,null,null,null,null,null,null,null,null,null,"1-320"]
["00-28","Engineering Research & Development","Management","Senior Principal / Partner","Typically an owner or majority shareholder of the firm: Usually requiring completion of a formal training plus experience.  May be founder: title may include President, CEO or Managing Principal/Partner",null,null,null,null,null,null,null,null,null,null,null,null,null,null,null,null,null,null,null,null,null,null,null,null,null,null,null,null,null,null,null,null,null,null,null,null,null,null,null,null,null,null,null,null,null,null,null,null,null,null,null,null,null,null,null,null,null,null,null,null,null,null,null,null,null,null,null,null,null,null,null,null,null,null,null,null,null,null,null,null,null,null,null,null,null,null,null,null,null,null,null,null,null,null,null,null,null,null,null,null,null,"1-01"]
["00-29","Engineering Research & Development","Management","Supervisor of Engineering","Supervises the daily operations and activities of an engineering department.  Responsible for formalizing work plans and directing their implementation.  Assigns work to meet overall project deadlines.  Evaluates progress on projects and suggests changes.  Interprets policies and procedures and ensures they are followed within the department.  Responsible for the training and development of subordinate staff.  Responsible for financial budgets at the department level.  Directly supervises engineers and technicians in the department, with the authority to hire/terminate/promote and make compensation decisions for subordinate staff.  Normally possesses and applies comprehensive knowledge in field of specialization.  Knowledge significantly crosses engineering fields.  Capable of clearly defining organizational approaches to complex and/or large projects.",null,null,null,null,null,null,null,null,null,null,null,null,null,null,null,null,null,null,null,null,null,null,null,null,null,null,null,null,null,null,null,null,null,null,null,null,null,null,null,null,null,null,null,null,null,null,null,null,null,null,null,null,null,null,null,null,null,null,null,null,null,null,null,null,null,null,null,null,null,null,null,null,null,null,null,null,null,null,null,null,null,null,null,null,null,null,null,null,null,null,null,null,null,null,null,null,null,null,null,null,null,"1-40"]
["00-30","Engineering Research & Development","Mechanical","Mechanical Engineer I                          ","Includes occupations concerned with the application of principles of physics and engineering for the generation, transmission, and utilization of heat and mechanical power; and the design, production, installation, and maintenance of fabricated products, tools, machines, machinery, and associated or auxiliary systems.  Accessory techniques needed may be those used in electrical, metallurgical, nuclear, and civil engineering.  Typical specialization’s are steam and mechanical power generation, transmission, and utilization; hydraulics; instrumentation; controls; automotive engineering; tooling; heating and ventilating; air-conditioning and refrigeration; bioengineering; pollution control; systems engineering; research; design; testing; sales; and project control.  Requires a Bachelor's degree + 0 - 1 year of expereince.",null,null,null,null,null,null,null,null,null,null,null,null,null,null,null,null,null,null,null,null,null,null,null,null,null,null,null,null,null,null,null,null,null,null,null,null,null,null,null,null,null,null,null,null,null,null,null,null,null,null,null,null,null,null,null,null,null,null,null,null,null,null,null,null,null,null,null,null,null,null,null,null,null,null,null,null,null,null,null,null,null,null,null,null,null,null,null,null,null,null,null,null,null,null,null,null,null,null,null,null,null,"1-22"]
["00-31","Engineering Research & Development","Mechanical","Mechanical Engineer II","Includes occupations concerned with the application of principles of physics and engineering for the generation, transmission, and utilization of heat and mechanical power; and the design, production, installation, and maintenance of fabricated products, tools, machines, machinery, and associated or auxiliary systems.  Accessory techniques needed may be those used in electrical, metallurgical, nuclear, and civil engineering.  Typical specialization’s are steam and mechanical power generation, transmission, and utilization; hydraulics; instrumentation; controls; automotive engineering; tooling; heating and ventilating; air-conditioning and refrigeration; bioengineering; pollution control; systems engineering; research; design; testing; sales; and project control.  May act as lead on some projects and guide lower level engineers and technicians. Requires a Bachelor's degree + 1 - 3 years' expereince or a Master's degree+ 0 - 1 year of  experience.",null,null,null,null,null,null,null,null,null,null,null,null,null,null,null,null,null,null,null,null,null,null,null,null,null,null,null,null,null,null,null,null,null,null,null,null,null,null,null,null,null,null,null,null,null,null,null,null,null,null,null,null,null,null,null,null,null,null,null,null,null,null,null,null,null,null,null,null,null,null,null,null,null,null,null,null,null,null,null,null,null,null,null,null,null,null,null,null,null,null,null,null,null,null,null,null,null,null,null,null,null,"1-221"]
["00-32","Engineering Research & Development","Mechanical","Mechanical Engineer III                        ","Includes occupations concerned with the application of principles of physics and engineering for the generation, transmission, and utilization of heat and mechanical power; and the design, production, installation, and maintenance of fabricated products, tools, machines, machinery, and associated or auxiliary systems.  Accessory techniques needed may be those used in electrical, metallurgical, nuclear, and civil engineering.  Typical specialization’s are steam and mechanical power generation, transmission, and utilization; hydraulics; instrumentation; controls; automotive engineering; tooling; heating and ventilating; air-conditioning and refrigeration; bioengineering; pollution control; systems engineering; research; design; testing; sales; and project control. May act as lead on some projects and guide lower level engineers and technicians.  Requires a Bachelor's degree + 3 - 5 years' expereince or a Master's degree+ 1 - 3 years' experience.",null,null,null,null,null,null,null,null,null,null,null,null,null,null,null,null,null,null,null,null,null,null,null,null,null,null,null,null,null,null,null,null,null,null,null,null,null,null,null,null,null,null,null,null,null,null,null,null,null,null,null,null,null,null,null,null,null,null,null,null,null,null,null,null,null,null,null,null,null,null,null,null,null,null,null,null,null,null,null,null,null,null,null,null,null,null,null,null,null,null,null,null,null,null,null,null,null,null,null,null,null,"1-23"]
["00-33","Engineering Research & Development","Mechanical","Mechanical Engineer IV","Includes occupations concerned with the application of principles of physics and engineering for the generation, transmission, and utilization of heat and mechanical power; and the design, production, installation, and maintenance of fabricated products, tools, machines, machinery, and associated or auxiliary systems.  Accessory techniques needed may be those used in electrical, metallurgical, nuclear, and civil engineering.  Typical specialization’s are steam and mechanical power generation, transmission, and utilization; hydraulics; instrumentation; controls; automotive engineering; tooling; heating and ventilating; air-conditioning and refrigeration; bioengineering; pollution control; systems engineering; research; design; testing; sales; and project control.   Will act as lead on most assigned projects and assist lower level engineers and technicians.  Requires a Bachelor's degree + 5 - 8 years' expereince or a Master's degree+ 3 - 5 years' experience.",null,null,null,null,null,null,null,null,null,null,null,null,null,null,null,null,null,null,null,null,null,null,null,null,null,null,null,null,null,null,null,null,null,null,null,null,null,null,null,null,null,null,null,null,null,null,null,null,null,null,null,null,null,null,null,null,null,null,null,null,null,null,null,null,null,null,null,null,null,null,null,null,null,null,null,null,null,null,null,null,null,null,null,null,null,null,null,null,null,null,null,null,null,null,null,null,null,null,null,null,null,"1-24"]
["00-34","Engineering Research & Development","Mechanical","Mechanical Engineer V","Includes occupations concerned with the application of principles of physics and engineering for the generation, transmission, and utilization of heat and mechanical power; and the design, production, installation, and maintenance of fabricated products, tools, machines, machinery, and associated or auxiliary systems.  Accessory techniques needed may be those used in electrical, metallurgical, nuclear, and civil engineering.  Typical specialization’s are steam and mechanical power generation, transmission, and utilization; hydraulics; instrumentation; controls; automotive engineering; tooling; heating and ventilating; air-conditioning and refrigeration; bioengineering; pollution control; systems engineering; research; design; testing; sales; and project control.  Has critical project technical leadership responsibility; may plan work assignments for lower level department employees; may coordinate the work of engineers from other disciplines. Requires a Bachelor's degree + 8 - 10 years' expereince or a Master's degree+ 5 - 8 years' experience.",null,null,null,null,null,null,null,null,null,null,null,null,null,null,null,null,null,null,null,null,null,null,null,null,null,null,null,null,null,null,null,null,null,null,null,null,null,null,null,null,null,null,null,null,null,null,null,null,null,null,null,null,null,null,null,null,null,null,null,null,null,null,null,null,null,null,null,null,null,null,null,null,null,null,null,null,null,null,null,null,null,null,null,null,null,null,null,null,null,null,null,null,null,null,null,null,null,null,null,null,null,"1-240"]
["00-35","Engineering Research & Development","Programming","CNC Programmer","Requires use of knowledge of machine operations to develop code to control machine operation.  Incumbents prepare process plans, including positioning of carriage and/or tool, rate of feed, speed of rotation, tool changes, type of tool, sequence of operations and other variables.  Incumbents may determine the suitability of a part for automation and may determine the appropriate machine assignments on the basis of efficiency and quality requirements.",null,null,null,null,null,null,null,null,null,null,null,null,null,null,null,null,null,null,null,null,null,null,null,null,null,null,null,null,null,null,null,null,null,null,null,null,null,null,null,null,null,null,null,null,null,null,null,null,null,null,null,null,null,null,null,null,null,null,null,null,null,null,null,null,null,null,null,null,null,null,null,null,null,null,null,null,null,null,null,null,null,null,null,null,null,null,null,null,null,null,null,null,null,null,null,null,null,null,null,null,null,"1-36"]
["00-36","Engineering Research & Development","Programming","Technical Writer","Writes, and edits material for reports, manuals, briefs, proposals, instructions, catalogs, and related technical and administrative publications concerned with work methods and procedures, and the installation, operation, and maintenance of machinery and other equipment.  Observes production, developmental, and experimental activities to determine operation procedure and detail.  Organizes material and completes writing assignments according to set standards regarding order, clarity, conciseness, style and terminology.  Reviews published materials and recommends revisions or changes in scope, format, content, and methods of reproduction and binding.  May maintain records and files of work and revisions.  May assist in layout, and selecting photographs, drawings, sketches, diagrams, and charts to illustrate material.  May arrange for typesetting, duplication, and distribution of material.",null,null,null,null,null,null,null,null,null,null,null,null,null,null,null,null,null,null,null,null,null,null,null,null,null,null,null,null,null,null,null,null,null,null,null,null,null,null,null,null,null,null,null,null,null,null,null,null,null,null,null,null,null,null,null,null,null,null,null,null,null,null,null,null,null,null,null,null,null,null,null,null,null,null,null,null,null,null,null,null,null,null,null,null,null,null,null,null,null,null,null,null,null,null,null,null,null,null,null,null,null,"1-48"]
["00-37","Engineering Research & Development","Structural","Structural Engineer I","Directs or participates in planning, designing, or reviewing plans for erection of structures requiring stress analysis: Designs structure to meet estimated load requirements, computing size, shape, strength, and type of structural members, or performs structural analysis of plans and structures prepared by private engineers. May inspect existing projects and recommend repair and replacement of defective members or rebuilding of entire structure. Requires a Bachelor's degree + 0 - 1 year of expereince.",null,null,null,null,null,null,null,null,null,null,null,null,null,null,null,null,null,null,null,null,null,null,null,null,null,null,null,null,null,null,null,null,null,null,null,null,null,null,null,null,null,null,null,null,null,null,null,null,null,null,null,null,null,null,null,null,null,null,null,null,null,null,null,null,null,null,null,null,null,null,null,null,null,null,null,null,null,null,null,null,null,null,null,null,null,null,null,null,null,null,null,null,null,null,null,null,null,null,null,null,null,"1-63"]
["00-38","Engineering Research & Development","Structural","Structural Engineer II","Directs or participates in planning, designing, or reviewing plans for erection of structures requiring stress analysis: Designs structure to meet estimated load requirements, computing size, shape, strength, and type of structural members, or performs structural analysis of plans and structures prepared by private engineers. May inspect existing projects and recommend repair and replacement of defective members or rebuilding of entire structure. May provide work direction to technicians.  Requires a Bachelor's degree + 1 - 3 years' expereince or a Master's degree+ 0 - 1 year of experience.",null,null,null,null,null,null,null,null,null,null,null,null,null,null,null,null,null,null,null,null,null,null,null,null,null,null,null,null,null,null,null,null,null,null,null,null,null,null,null,null,null,null,null,null,null,null,null,null,null,null,null,null,null,null,null,null,null,null,null,null,null,null,null,null,null,null,null,null,null,null,null,null,null,null,null,null,null,null,null,null,null,null,null,null,null,null,null,null,null,null,null,null,null,null,null,null,null,null,null,null,null,"1-64"]
["00-39","Engineering Research & Development","Structural","Structural Engineer III","Directs or participates in planning, designing, or reviewing plans for erection of structures requiring stress analysis: Designs structure to meet estimated load requirements, computing size, shape, strength, and type of structural members, or performs structural analysis of plans and structures prepared by private engineers. May inspect existing projects and recommend repair and replacement of defective members or rebuilding of entire structure. May act as lead on some projects and guide lower level engineers and technicians.  Requires a Bachelor's degree + 3 - 5 years' expereince or a Master's degree+ 1 - 3 years' experience.",null,null,null,null,null,null,null,null,null,null,null,null,null,null,null,null,null,null,null,null,null,null,null,null,null,null,null,null,null,null,null,null,null,null,null,null,null,null,null,null,null,null,null,null,null,null,null,null,null,null,null,null,null,null,null,null,null,null,null,null,null,null,null,null,null,null,null,null,null,null,null,null,null,null,null,null,null,null,null,null,null,null,null,null,null,null,null,null,null,null,null,null,null,null,null,null,null,null,null,null,null,"1-65"]
["00-40","Engineering Research & Development","Structural","Structural Engineer IV","Directs or participates in planning, designing, or reviewing plans for erection of structures requiring stress analysis: Designs structure to meet estimated load requirements, computing size, shape, strength, and type of structural members, or performs structural analysis of plans and structures prepared by private engineers. May inspect existing projects and recommend repair and replacement of defective members or rebuilding of entire structure. Will act as lead on most assigned projects and assist lower level engineers and technicians. Requires a Bachelor's degree + 5 - 8 years' expereince or a Master's degree+ 3 - 5 years' experience.BS+ 5 - 8 years or MS+ 3 – 5 years.",null,null,null,null,null,null,null,null,null,null,null,null,null,null,null,null,null,null,null,null,null,null,null,null,null,null,null,null,null,null,null,null,null,null,null,null,null,null,null,null,null,null,null,null,null,null,null,null,null,null,null,null,null,null,null,null,null,null,null,null,null,null,null,null,null,null,null,null,null,null,null,null,null,null,null,null,null,null,null,null,null,null,null,null,null,null,null,null,null,null,null,null,null,null,null,null,null,null,null,null,null,"1-67"]
["00-41","Engineering Research & Development","Surveying","Survey Field Supervisor","Licensed surveyor, coordinates with clients and client's representatives on projects, direct supervision of research, computation, field work and drafting. Stamps and signs surveys done under their direct supervision. ",null,null,null,null,null,null,null,null,null,null,null,null,null,null,null,null,null,null,null,null,null,null,null,null,null,null,null,null,null,null,null,null,null,null,null,null,null,null,null,null,null,null,null,null,null,null,null,null,null,null,null,null,null,null,null,null,null,null,null,null,null,null,null,null,null,null,null,null,null,null,null,null,null,null,null,null,null,null,null,null,null,null,null,null,null,null,null,null,null,null,null,null,null,null,null,null,null,null,null,null,null,"1-05"]
["00-42","Engineering Research & Development","Surveying","Surveyor","Plans, organizes, and engages in surveying the earth's surface to determine precise location and measurements of points, elevations, lines, areas, and contours for construction, mapmaking, land division, titles, mining or other purposes.  Researches previous survey data.",null,null,null,null,null,null,null,null,null,null,null,null,null,null,null,null,null,null,null,null,null,null,null,null,null,null,null,null,null,null,null,null,null,null,null,null,null,null,null,null,null,null,null,null,null,null,null,null,null,null,null,null,null,null,null,null,null,null,null,null,null,null,null,null,null,null,null,null,null,null,null,null,null,null,null,null,null,null,null,null,null,null,null,null,null,null,null,null,null,null,null,null,null,null,null,null,null,null,null,null,null,"1-06"]
["00-43","Engineering Research & Development","Techs","Chemist II","Experienced level of professional chemistry work, typically requiring a bachelor's degree in chemistry with 3+ years of experience or an advanced degree or equivalent.  Incumbents perform advanced troubleshooting or analyses using chemical tests requiring judgment to select from multiple possible approaches.  Incumbents may lead research projects under the direction of a manager or supervisor.  Work assignments are of greater difficulty or larger financial impact than those given to first level incumbents.",null,null,null,null,null,null,null,null,null,null,null,null,null,null,null,null,null,null,null,null,null,null,null,null,null,null,null,null,null,null,null,null,null,null,null,null,null,null,null,null,null,null,null,null,null,null,null,null,null,null,null,null,null,null,null,null,null,null,null,null,null,null,null,null,null,null,null,null,null,null,null,null,null,null,null,null,null,null,null,null,null,null,null,null,null,null,null,null,null,null,null,null,null,null,null,null,null,null,null,null,null,"1-51"]
["00-44","Engineering Research & Development","Techs","Chemist III","Advanced level of professional chemistry work, typically requiring a bachelor's degree in chemistry with 5+ years of experience or an advanced degree and 2+ years of experience or equivalent.  Requires considerable knowledge of a specializing field of chemistry.  Solves complex technical problems using chemical tests requiring creative approaches in the application of procedures.  Designs experiments, conducts research and analysis, develops formulas, processes, etc., uses specialized techniques.  Identifies questionable research results and verifies the accuracy of data or directs others in so doing.  Work assignments are of greater difficulty and larger financial impact.  Provides work leadership and direction to other professional and technical staff with respect to project methodology and identification of project tasks.",null,null,null,null,null,null,null,null,null,null,null,null,null,null,null,null,null,null,null,null,null,null,null,null,null,null,null,null,null,null,null,null,null,null,null,null,null,null,null,null,null,null,null,null,null,null,null,null,null,null,null,null,null,null,null,null,null,null,null,null,null,null,null,null,null,null,null,null,null,null,null,null,null,null,null,null,null,null,null,null,null,null,null,null,null,null,null,null,null,null,null,null,null,null,null,null,null,null,null,null,null,"1-52"]
["00-45","Engineering Research & Development","Techs","Laboratory Technician I","Incumbents assist scientists or engineers with formulating and testing, or other activities relating to design or reliability.  Areas of specialization will include mechanical, chemical, electronic and others.  Incumbents may use both specialized and standard computer applications in the performance of their duties.  Work may include lifting, handling or maintaining equipment or operation of equipment.",null,null,null,null,null,null,null,null,null,null,null,null,null,null,null,null,null,null,null,null,null,null,null,null,null,null,null,null,null,null,null,null,null,null,null,null,null,null,null,null,null,null,null,null,null,null,null,null,null,null,null,null,null,null,null,null,null,null,null,null,null,null,null,null,null,null,null,null,null,null,null,null,null,null,null,null,null,null,null,null,null,null,null,null,null,null,null,null,null,null,null,null,null,null,null,null,null,null,null,null,null,"1-38"]
["00-46","Engineering Research & Development","Techs","Laboratory Technician II","Incumbents assist scientists or engineers with formulating and testing, or other activities relating to design or reliability.  Areas of specialization will include mechanical, chemical, electronic and others.  Incumbents may use both specialized and standard computer applications in the performance of their duties.  Work may include providing training and work direction for other technicians.  Work may include lifting, handling or maintaining equipment or operation of equipment.",null,null,null,null,null,null,null,null,null,null,null,null,null,null,null,null,null,null,null,null,null,null,null,null,null,null,null,null,null,null,null,null,null,null,null,null,null,null,null,null,null,null,null,null,null,null,null,null,null,null,null,null,null,null,null,null,null,null,null,null,null,null,null,null,null,null,null,null,null,null,null,null,null,null,null,null,null,null,null,null,null,null,null,null,null,null,null,null,null,null,null,null,null,null,null,null,null,null,null,null,null,"1-39"]
["00-47","Engineering Research & Development","Techs","Methods & Process Technician","Incumbents assist engineering staff with testing, prototype building, pilot plant production or other activities relating to methods or process development or improvements.  Areas of specialization will include mechanical, chemical, electronic and others.  Incumbents may use both specialized and standard computer applications in the performance of their duties.  Work may include lifting, handling or maintaining equipment or operation of production equipment.",null,null,null,null,null,null,null,null,null,null,null,null,null,null,null,null,null,null,null,null,null,null,null,null,null,null,null,null,null,null,null,null,null,null,null,null,null,null,null,null,null,null,null,null,null,null,null,null,null,null,null,null,null,null,null,null,null,null,null,null,null,null,null,null,null,null,null,null,null,null,null,null,null,null,null,null,null,null,null,null,null,null,null,null,null,null,null,null,null,null,null,null,null,null,null,null,null,null,null,null,null,"1-37"]
["80-00","Facilities Management / Maintenance","Facility Development","Facility Engineer","Supervise, direct and coordinate the maintenance of facility and faculty equipment, the design and building of equipment and facility layout.  Initiate and plan projects for more effective utilization of space, equipment or manpower.  Supervise and guide engineers in the design and construction of special machines, equipment and electrical, hydraulic and pneumatic controls and devices.",null,null,null,null,null,null,null,null,null,null,null,null,null,null,null,null,null,null,null,null,null,null,null,null,null,null,null,null,null,null,null,null,null,null,null,null,null,null,null,null,null,null,null,null,null,null,null,null,null,null,null,null,null,null,null,null,null,null,null,null,null,null,null,null,null,null,null,null,null,null,null,null,null,null,null,null,null,null,null,null,null,null,null,null,null,null,null,null,null,null,null,null,null,null,null,null,null,null,null,null,null,"2-04"]
["80-01","Facilities Management / Maintenance","Maintenance","Building/Grounds Maintenance Mechanic I","Under the general direction of the Building Maintenance Director, this position oversees the operation and maintenance of  buildings to ensure facilities are safe and operational in accordance with  policies and all applicable laws. The position also prioritizes work orders, directs and oversees contracted services, orders necessary supplies and equipment, and is responsible for providing general assistance to the Director relating to the management of the department programs, including responsibility for dispatching and overseeing the work of crews. Two years’ experience in the maintenance of buildings which includes performing maintenance and repair duties; or substituting coursework or training in carpentry, plumbing, HVAC and electrical trades for up to one year of the maintenance experience.",null,null,null,null,null,null,null,null,null,null,null,null,null,null,null,null,null,null,null,null,null,null,null,null,null,null,null,null,null,null,null,null,null,null,null,null,null,null,null,null,null,null,null,null,null,null,null,null,null,null,null,null,null,null,null,null,null,null,null,null,null,null,null,null,null,null,null,null,null,null,null,null,null,null,null,null,null,null,null,null,null,null,null,null,null,null,null,null,null,null,null,null,null,null,null,null,null,null,null,null,null,"2-08"]
["80-02","Facilities Management / Maintenance","Maintenance","Building/Grounds Maintenance Mechanic II","Under the general direction of the Building Maintenance Director, this position oversees the operation and maintenance of  buildings to ensure facilities are safe and operational in accordance with  policies and all applicable laws. The position also plans, designs, manages and performs internal construction projects, while providing general assistance to the Director relating to the management of the department programs, including responsibility for dispatching and overseeing the work of crews. Requires a minimum of 2 years’ experience in performing building maintenance, repair, construction and woodworking duties; or Substituting coursework or training in carpentry, plumbing, HVAC and electrical trades for up to one year of the maintenance or construction experience.",null,null,null,null,null,null,null,null,null,null,null,null,null,null,null,null,null,null,null,null,null,null,null,null,null,null,null,null,null,null,null,null,null,null,null,null,null,null,null,null,null,null,null,null,null,null,null,null,null,null,null,null,null,null,null,null,null,null,null,null,null,null,null,null,null,null,null,null,null,null,null,null,null,null,null,null,null,null,null,null,null,null,null,null,null,null,null,null,null,null,null,null,null,null,null,null,null,null,null,null,null,"2-081"]
["81-00","Facilities Management / Maintenance","Public Works","Water Distribution Operator","[Report all levels of Distribution Operators] Performs a variety of unskilled and semi-skilled manual labor tasks in the installation, repairs and replacement of water mains, water services, valves, fire hydrants and water meters, and maintenance of other municipal facilities; occasionally drives truck and operates light equipment; work varies somewhat. Minimum Requirements of High school diploma or equivalent, Valid Montana driver’s license, and ability to obtain a Water Distribution Certification. The amount of supervision is dependent upon the level of the operator's skill set and experience."]
["81-01","Facilities Management / Maintenance","Public Works","Water Treatment Plant Operator","Performs skilled work in the operation of water pumping, and purification plant and related equipment as required. Demands some exposure to chemicals and knowledge on how to handle chemical products. Work varies, requires significant individual judgment within prescribed standards and procedures, with reasonable variations from standards and procedures. Inspects and operates electrical control boards, motors, pumps, meters, chemical feeders and related equipment. Operates and maintains light and medium equipment including trucks over 2-ton capacity.  Keeps daily log of shift operations; reads gauges and records information shown; draws samples of water for laboratory test and analysis. Requires a Water Treatment Certification and a valid Montana Commercial Driver’s License with appropriate endorsements. Reports to Public Works Director."]
["81-02","Facilities Management / Maintenance","Public Works","Wastewater Treatment Plant Operator","[Report all levels of WW Operators] Operates sewage treatment, sludge processing, and disposal equipment in wastewater (sewage) treatment plant to control flow and processing of sewage. Monitors control panels and adjusts valves and gates manually or remotely. Observes variations in operating conditions and interprets meter and gauge readings and tests results. Starts and stops pumps, engines, and generators to control flows of waste through filtering, settling, aeration, and sludge digestion processes. Maintains log of operations and records meter and gauge readings. Collects waste samples and conducts lab tests. Dependent upon level of responsibility and duties assigned; Generally requires from the minimum of high school diploma or GED(trainee) UP TO a four(+) year college or university program certificate; or two to four years related experience and/or training; or equivalent combination of education and experience (advanced operator). Frequently requires State Certification in wastewater treatment. Also requires valid State driver’s license."]
["80-09","Facilities Management / Maintenance","Maintenance","CUSTODIAN","Without a great deal of supervision after the initial orientation period, this position performs general custodial work in the care of buildings, grounds and surrounding areas.  Duties include sweeping, mopping, scrubbing, stripping and waxing of floors; collecting and removing trash; cleaning restrooms; replensihing towels, tissues and soap; performs minor repairs.  Must have experience and training that includes the operation of cleaning equipment and the ability to do physical work that includes lifting, moving, carrying, reaching, stooping and kneeling.",null,null,null,null,null,null,null,null,null,null,null,null,null,null,null,null,null,null,null,null,null,null,null,null,null,null,null,null,null,null,null,null,null,null,null,null,null,null,null,null,null,null,null,null,null,null,null,null,null,null,null,null,null,null,null,null,null,null,null,null,null,null,null,null,null,null,null,null,null,null,null,null,null,null,null,null,null,null,null,null,null,null,null,null,null,null,null,null,null,null,null,null,null,null,null,null,null,null,null,null,null,"2-065"]
["80-10","Facilities Management / Maintenance","Maintenance","CUSTODIAN - LEAD WORKER","Without a great deal of supervision after the initial orientation period, performs general custodial work in the care of buildings, grounds and surrounding areas.  Duties include sweeping, mopping, scrubbing, stripping and waxing of floors; collecting and removing trash; cleans restrooms; replensihes towels, tissues and soap; performs minor repairs.  This position also serves as a lead worker, providing orientation to new employees, schedules and assigns work of co-workers to meet deadlines; provides guidance and reviews the work of co-workers for quality and quantity.  Must have experience and training that includes the operation of cleaning equipment and the ability to do physical work that includes lifting, moving, carrying, reaching, stooping and kneeling.",null,null,null,null,null,null,null,null,null,null,null,null,null,null,null,null,null,null,null,null,null,null,null,null,null,null,null,null,null,null,null,null,null,null,null,null,null,null,null,null,null,null,null,null,null,null,null,null,null,null,null,null,null,null,null,null,null,null,null,null,null,null,null,null,null,null,null,null,null,null,null,null,null,null,null,null,null,null,null,null,null,null,null,null,null,null,null,null,null,null,null,null,null,null,null,null,null,null,null,null,null,"2-02"]
["80-13","Facilities Management / Maintenance","Maintenance","Groundskeeper","Maintains grounds of property, performing cutting, trimming or repairing.  May perform landscaping including seeding, laying sod, planting, earthwork and fine grading; waters, weeds and mows lawns; prunes trees and shrubs; rakes leaves and hauls brush and rubbish; removes snow and ice; maintains parking lots and/or playgrounds may repair fencing, fertilize and spray for insects and weeds.  Operated trucks, tractors and various yard equipment.",null,null,null,null,null,null,null,null,null,null,null,null,null,null,null,null,null,null,null,null,null,null,null,null,null,null,null,null,null,null,null,null,null,null,null,null,null,null,null,null,null,null,null,null,null,null,null,null,null,null,null,null,null,null,null,null,null,null,null,null,null,null,null,null,null,null,null,null,null,null,null,null,null,null,null,null,null,null,null,null,null,null,null,null,null,null,null,null,null,null,null,null,null,null,null,null,null,null,null,null,null,"2-01"]
["80-15","Facilities Management / Maintenance","Maintenance","Plant Janitor / Sanitation","General labor job associated with plant or facility sanitation duties.  Job typically requires the ability to read and follow label instructions on cleaning supplies.  Duties include cleaning  walls, floors, equipment, or any other areas of the facility.  Duties include disposing of waste, sanitation of facilities and equipment, maintenance of lighting, and other related facilities and grounds duties.  Incumbents may assist maintenance mechanics with maintenance of equipment.  Work may include moderate to heavy lifting. Do not report office maintenance/cleaning staff - see 80-04",null,null,null,null,null,null,null,null,null,null,null,null,null,null,null,null,null,null,null,null,null,null,null,null,null,null,null,null,null,null,null,null,null,null,null,null,null,null,null,null,null,null,null,null,null,null,null,null,null,null,null,null,null,null,null,null,null,null,null,null,null,null,null,null,null,null,null,null,null,null,null,null,null,null,null,null,null,null,null,null,null,null,null,null,null,null,null,null,null,null,null,null,null,null,null,null,null,null,null,null,null,"2-05"]
["80-16","Facilities Management / Maintenance","Maintenance","Office Janitor","General labor job associated with performing routine light manual work in cleaning and sweeping offices, halls, restrooms, etc., typically requiring the ability to follow basic verbal and written instructions.  Duties include sweeping floors, vacuuming carpets, removing wastepaper and other refuse, and dusting furniture and fixtures. Not responsible for minor safety-related building repair or work outdoors  - see 80-06",null,null,null,null,null,null,null,null,null,null,null,null,null,null,null,null,null,null,null,null,null,null,null,null,null,null,null,null,null,null,null,null,null,null,null,null,null,null,null,null,null,null,null,null,null,null,null,null,null,null,null,null,null,null,null,null,null,null,null,null,null,null,null,null,null,null,null,null,null,null,null,null,null,null,null,null,null,null,null,null,null,null,null,null,null,null,null,null,null,null,null,null,null,null,null,null,null,null,null,null,null,"2-06"]
["80-17","Facilities Management / Maintenance","Maintenance","Operating Engineer HVAC","Heating, ventilation and air conditioning technician requiring formal technical training, two or more years of experience and a class 2-B or higher boiler operator's license, or equivalent.  Operates and maintains equipment such as steam boilers, heat pumps, air conditioning, refrigeration, turbines, generators, motors, and ventilating equipment.  Performs maintenance and minor repairs on boilers and equipment and keeps records of fuel consumption and other required data.  Adjusts and calibrates pneumatic and electronic controls.",null,null,null,null,null,null,null,null,null,null,null,null,null,null,null,null,null,null,null,null,null,null,null,null,null,null,null,null,null,null,null,null,null,null,null,null,null,null,null,null,null,null,null,null,null,null,null,null,null,null,null,null,null,null,null,null,null,null,null,null,null,null,null,null,null,null,null,null,null,null,null,null,null,null,null,null,null,null,null,null,null,null,null,null,null,null,null,null,null,null,null,null,null,null,null,null,null,null,null,null,null,"2-07"]
["80-18","Facilities Management / Maintenance","Maintenance","Security Guard - Unarmed","Guards industrial or commercial property against fire, theft, vandalism and illegal entry.  Patrols periodically buildings and grounds of industrial plant or commercial establishment.  Watches for and reports irregularities.  Examines property to determine it is secure. Unarmed",null,null,null,null,null,null,null,null,null,null,null,null,null,null,null,null,null,null,null,null,null,null,null,null,null,null,null,null,null,null,null,null,null,null,null,null,null,null,null,null,null,null,null,null,null,null,null,null,null,null,null,null,null,null,null,null,null,null,null,null,null,null,null,null,null,null,null,null,null,null,null,null,null,null,null,null,null,null,null,null,null,null,null,null,null,null,null,null,null,null,null,null,null,null,null,null,null,null,null,null,null,"2-03"]
["80-185","Facilities Management / Maintenance","Maintenance","Security Guard - Armed","Armed. Guards industrial or commercial property against fire, theft, vandalism and illegal entry.  Patrols periodically buildings and grounds of industrial plant or commercial establishment.  Watches for and reports irregularities.  Examines property to determine it is secure. ",null,null,null,null,null,null,null,null,null,null,null,null,null,null,null,null,null,null,null,null,null,null,null,null,null,null,null,null,null,null,null,null,null,null,null,null,null,null,null,null,null,null,null,null,null,null,null,null,null,null,null,null,null,null,null,null,null,null,null,null,null,null,null,null,null,null,null,null,null,null,null,null,null,null,null,null,null,null,null,null,null,null,null,null,null,null,null,null,null,null,null,null,null,null,null,null,null,null,null,null,null,"2-03"]
["80-19","Facilities Management / Maintenance","Administrative","Office Coordinator","Under supervision of a Director, the position assists with financial, personnel, and administrative activities of the department. The position assists with creating financial reports, preparing departmental budgets, monitoring accounts, submitting accounts payable claims via accounting software, reconciling, balancing, and preparing deposits from a variety of revenue sources, reviewing departmental timesheets for accuracy and adherence to company policy, submits timesheets to payroll department for payroll processing, tracks personnel changes and submits appropriate forms to human resources for processing, composes professional correspondence to a wide variety of users, schedules and oversees the work of seasonal office support staff, and performs other administrative and technical support duties as assigned or required. Extensive customer and public interaction is involved. Requires high school diploma or GED equivalent with specialized course work in general office practices such as typing, filing, accounting and bookkeeping and two (2) years of increasingly responsible related experience, or any equivalent combination of education and experience."]
["40-00","Fiscal","Accounting","Accountant I","First of three levels of professional accounting work.  The job typically requires a bachelor’s degree in accounting and less than 1 year of experience, or equivalent.  Under general supervision, applies principles of accounting to record financial information and prepare financial reports.  Duties include compiling and classifying financial information, preparing entries to accounts and documenting business transactions.  Other duties include auditing contract terms, orders, and vouchers and/or preparing reports to substantiate individual transactions prior to settlement.  Typically uses standard spreadsheet and database software or an accounting applications package designed for general accounting.  May provide technical direction to clerical staff.",null,null,null,null,null,null,null,null,null,null,null,null,null,null,null,null,null,null,null,null,null,null,null,null,null,null,null,null,null,null,null,null,null,null,null,null,null,null,null,null,null,null,null,null,null,null,null,null,null,null,null,null,null,null,null,null,null,null,null,null,null,null,null,null,null,null,null,null,null,null,null,null,null,null,null,null,null,null,null,null,null,null,null,null,null,null,null,null,null,null,null,null,null,null,null,null,null,null,null,null,null,"3-21"]
["40-01","Fiscal","Accounting","Accountant II","Second of three levels of professional general accounting work.  The job typically requires a bachelor’s degree in accounting and 2+ years of experience, or equivalent.  Under limited supervision, analyzes financial information detailing assets, liabilities, and capital, and prepares balance sheet, profit and loss statement, and other reports to summarize current and/or projected company financial position(s).  May establish, modify, document, and coordinate implementation of accounting and accounting control procedures.  Typically uses standard spreadsheet and database software or an accounting applications package designed for general accounting.  May direct and coordinate activities of other accountants and clerical workers performing accounting and bookkeeping tasks.",null,null,null,null,null,null,null,null,null,null,null,null,null,null,null,null,null,null,null,null,null,null,null,null,null,null,null,null,null,null,null,null,null,null,null,null,null,null,null,null,null,null,null,null,null,null,null,null,null,null,null,null,null,null,null,null,null,null,null,null,null,null,null,null,null,null,null,null,null,null,null,null,null,null,null,null,null,null,null,null,null,null,null,null,null,null,null,null,null,null,null,null,null,null,null,null,null,null,null,null,null,"3-22"]
["40-02","Fiscal","Accounting","Accountant III","Third of three levels of professional general accounting work.  The job typically requires a bachelor’s degree in accounting and 5+ years of experience, or equivalent.  The job may also be referred to as Senior Accountant or Staff Accountant.  Under direction from management and using independent judgment, performs advanced and specialized accounting assignments, usually involving complex and confidential data.  Obtains and analyzes financial information to prepare reports, statements and recommendations.  Provides work leadership and direction to other accountants and clerical workers.  May also provide special project assistance to the CFO, Controller or Accounting Manager.",null,null,null,null,null,null,null,null,null,null,null,null,null,null,null,null,null,null,null,null,null,null,null,null,null,null,null,null,null,null,null,null,null,null,null,null,null,null,null,null,null,null,null,null,null,null,null,null,null,null,null,null,null,null,null,null,null,null,null,null,null,null,null,null,null,null,null,null,null,null,null,null,null,null,null,null,null,null,null,null,null,null,null,null,null,null,null,null,null,null,null,null,null,null,null,null,null,null,null,null,null,"3-23"]
["40-04","Fiscal","Accounting","Accounting Clerk I  (Entry)","First of three levels of accounting clerical work.  The job typically requires reading, communication and math skills commensurate with a high school education or GED and no previous accounting experience, or equivalent.  Work is task oriented, routine and repetitive, such as matching bills to purchase orders or entering data.  Much of the time is spent using a keyboard.  Follows instructions and is subject to close supervision.",null,null,null,null,null,null,null,null,null,null,null,null,null,null,null,null,null,null,null,null,null,null,null,null,null,null,null,null,null,null,null,null,null,null,null,null,null,null,null,null,null,null,null,null,null,null,null,null,null,null,null,null,null,null,null,null,null,null,null,null,null,null,null,null,null,null,null,null,null,null,null,null,null,null,null,null,null,null,null,null,null,null,null,null,null,null,null,null,null,null,null,null,null,null,null,null,null,null,null,null,null,"3-04"]
["40-05","Fiscal","Accounting","Accounting Clerk II   (Experienced)","Second of three levels of accounting clerical work.  The job typically requires a general understanding of accounting principles commensurate with 2+ years of accounting training or experience, or equivalent.  In larger departments this level may specialize in accounts payable, accounts receivable or another area of accounting.  Incumbents make routine choices within established procedures.  Incumbents perform basic troubleshooting to reconcile account balances and inquiry to obtain missing information or verify unusual data.  An intermediate level of computer skill is required, usually involving use of an accounting software package and spreadsheets to enter, compile or extract data.  Work is relatively independent, with supervision available to address non-routine questions.",null,null,null,null,null,null,null,null,null,null,null,null,null,null,null,null,null,null,null,null,null,null,null,null,null,null,null,null,null,null,null,null,null,null,null,null,null,null,null,null,null,null,null,null,null,null,null,null,null,null,null,null,null,null,null,null,null,null,null,null,null,null,null,null,null,null,null,null,null,null,null,null,null,null,null,null,null,null,null,null,null,null,null,null,null,null,null,null,null,null,null,null,null,null,null,null,null,null,null,null,null,"3-05"]
["40-06","Fiscal","Accounting","Accounting Clerk III (Advanced)","Third of three levels of nonexempt accounting.  The job typically requires  5+ years of accounting training and experience, or equivalent.  This job may be called Accounting Technician or Senior Accounting Clerk.  Incumbents at this level are qualified to work in all phases of accounting. However, in a large organization work may be specialized.  Incumbents make non-routine choices within established precedent and with limited supervision.  A higher level of computer skill is required, including mastery of the internal accounting package and strong spreadsheet skills.  At this level, incumbents will assist with monthly trial balances and custom report generation involving intermediate levels of financial analysis using generally prescribed procedures.  Incumbents may provide technical direction and work review to lower level accounting staff, but do not provide complete supervision.  Do not report staff with four-year degrees in accounting or a closely related field.",null,null,null,null,null,null,null,null,null,null,null,null,null,null,null,null,null,null,null,null,null,null,null,null,null,null,null,null,null,null,null,null,null,null,null,null,null,null,null,null,null,null,null,null,null,null,null,null,null,null,null,null,null,null,null,null,null,null,null,null,null,null,null,null,null,null,null,null,null,null,null,null,null,null,null,null,null,null,null,null,null,null,null,null,null,null,null,null,null,null,null,null,null,null,null,null,null,null,null,null,null,"3-052"]
["40-07","Fiscal","Accounting","Auditor","Examines and analyzes accounting records to determine the financial status of an establishment and compliance with applicable regulations.  Prepares reports concerning operating and investment procedures.  Reviews data regarding material assets, net worth, liabilities, capital stock, surplus, income, and expenditures.  Inspects items in books of original entry to determine if accepted accounting procedure was followed in recording transactions.  Counts cash on hand, inspects notes receivable and payable, negotiable securities, and cancelled checks.  Verifies journal and ledger entries of cash and check payments, purchases, expenses, and trial balances by examining and authenticating inventory items.  Following accepted convention, prepares reports for management concerning scope of audit, financial conditions found, and source and application of funds.  Notes exceptions and consults with accounting staff to improve procedures.",null,null,null,null,null,null,null,null,null,null,null,null,null,null,null,null,null,null,null,null,null,null,null,null,null,null,null,null,null,null,null,null,null,null,null,null,null,null,null,null,null,null,null,null,null,null,null,null,null,null,null,null,null,null,null,null,null,null,null,null,null,null,null,null,null,null,null,null,null,null,null,null,null,null,null,null,null,null,null,null,null,null,null,null,null,null,null,null,null,null,null,null,null,null,null,null,null,null,null,null,null,"3-16"]
["40-08","Fiscal","Accounting","Bookkeeper","Experienced level bookkeeping job.   This job typically requires a general understanding of accounting principles commensurate with 2+ years of accounting training or experience, or equivalent.  Responsible for diverse duties in maintaining accounting records in a small company or office.  Higher level accounting and financial system work is often provided by outside consultants or CPA’s.   Incumbents post entries from a wide variety of sources into ledgers and journals, often using computer applications.  Incumbents reconcile bank statements, monitor schedules for notes payable and receivable, bonds, securities and interest, cross check, make comparisons, balance accounts and take trial balances.  Work often includes payroll, credit and collection duties.  Work is regularly reviewed by outside consultants or auditors to verify appropriate procedure and accuracy.  Duties require analysis of facts to determine action to be taken within the limits of standard practice.  Incumbents may regularly prepare budget status reports for managers.  Incumbents may devote a minor portion of time to performing other office support duties.  Do not report staff with four-year accounting or closely related degrees.",null,null,null,null,null,null,null,null,null,null,null,null,null,null,null,null,null,null,null,null,null,null,null,null,null,null,null,null,null,null,null,null,null,null,null,null,null,null,null,null,null,null,null,null,null,null,null,null,null,null,null,null,null,null,null,null,null,null,null,null,null,null,null,null,null,null,null,null,null,null,null,null,null,null,null,null,null,null,null,null,null,null,null,null,null,null,null,null,null,null,null,null,null,null,null,null,null,null,null,null,null,"3-12"]
["40-10","Fiscal","Accounting","Financial / Business /                                  Budget Analyst","Requires work in one or more areas of financial, business or budget analysis under the direction of senior staff or management.  Duties include compilation of financial data from multiple sources, such as sales, production, accounting, public sources or vendors and subsequent analysis of that data to produce business information used to support decisions.  May verify the accuracy of data.",null,null,null,null,null,null,null,null,null,null,null,null,null,null,null,null,null,null,null,null,null,null,null,null,null,null,null,null,null,null,null,null,null,null,null,null,null,null,null,null,null,null,null,null,null,null,null,null,null,null,null,null,null,null,null,null,null,null,null,null,null,null,null,null,null,null,null,null,null,null,null,null,null,null,null,null,null,null,null,null,null,null,null,null,null,null,null,null,null,null,null,null,null,null,null,null,null,null,null,null,null,"3-17"]
["40-11","Fiscal","Accounting","General Accounting Supervisor","First level of supervision of the accounting area, typically requiring an associate’s degree in accounting and 5+ years of experience, or equivalent.  Responsible for the supervision of non-exempt employees who maintain general and subsidiary ledgers of the facility, prepares operating and financial statements, and reconcile bank statements.  Other subordinate functions may include fixed asset control and depreciation, accrual to meet anticipated liabilities, preparation of general tax reports such as those for sales, payroll and personal property taxes, and payables/receivables.  Report supervisors of professional accountants as General Accounting Manager (Job code 40-14).",null,null,null,null,null,null,null,null,null,null,null,null,null,null,null,null,null,null,null,null,null,null,null,null,null,null,null,null,null,null,null,null,null,null,null,null,null,null,null,null,null,null,null,null,null,null,null,null,null,null,null,null,null,null,null,null,null,null,null,null,null,null,null,null,null,null,null,null,null,null,null,null,null,null,null,null,null,null,null,null,null,null,null,null,null,null,null,null,null,null,null,null,null,null,null,null,null,null,null,null,null,"3-24"]
["40-12","Fiscal","Accounting","General Accounting Manager (Controller)","Accounting manager job with responsibility for operation of a department focused on general accounting functions, typically requiring a bachelor’s degree in accounting with 8+ years of experience, or equivalent.  This job typically reports to a CFO.  Responsible for the application of principles of accounting to install and maintain the general accounting system, including preparation of reports and statistics reflecting assets, liabilities, financial transactions, earnings, profits, cash balances, and other financial results.  Maintains accounts and records of disbursements, expenses and tax payments.  Prepares and files tax returns and other reports to government agencies; maintains insurance and property records.  Supervises and directs work of professional and clerical staff.",null,null,null,null,null,null,null,null,null,null,null,null,null,null,null,null,null,null,null,null,null,null,null,null,null,null,null,null,null,null,null,null,null,null,null,null,null,null,null,null,null,null,null,null,null,null,null,null,null,null,null,null,null,null,null,null,null,null,null,null,null,null,null,null,null,null,null,null,null,null,null,null,null,null,null,null,null,null,null,null,null,null,null,null,null,null,null,null,null,null,null,null,null,null,null,null,null,null,null,null,null,"3-25"]
["40-14","Fiscal","Accounting","Payroll Clerk I","First level of payroll clerical work.  The job typically requires reading, communication and math skills commensurate with a high school diploma or GED and less than 1 year of related training and experience, or equivalent.  Incumbents follow standard procedures in making a variety of system entries and computations from data on employee time cards or computer entries.  Work includes entering rate changes, totaling hours and distributing or allocating costs; checking computations of timekeepers and researching shortage claims.  Work may include calculating total earnings, overtime, taxes, withholding for premiums and savings and similar factors.  Work may include coordinating with an outside payroll service to produce calculations, print checks and prepare total payroll reports.  Much of the time is spent using a keyboard.  Incumbents may use specialized software packages to enter and compute payroll.  Incumbents follow standard procedures and have readily available supervision.",null,null,null,null,null,null,null,null,null,null,null,null,null,null,null,null,null,null,null,null,null,null,null,null,null,null,null,null,null,null,null,null,null,null,null,null,null,null,null,null,null,null,null,null,null,null,null,null,null,null,null,null,null,null,null,null,null,null,null,null,null,null,null,null,null,null,null,null,null,null,null,null,null,null,null,null,null,null,null,null,null,null,null,null,null,null,null,null,null,null,null,null,null,null,null,null,null,null,null,null,null,"3-07"]
["40-15","Fiscal","Accounting","Payroll Clerk II","Highest level of payroll clerical work.  The job typically requires reading, communication and math skills commensurate with a high school diploma or GED and 3+ years of related training and experience, or equivalent.  Incumbents follow standard procedures in making a variety of system entries and computations from data on employee time cards or computer entries.  Work includes entering rate changes, totaling hours and distributing or allocating costs; checking computations of timekeepers and researching shortage claims.  Work may include calculating total earnings, overtime, taxes, withholding for premiums and savings and similar factors.  Work may include coordinating with an outside payroll service to produce calculations, print checks and prepare total payroll reports.  Work may also include calculating commissions, administering executive compensation and record maintenance of short and long-term incentive plans.  Much of the time is spent using a keyboard.  Incumbents may use specialized software packages to enter and compute payroll.  Incumbents may provide work direction or check the work of less experienced payroll staff.",null,null,null,null,null,null,null,null,null,null,null,null,null,null,null,null,null,null,null,null,null,null,null,null,null,null,null,null,null,null,null,null,null,null,null,null,null,null,null,null,null,null,null,null,null,null,null,null,null,null,null,null,null,null,null,null,null,null,null,null,null,null,null,null,null,null,null,null,null,null,null,null,null,null,null,null,null,null,null,null,null,null,null,null,null,null,null,null,null,null,null,null,null,null,null,null,null,null,null,null,null,"3-08"]
["40-16","Fiscal","Accounting","PAYROLL SPECIALIST (Payroll Supervisor/Administrator)","Under general direction of the Finance Director or Chief Financial Officer (CFO), this position is responsible for compiling Company employee time and payroll data to ensure that employees receive accurate timely paychecks in accordance with established procedures and the law. Compile and audit employee time; enter payroll data changes and new employee set up based on HR direction; set up and maintain web user access and timekeeper authorities. Update and maintain payroll system. Work closely with department timekeepers to correct all errors in time reporting, general ledger coding and policy compliance. Work with employees to explain how the payroll system works and answer any questions they may have regarding their checks. Train timekeepers on their roles and responsibilities of time entry. Support accounting staff in preparation of salary information for budget spreadsheets and bi-weekly general ledger posting. Process monthly, quarterly, and annual reports and payments for State or Federal government, such as 941, W-2s, unemployment, work comp etc. Prepare and file timely reports on distributions.  The job requires education and experience equivalent to a high school diploma or GED and (2) two years related payroll experience. Equivalencies include an Associate’s degree in accounting or a related field, with course work in business, math, accounting, bookkeeping and record keeping. Payroll certification is preferred. ",null,null,null,null,null,null,null,null,null,null,null,null,null,null,null,null,null,null,null,null,null,null,null,null,null,null,null,null,null,null,null,null,null,null,null,null,null,null,null,null,null,null,null,null,null,null,null,null,null,null,null,null,null,null,null,null,null,null,null,null,null,null,null,null,null,null,null,null,null,null,null,null,null,null,null,null,null,null,null,null,null,null,null,null,null,null,null,null,null,null,null,null,null,null,null,null,null,null,null,null,null,"3-26"]
["40-18","Fiscal","Insurance","Claims Clerk","Processes insurance claims forms by performing the following duties: reviews insurance claim forms for completeness, review insurance policy to determine coverage, transmits routine claims for payment or advises claims supervisor if further investigation is indicated.",null,null,null,null,null,null,null,null,null,null,null,null,null,null,null,null,null,null,null,null,null,null,null,null,null,null,null,null,null,null,null,null,null,null,null,null,null,null,null,null,null,null,null,null,null,null,null,null,null,null,null,null,null,null,null,null,null,null,null,null,null,null,null,null,null,null,null,null,null,null,null,null,null,null,null,null,null,null,null,null,null,null,null,null,null,null,null,null,null,null,null,null,null,null,null,null,null,null,null,null,null,"3-06"]
["40-19","Fiscal","Banking & Loans","Escrow Officer","Prepares HUD-1 and settlement statements for buyers and sellers in a real estate transaction; prorates taxes; orders payoffs on mortgages and contracts; clears title exceptions; clears title requirements; obtains trust documents; reviews related documents and sees that appropriate documents are recorded with the county clerk and recorder.",null,null,null,null,null,null,null,null,null,null,null,null,null,null,null,null,null,null,null,null,null,null,null,null,null,null,null,null,null,null,null,null,null,null,null,null,null,null,null,null,null,null,null,null,null,null,null,null,null,null,null,null,null,null,null,null,null,null,null,null,null,null,null,null,null,null,null,null,null,null,null,null,null,null,null,null,null,null,null,null,null,null,null,null,null,null,null,null,null,null,null,null,null,null,null,null,null,null,null,null,null,"3-133"]
["40-20","Fiscal","Banking & Loans","Loan Officer","Examines, evaluates, and authorizes or recommends approval of customer applications for lines or extension of lines of credit, commercial loans, real estate loans, consumer credit loans, or credit card accounts.  Interviews applicants and requests specified information for loan applications.  Analyzes applicant financial status, credit, and property evaluation to determine the feasibility of granting loan or submits application to credit analyst for verification and recommendation.",null,null,null,null,null,null,null,null,null,null,null,null,null,null,null,null,null,null,null,null,null,null,null,null,null,null,null,null,null,null,null,null,null,null,null,null,null,null,null,null,null,null,null,null,null,null,null,null,null,null,null,null,null,null,null,null,null,null,null,null,null,null,null,null,null,null,null,null,null,null,null,null,null,null,null,null,null,null,null,null,null,null,null,null,null,null,null,null,null,null,null,null,null,null,null,null,null,null,null,null,null,"3-13"]
["40-21","Fiscal","Banking & Loans","Loan Processor","Performs clerical and administrative support activities related to obtaining loans for borrows.  Prepares papers and assembles documents to obtain loans for borrowers.  Forwards applications for loans, construction plans, and credit ratings, and other related documents to loan company for approval.  Receives approval of company and orders preliminary title reports and covenants.  Draws up closing papers showing financial transactions, conditions, and restriction upon which sale is based.  Records deeds with title company and municipal authorities.",null,null,null,null,null,null,null,null,null,null,null,null,null,null,null,null,null,null,null,null,null,null,null,null,null,null,null,null,null,null,null,null,null,null,null,null,null,null,null,null,null,null,null,null,null,null,null,null,null,null,null,null,null,null,null,null,null,null,null,null,null,null,null,null,null,null,null,null,null,null,null,null,null,null,null,null,null,null,null,null,null,null,null,null,null,null,null,null,null,null,null,null,null,null,null,null,null,null,null,null,null,"3-131"]
["40-22","Fiscal","Banking & Loans","Title Examiner","Examines land records for documents in the public record concerning a particular property that is being purchased or refinanced (re: liens, encumbrances, taxes, judgments, construction liens, federal/state tax liens, estate issues, and other miscellaneous issues against the property); prepares title commitments; sees that appropriate documents are prepared, notarized and recorded with the county clerk and recorder; prepares final title policies.",null,null,null,null,null,null,null,null,null,null,null,null,null,null,null,null,null,null,null,null,null,null,null,null,null,null,null,null,null,null,null,null,null,null,null,null,null,null,null,null,null,null,null,null,null,null,null,null,null,null,null,null,null,null,null,null,null,null,null,null,null,null,null,null,null,null,null,null,null,null,null,null,null,null,null,null,null,null,null,null,null,null,null,null,null,null,null,null,null,null,null,null,null,null,null,null,null,null,null,null,null,"3-132"]
["40-23","Fiscal","Banking & Loans","Teller","Receives and pays out money, and keeps records of money and negotiable instruments involved in financial transactions.  Enters customers' transactions into computer to record transactions, and issues computer generated receipts.  May also be required to explain or promote products/services and to open new accounts.",null,null,null,null,null,null,null,null,null,null,null,null,null,null,null,null,null,null,null,null,null,null,null,null,null,null,null,null,null,null,null,null,null,null,null,null,null,null,null,null,null,null,null,null,null,null,null,null,null,null,null,null,null,null,null,null,null,null,null,null,null,null,null,null,null,null,null,null,null,null,null,null,null,null,null,null,null,null,null,null,null,null,null,null,null,null,null,null,null,null,null,null,null,null,null,null,null,null,null,null,null,"3-14"]
["40-24","Fiscal","Banking & Loans","Financial Institution Manager","Manages branch or office of financial institution such as a commercial bank, credit union, finance company, mortgage banking company, savings and loan or trust company by performing the following duties personally or through subordinates.  Assesses risk of all financial transactions executed by organization personnel.  Direct, coordinates, and monitors activities to implement institution's policies, procedures, and practices concerning the activities of the company.  Establishes procedures for custody and control of assets, record, loan collateral and securities to ensure safekeeping.",null,null,null,null,null,null,null,null,null,null,null,null,null,null,null,null,null,null,null,null,null,null,null,null,null,null,null,null,null,null,null,null,null,null,null,null,null,null,null,null,null,null,null,null,null,null,null,null,null,null,null,null,null,null,null,null,null,null,null,null,null,null,null,null,null,null,null,null,null,null,null,null,null,null,null,null,null,null,null,null,null,null,null,null,null,null,null,null,null,null,null,null,null,null,null,null,null,null,null,null,null,"3-27"]
["40-25","Fiscal","Collections","Credit and/or Collection Clerk","Experienced level of credit and collections clerical work.  The job typically requires reading, communication and math skills commensurate with a high school diploma or GED and 2+ years of related experience, or equivalent.  Work includes reviewing credit applications and delinquent accounts; researching information from credit organizations; maintaining records on delinquent accounts and credit risks.  Incumbents issue progressive requests for payment of past-due accounts.  Much of the time is spent using a keyboard and using appropriate software applications, including web resources.  Incumbents make non-routine choices within established precedent and policies, referring unusual situations to a supervisor.",null,null,null,null,null,null,null,null,null,null,null,null,null,null,null,null,null,null,null,null,null,null,null,null,null,null,null,null,null,null,null,null,null,null,null,null,null,null,null,null,null,null,null,null,null,null,null,null,null,null,null,null,null,null,null,null,null,null,null,null,null,null,null,null,null,null,null,null,null,null,null,null,null,null,null,null,null,null,null,null,null,null,null,null,null,null,null,null,null,null,null,null,null,null,null,null,null,null,null,null,null,"3-09"]
["40-26","Fiscal","Collections","Credit and/or Collection Manager","Manager responsible for operation of a department focused on credit and/or collections, typically requiring a bachelor's or associate’s degree with 5+ years of credit/collection experience, or equivalent.  Provides direction to department staff and administer credit/collection policies of the organization.  May formulate credit and collections policies, methods and procedures for approval by senior management.  Duties include determining customer credit capacity, managing the compilation of credit information, analyzing and interpreting available information and authorizing extension of credit.  Decisions include determining action to take in collection of past due accounts where normal collection procedures have failed, approval of terms of sales and authorization of financial arrangements for foreign shipments.  Prepare or supervise preparation of data showing credit activities and status of accounts.  Frequently communicates with sales and finance on the status of client accounts or the credit classification of prospective clients.",null,null,null,null,null,null,null,null,null,null,null,null,null,null,null,null,null,null,null,null,null,null,null,null,null,null,null,null,null,null,null,null,null,null,null,null,null,null,null,null,null,null,null,null,null,null,null,null,null,null,null,null,null,null,null,null,null,null,null,null,null,null,null,null,null,null,null,null,null,null,null,null,null,null,null,null,null,null,null,null,null,null,null,null,null,null,null,null,null,null,null,null,null,null,null,null,null,null,null,null,null,"3-10"]
["40-27","Fiscal","Collections","Credit and/or Collection Specialist","Professional level of credit and collections work, typically requiring a bachelor's or associate’s degree with 1-5 years of credit/collection experience, or equivalent.  Work includes reviewing credit applications and delinquent accounts; researching information from credit organizations; maintaining records on delinquent accounts and credit risks.  Issues progressive requests for payment of past-due accounts.  Within policy limits, works out payment plans for past due accounts, referring large cases to the manager for approval.  Has frequent contact with sales staff regarding qualification of accounts.",null,null,null,null,null,null,null,null,null,null,null,null,null,null,null,null,null,null,null,null,null,null,null,null,null,null,null,null,null,null,null,null,null,null,null,null,null,null,null,null,null,null,null,null,null,null,null,null,null,null,null,null,null,null,null,null,null,null,null,null,null,null,null,null,null,null,null,null,null,null,null,null,null,null,null,null,null,null,null,null,null,null,null,null,null,null,null,null,null,null,null,null,null,null,null,null,null,null,null,null,null,"3-091"]
["40-30","Fiscal","Management","Controller","Responsible for managing the financial affairs of an organization.  Provides financial analysis of operations for guidance of management.  Prepares reports outlining the organizations financial position relative to income, expenses and earnings based on past, present and future operations.  Sets accounting policies and procedures throughout the organization in order to satisfy corporate, legal and tax requirements. Usually reports to CFO.",null,null,null,null,null,null,null,null,null,null,null,null,null,null,null,null,null,null,null,null,null,null,null,null,null,null,null,null,null,null,null,null,null,null,null,null,null,null,null,null,null,null,null,null,null,null,null,null,null,null,null,null,null,null,null,null,null,null,null,null,null,null,null,null,null,null,null,null,null,null,null,null,null,null,null,null,null,null,null,null,null,null,null,null,null,null,null,null,null,null,null,null,null,null,null,null,null,null,null,null,null,"4-33"]
["40-32","Fiscal","Management","Chief Financial Officer","Under the general direction of the company's Chief Administrative Officer and the Executive Board, administers and supervises the finance functions for the Company, including budget development, administration, asset and debt management, accounting, audits, payroll and purchasing.  Provides financial and accounting advice to other departments within the Company.  Bachelor's degree in accounting, public administration or related field and four years progressively responsible experience at a management level in governmental accounting/finance/payroll administration.  ",null,null,null,null,null,null,null,null,null,null,null,null,null,null,null,null,null,null,null,null,null,null,null,null,null,null,null,null,null,null,null,null,null,null,null,null,null,null,null,null,null,null,null,null,null,null,null,null,null,null,null,null,null,null,null,null,null,null,null,null,null,null,null,null,null,null,null,null,null,null,null,null,null,null,null,null,null,null,null,null,null,null,null,null,null,null,null,null,null,null,null,null,null,null,null,null,null,null,null,null,null,"4-38"]
["12-00","Hospitality","Accommodations","Hotel / Motel Clerk","Performs a variety of services for guests of hotel/motel or other lodging establishments.  Registers arriving guests, assign rooms and checks out guests at the end of their stay.  Issues room keys and may issue escort instructions to bellhops.  May answer inquiries pertaining to hotel/motel services.  May prepare and explain charges at time of check out and process payment.",null,null,null,null,null,null,null,null,null,null,null,null,null,null,null,null,null,null,null,null,null,null,null,null,null,null,null,null,null,null,null,null,null,null,null,null,null,null,null,null,null,null,null,null,null,null,null,null,null,null,null,null,null,null,null,null,null,null,null,null,null,null,null,null,null,null,null,null,null,null,null,null,null,null,null,null,null,null,null,null,null,null,null,null,null,null,null,null,null,null,null,null,null,null,null,null,null,null,null,null,null,"5-181"]
["12-01","Hospitality","Food & Beverage","Dishwasher","Works under general supervision to ensure there are adequate clean dishes according to health and sanitation regulations.  Responsible for set up, cleaning, and storage of dishes. Responsible for the proper cleanliness of the work area.",null,null,null,null,null,null,null,null,null,null,null,null,null,null,null,null,null,null,null,null,null,null,null,null,null,null,null,null,null,null,null,null,null,null,null,null,null,null,null,null,null,null,null,null,null,null,null,null,null,null,null,null,null,null,null,null,null,null,null,null,null,null,null,null,null,null,null,null,null,null,null,null,null,null,null,null,null,null,null,null,null,null,null,null,null,null,null,null,null,null,null,null,null,null,null,null,null,null,null,null,null,"5-08"]
["12-02","Hospitality","Food & Beverage","Food Service Worker","Prepares, sells, and delivers food trays to school students or hospital patients, performing any combination of duties on the tray line.  Reads production orders to determine appropriate place on tray.",null,null,null,null,null,null,null,null,null,null,null,null,null,null,null,null,null,null,null,null,null,null,null,null,null,null,null,null,null,null,null,null,null,null,null,null,null,null,null,null,null,null,null,null,null,null,null,null,null,null,null,null,null,null,null,null,null,null,null,null,null,null,null,null,null,null,null,null,null,null,null,null,null,null,null,null,null,null,null,null,null,null,null,null,null,null,null,null,null,null,null,null,null,null,null,null,null,null,null,null,null,"5-09"]
["12-03","Hospitality","Food & Beverage","Cook, Helper","Assists the cook and head cook in the preparation of meals in a restaurant/cafeteria type environment.  Duties may include kitchen clean-up and even some dishwashing.",null,null,null,null,null,null,null,null,null,null,null,null,null,null,null,null,null,null,null,null,null,null,null,null,null,null,null,null,null,null,null,null,null,null,null,null,null,null,null,null,null,null,null,null,null,null,null,null,null,null,null,null,null,null,null,null,null,null,null,null,null,null,null,null,null,null,null,null,null,null,null,null,null,null,null,null,null,null,null,null,null,null,null,null,null,null,null,null,null,null,null,null,null,null,null,null,null,null,null,null,null,"5-06"]
["12-04","Hospitality","Food & Beverage","Cook, Short-Order","A person who specializes in the preparation of short-order type foods - I.e. sandwiches, grilled/fried items, etc.  Also may be responsible for picking menu items and maintaining inventory of food items.",null,null,null,null,null,null,null,null,null,null,null,null,null,null,null,null,null,null,null,null,null,null,null,null,null,null,null,null,null,null,null,null,null,null,null,null,null,null,null,null,null,null,null,null,null,null,null,null,null,null,null,null,null,null,null,null,null,null,null,null,null,null,null,null,null,null,null,null,null,null,null,null,null,null,null,null,null,null,null,null,null,null,null,null,null,null,null,null,null,null,null,null,null,null,null,null,null,null,null,null,null,"5-07"]
["12-05","Hospitality","Food & Beverage","Cook","Prepares, seasons and cooks soups, meats, vegetables, desserts and other foodstuffs for consumption in eating establishments.  Reads menu to estimate food requirements and orders food from suppliers.",null,null,null,null,null,null,null,null,null,null,null,null,null,null,null,null,null,null,null,null,null,null,null,null,null,null,null,null,null,null,null,null,null,null,null,null,null,null,null,null,null,null,null,null,null,null,null,null,null,null,null,null,null,null,null,null,null,null,null,null,null,null,null,null,null,null,null,null,null,null,null,null,null,null,null,null,null,null,null,null,null,null,null,null,null,null,null,null,null,null,null,null,null,null,null,null,null,null,null,null,null,"5-05"]
["12-06","Hospitality","Food & Beverage","Baker","Performs duties necessary to successfully operate a bakery.  Includes extensive baking skills, ordering of raw ingredients, and packaging materials.  Ensures quality control over all products, and may be required to oversee other bakers and packagers.",null,null,null,null,null,null,null,null,null,null,null,null,null,null,null,null,null,null,null,null,null,null,null,null,null,null,null,null,null,null,null,null,null,null,null,null,null,null,null,null,null,null,null,null,null,null,null,null,null,null,null,null,null,null,null,null,null,null,null,null,null,null,null,null,null,null,null,null,null,null,null,null,null,null,null,null,null,null,null,null,null,null,null,null,null,null,null,null,null,null,null,null,null,null,null,null,null,null,null,null,null,"5-01"]
["12-07","Hospitality","Food & Beverage","Kitchen Manager","Supervises and coordinates activities of workers engaged in preparation, cooking, and serving food and purchases or requisitions foodstuffs and kitchen supplies.  Plans menus, portion sizes, and food surpluses.  Keeps daily records of meals served and takes inventory of supplies and equipment.  Trains new employees.",null,null,null,null,null,null,null,null,null,null,null,null,null,null,null,null,null,null,null,null,null,null,null,null,null,null,null,null,null,null,null,null,null,null,null,null,null,null,null,null,null,null,null,null,null,null,null,null,null,null,null,null,null,null,null,null,null,null,null,null,null,null,null,null,null,null,null,null,null,null,null,null,null,null,null,null,null,null,null,null,null,null,null,null,null,null,null,null,null,null,null,null,null,null,null,null,null,null,null,null,null,"5-13"]
["12-08","Hospitality","Food & Beverage","Bartender","Perform duties necessary for the successful operation of a bar.  Duties include an extensive knowledge of mixed drink recipes, operation of beer and soft drink taps, person also ensures the proper stocking and restocking of coolers and bar supplies, and may also be required to oversee activities of cocktail waiter/waitress.",null,null,null,null,null,null,null,null,null,null,null,null,null,null,null,null,null,null,null,null,null,null,null,null,null,null,null,null,null,null,null,null,null,null,null,null,null,null,null,null,null,null,null,null,null,null,null,null,null,null,null,null,null,null,null,null,null,null,null,null,null,null,null,null,null,null,null,null,null,null,null,null,null,null,null,null,null,null,null,null,null,null,null,null,null,null,null,null,null,null,null,null,null,null,null,null,null,null,null,null,null,"5-03"]
["12-09","Hospitality","Food & Beverage","Waiter / Waitress","Serves meals to patrons in a dining establishment.  Presents menu, answers questions, and makes suggestions regarding food and service.  Takes orders, relays to kitchen and serves courses from kitchen and service bars.  Totals bills and accepts payments or refers patron to cashier.",null,null,null,null,null,null,null,null,null,null,null,null,null,null,null,null,null,null,null,null,null,null,null,null,null,null,null,null,null,null,null,null,null,null,null,null,null,null,null,null,null,null,null,null,null,null,null,null,null,null,null,null,null,null,null,null,null,null,null,null,null,null,null,null,null,null,null,null,null,null,null,null,null,null,null,null,null,null,null,null,null,null,null,null,null,null,null,null,null,null,null,null,null,null,null,null,null,null,null,null,null,"5-12"]
["12-10","Hospitality","Food & Beverage","Restaurant Manager","Coordinates food service activities of hotel, restaurant, or other similar establishment. Estimates food and beverage costs and requisitions or purchases supplies. Confers with food preparation personnel to plan menus. Directs hiring and assignment of personnel. May review financial transactions and monitor budget to ensure efficient operation. Investigates and resolves food quality and service complaints.",null,null,null,null,null,null,null,null,null,null,null,null,null,null,null,null,null,null,null,null,null,null,null,null,null,null,null,null,null,null,null,null,null,null,null,null,null,null,null,null,null,null,null,null,null,null,null,null,null,null,null,null,null,null,null,null,null,null,null,null,null,null,null,null,null,null,null,null,null,null,null,null,null,null,null,null,null,null,null,null,null,null,null,null,null,null,null,null,null,null,null,null,null,null,null,null,null,null,null,null,null,"5-14"]
["12-11","Hospitality","Services","Child Care Director","Directs activities of preschool, daycare centers or other child development facility to provide instruction and care for children.  Interviews and recommends hiring of teaching and service staff.  Confers with parents regarding facility activities, policies and enrollment.  Confers with teaching staff regarding child's behavioral or learning problems and recommends methods of modifying or adjusting situations.  Reviews and evaluates facility activities to ensure conformance to state and local regulations.",null,null,null,null,null,null,null,null,null,null,null,null,null,null,null,null,null,null,null,null,null,null,null,null,null,null,null,null,null,null,null,null,null,null,null,null,null,null,null,null,null,null,null,null,null,null,null,null,null,null,null,null,null,null,null,null,null,null,null,null,null,null,null,null,null,null,null,null,null,null,null,null,null,null,null,null,null,null,null,null,null,null,null,null,null,null,null,null,null,null,null,null,null,null,null,null,null,null,null,null,null,"5-24"]
["12-12","Hospitality","Services","Child Care Worker","Organizes and leads activities of children in nurseries or playrooms.  Maintains discipline.  Observes and monitors play activities or amuses children by reading or playing games with them.  Prepares and serves meals or formulas.",null,null,null,null,null,null,null,null,null,null,null,null,null,null,null,null,null,null,null,null,null,null,null,null,null,null,null,null,null,null,null,null,null,null,null,null,null,null,null,null,null,null,null,null,null,null,null,null,null,null,null,null,null,null,null,null,null,null,null,null,null,null,null,null,null,null,null,null,null,null,null,null,null,null,null,null,null,null,null,null,null,null,null,null,null,null,null,null,null,null,null,null,null,null,null,null,null,null,null,null,null,"5-23"]
["12-13","Hospitality","Services","Housekeeper / Maid","Handles some or all aspects of housecleaning to include: laundry, vacuuming, dusting, etc.  Inventories cleaning supplies and reorders.  Must be familiar with common cleaning appliances and chemicals.  This may be a domestic or commercial establishment including such things as office buildings, apartment houses, hotels, etc.",null,null,null,null,null,null,null,null,null,null,null,null,null,null,null,null,null,null,null,null,null,null,null,null,null,null,null,null,null,null,null,null,null,null,null,null,null,null,null,null,null,null,null,null,null,null,null,null,null,null,null,null,null,null,null,null,null,null,null,null,null,null,null,null,null,null,null,null,null,null,null,null,null,null,null,null,null,null,null,null,null,null,null,null,null,null,null,null,null,null,null,null,null,null,null,null,null,null,null,null,null,"5-19"]
["12-14","Hospitality","Services","Laundry Supervisor","Manages laundry plant in linen supply establishment or commercial or industrial laundry by performing the following duties personally or through subordinates. Schedules flow of work taking into consideration amount of clothes to be laundered and capacity of equipment. Purchases supplies, analyzes reports on labor cost and production operations and determines whether standards are being met. Performs other administrative and supervisory duties to ensure safe, efficient and profitable operation.",null,null,null,null,null,null,null,null,null,null,null,null,null,null,null,null,null,null,null,null,null,null,null,null,null,null,null,null,null,null,null,null,null,null,null,null,null,null,null,null,null,null,null,null,null,null,null,null,null,null,null,null,null,null,null,null,null,null,null,null,null,null,null,null,null,null,null,null,null,null,null,null,null,null,null,null,null,null,null,null,null,null,null,null,null,null,null,null,null,null,null,null,null,null,null,null,null,null,null,null,null,"5-20"]
["12-15","Hospitality","Services","Laundry Worker","Tends laundering machines to clean articles such as rags, wiping cloths, filter cloths, bags, sacks, and work clothes.  Runs washers and dryers.  Possibly required to do minor clothes mending.",null,null,null,null,null,null,null,null,null,null,null,null,null,null,null,null,null,null,null,null,null,null,null,null,null,null,null,null,null,null,null,null,null,null,null,null,null,null,null,null,null,null,null,null,null,null,null,null,null,null,null,null,null,null,null,null,null,null,null,null,null,null,null,null,null,null,null,null,null,null,null,null,null,null,null,null,null,null,null,null,null,null,null,null,null,null,null,null,null,null,null,null,null,null,null,null,null,null,null,null,null,"5-21"]
["60-00","Human Resources","HR Benefits","Benefits Analyst","Professional analyst work in the area of employee benefits.  Under general supervision, provides assistance in design and administration of the organization's benefit programs.  Duties include researching legal and administrative issues relating to benefit plans and participating in benefit surveys to determine market trends.  Prepares benefit analyses for determination of benefit costs.  May serve as a liaison with outside benefits administration firms.  May administer one or more benefit programs.",null,null,null,null,null,null,null,null,null,null,null,null,null,null,null,null,null,null,null,null,null,null,null,null,null,null,null,null,null,null,null,null,null,null,null,null,null,null,null,null,null,null,null,null,null,null,null,null,null,null,null,null,null,null,null,null,null,null,null,null,null,null,null,null,null,null,null,null,null,null,null,null,null,null,null,null,null,null,null,null,null,null,null,null,null,null,null,null,null,null,null,null,null,null,null,null,null,null,null,null,null,"4-15"]
["60-01","Human Resources","HR Benefits","Benefits Assistant","Support work dedicated to benefits administration.  Incumbents answer employee questions regarding benefits and maintain records of employee enrollment in benefit programs.  Incumbents check insurance application or change forms and verify that information on forms submitted by employees is complete and accurate.  Incumbents may contact various insurance companies or medical providers regarding medical, dental, disability, flex accounts, workers' compensation or other insurance claims or questions.  The job typically requires the use of a computer and application of appropriate software packages.  Makes decisions based upon established policies and procedures and works with readily available supervision.  Does not serve in the capacity of plan administrator.",null,null,null,null,null,null,null,null,null,null,null,null,null,null,null,null,null,null,null,null,null,null,null,null,null,null,null,null,null,null,null,null,null,null,null,null,null,null,null,null,null,null,null,null,null,null,null,null,null,null,null,null,null,null,null,null,null,null,null,null,null,null,null,null,null,null,null,null,null,null,null,null,null,null,null,null,null,null,null,null,null,null,null,null,null,null,null,null,null,null,null,null,null,null,null,null,null,null,null,null,null,"4-14"]
["60-02","Human Resources","Human Resources ","Compensation & Benefits Director","Director level job responsible for operation for a department focused on employee compensation and benefit programs.    Through subordinate supervisors or managers specializing in portions of the overall function, directs the total rewards function.  Directs program design and implementation, including selection of outside service providers.  Makes final recommendations to executive management regarding individual and group compensation adjustments and group benefit plans.  May work with the compensation committee of the Board of Directors to coordinate the design of the executive compensation.",null,null,null,null,null,null,null,null,null,null,null,null,null,null,null,null,null,null,null,null,null,null,null,null,null,null,null,null,null,null,null,null,null,null,null,null,null,null,null,null,null,null,null,null,null,null,null,null,null,null,null,null,null,null,null,null,null,null,null,null,null,null,null,null,null,null,null,null,null,null,null,null,null,null,null,null,null,null,null,null,null,null,null,null,null,null,null,null,null,null,null,null,null,null,null,null,null,null,null,null,null,"4-16"]
["60-04","Human Resources","Human Resources ","HR Recruiter / Interviewer                       ","Recruiter with a primary focus on recruiting hourly, salaried non-exempt or non-management exempt jobs.    Duties include working with management to define job qualifications and advertising in multiple media venues.  Pre-screens job candidates, conducts preliminary interviews, administers skills tests, arranges drug tests, conducts background checks and assists management with conducting interviews.  Markets the organization to potential employees and explains benefits and compensation programs as well as company expectations.  Networks within the community and may participate in job fairs.  May make employment offers for lower level jobs based on predetermined standards without involving line management.",null,null,null,null,null,null,null,null,null,null,null,null,null,null,null,null,null,null,null,null,null,null,null,null,null,null,null,null,null,null,null,null,null,null,null,null,null,null,null,null,null,null,null,null,null,null,null,null,null,null,null,null,null,null,null,null,null,null,null,null,null,null,null,null,null,null,null,null,null,null,null,null,null,null,null,null,null,null,null,null,null,null,null,null,null,null,null,null,null,null,null,null,null,null,null,null,null,null,null,null,null,"4-19"]
["60-05","Human Resources","Human Resources ","HUMAN RESOURCES GENERALIST I (Assistant)","Under general direction of the HR Director, this position is responsible for providing support in functional areas of Human Resources (HR) including but not limited to recruitment and employment, personnel records, employee and/or labor relations, compensation management, benefits administration, training, and special projects. The position also provides support to Company managers in the implementation of HR policies and procedures and prepares reports in conformance with regulations and organizational needs. The job requires education and experience equivalent to two years of post-secondary education and two years progressively responsible and related professional work experience in human resources and benefits administration allowing opportunity to demonstrate organizational capabilities; or any equivalent combination of education and experience.",null,null,null,null,null,null,null,null,null,null,null,null,null,null,null,null,null,null,null,null,null,null,null,null,null,null,null,null,null,null,null,null,null,null,null,null,null,null,null,null,null,null,null,null,null,null,null,null,null,null,null,null,null,null,null,null,null,null,null,null,null,null,null,null,null,null,null,null,null,null,null,null,null,null,null,null,null,null,null,null,null,null,null,null,null,null,null,null,null,null,null,null,null,null,null,null,null,null,null,null,null,"4-17"]
["60-06","Human Resources","Human Resources ","Human Resource Generalist II","Human resource professional, typically in an organization with more than one human resource staff person, with responsibility for several human resource activities.  The job requires a degree in human resources and 0-4 years of experience, or equivalent.  Duties include supporting the organization through work in several areas of human resources, which may include coordinating employment activities, participating in union contract negotiations (where applicable), receiving and acting on employee complaints or grievances, administering employee records, ensuring compliance with labor laws and regulations, recommending and coordinating employee training activities and administering compensation, benefits and performance programs.  Typically reports to a Manager, Director or VP of Human Resources and administers functional rules and procedures under management guidance",null,null,null,null,null,null,null,null,null,null,null,null,null,null,null,null,null,null,null,null,null,null,null,null,null,null,null,null,null,null,null,null,null,null,null,null,null,null,null,null,null,null,null,null,null,null,null,null,null,null,null,null,null,null,null,null,null,null,null,null,null,null,null,null,null,null,null,null,null,null,null,null,null,null,null,null,null,null,null,null,null,null,null,null,null,null,null,null,null,null,null,null,null,null,null,null,null,null,null,null,null,"4-18"]
["60-07","Human Resources","Human Resources ","Human Resources Manager","Manages and coordinates organization activities related to one or more human resources and industrial relations functions. The job typically requires a degree in human resources and 5+ years of human resources experience, or equivalent.  Job duties may include, but are not limited to, employment, compensation, benefits, payroll, organizational development, employee relations, performance management, action, training, recruitment, and safety.  Recommends and develops policies and implements approved programs and policies designed to protect company and employee interests in accordance with company HR policies and governmental laws and regulations.  Identifies and complies with legal requirements and government reporting regulations. The manager may supervise human resource or payroll staff.  Typically reports to as director or vice president, but may report directly to the CEO, and will develop and recommend policies for approval by senior management.",null,null,null,null,null,null,null,null,null,null,null,null,null,null,null,null,null,null,null,null,null,null,null,null,null,null,null,null,null,null,null,null,null,null,null,null,null,null,null,null,null,null,null,null,null,null,null,null,null,null,null,null,null,null,null,null,null,null,null,null,null,null,null,null,null,null,null,null,null,null,null,null,null,null,null,null,null,null,null,null,null,null,null,null,null,null,null,null,null,null,null,null,null,null,null,null,null,null,null,null,null,"4-22"]
["60-08","Human Resources","Human Resources ","Human Resources Director","This is the top human resource position where the function is staffed at a director level and the job is usually not considered part of the executive cabinet.  The job typically requires a degree in human resources and 8+ years of general human resources experience, including management experience, or equivalent.   Directs and coordinates organization activities related to human resources and industrial relations functions. Job duties include, but are not limited to, employment, compensation, benefits, payroll, organizational development, employee relations, performance management, affirmative action, training, recruitment, and safety.  Establishes and implements programs and policies designed to protect company and employee interests in accordance with company HR policies and governmental laws and regulations.  Identifies and complies with legal requirements and government reporting regulations. The director supervises human resource staff, often through subordinate supervisory-level staff.  Additional responsibilities for functions such as administration or facilities may be included.  Typically reports to a vice president or directly to CEO, and will develop and recommend policies for approval.",null,null,null,null,null,null,null,null,null,null,null,null,null,null,null,null,null,null,null,null,null,null,null,null,null,null,null,null,null,null,null,null,null,null,null,null,null,null,null,null,null,null,null,null,null,null,null,null,null,null,null,null,null,null,null,null,null,null,null,null,null,null,null,null,null,null,null,null,null,null,null,null,null,null,null,null,null,null,null,null,null,null,null,null,null,null,null,null,null,null,null,null,null,null,null,null,null,null,null,null,null,"4-23"]
["60-09","Human Resources","Human Resources ","Chief Human Resources Executive","This is the top human resource position where the function is at a senior executive level and is part of the executive cabinet.  The job typically requires a degree in human resources and 10+ years of general human resources experience, including management experience, or equivalent.  A master's degree is commonly required.  Directs and coordinates organization activities related to human resources and industrial relations functions.    Functions directed include, but are not limited to, employment, compensation, benefits, payroll, organizational development, employee relations, performance management, affirmative action, training, recruitment, and safety.  Identifies and complies with legal requirements and government reporting regulations.  The VP/SVP directs all human resource staff usually through subordinate managerial and supervisory staff.  Responsibilities for functions such as administration or facilities may be included.  Typically reports directly to the CEO and will develop and set HR policies subject to ratification by the executive committee, CEO, or the Board of Directors.",null,null,null,null,null,null,null,null,null,null,null,null,null,null,null,null,null,null,null,null,null,null,null,null,null,null,null,null,null,null,null,null,null,null,null,null,null,null,null,null,null,null,null,null,null,null,null,null,null,null,null,null,null,null,null,null,null,null,null,null,null,null,null,null,null,null,null,null,null,null,null,null,null,null,null,null,null,null,null,null,null,null,null,null,null,null,null,null,null,null,null,null,null,null,null,null,null,null,null,null,null,"4-39"]
["60-15","Human Resources","Government Relations","Chief Government Relations Executive","Responsible for representing the interests of the organization in matters involving federal, state and local governments. Directs the lobbying and public policy activities of the organization and coordinates the efforts of operating domestic and/or foreign divisions. May direct or oversee staff in matters involving federal, state and public agencies. "]
["50-00","Information Technology","Analysis","Computer Systems  Analyst I","Assists in analyzing organizational activities and business problems to determine applicability to an integrated data processing system.  Evaluates capabilities of existing hardware and software.  Studies current or develops new systems and procedures to devise workable sequences.  Develops flow charts or system specifications, including input and output requirements.",null,null,null,null,null,null,null,null,null,null,null,null,null,null,null,null,null,null,null,null,null,null,null,null,null,null,null,null,null,null,null,null,null,null,null,null,null,null,null,null,null,null,null,null,null,null,null,null,null,null,null,null,null,null,null,null,null,null,null,null,null,null,null,null,null,null,null,null,null,null,null,null,null,null,null,null,null,null,null,null,null,null,null,null,null,null,null,null,null,null,null,null,null,null,null,null,null,null,null,null,null,"6-02"]
["50-01","Information Technology","Analysis","Computer Systems Analyst II","Works independently or with subordinates in planning, design, implementation of systems and procedures.  Uses a thorough knowledge of current software techniques and hardware capabilities to develop and modify software programs of high degree of complexity and scope and to provide technical support to applications programmers and low level systems programmers.  Assists in analyzing organizational activities and business problems to determine applicability to an integrated data processing system.  Evaluates capabilities of existing hardware and software.  Studies current or develops new systems and procedures to devise workable sequences.  Develops flow charts or system specifications, including input and output requirements.",null,null,null,null,null,null,null,null,null,null,null,null,null,null,null,null,null,null,null,null,null,null,null,null,null,null,null,null,null,null,null,null,null,null,null,null,null,null,null,null,null,null,null,null,null,null,null,null,null,null,null,null,null,null,null,null,null,null,null,null,null,null,null,null,null,null,null,null,null,null,null,null,null,null,null,null,null,null,null,null,null,null,null,null,null,null,null,null,null,null,null,null,null,null,null,null,null,null,null,null,null,"6-03"]
["50-02","Information Technology","Analysis","Database Analyst","Designs database applications to specifications provided by higher-level staff. Tests, corrects, monitors and updates developed applications. Evaluates database performance. Tunes and reorganizes databases as needed. Sets up back-up and recovery procedures for databases. Controls access to data in physical database designs for both privacy and security.  Requires aBachelor's degree and 1-5 years of related experience, or equivalent.",null,null,null,null,null,null,null,null,null,null,null,null,null,null,null,null,null,null,null,null,null,null,null,null,null,null,null,null,null,null,null,null,null,null,null,null,null,null,null,null,null,null,null,null,null,null,null,null,null,null,null,null,null,null,null,null,null,null,null,null,null,null,null,null,null,null,null,null,null,null,null,null,null,null,null,null,null,null,null,null,null,null,null,null,null,null,null,null,null,null,null,null,null,null,null,null,null,null,null,null,null,"6-037"]
["50-03","Information Technology","Analysis","Database Analyst - Senior","Designs, codes, tests and executes physical databases from logical designs. Redesigns databases as business needs change. Evaluates database quality. Tunes and reorganizes databases as needed. Recommends ways the new database management systems can be implemented.  Requires a Bachelor's degree and 5-8 years of related experience, or equivalent.",null,null,null,null,null,null,null,null,null,null,null,null,null,null,null,null,null,null,null,null,null,null,null,null,null,null,null,null,null,null,null,null,null,null,null,null,null,null,null,null,null,null,null,null,null,null,null,null,null,null,null,null,null,null,null,null,null,null,null,null,null,null,null,null,null,null,null,null,null,null,null,null,null,null,null,null,null,null,null,null,null,null,null,null,null,null,null,null,null,null,null,null,null,null,null,null,null,null,null,null,null,"6-038"]
["50-04","Information Technology","Data Entry","Computer Operator I","Entry-level position in the area of computer operations, typically requiring reading, communication and math skills commensurate with a high school diploma or GED and 0-2 years of computer operator training and experience, or equivalent.  Incumbents perform diversified duties involving the operation of a computer and auxiliary equipment such as high-speed printer and peripheral machines.  Working under close supervision and following standard procedures, loads and executes jobs/programs and monitors and controls a computer console to automatically process and store data.  Incumbents perform scheduled backups and maintain computer logs relative to machine performance and utilization.  Incumbents at this level require frequent assistance with problem solving.",null,null,null,null,null,null,null,null,null,null,null,null,null,null,null,null,null,null,null,null,null,null,null,null,null,null,null,null,null,null,null,null,null,null,null,null,null,null,null,null,null,null,null,null,null,null,null,null,null,null,null,null,null,null,null,null,null,null,null,null,null,null,null,null,null,null,null,null,null,null,null,null,null,null,null,null,null,null,null,null,null,null,null,null,null,null,null,null,null,null,null,null,null,null,null,null,null,null,null,null,null,"6-11"]
["50-05","Information Technology","Data Entry","Computer Operator II (Experienced)","Experienced level position in the area of computer operations, typically requiring reading, communication and math skills commensurate with a high school diploma or GED and 2-4 years of experience in the operation of computer devices.  Incumbents perform diversified duties involving the operation of a computer and auxiliary equipment such as high-speed printers and peripheral machines.  Working under limited supervision and following standard procedures, loads and executes jobs/programs and monitors and controls a computer console to automatically process and store data.  Incumbents perform scheduled backups and maintain computer logs relative to machine performance and utilization.  Incumbents at this level are able to solve most problems without assistance.",null,null,null,null,null,null,null,null,null,null,null,null,null,null,null,null,null,null,null,null,null,null,null,null,null,null,null,null,null,null,null,null,null,null,null,null,null,null,null,null,null,null,null,null,null,null,null,null,null,null,null,null,null,null,null,null,null,null,null,null,null,null,null,null,null,null,null,null,null,null,null,null,null,null,null,null,null,null,null,null,null,null,null,null,null,null,null,null,null,null,null,null,null,null,null,null,null,null,null,null,null,"6-12"]
["50-06","Information Technology","Data Entry","Computer Operator III (Advanced)","Advanced level position in the area of computer operations, typically requiring reading, communication and math skills commensurate with a high school diploma or GED and 4+ years of experience in the operation of computer devices. Under minimal supervision, loads and executes jobs/programs and monitors and controls a computer console to automatically process and store data.  Incumbents perform scheduled backups and maintain computer logs relative to machine performance and utilization.  Incumbents at this level are competent to work on all phases of computer operations and may provide troubleshooting assistance and work direction to others.",null,null,null,null,null,null,null,null,null,null,null,null,null,null,null,null,null,null,null,null,null,null,null,null,null,null,null,null,null,null,null,null,null,null,null,null,null,null,null,null,null,null,null,null,null,null,null,null,null,null,null,null,null,null,null,null,null,null,null,null,null,null,null,null,null,null,null,null,null,null,null,null,null,null,null,null,null,null,null,null,null,null,null,null,null,null,null,null,null,null,null,null,null,null,null,null,null,null,null,null,null,"6-14"]
["50-07","Information Technology","Management","Information Technology Director ","This position is responsible for identifying and prioritizing Information Technology (IT) and Geographic Information System (GIS) needs and for planning, directing either personally or through subordinate supervisors, and evaluating the programs and functions to meet company needs. Duties include: manage, direct, and supervise IT and GIS personnel; systems analysis; database administration, and network and internet security planning and oversight; procure computer hardware, software and services; oversee the development of applications and web sites; maintain a safe and secure network; establish policies and procedures that guide employees in the use of computer hardware and software; network and internet safety and backup and disaster recovery; coordinate IT and security training for staff; plan, prepare, and monitor the department’s capital improvement program and operational budget. Bachelor’s degree in computer science or a related field, three years of network administration and/or application development experience, and six years of progressively responsible IT administration and leadership experience.",null,null,null,null,null,null,null,null,null,null,null,null,null,null,null,null,null,null,null,null,null,null,null,null,null,null,null,null,null,null,null,null,null,null,null,null,null,null,null,null,null,null,null,null,null,null,null,null,null,null,null,null,null,null,null,null,null,null,null,null,null,null,null,null,null,null,null,null,null,null,null,null,null,null,null,null,null,null,null,null,null,null,null,null,null,null,null,null,null,null,null,null,null,null,null,null,null,null,null,null,null,"6-10"]
["50-08","Information Technology","Management","Chief Information Officer (CIO)","Responsible for directing all information systems activities within the organizational unit. This job typically requires a bachelor's degree in computer science and 12+ years of experience, or equivalent. Establishes policies for maintaining current program effectiveness. Develops recommendations regarding new hardware and software. Establishes budgetary and performance controls. Maintains documentation on current systems. Provides technical assistance to other functions in the organization as requested."]
["50-10","Information Technology","Network Management","Network Administrator","Under general direction, is responsible for the technical design, configuration, and implementation of local and wide area network solutions between multiple platforms including ongoing technical support to remote area networks, Internet, and EDI communications. Has thorough knowledge of multi-protocol systems and extensive implementation experience with multi-vendor network systems. Is responsible for troubleshooting network usage, workstations, and computer peripherals. Will develop and implement policies and standards and ensures adherence to security procedures. In addition to a Bachelor's degree, incumbents usually have special certification such as CNE or equivalent and over 5 years of experience",null,null,null,null,null,null,null,null,null,null,null,null,null,null,null,null,null,null,null,null,null,null,null,null,null,null,null,null,null,null,null,null,null,null,null,null,null,null,null,null,null,null,null,null,null,null,null,null,null,null,null,null,null,null,null,null,null,null,null,null,null,null,null,null,null,null,null,null,null,null,null,null,null,null,null,null,null,null,null,null,null,null,null,null,null,null,null,null,null,null,null,null,null,null,null,null,null,null,null,null,null,"6-07"]
["50-11","Information Technology","Network Management","Network Architect","Designs, configures, and implements local and wide area network solutions between multiple platforms.  Possesses knowledge of multiprotocol systems and experience implementing multi-vendor networks.  Responsible for troubleshooting network usage, workstations and computer peripherals.",null,null,null,null,null,null,null,null,null,null,null,null,null,null,null,null,null,null,null,null,null,null,null,null,null,null,null,null,null,null,null,null,null,null,null,null,null,null,null,null,null,null,null,null,null,null,null,null,null,null,null,null,null,null,null,null,null,null,null,null,null,null,null,null,null,null,null,null,null,null,null,null,null,null,null,null,null,null,null,null,null,null,null,null,null,null,null,null,null,null,null,null,null,null,null,null,null,null,null,null,null,"6-08"]
["50-15","Information Technology","Programming","Computer Systems Programmer","Implements systems designs and changes as suggested by the systems analyst using programming techniques.  May be called upon to perform either as a programmer or a systems analyst, but primary duty is to modify existing hardware and software under the guidance of the systems analyst.",null,null,null,null,null,null,null,null,null,null,null,null,null,null,null,null,null,null,null,null,null,null,null,null,null,null,null,null,null,null,null,null,null,null,null,null,null,null,null,null,null,null,null,null,null,null,null,null,null,null,null,null,null,null,null,null,null,null,null,null,null,null,null,null,null,null,null,null,null,null,null,null,null,null,null,null,null,null,null,null,null,null,null,null,null,null,null,null,null,null,null,null,null,null,null,null,null,null,null,null,null,"6-04"]
["50-16","Information Technology","Programming","MIS Manager / Coordinator              ","Responsible for all information systems operations, including systems analysis, programming, and computer & auxiliary operations.  Develops policies and procedures, technical standards, methods, and schedules. Oversees strategic working relationship between information systems and other functional areas.  Maintains organizational awareness of developments in information technology, hardware, and software.  Provides management with direction and leadership in computer applications development and computer operations of the organization. Typically found in small information systems departments.",null,null,null,null,null,null,null,null,null,null,null,null,null,null,null,null,null,null,null,null,null,null,null,null,null,null,null,null,null,null,null,null,null,null,null,null,null,null,null,null,null,null,null,null,null,null,null,null,null,null,null,null,null,null,null,null,null,null,null,null,null,null,null,null,null,null,null,null,null,null,null,null,null,null,null,null,null,null,null,null,null,null,null,null,null,null,null,null,null,null,null,null,null,null,null,null,null,null,null,null,null,"6-06"]
["50-17","Information Technology","Programming","Programming Analyst I","Under direct supervision, assists in determining the relevance of computer programs relative to specific administrative, scientific, and engineering functions or problems. Assists senior-level analysts in preparing detailed specifications from which programs will be written. Will also assist in the analysis and revision of existing system logic difficulties and documentation, as necessary. Carries-out progressively more difficult assignments involving the compiling, summarizing, and analysis of data concerning the function or problem being studied. May prepare flow charts to outline the existing process or the proposed solution to the problem.  Requires a Bachelor's degree and 0-2 years of experience, or equivalent.",null,null,null,null,null,null,null,null,null,null,null,null,null,null,null,null,null,null,null,null,null,null,null,null,null,null,null,null,null,null,null,null,null,null,null,null,null,null,null,null,null,null,null,null,null,null,null,null,null,null,null,null,null,null,null,null,null,null,null,null,null,null,null,null,null,null,null,null,null,null,null,null,null,null,null,null,null,null,null,null,null,null,null,null,null,null,null,null,null,null,null,null,null,null,null,null,null,null,null,null,null,"6-031"]
["50-18","Information Technology","Programming","Programming Analyst II","Under general supervision, studies specific administrative, scientific, or engineering functions to determine, define, and formulate the applicability of new or modified application programs.  Identifies all aspects of the assigned problem and evaluates user requirements in terms of the capabilities of the available hardware and software. Develops proper documentation that outlines the logical steps to be followed in solving the problem and prepares systems specifications including input and output formats. Able to work in most aspects of application systems analysis in accordance with acceptable practices standards.  Requires a Bachelor's degree and 2-5 years of related experience, or equivalent.",null,null,null,null,null,null,null,null,null,null,null,null,null,null,null,null,null,null,null,null,null,null,null,null,null,null,null,null,null,null,null,null,null,null,null,null,null,null,null,null,null,null,null,null,null,null,null,null,null,null,null,null,null,null,null,null,null,null,null,null,null,null,null,null,null,null,null,null,null,null,null,null,null,null,null,null,null,null,null,null,null,null,null,null,null,null,null,null,null,null,null,null,null,null,null,null,null,null,null,null,null,"6-032"]
["50-19","Information Technology","Programming","Software Engineer I","Assists in the development of software involving routine application of proven, well-documented techniques with minimal technical risk. Prepares detailed plans, generally spanning several weeks. Conducts simple investigative analysis and tests. Acts as a team member with other functional groups to conduct software design reviews.  Minimum requirement of a Bachelor's degree and 0-1 year of experience.",null,null,null,null,null,null,null,null,null,null,null,null,null,null,null,null,null,null,null,null,null,null,null,null,null,null,null,null,null,null,null,null,null,null,null,null,null,null,null,null,null,null,null,null,null,null,null,null,null,null,null,null,null,null,null,null,null,null,null,null,null,null,null,null,null,null,null,null,null,null,null,null,null,null,null,null,null,null,null,null,null,null,null,null,null,null,null,null,null,null,null,null,null,null,null,null,null,null,null,null,null,"6-18"]
["50-20","Information Technology","Programming","Software Engineer II","Develops software, choosing between alternative approaches with some originality and moderate technical risk. Prepares detailed plans, generally spanning several months. Designs and implements test procedures. Interacts on a regular basis with other functional groups and customers on technical and/or administrative matters. Participates in the formation of projects goals, scope and schedule.  Minimum requirement of a Bachelor's Degree and 1-3 years of experience or an Master's Degree and 0–1 year of experience.",null,null,null,null,null,null,null,null,null,null,null,null,null,null,null,null,null,null,null,null,null,null,null,null,null,null,null,null,null,null,null,null,null,null,null,null,null,null,null,null,null,null,null,null,null,null,null,null,null,null,null,null,null,null,null,null,null,null,null,null,null,null,null,null,null,null,null,null,null,null,null,null,null,null,null,null,null,null,null,null,null,null,null,null,null,null,null,null,null,null,null,null,null,null,null,null,null,null,null,null,null,"6-181"]
["50-21","Information Technology","Programming","Software Engineer III","Develops and/or provides technical leadership in the development of software involving application of new technologies with significant technical risk. Prepare detailed plans, which may span over a year for programs or complex projects. Determines test philosophy, goals and objectives. Interacts frequently with other functional groups, customers or vendors on matters involving significant company resources. Participates in the formation of project goals, scope and schedule.  Minimum requirement of a Bachelor's Degree and 3-5 years of experience or an Master's Degree and 1–3 years of experience.",null,null,null,null,null,null,null,null,null,null,null,null,null,null,null,null,null,null,null,null,null,null,null,null,null,null,null,null,null,null,null,null,null,null,null,null,null,null,null,null,null,null,null,null,null,null,null,null,null,null,null,null,null,null,null,null,null,null,null,null,null,null,null,null,null,null,null,null,null,null,null,null,null,null,null,null,null,null,null,null,null,null,null,null,null,null,null,null,null,null,null,null,null,null,null,null,null,null,null,null,null,"6-182"]
["50-22","Information Technology","Programming","Webcast Production Editor","Under the direction of the IT Director. This position is responsible for audio/video recordings needed for the Company. The equipment with which the editing producer works is diverse, ranging from audio and video editing software to video recording equipment and lighting control equipment. Duties vary from creating video to editing PowerPoint slides. This position is responsible for spotting datedness, repetition and other content issues in video-based productions (such as Webcasts, Webinars, Web-based Conference/Seminars). The job may also include videography and lighting of in‐studio instruction, plus live events in various locales. Ability to work with and create .mp3 and .mp4 files, and operate mobile applications is required. Also required is a Bachelor’s degree in Film, Media or other related field. Comparable experience/education may be considered as part of the required qualifications.",null,null,null,null,null,null,null,null,null,null,null,null,null,null,null,null,null,null,null,null,null,null,null,null,null,null,null,null,null,null,null,null,null,null,null,null,null,null,null,null,null,null,null,null,null,null,null,null,null,null,null,null,null,null,null,null,null,null,null,null,null,null,null,null,null,null,null,null,null,null,null,null,null,null,null,null,null,null,null,null,null,null,null,null,null,null,null,null,null,null,null,null,null,null,null,null,null,null,null,null,null,"6-19"]
["50-23","Information Technology","Programming","Webmaster","Responsible for maintaining and modifying the organization's Internet/Intranet efforts including content, graphical and multimedia displays, and communications.   Supervises development efforts including content, design and production.  Responsible for website maintenance, updating existing information and creating new content.  Maps the flow of the website, creates general graphics, provides specifications to the Web Author, Web Developer, and outside vendors for the development of databases, interactive applets, and custom graphics.   Acts as a liaison between the site and users.   Has considerable knowledge of multiple operating systems (e.g., UNIX, Sun SOLARIS, Mac).   Requires a Bachelor’s Degree and 3+ years experience in web design and development, including development of complex HTML documents with embedded graphics, forms, audio, video and script objects, or equivalent.",null,null,null,null,null,null,null,null,null,null,null,null,null,null,null,null,null,null,null,null,null,null,null,null,null,null,null,null,null,null,null,null,null,null,null,null,null,null,null,null,null,null,null,null,null,null,null,null,null,null,null,null,null,null,null,null,null,null,null,null,null,null,null,null,null,null,null,null,null,null,null,null,null,null,null,null,null,null,null,null,null,null,null,null,null,null,null,null,null,null,null,null,null,null,null,null,null,null,null,null,null,"6-09"]
["50-24","Information Technology","Support Services","Computer Technician I","Entry level of computer technician work.  Work assignments are varied, but limited in scope and complexity.  Supervision is readily available and work is usually reviewed by more experienced staff.  Incumbents assist in installing, maintaining, troubleshooting and upgrading computer hardware, software, personal computer networks, and peripheral equipment.  May replace internal boards or components, install drivers, customize system settings, attach peripheral equipment and troubleshoot user problems.  Under general supervision, troubleshoots and modifies PC software applications.  Requires completion of specialized classes and 1 year or less of previous experience, or equivalent.  ",null,null,null,null,null,null,null,null,null,null,null,null,null,null,null,null,null,null,null,null,null,null,null,null,null,null,null,null,null,null,null,null,null,null,null,null,null,null,null,null,null,null,null,null,null,null,null,null,null,null,null,null,null,null,null,null,null,null,null,null,null,null,null,null,null,null,null,null,null,null,null,null,null,null,null,null,null,null,null,null,null,null,null,null,null,null,null,null,null,null,null,null,null,null,null,null,null,null,null,null,null,"6-151"]
["50-25","Information Technology","Support Services","Computer Technician II","Experienced level of computer technician work.  Work assignments are varied and of greater scope and complexity, often involving testing and troubleshooting to identify problems.  Under limited supervision, incumbents analyze, troubleshoot, repair, and maintain the computer system, terminal network, and peripheral equipment relating to computer and network hardware and software.  Performs routine preventative maintenance on all computer system equipment.   Utilizes diagnostic programs and electronic test equipment.   Performs analysis and administrative tasks in the planning, design and installation of new and existing personal computer-based applications.  Troubleshoots and modifies PC software applications.  May work on complex applications and be involved in making recommendations or decisions to meet overall departmental or organizational needs.  Requires a two-year degree and 1-3 years of experience, or equivalent.",null,null,null,null,null,null,null,null,null,null,null,null,null,null,null,null,null,null,null,null,null,null,null,null,null,null,null,null,null,null,null,null,null,null,null,null,null,null,null,null,null,null,null,null,null,null,null,null,null,null,null,null,null,null,null,null,null,null,null,null,null,null,null,null,null,null,null,null,null,null,null,null,null,null,null,null,null,null,null,null,null,null,null,null,null,null,null,null,null,null,null,null,null,null,null,null,null,null,null,null,null,"6-152"]
["50-26","Information Technology","Support Services","Computer Technician III","Advanced level of computer technician work.  Incumbent analyzes, troubleshoots, repairs, and maintains the computer system, terminal network, and peripheral equipment.  Performs more advanced maintenance on all computer system equipment.  Utilizes diagnostic programs and electronic test equipment.  Will isolate, resolve and follow-up with end-users to resolve technical problems of a high level of complexity.  Performs analysis and administrative tasks in the planning, design and installation of new and existing personal computer-based applications.  Troubleshoots and modifies PC software applications.  May work on complex applications and be involved in making recommendations or decisions to meet overall departmental or organizational needs.  This level may provide training and work direction to less experienced technicians.  Requires a two-year degree and 3 or more years of experience, or equivalent.",null,null,null,null,null,null,null,null,null,null,null,null,null,null,null,null,null,null,null,null,null,null,null,null,null,null,null,null,null,null,null,null,null,null,null,null,null,null,null,null,null,null,null,null,null,null,null,null,null,null,null,null,null,null,null,null,null,null,null,null,null,null,null,null,null,null,null,null,null,null,null,null,null,null,null,null,null,null,null,null,null,null,null,null,null,null,null,null,null,null,null,null,null,null,null,null,null,null,null,null,null,"6-153"]
["50-27","Information Technology","Support Services","TECH SUPPORT SPECIALIST I (Help Desk)","Entry-level help desk job, typically requiring reading, communication and math skills commensurate with a high school diploma or GED and 1-2 years of training and experience in computer software and hardware applications.  Assists users in resolving problems through discussion and diagnosis.  Takes the necessary steps to remedy the problem and refers more complex problems to a higher level.  May dispatch Computer Technicians.",null,null,null,null,null,null,null,null,null,null,null,null,null,null,null,null,null,null,null,null,null,null,null,null,null,null,null,null,null,null,null,null,null,null,null,null,null,null,null,null,null,null,null,null,null,null,null,null,null,null,null,null,null,null,null,null,null,null,null,null,null,null,null,null,null,null,null,null,null,null,null,null,null,null,null,null,null,null,null,null,null,null,null,null,null,null,null,null,null,null,null,null,null,null,null,null,null,null,null,null,null,"6-16"]
["50-29","Information Technology","Support Services","TECH SUPPORT SPECIALIST II (Help Desk)","Under the supervision of Technical Operations Supervisor; this position provides basic computer operational and software assistance to users, resolves operational problems, performs preventative maintenance, and is responsible for installing, configuring, troubleshooting, and maintaining desktop, laptop and mobile systems, as well as troubleshooting network connectivity, application security and other issues. The job requires an Associate’s Degree in Computer Information Systems, Computer Science or related area; or successful completion of computer hardware and software training, and a working knowledge of networking and applications software; or any equivalent combination of experience and training.",null,null,null,null,null,null,null,null,null,null,null,null,null,null,null,null,null,null,null,null,null,null,null,null,null,null,null,null,null,null,null,null,null,null,null,null,null,null,null,null,null,null,null,null,null,null,null,null,null,null,null,null,null,null,null,null,null,null,null,null,null,null,null,null,null,null,null,null,null,null,null,null,null,null,null,null,null,null,null,null,null,null,null,null,null,null,null,null,null,null,null,null,null,null,null,null,null,null,null,null,null,"6-161"]
["50-31","Information Technology","Support Services","Technical Support Specialist III (Not Help-Desk)","Performs any combination of following duties to provide technical support to workers or customers in information processing departments.  Assigns and coordinates work projects, such as converting to new hardware or software.  Evaluates work load and capacity of computer system to determine feasibility of expanding or enhancing computer operations.  Makes recommendations for improvements in system.  Reviews completed projects or computer programs to ensure that goals are met and that programs are compatible with other programs already in use.  Trains workers in use of new software or hardware.",null,null,null,null,null,null,null,null,null,null,null,null,null,null,null,null,null,null,null,null,null,null,null,null,null,null,null,null,null,null,null,null,null,null,null,null,null,null,null,null,null,null,null,null,null,null,null,null,null,null,null,null,null,null,null,null,null,null,null,null,null,null,null,null,null,null,null,null,null,null,null,null,null,null,null,null,null,null,null,null,null,null,null,null,null,null,null,null,null,null,null,null,null,null,null,null,null,null,null,null,null,"6-15"]
["63-52","Legal","Attorney's Office","Paralegal","Paraprofessional level legal support position requiring a two-year college degree and 3+ years of work related experience, or equivalent.  Researches and analyzes law sources such as statutes, recorded judicial decisions, and legal articles.  Investigates facts to determine causes of action and to prepare case materials and legal documents for review, approval, and use by an attorney.  Schedules and may assist with depositions.  May specialize in an area of legal practice.  Please include incumbents who may be classified as exempt.",null,null,null,null,null,null,null,null,null,null,null,null,null,null,null,null,null,null,null,null,null,null,null,null,null,null,null,null,null,null,null,null,null,null,null,null,null,null,null,null,null,null,null,null,null,null,null,null,null,null,null,null,null,null,null,null,null,null,null,null,null,null,null,null,null,null,null,null,null,null,null,null,null,null,null,null,null,null,null,null,null,null,null,null,null,null,null,null,null,null,null,null,null,null,null,null,null,null,null,null,null,"4-28"]
["63-53","Legal","Attorney's Office","LEGAL ASSISTANT (Legal Secretary)","Under the supervision of an Office Administrator, this position performs legal assistance in support of a legal office. This position assists attorneys by compiling facts, gathering information, and organizing evidence or documents for cases. Duties include preparing initial drafts of legal documents according to court rules and statutes; maintaining appointment calendars; ensuring that proper documents are placed in files and files are ready for the attorney's review; conducting research to support legal proceedings regarding specific topics, statutes, case law, court rules, and legislative history under the supervision of an attorney.  Two years of secretarial or similar office assistance work which involved performing legal assistant duties, and responsibilities under the supervision of a licensed attorney; or any equivalent combination of experience and training. ",null,null,null,null,null,null,null,null,null,null,null,null,null,null,null,null,null,null,null,null,null,null,null,null,null,null,null,null,null,null,null,null,null,null,null,null,null,null,null,null,null,null,null,null,null,null,null,null,null,null,null,null,null,null,null,null,null,null,null,null,null,null,null,null,null,null,null,null,null,null,null,null,null,null,null,null,null,null,null,null,null,null,null,null,null,null,null,null,null,null,null,null,null,null,null,null,null,null,null,null,null,"4-27"]
["63-54","Legal","Attorney's Office","Attorney (single client)","Reviews and develops policy and advises, on contracts and issues involving leases, licenses, purchases, sales, real estate, employment, insurance and other matters.  Gives legal advice with respect to corporate administration.  Participates in legal action of a significant nature.",null,null,null,null,null,null,null,null,null,null,null,null,null,null,null,null,null,null,null,null,null,null,null,null,null,null,null,null,null,null,null,null,null,null,null,null,null,null,null,null,null,null,null,null,null,null,null,null,null,null,null,null,null,null,null,null,null,null,null,null,null,null,null,null,null,null,null,null,null,null,null,null,null,null,null,null,null,null,null,null,null,null,null,null,null,null,null,null,null,null,null,null,null,null,null,null,null,null,null,null,null,"4-31"]
["63-56","Legal","Attorney's Office","Attorney (multiple clients)","Experienced level of professional attorney, requiring a law degree, and admission to the bar.  Under direction of Corporate Counsel, carries our legal activities of the organization, including legal support of operations, drafting and reviewing agreements, researching and drafting policies, advising management, providing legal representation in civil activities and preparation for litigation.  Incumbents at this level participate in negotiations on behalf of the organization and may represent the organization in litigation.  Works independently on assigned projects and will provide work direction to staff.",null,null,null,null,null,null,null,null,null,null,null,null,null,null,null,null,null,null,null,null,null,null,null,null,null,null,null,null,null,null,null,null,null,null,null,null,null,null,null,null,null,null,null,null,null,null,null,null,null,null,null,null,null,null,null,null,null,null,null,null,null,null,null,null,null,null,null,null,null,null,null,null,null,null,null,null,null,null,null,null,null,null,null,null,null,null,null,null,null,null,null,null,null,null,null,null,null,null,null,null,null,"4-30"]
["10-00","Manufacturing","Assembly","Heavy Assembler I  (Non-complex)","Highly repetitive, simple short-cycle mechanical or electro-mechanical assembly following prescribed routine or where method of assembly is obvious.  No diploma or experience required.  All training is on-the-job.  Requires the ability to follow demonstrated steps.  Requires simple adjusting with liberal tolerances and no fitting.  Work involves frequent handling of moderate to heavy components and may include walking or standing most of the time.",null,null,null,null,null,null,null,null,null,null,null,null,null,null,null,null,null,null,null,null,null,null,null,null,null,null,null,null,null,null,null,null,null,null,null,null,null,null,null,null,null,null,null,null,null,null,null,null,null,null,null,null,null,null,null,null,null,null,null,null,null,null,null,null,null,null,null,null,null,null,null,null,null,null,null,null,null,null,null,null,null,null,null,null,null,null,null,null,null,null,null,null,null,null,null,null,null,null,null,null,null,"7-13"]
["10-01","Manufacturing","Assembly","Heavy Assembler II (Moderate Complexity)","Diversified mechanical or electro-mechanical assembly or sub-assembly of units that are moderately complex, requiring adjusting, fitting and aligning to ordinary tolerances.  Requires print reading and basic math skills as well as the ability to use common hand tools and operate assembly machines.  Typically requires a high school education and up to two years of related training or experience.  Works from drawings or specifications.  May inspect and test completed units.  May rotate stations in a work cell.  Work involves frequent handling of moderate to heavy components and may include walking or standing most of the time.",null,null,null,null,null,null,null,null,null,null,null,null,null,null,null,null,null,null,null,null,null,null,null,null,null,null,null,null,null,null,null,null,null,null,null,null,null,null,null,null,null,null,null,null,null,null,null,null,null,null,null,null,null,null,null,null,null,null,null,null,null,null,null,null,null,null,null,null,null,null,null,null,null,null,null,null,null,null,null,null,null,null,null,null,null,null,null,null,null,null,null,null,null,null,null,null,null,null,null,null,null,"7-131"]
["10-02","Manufacturing","Assembly","Heavy Assembler III (High Complexity)","Complete assembly of intricate units composed of a large number of component parts, or of large and complicated units, requiring print reading and basic math skills as well as the ability to use common hand tools and operate assembly machines.  Typically requires a high school education or GED and two or more years of experience, or equivalent.   Under limited supervision performs highly diversified work involving considerable adjusting, fitting and aligning to very close tolerances and strict inspection standards.  Works from drawings or specifications.  May plan assembly procedures and direct the work of others.  May test or inspect assembled units.  May rotate stations in a work cell and/or is expected to have mastery of all steps in a process.  Work involves frequent handling of moderate to heavy components and may include walking or standing most of the time.",null,null,null,null,null,null,null,null,null,null,null,null,null,null,null,null,null,null,null,null,null,null,null,null,null,null,null,null,null,null,null,null,null,null,null,null,null,null,null,null,null,null,null,null,null,null,null,null,null,null,null,null,null,null,null,null,null,null,null,null,null,null,null,null,null,null,null,null,null,null,null,null,null,null,null,null,null,null,null,null,null,null,null,null,null,null,null,null,null,null,null,null,null,null,null,null,null,null,null,null,null,"7-132"]
["10-03","Manufacturing","Assembly","Light Assembler","Highly repetitive, simple short-cycle mechanical or electro-mechanical assembly following prescribed routine or where method of assembly is obvious.  Requires the ability to follow demonstrated steps.  Requires simple adjusting with liberal tolerances and no fitting.  Work is typically performed at a bench and may include walking or standing some of the time.  Work may be in a clean room environment.",null,null,null,null,null,null,null,null,null,null,null,null,null,null,null,null,null,null,null,null,null,null,null,null,null,null,null,null,null,null,null,null,null,null,null,null,null,null,null,null,null,null,null,null,null,null,null,null,null,null,null,null,null,null,null,null,null,null,null,null,null,null,null,null,null,null,null,null,null,null,null,null,null,null,null,null,null,null,null,null,null,null,null,null,null,null,null,null,null,null,null,null,null,null,null,null,null,null,null,null,null,"7-14"]
["10-04","Manufacturing","Labor","General Heavy Production Labor","General production labor job, requiring the ability to follow demonstrated directions, or equivalent.  No diploma is required.  All training is typically given on-the-job.  Incumbents perform a variety of production duties, such as tending machines, handling product, visual sorting or inspection, packing, or performing other operations that can be learned on-the-job in a short time.  Incumbents may use pallet jacks to move material in the work area.  Work requires frequent moving, frequent exertion of moderate to heavy physical effort or frequent standing.",null,null,null,null,null,null,null,null,null,null,null,null,null,null,null,null,null,null,null,null,null,null,null,null,null,null,null,null,null,null,null,null,null,null,null,null,null,null,null,null,null,null,null,null,null,null,null,null,null,null,null,null,null,null,null,null,null,null,null,null,null,null,null,null,null,null,null,null,null,null,null,null,null,null,null,null,null,null,null,null,null,null,null,null,null,null,null,null,null,null,null,null,null,null,null,null,null,null,null,null,null,"7-18"]
["10-05","Manufacturing","Labor","General Light Production Labor","General production labor job, requiring the ability to follow demonstrated directions, or equivalent.  No diploma is required.  All training is typically given on-the-job.  Incumbents perform a variety of production duties, such as tending machines, handling product, visual sorting or inspection, packing, or performing other operations that can be learned on-the-job in a short time.  Work may require frequent moving or frequent exertion of light physical effort.  Most of the time work can be performed while seated at a workbench, production line or next to a machine.",null,null,null,null,null,null,null,null,null,null,null,null,null,null,null,null,null,null,null,null,null,null,null,null,null,null,null,null,null,null,null,null,null,null,null,null,null,null,null,null,null,null,null,null,null,null,null,null,null,null,null,null,null,null,null,null,null,null,null,null,null,null,null,null,null,null,null,null,null,null,null,null,null,null,null,null,null,null,null,null,null,null,null,null,null,null,null,null,null,null,null,null,null,null,null,null,null,null,null,null,null,"7-19"]
["10-06","Manufacturing","Machining","Machine Tool Operator","Requiring the ability to follow written instructions and read blueprint specifications.  Under close supervision, operates alternately more than one type of production machine tool such as grinders, milling machines, drill presses, lathes, etc., on routine and repetitive operations.  Set-ups are usually made by others.  Speeds, feeds and tooling are prescribed.  Machines may have numeric controls.  Does not include employees engaged primarily to operate one classification of machine tool surveyed separately.",null,null,null,null,null,null,null,null,null,null,null,null,null,null,null,null,null,null,null,null,null,null,null,null,null,null,null,null,null,null,null,null,null,null,null,null,null,null,null,null,null,null,null,null,null,null,null,null,null,null,null,null,null,null,null,null,null,null,null,null,null,null,null,null,null,null,null,null,null,null,null,null,null,null,null,null,null,null,null,null,null,null,null,null,null,null,null,null,null,null,null,null,null,null,null,null,null,null,null,null,null,"7-21"]
["10-07","Manufacturing","Machining","Machinist I","First level of skilled machinist work requiring a technical degree in machining and 0-2 years of work experience, or equivalent.  Operates alternately more than one type of machine tool such as grinders, millers, drill presses, lathes, etc., on machining operations of moderate complexity.  Projects have some diversity and may be in support of production operations or job shop machining.  This is not a production machine tool operator.",null,null,null,null,null,null,null,null,null,null,null,null,null,null,null,null,null,null,null,null,null,null,null,null,null,null,null,null,null,null,null,null,null,null,null,null,null,null,null,null,null,null,null,null,null,null,null,null,null,null,null,null,null,null,null,null,null,null,null,null,null,null,null,null,null,null,null,null,null,null,null,null,null,null,null,null,null,null,null,null,null,null,null,null,null,null,null,null,null,null,null,null,null,null,null,null,null,null,null,null,null,"7-22"]
["10-08","Manufacturing","Machining","Machinist II","Experienced level of skilled machinist work requiring a technical degree and 2-5 years of experience, or equivalent.  Under limited supervision, performs complex machining operations in support of production operations or job shop machining.  Operates various types of machine tools and performs progressive machining operations for metal parts, tools and machines with close tolerances or high finish requirements.  Fits and assembles where necessary, using machinists' hand tools and measuring instruments.  Has familiarity with working properties of various materials.  May program CNC machines in the course of making parts.  This is not a production machine tool operator.",null,null,null,null,null,null,null,null,null,null,null,null,null,null,null,null,null,null,null,null,null,null,null,null,null,null,null,null,null,null,null,null,null,null,null,null,null,null,null,null,null,null,null,null,null,null,null,null,null,null,null,null,null,null,null,null,null,null,null,null,null,null,null,null,null,null,null,null,null,null,null,null,null,null,null,null,null,null,null,null,null,null,null,null,null,null,null,null,null,null,null,null,null,null,null,null,null,null,null,null,null,"7-221"]
["10-09","Manufacturing","Machining","Maintenance Machinist","Under limited supervision and with minimal technical guidance, produces replacement parts and new parts necessary to maintain and repair a variety of machinery and mechanical equipment.  Lays out work and sets up and operates machine tools to perform machining operations on replacement parts.  Examines machines and equipment to diagnose troubles, dismantles machines, replaces defective parts and reassembles machines.  Overhauls machines, including scraping of ways and bearings and fitting parts.  Uses a variety of hand tools and precision measuring instruments.",null,null,null,null,null,null,null,null,null,null,null,null,null,null,null,null,null,null,null,null,null,null,null,null,null,null,null,null,null,null,null,null,null,null,null,null,null,null,null,null,null,null,null,null,null,null,null,null,null,null,null,null,null,null,null,null,null,null,null,null,null,null,null,null,null,null,null,null,null,null,null,null,null,null,null,null,null,null,null,null,null,null,null,null,null,null,null,null,null,null,null,null,null,null,null,null,null,null,null,null,null,"7-09"]
["10-10","Manufacturing","Machining","Process Machine Operator","Highly repetitive machine or process operation following prescribed routine or where the method of operation is obvious.  Requires the ability to follow demonstrated steps and perform simple adjusting to produce to a general specification.  Work typically involves operation of machinery or equipment that is unique to the application and does not require formal training in a trade.  All instructions typically given on the job.  May inspect and test completed product.  Work may involve frequent handling of moderate to heavy materials and may include walking or standing most of the time.  Include helpers if no previous experience is required.  Report machine tool or plastics machine operation elsewhere.",null,null,null,null,null,null,null,null,null,null,null,null,null,null,null,null,null,null,null,null,null,null,null,null,null,null,null,null,null,null,null,null,null,null,null,null,null,null,null,null,null,null,null,null,null,null,null,null,null,null,null,null,null,null,null,null,null,null,null,null,null,null,null,null,null,null,null,null,null,null,null,null,null,null,null,null,null,null,null,null,null,null,null,null,null,null,null,null,null,null,null,null,null,null,null,null,null,null,null,null,null,"7-17"]
["10-11","Manufacturing","Management","Manufacturing Manager / Plant Manager","At the Plant level, responsible for machining, fabricating, welding, assembling or for the processing operations required in the production of the finished product, goods or services of the organizational unit.  May also be responsible for plant personnel, quality, production and inventory control, etc.",null,null,null,null,null,null,null,null,null,null,null,null,null,null,null,null,null,null,null,null,null,null,null,null,null,null,null,null,null,null,null,null,null,null,null,null,null,null,null,null,null,null,null,null,null,null,null,null,null,null,null,null,null,null,null,null,null,null,null,null,null,null,null,null,null,null,null,null,null,null,null,null,null,null,null,null,null,null,null,null,null,null,null,null,null,null,null,null,null,null,null,null,null,null,null,null,null,null,null,null,null,"7-25"]
["10-12","Manufacturing","Management","Production Control Manager","Manager in charge of production control in a process or manufacturing organization.   Responsible for managing professional and technical scheduling staff.  Requires an understanding of client/production priorities and coordination with account managers, inventory managers and/or production managers.",null,null,null,null,null,null,null,null,null,null,null,null,null,null,null,null,null,null,null,null,null,null,null,null,null,null,null,null,null,null,null,null,null,null,null,null,null,null,null,null,null,null,null,null,null,null,null,null,null,null,null,null,null,null,null,null,null,null,null,null,null,null,null,null,null,null,null,null,null,null,null,null,null,null,null,null,null,null,null,null,null,null,null,null,null,null,null,null,null,null,null,null,null,null,null,null,null,null,null,null,null,"7-28"]
["10-13","Manufacturing","Paint","Production Painter","Production brush or spray operations, involving liquid or powder painting of manufactured products requiring standard finishes.  Requires the ability to follow demonstrated instructions and no previous experience.  Requires physical dexterity and hand-eye coordination.  Mixes paint products as required.  Prepares surfaces for painting.  Cleans and maintains equipment.  Inspects completed work and corrects defects.  May include hand or conveyer dipping.",null,null,null,null,null,null,null,null,null,null,null,null,null,null,null,null,null,null,null,null,null,null,null,null,null,null,null,null,null,null,null,null,null,null,null,null,null,null,null,null,null,null,null,null,null,null,null,null,null,null,null,null,null,null,null,null,null,null,null,null,null,null,null,null,null,null,null,null,null,null,null,null,null,null,null,null,null,null,null,null,null,null,null,null,null,null,null,null,null,null,null,null,null,null,null,null,null,null,null,null,null,"7-15"]
["10-14","Manufacturing","Quality Control","Quality Inspector / Auditor","With readily available supervision, performs repetitive inspection following standardized methods and procedures. Visually inspects or checks parts using a variety of precision measuring instruments or against fixed samples.   Checks dimensions and finishes against blueprint or work order specifications.  At this level, workers may perform finishing operations to correct rejected parts or assist with other production activities.",null,null,null,null,null,null,null,null,null,null,null,null,null,null,null,null,null,null,null,null,null,null,null,null,null,null,null,null,null,null,null,null,null,null,null,null,null,null,null,null,null,null,null,null,null,null,null,null,null,null,null,null,null,null,null,null,null,null,null,null,null,null,null,null,null,null,null,null,null,null,null,null,null,null,null,null,null,null,null,null,null,null,null,null,null,null,null,null,null,null,null,null,null,null,null,null,null,null,null,null,null,"7-23"]
["10-15","Manufacturing","Scheduling","Production Planner / Scheduler","In small companies the individual may be the sole individual performing scheduling duties.  In medium and larger companies, the incumbent may work on a segment of the scheduling function, with responsibility for assigned department(s) or product lines.  Incumbents communicate frequently with line management and customer service staff regarding the status of orders or projects.",null,null,null,null,null,null,null,null,null,null,null,null,null,null,null,null,null,null,null,null,null,null,null,null,null,null,null,null,null,null,null,null,null,null,null,null,null,null,null,null,null,null,null,null,null,null,null,null,null,null,null,null,null,null,null,null,null,null,null,null,null,null,null,null,null,null,null,null,null,null,null,null,null,null,null,null,null,null,null,null,null,null,null,null,null,null,null,null,null,null,null,null,null,null,null,null,null,null,null,null,null,"7-24"]
["10-16","Manufacturing","Welding","Welder I","First level of production welding.  The job typically requires technical training in welding and experience of less that 1 year, or equivalent.  With readily available supervision and technical guidance, positions material to be welded, using standard fixtures in most cases, and applies hand-eye coordination to achieve the desired weld.  Materials welded may include steel, stainless, aluminum or various alloys and the methods may include gas welding, shielded metal arc, gas-tungsten arc, gas-metal arc or submerged arc, but the variety of applications tends to be limited to standard products and materials where plans are specified, welding positions are routine and work may be characterized as longer production runs.  Regulates heat and feed and may select electrodes, tips and rods.  Works from specifications, drawings, prints and welding symbols.",null,null,null,null,null,null,null,null,null,null,null,null,null,null,null,null,null,null,null,null,null,null,null,null,null,null,null,null,null,null,null,null,null,null,null,null,null,null,null,null,null,null,null,null,null,null,null,null,null,null,null,null,null,null,null,null,null,null,null,null,null,null,null,null,null,null,null,null,null,null,null,null,null,null,null,null,null,null,null,null,null,null,null,null,null,null,null,null,null,null,null,null,null,null,null,null,null,null,null,null,null,"7-12"]
["10-17","Manufacturing","Welding","Welder II","Advanced level of production welding.  The job typically requires technical training in welding and 3+ years of related experience, or equivalent.   May require special certification.  Under limited supervision and minimal technical guidance, positions material to be welded and applies hand-eye coordination to achieve the desired weld.  Materials welded may include steel, stainless, aluminum, or other alloys, and the methods may include gas welding, shielded metal arc, gas-tungsten arc, gas-metal arc or submerged arc.  All-position welding may be required.  The variety of applications requires an ability to plan, layout and perform diversified work, which may be characterized as short run production or job shop (custom work).  Includes high pressure and code welding or other work involving critical safety and load requirements or welding where appearance is critical.  Regulates heat and feed and may select electrodes, tips and rods.  Works from more complex specifications, drawings, prints and welding symbols.  May provide technical direction to others.",null,null,null,null,null,null,null,null,null,null,null,null,null,null,null,null,null,null,null,null,null,null,null,null,null,null,null,null,null,null,null,null,null,null,null,null,null,null,null,null,null,null,null,null,null,null,null,null,null,null,null,null,null,null,null,null,null,null,null,null,null,null,null,null,null,null,null,null,null,null,null,null,null,null,null,null,null,null,null,null,null,null,null,null,null,null,null,null,null,null,null,null,null,null,null,null,null,null,null,null,null,"7-121"]
["11-50","Materials & Distribution","Printing","Printing Machine Operator","Sets up and operates machine to print designs on various materials.  Scans material leaving machine for defects, and correct problem causing defects.  Coordinates printing activities to allow for most efficient use of machines.",null,null,null,null,null,null,null,null,null,null,null,null,null,null,null,null,null,null,null,null,null,null,null,null,null,null,null,null,null,null,null,null,null,null,null,null,null,null,null,null,null,null,null,null,null,null,null,null,null,null,null,null,null,null,null,null,null,null,null,null,null,null,null,null,null,null,null,null,null,null,null,null,null,null,null,null,null,null,null,null,null,null,null,null,null,null,null,null,null,null,null,null,null,null,null,null,null,null,null,null,null,"7-08"]
["11-00","Materials & Distribution","Delivery","Driver I","Drives a motor vehicle (automobile, utility van, pickup, light truck, etc.) up to 26,000 pounds gross vehicle weight (GVW) on the public highways to transport non-hazardous materials or equipment.  Requires a valid driver's license, but not a commercial driver's license (CDL).  Typically loads or unloads the vehicle.  Convert pay into an average hourly rate if pay is based on mileage or has a mileage component.  May include the set up of delivered merchandise. NOTE: Does not include bus drivers; enter Bus Drivers under 81-24.",null,null,null,null,null,null,null,null,null,null,null,null,null,null,null,null,null,null,null,null,null,null,null,null,null,null,null,null,null,null,null,null,null,null,null,null,null,null,null,null,null,null,null,null,null,null,null,null,null,null,null,null,null,null,null,null,null,null,null,null,null,null,null,null,null,null,null,null,null,null,null,null,null,null,null,null,null,null,null,null,null,null,null,null,null,null,null,null,null,null,null,null,null,null,null,null,null,null,null,null,null,"8-13"]
["11-01","Materials & Distribution","Delivery","Driver II","Drives a motor truck over 26,000 pounds gross vehicle weight (GVW), or a bus, school bus or a smaller vehicle (if transporting hazardous materials or more than 200 gallons of liquid fertilizer or petroleum) on streets or highways to transport materials, merchandise, equipment, or people.  Requires a valid commercial driver's license (CDL).  May load or unload truck and is frequently assisted by a helper.  Does not include driver salespersons or over-the-road drivers.  Convert pay into an average hourly rate if pay is based on mileage or has a mileage component. ",null,null,null,null,null,null,null,null,null,null,null,null,null,null,null,null,null,null,null,null,null,null,null,null,null,null,null,null,null,null,null,null,null,null,null,null,null,null,null,null,null,null,null,null,null,null,null,null,null,null,null,null,null,null,null,null,null,null,null,null,null,null,null,null,null,null,null,null,null,null,null,null,null,null,null,null,null,null,null,null,null,null,null,null,null,null,null,null,null,null,null,null,null,null,null,null,null,null,null,null,null,"8-14"]
["11-02","Materials & Distribution","Delivery","Driver III (Local)","Drives a tractor with one or more trailers (18-wheel) on public streets or highways to transport materials or equipment within a city or state (local).  Requires a valid class A commercial driver's license (CDL).  Drivers may or may not participate in loading, but are responsible for securing the load using approved devices and methods.  Convert pay into an average hourly rate if pay is based on mileage or has a mileage component.  For bus driver use job code 81-24 for automobile/van passenger pickup/delivery use job code  11-00",null,null,null,null,null,null,null,null,null,null,null,null,null,null,null,null,null,null,null,null,null,null,null,null,null,null,null,null,null,null,null,null,null,null,null,null,null,null,null,null,null,null,null,null,null,null,null,null,null,null,null,null,null,null,null,null,null,null,null,null,null,null,null,null,null,null,null,null,null,null,null,null,null,null,null,null,null,null,null,null,null,null,null,null,null,null,null,null,null,null,null,null,null,null,null,null,null,null,null,null,null,"8-15"]
["11-03","Materials & Distribution","Delivery","Driver IV (Over the Road)","Drives a tractor with one or more trailers (18-wheel) on public streets or highways to transport materials or equipment between states (over-the-road).  Requires a valid class A commercial driver's license (CDL) and passage of Federal Motor Carrier Safety Regulations exam and Department of Transportation (DOT) physical.  Drivers may or may not participate in loading, but are responsible for securing the load using approved devices and methods.  Convert pay into an average hourly rate if pay is based on mileage or has a mileage component. For bus driver use job code 81-24 for automobile/van passenger pickup/delivery use job code  11-00",null,null,null,null,null,null,null,null,null,null,null,null,null,null,null,null,null,null,null,null,null,null,null,null,null,null,null,null,null,null,null,null,null,null,null,null,null,null,null,null,null,null,null,null,null,null,null,null,null,null,null,null,null,null,null,null,null,null,null,null,null,null,null,null,null,null,null,null,null,null,null,null,null,null,null,null,null,null,null,null,null,null,null,null,null,null,null,null,null,null,null,null,null,null,null,null,null,null,null,null,null,"8-151"]
["11-04","Materials & Distribution","Inventory","Inventory Control Clerk / Cycle Counter","Duties include counting inventory at various locations within the organization and matching results with inventory records.  Incumbents may attempt to resolve differences by locating product or isolating errors in records.  Incumbents use computer terminals or PC's to record data.  Incumbents follow established procedures and have readily available supervision.",null,null,null,null,null,null,null,null,null,null,null,null,null,null,null,null,null,null,null,null,null,null,null,null,null,null,null,null,null,null,null,null,null,null,null,null,null,null,null,null,null,null,null,null,null,null,null,null,null,null,null,null,null,null,null,null,null,null,null,null,null,null,null,null,null,null,null,null,null,null,null,null,null,null,null,null,null,null,null,null,null,null,null,null,null,null,null,null,null,null,null,null,null,null,null,null,null,null,null,null,null,"8-05"]
["11-05","Materials & Distribution","Inventory","Inventory Control Manager","Manager in charge of inventory control.  Responsible for managing inventory control staff.  Duties include record keeping, inventory verification and establishing appropriate inventory levels, with consideration for demand, re-supply or delivery lead time, storage capacities, shelf life, cost of stock and other factors.",null,null,null,null,null,null,null,null,null,null,null,null,null,null,null,null,null,null,null,null,null,null,null,null,null,null,null,null,null,null,null,null,null,null,null,null,null,null,null,null,null,null,null,null,null,null,null,null,null,null,null,null,null,null,null,null,null,null,null,null,null,null,null,null,null,null,null,null,null,null,null,null,null,null,null,null,null,null,null,null,null,null,null,null,null,null,null,null,null,null,null,null,null,null,null,null,null,null,null,null,null,"8-22"]
["11-06","Materials & Distribution","Management","Materials Director","Director in charge of materials used in manufacturing or operations.  Responsible for purchasing, inventory management, and warehousing.  Additional areas of responsibility may include quality, ISO certification, production scheduling, outsourcing, traffic and warranty service.  Duties include directing planning and process development, vendor selection oversight and overall materials performance.  Establishes functional policies and makes tactical decisions within overall strategic direction, with top management guidance.",null,null,null,null,null,null,null,null,null,null,null,null,null,null,null,null,null,null,null,null,null,null,null,null,null,null,null,null,null,null,null,null,null,null,null,null,null,null,null,null,null,null,null,null,null,null,null,null,null,null,null,null,null,null,null,null,null,null,null,null,null,null,null,null,null,null,null,null,null,null,null,null,null,null,null,null,null,null,null,null,null,null,null,null,null,null,null,null,null,null,null,null,null,null,null,null,null,null,null,null,null,"8-24"]
["11-07","Materials & Distribution","Management","Parts Manager","Manages retail or wholesale automotive/equipment parts establishment or department of a repair shop or service station.  Requisitions new stock, verifies cash receipts and keeps sales records.  Hires, trains, and discharges workers.  Confirms credit references of customers by mail or phone.  May sell parts.",null,null,null,null,null,null,null,null,null,null,null,null,null,null,null,null,null,null,null,null,null,null,null,null,null,null,null,null,null,null,null,null,null,null,null,null,null,null,null,null,null,null,null,null,null,null,null,null,null,null,null,null,null,null,null,null,null,null,null,null,null,null,null,null,null,null,null,null,null,null,null,null,null,null,null,null,null,null,null,null,null,null,null,null,null,null,null,null,null,null,null,null,null,null,null,null,null,null,null,null,null,"8-19"]
["11-08","Materials & Distribution","Management","Traffic Manager","Manager of traffic activities of the organization.  Responsible for determining the most advantageous and economical methods of shipment for company products.  Duties include negotiating contracts with vendors, monitoring vendor performance and resolving issues with lost or damaged shipments.  Other duties include maintaining records of shipments.  Supervises traffic staff and manages the department budget.",null,null,null,null,null,null,null,null,null,null,null,null,null,null,null,null,null,null,null,null,null,null,null,null,null,null,null,null,null,null,null,null,null,null,null,null,null,null,null,null,null,null,null,null,null,null,null,null,null,null,null,null,null,null,null,null,null,null,null,null,null,null,null,null,null,null,null,null,null,null,null,null,null,null,null,null,null,null,null,null,null,null,null,null,null,null,null,null,null,null,null,null,null,null,null,null,null,null,null,null,null,"8-18"]
["11-09","Materials & Distribution","Management","Warehouse Manager","Manager responsible for the operation of a department focused on receiving, storage and shipment of materials. Responsible, either directly or through subordinate supervisors, for the direction and coordination of all the warehouse activities of the facility.  Typical subordinate activities are the receiving, storage and shipment of raw materials and/or finished goods and the maintenance of inventory control records.  May be responsible for the movement of materials and goods within the facility.",null,null,null,null,null,null,null,null,null,null,null,null,null,null,null,null,null,null,null,null,null,null,null,null,null,null,null,null,null,null,null,null,null,null,null,null,null,null,null,null,null,null,null,null,null,null,null,null,null,null,null,null,null,null,null,null,null,null,null,null,null,null,null,null,null,null,null,null,null,null,null,null,null,null,null,null,null,null,null,null,null,null,null,null,null,null,null,null,null,null,null,null,null,null,null,null,null,null,null,null,null,"8-23"]
["11-10","Materials & Distribution","Estimating","Estimator","Analyzes blueprints, specifications, proposals and other documentation to prepare time, cost and labor estimates for products, projects, or services.  Reviews data to determine material and labor requirements and prepares itemized lists.  Consults with clients, vendors or other individuals to discuss and formulate estimates and resolve issues.",null,null,null,null,null,null,null,null,null,null,null,null,null,null,null,null,null,null,null,null,null,null,null,null,null,null,null,null,null,null,null,null,null,null,null,null,null,null,null,null,null,null,null,null,null,null,null,null,null,null,null,null,null,null,null,null,null,null,null,null,null,null,null,null,null,null,null,null,null,null,null,null,null,null,null,null,null,null,null,null,null,null,null,null,null,null,null,null,null,null,null,null,null,null,null,null,null,null,null,null,null,"8-16"]
["11-11","Materials & Distribution","Purchasing","Buyer I","First level of professional purchasing activities, typically requiring a bachelor’s degree in business or equivalent and 0-3 years of experience, or equivalent.  Under supervision of a purchasing manager and/or with direction from senior purchasing staff, performs purchasing duties of limited scope and authority.  Prepares bid specifications, receive bids and make purchases of commodities or goods where the financial impact is limited.  May work directly in support of line operations and in collaboration with department managers, engineers or operations staff. .  Materials or equipment purchased are processed, consumed or used in the organization and are not purchased for direct resale.  This is not a merchandising buyer (see 10-18).",null,null,null,null,null,null,null,null,null,null,null,null,null,null,null,null,null,null,null,null,null,null,null,null,null,null,null,null,null,null,null,null,null,null,null,null,null,null,null,null,null,null,null,null,null,null,null,null,null,null,null,null,null,null,null,null,null,null,null,null,null,null,null,null,null,null,null,null,null,null,null,null,null,null,null,null,null,null,null,null,null,null,null,null,null,null,null,null,null,null,null,null,null,null,null,null,null,null,null,null,null,"8-07"]
["11-12","Materials & Distribution","Purchasing","Buyer II","Experienced level of professional purchasing activities, typically requiring a bachelor’s degree in business and 3-5 years of experience, or equivalent.  Incumbents at this level have the authority to purchase at the most favorable price consistent with quality, quantity, delivery and other factors, raw materials, equipment, machinery and/or supplies for the operation of the organization.  Prepares bid specifications, receives bids and makes purchases of commodities or goods where the financial impact is moderate.  May work directly in support of line operations and in collaboration with department managers, engineers or operations staff.  Participates in the selection of vendor sources and has considerable latitude in determining acceptable price.  Materials purchased are processed, consumed or used in the organization and are not purchased for direct resale.  This is not a merchandising buyer (see 10-18).",null,null,null,null,null,null,null,null,null,null,null,null,null,null,null,null,null,null,null,null,null,null,null,null,null,null,null,null,null,null,null,null,null,null,null,null,null,null,null,null,null,null,null,null,null,null,null,null,null,null,null,null,null,null,null,null,null,null,null,null,null,null,null,null,null,null,null,null,null,null,null,null,null,null,null,null,null,null,null,null,null,null,null,null,null,null,null,null,null,null,null,null,null,null,null,null,null,null,null,null,null,"8-071"]
["11-13","Materials & Distribution","Purchasing","Buyer III (Contract Administrator / Purchasing Agent)","Advanced level of professional purchasing activities, typically requiring a bachelor’s degree and 5+ years of experience.  Duties include coordinating activities involved with procuring goods and services, such as raw materials, equipment, tools, parts, supplies, and advertising, for the establishment.  Confers with vendors to obtain product or service information, such as price, availability, and delivery schedule.  May work directly in support of line operations and in collaboration with department managers, engineers or operations staff.  Estimates values according to knowledge of market price and determines method of procurement, such as direct purchase or bid.  Prepares bid specifications, receive bids and make purchases of commodities or goods where the financial impact is great.  Works out remedies for defective or unacceptable goods or services with inspection or quality control personnel, users, vendors and others.  Provides work direction and training to other professional staff and non-exempt buyers.   This is not a merchandising buyer (see 10-18).",null,null,null,null,null,null,null,null,null,null,null,null,null,null,null,null,null,null,null,null,null,null,null,null,null,null,null,null,null,null,null,null,null,null,null,null,null,null,null,null,null,null,null,null,null,null,null,null,null,null,null,null,null,null,null,null,null,null,null,null,null,null,null,null,null,null,null,null,null,null,null,null,null,null,null,null,null,null,null,null,null,null,null,null,null,null,null,null,null,null,null,null,null,null,null,null,null,null,null,null,null,"8-072"]
["11-14","Materials & Distribution","Purchasing","Purchasing Clerk","First level of purchasing, typically requiring math and problem solving skills equivalent to a high school diploma or GED and 1+ years of related training or experience, or equivalent.  Duties include issuing purchase orders to replenish stocks where prices and vendors are mostly pre-established.  Incumbents may receive purchase requests from others or initiate orders based on standard stock levels or order issuing criteria.  Incumbents use computer terminals or PC's to record data.  Incumbents follow established procedures and have readily available supervision.",null,null,null,null,null,null,null,null,null,null,null,null,null,null,null,null,null,null,null,null,null,null,null,null,null,null,null,null,null,null,null,null,null,null,null,null,null,null,null,null,null,null,null,null,null,null,null,null,null,null,null,null,null,null,null,null,null,null,null,null,null,null,null,null,null,null,null,null,null,null,null,null,null,null,null,null,null,null,null,null,null,null,null,null,null,null,null,null,null,null,null,null,null,null,null,null,null,null,null,null,null,"8-069"]
["11-15","Materials & Distribution","Purchasing","Purchasing Manager","Manager responsible for operation of a department focused on procurement of materials and supplies needed for the operation of the organization, typically requiring a bachelor’s degree and 6+ years of experience.  Develops and recommends to senior management purchasing policies for the organization.  Manages the purchase of machinery, equipment, tools, raw material, services and supplies necessary for operation of an organization. May actively participate in vendor selection and purchasing of the most critical goods or services.  Supervises the maintenance of records of purchases, delivery dates, vendors, costs and other resources.  Approves plans to work out remedies for defective or unacceptable goods or services.  Materials purchased are processed, consumed or used in the organization and are not purchased for direct resale.  This is not a manager of merchandising buyers.",null,null,null,null,null,null,null,null,null,null,null,null,null,null,null,null,null,null,null,null,null,null,null,null,null,null,null,null,null,null,null,null,null,null,null,null,null,null,null,null,null,null,null,null,null,null,null,null,null,null,null,null,null,null,null,null,null,null,null,null,null,null,null,null,null,null,null,null,null,null,null,null,null,null,null,null,null,null,null,null,null,null,null,null,null,null,null,null,null,null,null,null,null,null,null,null,null,null,null,null,null,"8-075"]
["11-16","Materials & Distribution","Purchasing","Purchasing Supervisor","First level of purchasing supervision.  The job typically requires an associate’s or bachelor's degree and 5+ years of experience.  Responsible for the supervision of non-exempt employees who perform duties related to the purchase of materials and supplies needed for the operation of the organization.  Typical duties of these employees include placing orders with vendors, revising orders, following up on orders to assure satisfactory delivery, verification of invoices against original orders, and maintenance of purchase order and invoice files.  Report supervisors of professional buyers as Purchasing Manager; this is not a supervisor of merchandising buyers.",null,null,null,null,null,null,null,null,null,null,null,null,null,null,null,null,null,null,null,null,null,null,null,null,null,null,null,null,null,null,null,null,null,null,null,null,null,null,null,null,null,null,null,null,null,null,null,null,null,null,null,null,null,null,null,null,null,null,null,null,null,null,null,null,null,null,null,null,null,null,null,null,null,null,null,null,null,null,null,null,null,null,null,null,null,null,null,null,null,null,null,null,null,null,null,null,null,null,null,null,null,"8-074"]
["11-17","Materials & Distribution","Scheduling","Traffic Dispatcher","Duties include assigning shipments to common carriers based on optimum service and price; scheduling of routes for company drivers and arranging back-hauls.  Incumbents may maintain records of fleet maintenance and schedule service.  Incumbents follow precedent, considering objectives, under limited supervision.",null,null,null,null,null,null,null,null,null,null,null,null,null,null,null,null,null,null,null,null,null,null,null,null,null,null,null,null,null,null,null,null,null,null,null,null,null,null,null,null,null,null,null,null,null,null,null,null,null,null,null,null,null,null,null,null,null,null,null,null,null,null,null,null,null,null,null,null,null,null,null,null,null,null,null,null,null,null,null,null,null,null,null,null,null,null,null,null,null,null,null,null,null,null,null,null,null,null,null,null,null,"8-17"]
["11-18","Materials & Distribution","Shipping / Receiving","Forklift Driver (Power)","General warehouse labor job, requiring the ability to follow basic written and verbal instructions, such as bills of materials and shipping documents, or equivalent.  With readily available supervision, workers operate a gas or electric powered forklift truck to move, stack, load, or unload materials in and about plant, warehouse, staging area, etc.  Work may include using banding and shrink wrap machines.  Workers may use bar code readers, computer terminals or other electronic devices to track product as it is moved.",null,null,null,null,null,null,null,null,null,null,null,null,null,null,null,null,null,null,null,null,null,null,null,null,null,null,null,null,null,null,null,null,null,null,null,null,null,null,null,null,null,null,null,null,null,null,null,null,null,null,null,null,null,null,null,null,null,null,null,null,null,null,null,null,null,null,null,null,null,null,null,null,null,null,null,null,null,null,null,null,null,null,null,null,null,null,null,null,null,null,null,null,null,null,null,null,null,null,null,null,null,"8-06"]
["11-19","Materials & Distribution","Shipping / Receiving","Material Handler and/or Warehouse Laborer","General warehouse labor job, requiring the ability to read shipping documents, or equivalent.  Working under close supervision, incumbents load and unload trucks and move material within the warehouse or production facility.  Work includes pulling orders together and assembling them for shipment to customers or distribution centers.  Work may include using banding and shrink wrap machines.  Work may include gathering or distributing product or materials within the production area.  Some packaging may be required.  Incumbents will typically use pallet jacks and may occasionally use a riding forklift.  Workers may use bar code readers, computer terminals or other electronic devices to track product.  Do not report workers with fork truck driving as a primary focus or workers with greater emphasis on shipping and receiving clerical/administrative activities.",null,null,null,null,null,null,null,null,null,null,null,null,null,null,null,null,null,null,null,null,null,null,null,null,null,null,null,null,null,null,null,null,null,null,null,null,null,null,null,null,null,null,null,null,null,null,null,null,null,null,null,null,null,null,null,null,null,null,null,null,null,null,null,null,null,null,null,null,null,null,null,null,null,null,null,null,null,null,null,null,null,null,null,null,null,null,null,null,null,null,null,null,null,null,null,null,null,null,null,null,null,"8-021"]
["11-20","Materials & Distribution","Shipping / Receiving","Order Filler","General warehouse labor job, requiring the ability to read shipping documents, or equivalent, whose primary duty is to fill orders from stored merchandise in accordance with specifications on customers’ orders or other instructions.  In addition to filling orders and indicating items filled or omitted, workers may keep records of outgoing orders, requisition additional stock, report short supplies to supervisor, and perform other related duties.  Workers may use bar code readers, computer terminals or other electronic devices.  May transport filled orders to shipping or delivery platform using hand carts or power lift trucks.",null,null,null,null,null,null,null,null,null,null,null,null,null,null,null,null,null,null,null,null,null,null,null,null,null,null,null,null,null,null,null,null,null,null,null,null,null,null,null,null,null,null,null,null,null,null,null,null,null,null,null,null,null,null,null,null,null,null,null,null,null,null,null,null,null,null,null,null,null,null,null,null,null,null,null,null,null,null,null,null,null,null,null,null,null,null,null,null,null,null,null,null,null,null,null,null,null,null,null,null,null,"8-08"]
["11-21","Materials & Distribution","Shipping / Receiving","Packer","General warehouse or production labor job.  The job typically requires the ability to read production or shipping documents and no previous experience, or equivalent.  Primary duty is to place finished products in containers (cases) for shipping or storage.  The specific operations are dependent upon the type, size, and number of units to be packed, the type of container employed and the method of shipment.  Work may involve one or more of the following: knowledge of various items of stock in order to verify content selection of appropriate type and size of container; using appropriate packing material to prevent breakage or damage; closing and sealing container; and applying labels or entering identifying data on container.  Workers may use bar code readers, computer terminals or other electronic devices to track product.  Packers whose primary duty is to make wooden boxes or crates should not be reported here.",null,null,null,null,null,null,null,null,null,null,null,null,null,null,null,null,null,null,null,null,null,null,null,null,null,null,null,null,null,null,null,null,null,null,null,null,null,null,null,null,null,null,null,null,null,null,null,null,null,null,null,null,null,null,null,null,null,null,null,null,null,null,null,null,null,null,null,null,null,null,null,null,null,null,null,null,null,null,null,null,null,null,null,null,null,null,null,null,null,null,null,null,null,null,null,null,null,null,null,null,null,"8-03"]
["11-22","Materials & Distribution","Shipping / Receiving","Shipping / Receiving Clerk","Warehouse clerical/administrative job, requiring reading, math and communication skills equivalent to a high school education and one or more years of related experience, or equivalent, whose primary duties are the following: to ship goods from the establishment; prepare records of goods shipped; make up bills of lading; post weight and shipping charges; keep files of shipping records; receive incoming shipments of merchandise or other materials; verify correctness of shipments against bills of lading, invoices, etc.; keep records of goods received; report damaged goods and shortages; route goods to the proper departments.  Workers may use bar code readers, computer terminals or other electronic devices.  Work may include minimal material handling.",null,null,null,null,null,null,null,null,null,null,null,null,null,null,null,null,null,null,null,null,null,null,null,null,null,null,null,null,null,null,null,null,null,null,null,null,null,null,null,null,null,null,null,null,null,null,null,null,null,null,null,null,null,null,null,null,null,null,null,null,null,null,null,null,null,null,null,null,null,null,null,null,null,null,null,null,null,null,null,null,null,null,null,null,null,null,null,null,null,null,null,null,null,null,null,null,null,null,null,null,null,"8-10"]
["11-23","Materials & Distribution","Shipping / Receiving","Stockroom Attendant","Duties include receiving, storing and issuing equipment or material in a stockroom or storeroom.  Checks incoming material against requisitions or invoices; keeps stock in orderly arrangement; fills orders according to requisitions; may assist in inventory as required.  May move material to other plant locations.",null,null,null,null,null,null,null,null,null,null,null,null,null,null,null,null,null,null,null,null,null,null,null,null,null,null,null,null,null,null,null,null,null,null,null,null,null,null,null,null,null,null,null,null,null,null,null,null,null,null,null,null,null,null,null,null,null,null,null,null,null,null,null,null,null,null,null,null,null,null,null,null,null,null,null,null,null,null,null,null,null,null,null,null,null,null,null,null,null,null,null,null,null,null,null,null,null,null,null,null,null,"8-11"]
["90-02","Medical / Health","Administrative","Admitting Clerk","Registers and admits patients brought to the hospital.  Questions patient to determine symptoms and to complete admissions forms.  Prepares case record on each patient treated, including itemized charges for tests, diagnosis and treatments.  Computes treatment costs and records fees collected.",null,null,null,null,null,null,null,null,null,null,null,null,null,null,null,null,null,null,null,null,null,null,null,null,null,null,null,null,null,null,null,null,null,null,null,null,null,null,null,null,null,null,null,null,null,null,null,null,null,null,null,null,null,null,null,null,null,null,null,null,null,null,null,null,null,null,null,null,null,null,null,null,null,null,null,null,null,null,null,null,null,null,null,null,null,null,null,null,null,null,null,null,null,null,null,null,null,null,null,null,null,"9-02"]
["90-03","Medical / Health","Administrative","Billing Clerk","Reviews billing data from medical office or hospital records to ensure amounts and account numbers are accurate.  Contacts insurance company to verify medical insurance coverage for patients and to obtain information concerning extent of benefits.",null,null,null,null,null,null,null,null,null,null,null,null,null,null,null,null,null,null,null,null,null,null,null,null,null,null,null,null,null,null,null,null,null,null,null,null,null,null,null,null,null,null,null,null,null,null,null,null,null,null,null,null,null,null,null,null,null,null,null,null,null,null,null,null,null,null,null,null,null,null,null,null,null,null,null,null,null,null,null,null,null,null,null,null,null,null,null,null,null,null,null,null,null,null,null,null,null,null,null,null,null,"9-03"]
["90-05","Medical / Health","Administrative","Medical Coder","Compiles and maintains medical records of patients of healthcare delivery system to document patient condition and treatment.  May code medical records for reimbursement purposes using ICD-9-CM standards.",null,null,null,null,null,null,null,null,null,null,null,null,null,null,null,null,null,null,null,null,null,null,null,null,null,null,null,null,null,null,null,null,null,null,null,null,null,null,null,null,null,null,null,null,null,null,null,null,null,null,null,null,null,null,null,null,null,null,null,null,null,null,null,null,null,null,null,null,null,null,null,null,null,null,null,null,null,null,null,null,null,null,null,null,null,null,null,null,null,null,null,null,null,null,null,null,null,null,null,null,null,"9-05"]
["90-06","Medical / Health","Administrative","Medical Librarian","Provides general assistance in one or more of the following areas:  circulation, reference, acquisitions, computer searches, interlibrary loans, cataloging, or system development and maintenance.  Participates in library instruction and education programs for library patrons.",null,null,null,null,null,null,null,null,null,null,null,null,null,null,null,null,null,null,null,null,null,null,null,null,null,null,null,null,null,null,null,null,null,null,null,null,null,null,null,null,null,null,null,null,null,null,null,null,null,null,null,null,null,null,null,null,null,null,null,null,null,null,null,null,null,null,null,null,null,null,null,null,null,null,null,null,null,null,null,null,null,null,null,null,null,null,null,null,null,null,null,null,null,null,null,null,null,null,null,null,null,"9-061"]
["90-07","Medical / Health","Administrative","Medical Practice Office Manager","Responsible for administrative, financial, personnel, clerical, housekeeping, and maintenance functions of the practice.   Coordinates and manages the activities of the practice and office.  Assists the physicians in strategic planning and in writing office policy.  Coordinates the various functions of the office.  Supervises the support staff and provides administrative supervision for the clinical staff. Requires 4 year degree in health or business related field plus 3 years’ experience, including supervisory; or any combination of training and experience. ",null,null,null,null,null,null,null,null,null,null,null,null,null,null,null,null,null,null,null,null,null,null,null,null,null,null,null,null,null,null,null,null,null,null,null,null,null,null,null,null,null,null,null,null,null,null,null,null,null,null,null,null,null,null,null,null,null,null,null,null,null,null,null,null,null,null,null,null,null,null,null,null,null,null,null,null,null,null,null,null,null,null,null,null,null,null,null,null,null,null,null,null,null,null,null,null,null,null,null,null,null,"9-141"]
["90-08","Medical / Health","Administrative","Medical Records Clerk","Responsible for maintaining patient records.  Accomplishes this task by accurately posting all pertinent records to the patients file.  Also responsible for making copies of patient records and ensuring that all privacy of information act guidelines are followed in the disclosing of this information.",null,null,null,null,null,null,null,null,null,null,null,null,null,null,null,null,null,null,null,null,null,null,null,null,null,null,null,null,null,null,null,null,null,null,null,null,null,null,null,null,null,null,null,null,null,null,null,null,null,null,null,null,null,null,null,null,null,null,null,null,null,null,null,null,null,null,null,null,null,null,null,null,null,null,null,null,null,null,null,null,null,null,null,null,null,null,null,null,null,null,null,null,null,null,null,null,null,null,null,null,null,"9-04"]
["90-09","Medical / Health","Administrative","Medical Services Coordinator","Responsible for efficient coordination and delivery of all direct client health care in cooperation with providers.  Assesses the health care needs of each patient.  Ensures continuity of patient medical care through appropriate referral and follow up.  Establishes procedures and protocols for health maintenance and prevention.",null,null,null,null,null,null,null,null,null,null,null,null,null,null,null,null,null,null,null,null,null,null,null,null,null,null,null,null,null,null,null,null,null,null,null,null,null,null,null,null,null,null,null,null,null,null,null,null,null,null,null,null,null,null,null,null,null,null,null,null,null,null,null,null,null,null,null,null,null,null,null,null,null,null,null,null,null,null,null,null,null,null,null,null,null,null,null,null,null,null,null,null,null,null,null,null,null,null,null,null,null,"9-13"]
["90-11","Medical / Health","Administrative","Quality Assurance","Interprets and implements quality assurance standards in clinical areas or hospitals to ensure quality care to patients.  Reviews quality assurance standards, studies existing policies and procedures, and interviews personnel and patients to evaluate effectiveness of quality assurance program.",null,null,null,null,null,null,null,null,null,null,null,null,null,null,null,null,null,null,null,null,null,null,null,null,null,null,null,null,null,null,null,null,null,null,null,null,null,null,null,null,null,null,null,null,null,null,null,null,null,null,null,null,null,null,null,null,null,null,null,null,null,null,null,null,null,null,null,null,null,null,null,null,null,null,null,null,null,null,null,null,null,null,null,null,null,null,null,null,null,null,null,null,null,null,null,null,null,null,null,null,null,"9-10"]
["90-13","Medical / Health","Administrative","Tumor Registrar","Identifies, registers and maintains records of all cancer patients by utilizing tumor registry data system.  Analyzes registry data and disseminates information in accordance with professional ethics.  Preserves confidentiality and security of patient data stored in tumor registry files.",null,null,null,null,null,null,null,null,null,null,null,null,null,null,null,null,null,null,null,null,null,null,null,null,null,null,null,null,null,null,null,null,null,null,null,null,null,null,null,null,null,null,null,null,null,null,null,null,null,null,null,null,null,null,null,null,null,null,null,null,null,null,null,null,null,null,null,null,null,null,null,null,null,null,null,null,null,null,null,null,null,null,null,null,null,null,null,null,null,null,null,null,null,null,null,null,null,null,null,null,null,"9-064"]
["90-14","Medical / Health","Advanced Specialist","Audiologist","Specializes in diagnostic, habilitative, and rehabilitative services and research related to hearing.  Administers a wide variety of tests to determine patients hearing levels and hearing loss and to prescribe the use of a hearing aid and/or special training.  Coordinates audiometric results with other diagnostic data and assists in selection and use of suitable hearing aids.",null,null,null,null,null,null,null,null,null,null,null,null,null,null,null,null,null,null,null,null,null,null,null,null,null,null,null,null,null,null,null,null,null,null,null,null,null,null,null,null,null,null,null,null,null,null,null,null,null,null,null,null,null,null,null,null,null,null,null,null,null,null,null,null,null,null,null,null,null,null,null,null,null,null,null,null,null,null,null,null,null,null,null,null,null,null,null,null,null,null,null,null,null,null,null,null,null,null,null,null,null,"9-321"]
["90-15","Medical / Health","Advanced Specialist","Licensed Practical Nurse","Licensed Practical Nurse (LPN) working in healthcare, public health or occupational health.  The job typically requires up to two years of training, or equivalent, and passing a licensing examination.  Incumbents assist physicians, company medical officers or RN's with duties such as direct patient care, conducting public health clinics, employment physicals, treating workplace injuries,  or assisting with management of workers' compensation cases.  Incumbents may conduct first response training or CPR.  Incumbents may assist with records management, government report preparation or similar administrative tasks.",null,null,null,null,null,null,null,null,null,null,null,null,null,null,null,null,null,null,null,null,null,null,null,null,null,null,null,null,null,null,null,null,null,null,null,null,null,null,null,null,null,null,null,null,null,null,null,null,null,null,null,null,null,null,null,null,null,null,null,null,null,null,null,null,null,null,null,null,null,null,null,null,null,null,null,null,null,null,null,null,null,null,null,null,null,null,null,null,null,null,null,null,null,null,null,null,null,null,null,null,null,"9-37"]
["90-16","Medical / Health","Advanced Specialist","MID-LEVEL HEALTH CARE PROVIDER (Advanced Practice Registered Nurse)","Under the general supervision of Medical Director and Program Director, performs an expanded role of nursing.  Duties include: assess the client's family planning needs by obtaining or evaluating a medical history; perform appropriate health assessment procedures; perform pelvic exams; orders or obtains and interprets related laboratory tests; provides counseling and instructs clients in the use of all contraceptive methods and related health needs; and conduct family planning education sessions. Requires a Bachelor's degree in Nursing from an accredited university school of Nursing including academic and experiential preparation in public health nursing.  A certificate from a nurse practitioner program which includes a minimum of four months didactic preparation and nine months of clinical preceptorship. ",null,null,null,null,null,null,null,null,null,null,null,null,null,null,null,null,null,null,null,null,null,null,null,null,null,null,null,null,null,null,null,null,null,null,null,null,null,null,null,null,null,null,null,null,null,null,null,null,null,null,null,null,null,null,null,null,null,null,null,null,null,null,null,null,null,null,null,null,null,null,null,null,null,null,null,null,null,null,null,null,null,null,null,null,null,null,null,null,null,null,null,null,null,null,null,null,null,null,null,null,null,"9-42"]
["90-18","Medical / Health","Advanced Specialist","Optician","Fits eyeglasses and contact lenses following the prescription written by an ophthalmologist or optometrist.  Examines prescription to determine lens specifications.  Measures patients eyes, including distance between centers of pupils, distance between the eye surface and lens, bridge and eye size, temple length, vertex distance, and papillary distance.  Recommends eyeglass, frames, lenses and lens coating after considering prescription and patients occupational, habits and facial features.  Verifies finished lenses are ground to specification.",null,null,null,null,null,null,null,null,null,null,null,null,null,null,null,null,null,null,null,null,null,null,null,null,null,null,null,null,null,null,null,null,null,null,null,null,null,null,null,null,null,null,null,null,null,null,null,null,null,null,null,null,null,null,null,null,null,null,null,null,null,null,null,null,null,null,null,null,null,null,null,null,null,null,null,null,null,null,null,null,null,null,null,null,null,null,null,null,null,null,null,null,null,null,null,null,null,null,null,null,null,"9-302"]
["90-19","Medical / Health","Advanced Specialist","PHYSICIAN","Under the administrative direction of the Executive Director and the medical supervision of the Medical Director, the Physician serves as a member of the Health Center primary care staff.  Duties include: provides primary medical care, including assessment, diagnosis and treatment of patients, and maintains medical records of patient visits; address preventive health and public health issues; assures appropriate referrals and/or hospitalization; establishes, reviews and maintains clinical policies and principles; and assists in supervising mid-level providers.  Graduate of an accredited school of Medicine.  Board certified, board-eligible or residency trained in the area of primary care.  "]
["90-20","Medical / Health","Advanced Specialist","Physician Assistant","Examines patient, performs comprehensive physical examination, and compiles patient medical data, including health history and results of physical examination.  Administers or orders diagnostic tests, such as x-ray, electrocardiogram, and lab tests, and interprets test results for deviations from normal.  Performs therapeutic procedures such as injections, immunizations, suturing and wound care, and managing infections.  Develops and implements patient management plans, records progress notes, and assists in provision of continuity of care.  Instructs and counsels patients regarding compliance with prescribed therapeutic regimens, normal growth and development, family planning, emotional problems of daily living, and health maintenance.  Must maintain license",null,null,null,null,null,null,null,null,null,null,null,null,null,null,null,null,null,null,null,null,null,null,null,null,null,null,null,null,null,null,null,null,null,null,null,null,null,null,null,null,null,null,null,null,null,null,null,null,null,null,null,null,null,null,null,null,null,null,null,null,null,null,null,null,null,null,null,null,null,null,null,null,null,null,null,null,null,null,null,null,null,null,null,null,null,null,null,null,null,null,null,null,null,null,null,null,null,null,null,null,null,"9-40"]
["90-21","Medical / Health","Advanced Specialist","DENTIST","Under the supervision of the Executive Director, this position performs as a medical care professional that is responsible for a number of preventative and restorative oral procedures within the scope of dentistry practice. Graduation from an accredited dental school (D.D.S. or equivalent) required; also required to be currently licensed as Doctor of Dental Surgery (D.D.S.) or Doctor of Medical Dentistry (D.M.D.) in the State.",null,null,null,null,null,null,null,null,null,null,null,null,null,null,null,null,null,null,null,null,null,null,null,null,null,null,null,null,null,null,null,null,null,null,null,null,null,null,null,null,null,null,null,null,null,null,null,null,null,null,null,null,null,null,null,null,null,null,null,null,null,null,null,null,null,null,null,null,null,null,null,null,null,null,null,null,null,null,null,null,null,null,null,null,null,null,null,null,null,null,null,null,null,null,null,null,null,null,null,null,null,"9-25"]
["90-24","Medical / Health","Assistants","Medical Assistant","Performs any combination of following duties under direction of physician to assist in examination and treatment of patients.  Interviews patients, measures vital signs, and records information on patient's charts.",null,null,null,null,null,null,null,null,null,null,null,null,null,null,null,null,null,null,null,null,null,null,null,null,null,null,null,null,null,null,null,null,null,null,null,null,null,null,null,null,null,null,null,null,null,null,null,null,null,null,null,null,null,null,null,null,null,null,null,null,null,null,null,null,null,null,null,null,null,null,null,null,null,null,null,null,null,null,null,null,null,null,null,null,null,null,null,null,null,null,null,null,null,null,null,null,null,null,null,null,null,"9-12"]
["90-25","Medical / Health","Assistants","Medical Transcriber","Takes dictation in shorthand of correspondence, reports, and other matter, and operates word processor to transcribe dictated material in medical office.  May transcribe material from sound recordings.  Must have knowledge of medical terminology.",null,null,null,null,null,null,null,null,null,null,null,null,null,null,null,null,null,null,null,null,null,null,null,null,null,null,null,null,null,null,null,null,null,null,null,null,null,null,null,null,null,null,null,null,null,null,null,null,null,null,null,null,null,null,null,null,null,null,null,null,null,null,null,null,null,null,null,null,null,null,null,null,null,null,null,null,null,null,null,null,null,null,null,null,null,null,null,null,null,null,null,null,null,null,null,null,null,null,null,null,null,"9-06"]
["90-26","Medical / Health","Assistants","Surgical Assistant","Performs a variety of duties to assist a surgeon during surgery.  Assists surgeons during operations by retracting tissues under direction and tying suturing materials in accordance with hospital standards.  Assists in patient care related activities including starting intravenous solutions, inserting tubes, etc.  Collects history and performs physical examinations of patients, documents examination findings and reports unusual findings.  Assists in maintaining correct count of instruments, sutures and sponges.",null,null,null,null,null,null,null,null,null,null,null,null,null,null,null,null,null,null,null,null,null,null,null,null,null,null,null,null,null,null,null,null,null,null,null,null,null,null,null,null,null,null,null,null,null,null,null,null,null,null,null,null,null,null,null,null,null,null,null,null,null,null,null,null,null,null,null,null,null,null,null,null,null,null,null,null,null,null,null,null,null,null,null,null,null,null,null,null,null,null,null,null,null,null,null,null,null,null,null,null,null,"9-48"]
["90-27","Medical / Health","Assistants","Unit Clerk","Assists the nursing staff by performing a variety of general clerical, reception and record maintenance duties that pertain to activities and services performed in the nursing unit.",null,null,null,null,null,null,null,null,null,null,null,null,null,null,null,null,null,null,null,null,null,null,null,null,null,null,null,null,null,null,null,null,null,null,null,null,null,null,null,null,null,null,null,null,null,null,null,null,null,null,null,null,null,null,null,null,null,null,null,null,null,null,null,null,null,null,null,null,null,null,null,null,null,null,null,null,null,null,null,null,null,null,null,null,null,null,null,null,null,null,null,null,null,null,null,null,null,null,null,null,null,"9-09"]
["90-28","Medical / Health","Dietary","Diet Clerk","Prepares dietary information for use by kitchen personnel in preparation of foods for hospital patients.  Examines diet orders and menus received from hospital units and tallies portions and foods of general and soft diets.",null,null,null,null,null,null,null,null,null,null,null,null,null,null,null,null,null,null,null,null,null,null,null,null,null,null,null,null,null,null,null,null,null,null,null,null,null,null,null,null,null,null,null,null,null,null,null,null,null,null,null,null,null,null,null,null,null,null,null,null,null,null,null,null,null,null,null,null,null,null,null,null,null,null,null,null,null,null,null,null,null,null,null,null,null,null,null,null,null,null,null,null,null,null,null,null,null,null,null,null,null,"9-033"]
["90-29","Medical / Health","Emergency Services","Paramedic","Accompanies ambulance drive on calls. Renders emergency first aid, such as bandaging and splinting, to injured or ill patients.  Applies artificial respiration or administers oxygen, in cases of suffocation and asphyxiation.  Administers antiseptic solution to prevent infection until patient can receive professional care.  Starts and administers intravenous fluids.  Assists in lifting patient onto wheeled carts or stretcher and into and out of ambulance.",null,null,null,null,null,null,null,null,null,null,null,null,null,null,null,null,null,null,null,null,null,null,null,null,null,null,null,null,null,null,null,null,null,null,null,null,null,null,null,null,null,null,null,null,null,null,null,null,null,null,null,null,null,null,null,null,null,null,null,null,null,null,null,null,null,null,null,null,null,null,null,null,null,null,null,null,null,null,null,null,null,null,null,null,null,null,null,null,null,null,null,null,null,null,null,null,null,null,null,null,null,"9-50"]
["90-30","Medical / Health","Lab","Laboratory Aide","Cleans laboratory equipment such as glassware, metal instruments, sinks, tables, etc.  Prepares simple stains, solutions, and culture media following established formulas and procedures.  Under close supervision, may perform simple laboratory tests such as qualitative determination of sugar and albumin in urine.  Keeps records of specimens held in the laboratory.",null,null,null,null,null,null,null,null,null,null,null,null,null,null,null,null,null,null,null,null,null,null,null,null,null,null,null,null,null,null,null,null,null,null,null,null,null,null,null,null,null,null,null,null,null,null,null,null,null,null,null,null,null,null,null,null,null,null,null,null,null,null,null,null,null,null,null,null,null,null,null,null,null,null,null,null,null,null,null,null,null,null,null,null,null,null,null,null,null,null,null,null,null,null,null,null,null,null,null,null,null,"9-332"]
["90-31","Medical / Health","Lab","Laboratory Manager","Supervises and coordinates activities of personnel engaged in performing chemical and physical tests required for analysis and/or quality control by performing the following duties.  Directs and advises personnel in special test procedures.  Compiles and analyzes test information.  Confers with physicians, scientists and/or engineers to conduct analysis, interpret test results, or develop nonstandard tests.  Establishes or adjusts work procedures to meet testing schedules.  Maintains time and testing records.",null,null,null,null,null,null,null,null,null,null,null,null,null,null,null,null,null,null,null,null,null,null,null,null,null,null,null,null,null,null,null,null,null,null,null,null,null,null,null,null,null,null,null,null,null,null,null,null,null,null,null,null,null,null,null,null,null,null,null,null,null,null,null,null,null,null,null,null,null,null,null,null,null,null,null,null,null,null,null,null,null,null,null,null,null,null,null,null,null,null,null,null,null,null,null,null,null,null,null,null,null,"9-35"]
["90-32","Medical / Health","Lab","Medical Technician","Performs routine tests in medical laboratory to provide data for use in diagnosis and treatment of disease.  Conducts quantitative and qualitative chemical analysis of body fluids.  May specialize in hematology, blood bank, cytology, histology or chemistry.  Must be certified American Society of Clinical Pathology (ASCP).",null,null,null,null,null,null,null,null,null,null,null,null,null,null,null,null,null,null,null,null,null,null,null,null,null,null,null,null,null,null,null,null,null,null,null,null,null,null,null,null,null,null,null,null,null,null,null,null,null,null,null,null,null,null,null,null,null,null,null,null,null,null,null,null,null,null,null,null,null,null,null,null,null,null,null,null,null,null,null,null,null,null,null,null,null,null,null,null,null,null,null,null,null,null,null,null,null,null,null,null,null,"9-11"]
["90-36","Medical / Health","Nursing","Case Manager-RN","Reviews inpatient medical records concurrently and retroactively for medical necessity and for quality of care/risk management issues.  Advises and provides consultation to physicians and staff regarding appropriate and efficient utilization of hospital resources.  Facilitates complex case management.  Initiates the process to appeal denials and discrepancies on code assignments.  Requires an RN license.",null,null,null,null,null,null,null,null,null,null,null,null,null,null,null,null,null,null,null,null,null,null,null,null,null,null,null,null,null,null,null,null,null,null,null,null,null,null,null,null,null,null,null,null,null,null,null,null,null,null,null,null,null,null,null,null,null,null,null,null,null,null,null,null,null,null,null,null,null,null,null,null,null,null,null,null,null,null,null,null,null,null,null,null,null,null,null,null,null,null,null,null,null,null,null,null,null,null,null,null,null,"9-071"]
["90-37","Medical / Health","Nursing","Certified Nurses Assistant","Provides effective, timely and quality health care assistance.  Provides for daily hygiene care of the patients including changing linen and bedding as required.  Taking and recording vital signs.  Provides general assistance as necessary.",null,null,null,null,null,null,null,null,null,null,null,null,null,null,null,null,null,null,null,null,null,null,null,null,null,null,null,null,null,null,null,null,null,null,null,null,null,null,null,null,null,null,null,null,null,null,null,null,null,null,null,null,null,null,null,null,null,null,null,null,null,null,null,null,null,null,null,null,null,null,null,null,null,null,null,null,null,null,null,null,null,null,null,null,null,null,null,null,null,null,null,null,null,null,null,null,null,null,null,null,null,"9-36"]
["90-38","Medical / Health","Nursing","Charge Nurse","Responsible for coordination of care in the operating rooms and CSR collaborating closely with the Director of Nursing.  Utilizes the nursing process to provide comprehensive nursing care in the operating room.  Accountable for assessing, planning, implementing and coordinating patient care in the operating room.  May function as a patient care advocate. Must maintain license and applicable certifications.",null,null,null,null,null,null,null,null,null,null,null,null,null,null,null,null,null,null,null,null,null,null,null,null,null,null,null,null,null,null,null,null,null,null,null,null,null,null,null,null,null,null,null,null,null,null,null,null,null,null,null,null,null,null,null,null,null,null,null,null,null,null,null,null,null,null,null,null,null,null,null,null,null,null,null,null,null,null,null,null,null,null,null,null,null,null,null,null,null,null,null,null,null,null,null,null,null,null,null,null,null,"9-384"]
["90-39","Medical / Health","Nursing","Director of Nursing","Supervises all nursing and ancillary support personnel involved in patient care.  May work closely with Facility Administrator to establish, review and revise facility policies and procedures with the approval of the Continuous Quality Improvement Committee.  May consult with Medical Director with regard to medical problems.  Communicates closely with schedulers; checks draft of each operating schedule in advance regarding approved procedures and makes necessary corrections.  May recruit and interview candidates for nursing and nurse related positions.  May provide recommendations for employee hiring or termination. Must maintain license",null,null,null,null,null,null,null,null,null,null,null,null,null,null,null,null,null,null,null,null,null,null,null,null,null,null,null,null,null,null,null,null,null,null,null,null,null,null,null,null,null,null,null,null,null,null,null,null,null,null,null,null,null,null,null,null,null,null,null,null,null,null,null,null,null,null,null,null,null,null,null,null,null,null,null,null,null,null,null,null,null,null,null,null,null,null,null,null,null,null,null,null,null,null,null,null,null,null,null,null,null,"9-393"]
["90-40","Medical / Health","Nursing","Nurse Supervisor","Directs, through head nurses, activities of nursing staff by performing the following duties. Plans and organizes activities in nursing services to ensure patient needs are met in accordance with instructions of physician and organization administrative procedures. Coordinates activities with other patient care units. Plans and organizes orientation and in-service training for staff members, and participates in guidance and educational programs. Assists in formulating budget, and improving nursing care.",null,null,null,null,null,null,null,null,null,null,null,null,null,null,null,null,null,null,null,null,null,null,null,null,null,null,null,null,null,null,null,null,null,null,null,null,null,null,null,null,null,null,null,null,null,null,null,null,null,null,null,null,null,null,null,null,null,null,null,null,null,null,null,null,null,null,null,null,null,null,null,null,null,null,null,null,null,null,null,null,null,null,null,null,null,null,null,null,null,null,null,null,null,null,null,null,null,null,null,null,null,"9-39"]
["90-41","Medical / Health","Nursing","Registered Nurse","Registered Nurse (RN) working in healthcare, or with a specialization in public health or occupational health.  The job typically requires up to four years of training, although some programs are two years, or equivalent, and passing a licensing examination.  Incumbents work under the direction of physicians, nursing supervisors or company medical officers and perform duties such as triage, direct patient care, dispensing medication, public health screening and assessment, immunizations, employment physicals, management of workers' compensation cases, including light duty or other return-to-work programs for injured or sick employees.  Incumbents may lead a first response team in responding to workplace injuries or employee illness.  Incumbents may perform administrative duties associated with workers compensation and OSHA reporting requirements.  Incumbents may train employees in first response and CPR.",null,null,null,null,null,null,null,null,null,null,null,null,null,null,null,null,null,null,null,null,null,null,null,null,null,null,null,null,null,null,null,null,null,null,null,null,null,null,null,null,null,null,null,null,null,null,null,null,null,null,null,null,null,null,null,null,null,null,null,null,null,null,null,null,null,null,null,null,null,null,null,null,null,null,null,null,null,null,null,null,null,null,null,null,null,null,null,null,null,null,null,null,null,null,null,null,null,null,null,null,null,"9-38"]
["90-42","Medical / Health","Pharmacy","Pharmacist","Compounds and dispenses prescribed medications, drugs, and other pharmaceuticals for patient care by performing the following duties. Reviews prescriptions issued by physician to assure accuracy and determine formulas and ingredients needed. Directs pharmacy workers engaged in mixing, packaging, and labeling pharmaceuticals. Maintains established procedures concerning quality assurance and security of controlled substances. Instructs interns and other medical personnel on matters pertaining to pharmacy. Must maintain license.",null,null,null,null,null,null,null,null,null,null,null,null,null,null,null,null,null,null,null,null,null,null,null,null,null,null,null,null,null,null,null,null,null,null,null,null,null,null,null,null,null,null,null,null,null,null,null,null,null,null,null,null,null,null,null,null,null,null,null,null,null,null,null,null,null,null,null,null,null,null,null,null,null,null,null,null,null,null,null,null,null,null,null,null,null,null,null,null,null,null,null,null,null,null,null,null,null,null,null,null,null,"9-27"]
["90-43","Medical / Health","Pharmacy","Pharmacy Technician                        ","Assists pharmacist in a pharmacy.  Mixes pharmaceutical preparations, fills bottle with prescribed tablets and capsules, and types labels for bottles.  Receives and stores incoming supplies.  Processes all required records to include entry into manual or automated filing systems. Not certified",null,null,null,null,null,null,null,null,null,null,null,null,null,null,null,null,null,null,null,null,null,null,null,null,null,null,null,null,null,null,null,null,null,null,null,null,null,null,null,null,null,null,null,null,null,null,null,null,null,null,null,null,null,null,null,null,null,null,null,null,null,null,null,null,null,null,null,null,null,null,null,null,null,null,null,null,null,null,null,null,null,null,null,null,null,null,null,null,null,null,null,null,null,null,null,null,null,null,null,null,null,"9-26"]
["90-44","Medical / Health","Pharmacy","Pharmacy Technician - Certified                     ","Assists the Registered Pharmacist in all functions concerned with the distribution of pharmaceutical services to patients.  May type labels and aid Pharmacist in filling drug orders.  Checks in shipments, unpacks and stores supplies.  May transport drugs and run errands, as well as maintain files and records incidental to the function.  Maintains working area in a clean and orderly condition, and performs other routine duties in the Pharmacy as directed.  Some expertise in a hospital or retail Pharmacy is preferred.  Must maintain certification.",null,null,null,null,null,null,null,null,null,null,null,null,null,null,null,null,null,null,null,null,null,null,null,null,null,null,null,null,null,null,null,null,null,null,null,null,null,null,null,null,null,null,null,null,null,null,null,null,null,null,null,null,null,null,null,null,null,null,null,null,null,null,null,null,null,null,null,null,null,null,null,null,null,null,null,null,null,null,null,null,null,null,null,null,null,null,null,null,null,null,null,null,null,null,null,null,null,null,null,null,null,"9-261"]
["90-47","Medical / Health","Public Health","MEDICAL CLINIC MANAGER","Under the general supervision of the Executive Director, supervises medical clinic staff assigned to the Community Health Center (CHC). This position is a member of the CHC leadership team and provides medical clinic oversight; guidance and staff scheduling; reviews and assesses adherence to laboratory, immunization, sterilization and safety standards for CHC.  Requires an associate’s degree in nursing from an accredited school (Bachelor of Science degree is preferred). Must have a minimum of five years of practice in nursing with increasing responsibility and demonstrated knowledge and experience in nursing practices. Education/experience in quality management in a health services related field and medical case management is essential to perform the duties of the position."]
["90-50","Medical / Health","Rehabilitation Services","Certified Athletic Trainer","Evaluates physical condition and advises and treats individuals to maintain physical fitness.  Recognizes and evaluates athletic injuries and provides emergency care to injured athletes.  Determines proper treatment or program for injured athletes within established guidelines. Must be certified",null,null,null,null,null,null,null,null,null,null,null,null,null,null,null,null,null,null,null,null,null,null,null,null,null,null,null,null,null,null,null,null,null,null,null,null,null,null,null,null,null,null,null,null,null,null,null,null,null,null,null,null,null,null,null,null,null,null,null,null,null,null,null,null,null,null,null,null,null,null,null,null,null,null,null,null,null,null,null,null,null,null,null,null,null,null,null,null,null,null,null,null,null,null,null,null,null,null,null,null,null,"9-52"]
["90-51","Medical / Health","Rehabilitation Services","Massage Therapist","Provides professional massage therapy and bodywork services to promote healing and a sense of well being.   Assess, design, implement and evaluate massage therapy services to meet the clinical needs of the patient.",null,null,null,null,null,null,null,null,null,null,null,null,null,null,null,null,null,null,null,null,null,null,null,null,null,null,null,null,null,null,null,null,null,null,null,null,null,null,null,null,null,null,null,null,null,null,null,null,null,null,null,null,null,null,null,null,null,null,null,null,null,null,null,null,null,null,null,null,null,null,null,null,null,null,null,null,null,null,null,null,null,null,null,null,null,null,null,null,null,null,null,null,null,null,null,null,null,null,null,null,null,"9-51"]
["90-52","Medical / Health","Rehabilitation Services","Occupational Therapist","Plans and conducts occupational therapy programs to facilitate development and rehabilitation of mentally, physically or emotionally handicapped.",null,null,null,null,null,null,null,null,null,null,null,null,null,null,null,null,null,null,null,null,null,null,null,null,null,null,null,null,null,null,null,null,null,null,null,null,null,null,null,null,null,null,null,null,null,null,null,null,null,null,null,null,null,null,null,null,null,null,null,null,null,null,null,null,null,null,null,null,null,null,null,null,null,null,null,null,null,null,null,null,null,null,null,null,null,null,null,null,null,null,null,null,null,null,null,null,null,null,null,null,null,"9-33"]
["90-53","Medical / Health","Rehabilitation Services","Physical Therapist","Plans and administers medically prescribed physical therapy treatment for patients suffering from injuries, or muscle, nerve, joint and bone diseases to restore function, relieve pain, and prevent disability.  Review physicians referral and patients condition to determine physical therapy required. Must maintain license.",null,null,null,null,null,null,null,null,null,null,null,null,null,null,null,null,null,null,null,null,null,null,null,null,null,null,null,null,null,null,null,null,null,null,null,null,null,null,null,null,null,null,null,null,null,null,null,null,null,null,null,null,null,null,null,null,null,null,null,null,null,null,null,null,null,null,null,null,null,null,null,null,null,null,null,null,null,null,null,null,null,null,null,null,null,null,null,null,null,null,null,null,null,null,null,null,null,null,null,null,null,"9-29"]
["90-54","Medical / Health","Rehabilitation Services","Physical Therapist Assistant            ","Under the supervision of a Registered Physical Therapist performs all patient treatments and modalities.  Does not do patient evaluations.  Must maintain license.",null,null,null,null,null,null,null,null,null,null,null,null,null,null,null,null,null,null,null,null,null,null,null,null,null,null,null,null,null,null,null,null,null,null,null,null,null,null,null,null,null,null,null,null,null,null,null,null,null,null,null,null,null,null,null,null,null,null,null,null,null,null,null,null,null,null,null,null,null,null,null,null,null,null,null,null,null,null,null,null,null,null,null,null,null,null,null,null,null,null,null,null,null,null,null,null,null,null,null,null,null,"9-281"]
["90-55","Medical / Health","Rehabilitation Services","Physical Therapy Aide                            ","Prepared patients for physical therapy treatments, assists physical therapist during administration of treatments.  Assists patients to dress, undress, and put on and remove corrective devices such as braces, splints, and slings. Not certified.",null,null,null,null,null,null,null,null,null,null,null,null,null,null,null,null,null,null,null,null,null,null,null,null,null,null,null,null,null,null,null,null,null,null,null,null,null,null,null,null,null,null,null,null,null,null,null,null,null,null,null,null,null,null,null,null,null,null,null,null,null,null,null,null,null,null,null,null,null,null,null,null,null,null,null,null,null,null,null,null,null,null,null,null,null,null,null,null,null,null,null,null,null,null,null,null,null,null,null,null,null,"9-28"]
["90-56","Medical / Health","Rehabilitation Services","Respiratory Therapist","Administers respiratory therapy care and life support to patients with deficiencies and abnormalities of cardiopulmonary systems, under supervision of physician and by prescription.  Reads prescription, measures arterial blood gases, and reviews patient information to assess patient condition and determine requirements for treatment, such as type and duration of therapy, and medication and dosages.  Determines most suitable method of administering inhalants, precautions to be observed and modifications which may be needed that will be compatible with physicians orders.",null,null,null,null,null,null,null,null,null,null,null,null,null,null,null,null,null,null,null,null,null,null,null,null,null,null,null,null,null,null,null,null,null,null,null,null,null,null,null,null,null,null,null,null,null,null,null,null,null,null,null,null,null,null,null,null,null,null,null,null,null,null,null,null,null,null,null,null,null,null,null,null,null,null,null,null,null,null,null,null,null,null,null,null,null,null,null,null,null,null,null,null,null,null,null,null,null,null,null,null,null,"9-44"]
["90-57","Medical / Health","Rehabilitation Services","Speech Therapist","Specializes in diagnosis and treatment of speech and language problems, and engages in scientific study of human communication.  Diagnoses and evaluates speed and language skills as related to educational, medical, social, and psychological factors.",null,null,null,null,null,null,null,null,null,null,null,null,null,null,null,null,null,null,null,null,null,null,null,null,null,null,null,null,null,null,null,null,null,null,null,null,null,null,null,null,null,null,null,null,null,null,null,null,null,null,null,null,null,null,null,null,null,null,null,null,null,null,null,null,null,null,null,null,null,null,null,null,null,null,null,null,null,null,null,null,null,null,null,null,null,null,null,null,null,null,null,null,null,null,null,null,null,null,null,null,null,"9-32"]
["90-58","Medical / Health","Social Services","Activity Aide","Plans, organizes and coordinates activities for elders in the assisted living facility.  Supervises no staff, but works in coordinating activities with other departments and community groups, and plans holidays.",null,null,null,null,null,null,null,null,null,null,null,null,null,null,null,null,null,null,null,null,null,null,null,null,null,null,null,null,null,null,null,null,null,null,null,null,null,null,null,null,null,null,null,null,null,null,null,null,null,null,null,null,null,null,null,null,null,null,null,null,null,null,null,null,null,null,null,null,null,null,null,null,null,null,null,null,null,null,null,null,null,null,null,null,null,null,null,null,null,null,null,null,null,null,null,null,null,null,null,null,null,"9-01"]
["90-60","Medical / Health","Social Services","Case Manager-Social work","Professional level position that coordinates client services for transitional, follow-up and/or day-to-day care.  Performs clinical assessments according to established practices to evaluate client needs. Coordinates community resources.  Helps client and families locate and access resources and resolve problems. Ensures goals and objectives are accomplished within prescribed time frame and/or funding parameters.  Will act as client advocate.  This position typically requires a bachelors degree in social work, human services or related field.",null,null,null,null,null,null,null,null,null,null,null,null,null,null,null,null,null,null,null,null,null,null,null,null,null,null,null,null,null,null,null,null,null,null,null,null,null,null,null,null,null,null,null,null,null,null,null,null,null,null,null,null,null,null,null,null,null,null,null,null,null,null,null,null,null,null,null,null,null,null,null,null,null,null,null,null,null,null,null,null,null,null,null,null,null,null,null,null,null,null,null,null,null,null,null,null,null,null,null,null,null,"9-07"]
["90-61","Medical / Health","Social Services","Clinical Psychologist","Administers programs of treatment to mentally and emotionally disturbed individual adjustments to life.  Help medical and surgical patients deal with illnesses and injuries.  Assist in treating rehabilitation patients and treat individuals with times of personal crisis such as divorce or death.  Diagnoses or evaluates mental and emotional disorders of individuals and administers programs of treatment.",null,null,null,null,null,null,null,null,null,null,null,null,null,null,null,null,null,null,null,null,null,null,null,null,null,null,null,null,null,null,null,null,null,null,null,null,null,null,null,null,null,null,null,null,null,null,null,null,null,null,null,null,null,null,null,null,null,null,null,null,null,null,null,null,null,null,null,null,null,null,null,null,null,null,null,null,null,null,null,null,null,null,null,null,null,null,null,null,null,null,null,null,null,null,null,null,null,null,null,null,null,"9-092"]
["90-62","Medical / Health","Social Services","Home Health Aide","Provides personal care and homemaking services under the supervision of a RN.  Helps patient retrain in self-help skills.  Assists patient with self-administered medications that have been specifically prescribed by a physician.  Interacts in an emotionally supportive way with patients, families and other caregivers.",null,null,null,null,null,null,null,null,null,null,null,null,null,null,null,null,null,null,null,null,null,null,null,null,null,null,null,null,null,null,null,null,null,null,null,null,null,null,null,null,null,null,null,null,null,null,null,null,null,null,null,null,null,null,null,null,null,null,null,null,null,null,null,null,null,null,null,null,null,null,null,null,null,null,null,null,null,null,null,null,null,null,null,null,null,null,null,null,null,null,null,null,null,null,null,null,null,null,null,null,null,"9-351"]
["90-63","Medical / Health","Social Services","Licensed Addictions Counselor","Provides counselling and support to individuals and families, experiencing addictions. This may include confidential individual, family or group counselling about the causes and effects of addictions support for families dealing with addictions and/or referrals to treatment for individuals requesting this opportunity. Generally requires a Bachelor's degree in Chemical Dependency Counseling, and valid LAC.",null,null,null,null,null,null,null,null,null,null,null,null,null,null,null,null,null,null,null,null,null,null,null,null,null,null,null,null,null,null,null,null,null,null,null,null,null,null,null,null,null,null,null,null,null,null,null,null,null,null,null,null,null,null,null,null,null,null,null,null,null,null,null,null,null,null,null,null,null,null,null,null,null,null,null,null,null,null,null,null,null,null,null,null,null,null,null,null,null,null,null,null,null,null,null,null,null,null,null,null,null,"9-093"]
["90-64","Medical / Health","Social Services","Social Worker, Licensed","May require a master's degree.  Assists patients and their families with the personal and environmental difficulties, which predispose illness or interfere with obtaining maximum benefits from medical care.  Works in close collaboration with healthcare providers.  Coordinates services to restore patient to optimum social and health adjustment within patient's capacity. Must maintain license.",null,null,null,null,null,null,null,null,null,null,null,null,null,null,null,null,null,null,null,null,null,null,null,null,null,null,null,null,null,null,null,null,null,null,null,null,null,null,null,null,null,null,null,null,null,null,null,null,null,null,null,null,null,null,null,null,null,null,null,null,null,null,null,null,null,null,null,null,null,null,null,null,null,null,null,null,null,null,null,null,null,null,null,null,null,null,null,null,null,null,null,null,null,null,null,null,null,null,null,null,null,"9-15"]
["90-65","Medical / Health","Social Services","Social Worker, Unlicensed","May require a bachelor's degree.  Counsels and aids individuals and families requiring assistance of social service agency by performing the following duties: Interviews clients to determine the type and severity of problem.  Secures medical information to develop a course of action to help.  Counsels client regarding what assistance is available.",null,null,null,null,null,null,null,null,null,null,null,null,null,null,null,null,null,null,null,null,null,null,null,null,null,null,null,null,null,null,null,null,null,null,null,null,null,null,null,null,null,null,null,null,null,null,null,null,null,null,null,null,null,null,null,null,null,null,null,null,null,null,null,null,null,null,null,null,null,null,null,null,null,null,null,null,null,null,null,null,null,null,null,null,null,null,null,null,null,null,null,null,null,null,null,null,null,null,null,null,null,"9-16"]
["90-66","Medical / Health","Social Services","Treatment Manager-Social work","To supervise the treatment home, coordinate the treatment team and supervise the individualized treatment plan of the patient in placement.  To maintain complete and accurate records regarding the patient and his/her treatment progress.",null,null,null,null,null,null,null,null,null,null,null,null,null,null,null,null,null,null,null,null,null,null,null,null,null,null,null,null,null,null,null,null,null,null,null,null,null,null,null,null,null,null,null,null,null,null,null,null,null,null,null,null,null,null,null,null,null,null,null,null,null,null,null,null,null,null,null,null,null,null,null,null,null,null,null,null,null,null,null,null,null,null,null,null,null,null,null,null,null,null,null,null,null,null,null,null,null,null,null,null,null,"9-081"]
["90-67","Medical / Health","Tech","Cytotechnologist","Stains and mounts slides and examines human body cells to detect evidence of cancer or other diseased conditions. Receives blood specimens sent to laboratory or draws blood from patients by venipuncture, observing strict principles of asepsis and antisepsis to prevent infection of patients and contamination of specimens.  Centrifuges blood specimens in test tubes and capillary tubes to separate cells and sediment from blood serum.  Classifies slides, records classification, and presents slides with unusual cell structures to pathologist for further examination.  Compiles listing of patients for follow-up analysis of specimens.  Prepare and analyzes subsequent specimens for cell changes and reports findings to pathologist.",null,null,null,null,null,null,null,null,null,null,null,null,null,null,null,null,null,null,null,null,null,null,null,null,null,null,null,null,null,null,null,null,null,null,null,null,null,null,null,null,null,null,null,null,null,null,null,null,null,null,null,null,null,null,null,null,null,null,null,null,null,null,null,null,null,null,null,null,null,null,null,null,null,null,null,null,null,null,null,null,null,null,null,null,null,null,null,null,null,null,null,null,null,null,null,null,null,null,null,null,null,"9-331"]
["90-68","Medical / Health","Tech","DENTAL HYGIENIST ","Under the supervision of the Executive Director/Dental Director, this position performs as a medical care professional that is responsible for the direct provision of oral hygiene and appropriate preventive services to dental patients within their scope of practice and as specified by the Dental Director. Must be a graduate of an accredited Dental Hygiene Program; and requires current licensure to practice dental hygiene in the State."]
["90-685","Medical / Health","Tech","DENTAL ASSISTANT","Assist dentist, set up equipment, prepare patient for treatment, and keep records. Prepare patient, sterilize or disinfect instruments, set up instrument trays, prepare materials, or assist dentist during dental procedures.  Record treatment information in patient records.  Expose dental diagnostic x-rays.  Take and record medical and dental histories and vital signs of patients.  Assist dentist in management of medical or dental emergencies. Knowledge of the information and techniques needed to treat human injuries, diseases, and deformities, which may include symptoms, treatment alternatives, drug properties and interactions, and preventive health-care measures. Minimal requirements include training in vocational school, related on-the-job experience, or a 2-year / associate's degree."]
["90-69","Medical / Health","Tech","DME Specialist (Durable Medical Equipment)","Responsible for equipment maintenance and set up, preparation and operation of the liquid fill station, education of patients on the safety aspect of equipment operation and maintenance.  Responsible to evaluate the home environment and the patients ability to deal with the specific equipment used and educate them accordingly.  Responsible for documentation and all training and follow up performed.",null,null,null,null,null,null,null,null,null,null,null,null,null,null,null,null,null,null,null,null,null,null,null,null,null,null,null,null,null,null,null,null,null,null,null,null,null,null,null,null,null,null,null,null,null,null,null,null,null,null,null,null,null,null,null,null,null,null,null,null,null,null,null,null,null,null,null,null,null,null,null,null,null,null,null,null,null,null,null,null,null,null,null,null,null,null,null,null,null,null,null,null,null,null,null,null,null,null,null,null,null,"9-53"]
["90-70","Medical / Health","Tech","Histology Technician","Prepares tissue specimens for routine and special procedures that aid in the confirmation of patient diagnosis.  Process, embed, cut and stain surgical biopsy and anatomical tissues for light and fluorescent microscopic slide review.  Performs complex histological procedures and analyzes and corrects problems using scientific principles.  Performs, records and analyzes data in order to make judgments.  Performs instrument maintenance, utilizing established protocols.  Follows established policies and procedures.",null,null,null,null,null,null,null,null,null,null,null,null,null,null,null,null,null,null,null,null,null,null,null,null,null,null,null,null,null,null,null,null,null,null,null,null,null,null,null,null,null,null,null,null,null,null,null,null,null,null,null,null,null,null,null,null,null,null,null,null,null,null,null,null,null,null,null,null,null,null,null,null,null,null,null,null,null,null,null,null,null,null,null,null,null,null,null,null,null,null,null,null,null,null,null,null,null,null,null,null,null,"9-333"]
["90-71","Medical / Health","Tech","Infection Control Coordinator","Investigates and monitors knows or potential sources of suspected infections in order to determine source and ensure control.  Knows standard methods and criteria for identifying nosocomial infections.  Provides related education to staff.  May prepare simple cultures as required for environmental and individual studies.  Reviews sterilization and disinfection techniques and recommends changes as necessary.",null,null,null,null,null,null,null,null,null,null,null,null,null,null,null,null,null,null,null,null,null,null,null,null,null,null,null,null,null,null,null,null,null,null,null,null,null,null,null,null,null,null,null,null,null,null,null,null,null,null,null,null,null,null,null,null,null,null,null,null,null,null,null,null,null,null,null,null,null,null,null,null,null,null,null,null,null,null,null,null,null,null,null,null,null,null,null,null,null,null,null,null,null,null,null,null,null,null,null,null,null,"9-47"]
["90-72","Medical / Health","Tech","Mammography Technologist","Performs a variety of routine mammography related procedures by operating x-ray equipment to make radiographs of designated areas.  Prepares and maintains records and files as directed.  Cleans and makes minor adjustments to equipment.  Must maintain certification in Diagnostic Mammography.",null,null,null,null,null,null,null,null,null,null,null,null,null,null,null,null,null,null,null,null,null,null,null,null,null,null,null,null,null,null,null,null,null,null,null,null,null,null,null,null,null,null,null,null,null,null,null,null,null,null,null,null,null,null,null,null,null,null,null,null,null,null,null,null,null,null,null,null,null,null,null,null,null,null,null,null,null,null,null,null,null,null,null,null,null,null,null,null,null,null,null,null,null,null,null,null,null,null,null,null,null,"9-223"]
["90-73","Medical / Health","Tech","Operating Room Technician","Assists surgical team during operative procedures.  Arranges and inventories sterile setup for operation, and passes items as needed to the operating team.  Assists in preparing and moving patients, and in cleaning the operating theater.  May prepare operative specimens for analysis.",null,null,null,null,null,null,null,null,null,null,null,null,null,null,null,null,null,null,null,null,null,null,null,null,null,null,null,null,null,null,null,null,null,null,null,null,null,null,null,null,null,null,null,null,null,null,null,null,null,null,null,null,null,null,null,null,null,null,null,null,null,null,null,null,null,null,null,null,null,null,null,null,null,null,null,null,null,null,null,null,null,null,null,null,null,null,null,null,null,null,null,null,null,null,null,null,null,null,null,null,null,"9-49"]
["90-74","Medical / Health","Tech","Ophthalmic Technician","Tests and measures eye function to assist Ophthalmologist to diagnose and treat eye disorders and disease.  Tests patients far acuity, near acuity, peripheral vision, depth perception, and color perception.",null,null,null,null,null,null,null,null,null,null,null,null,null,null,null,null,null,null,null,null,null,null,null,null,null,null,null,null,null,null,null,null,null,null,null,null,null,null,null,null,null,null,null,null,null,null,null,null,null,null,null,null,null,null,null,null,null,null,null,null,null,null,null,null,null,null,null,null,null,null,null,null,null,null,null,null,null,null,null,null,null,null,null,null,null,null,null,null,null,null,null,null,null,null,null,null,null,null,null,null,null,"9-31"]
["90-75","Medical / Health","Tech","Phlebotomist","Collects blood specimens from patients by either venipuncture or microtechnique to facilitate testing by laboratory technologists.  Also performs tests either wholly or in part such as breathing-time studies.  Analyzes patient's specimens by various procedures in the urinalysis department.",null,null,null,null,null,null,null,null,null,null,null,null,null,null,null,null,null,null,null,null,null,null,null,null,null,null,null,null,null,null,null,null,null,null,null,null,null,null,null,null,null,null,null,null,null,null,null,null,null,null,null,null,null,null,null,null,null,null,null,null,null,null,null,null,null,null,null,null,null,null,null,null,null,null,null,null,null,null,null,null,null,null,null,null,null,null,null,null,null,null,null,null,null,null,null,null,null,null,null,null,null,"9-34"]
["90-76","Medical / Health","Tech","Radiologic Technologist                      ","Takes x-ray photographs of various portions of the body to assist in the diagnosis of disease or injuries.  Uses portable or stationary equipment.  Positions and measures patient to determine technique to employ.  Exposes, identifies, develops and dries film.  Administers chemical mixtures to render organs more opaque when required.  Assists with fluoroscopic examinations and in treating diseased areas.  Maintains equipment.  Must maintain license.",null,null,null,null,null,null,null,null,null,null,null,null,null,null,null,null,null,null,null,null,null,null,null,null,null,null,null,null,null,null,null,null,null,null,null,null,null,null,null,null,null,null,null,null,null,null,null,null,null,null,null,null,null,null,null,null,null,null,null,null,null,null,null,null,null,null,null,null,null,null,null,null,null,null,null,null,null,null,null,null,null,null,null,null,null,null,null,null,null,null,null,null,null,null,null,null,null,null,null,null,null,"9-221"]
["90-77","Medical / Health","Tech","Radiology Technician                 ","Under the direction of a registered radiology tech or radiologist, operates radiographic equipment to obtain ordered radiographs consistent with department radiographic routines and procedures.  In doing so, positions patients, adjusts equipment for proper exposure settings and develops films following the procedure.  Performs limited procedures according to permit limitations. Has limited permit",null,null,null,null,null,null,null,null,null,null,null,null,null,null,null,null,null,null,null,null,null,null,null,null,null,null,null,null,null,null,null,null,null,null,null,null,null,null,null,null,null,null,null,null,null,null,null,null,null,null,null,null,null,null,null,null,null,null,null,null,null,null,null,null,null,null,null,null,null,null,null,null,null,null,null,null,null,null,null,null,null,null,null,null,null,null,null,null,null,null,null,null,null,null,null,null,null,null,null,null,null,"9-222"]
["90-78","Medical / Health","Tech","Technician, Bio-Med Equipment","Maintains, repairs and inspects patient care equipment ranging from simple mechanical devises to state-of-the-art computer based systems.  Assists in equipment pre-purchase evaluations and incident investigations.  Trains clinical staff in the operations of patient care equipment.",null,null,null,null,null,null,null,null,null,null,null,null,null,null,null,null,null,null,null,null,null,null,null,null,null,null,null,null,null,null,null,null,null,null,null,null,null,null,null,null,null,null,null,null,null,null,null,null,null,null,null,null,null,null,null,null,null,null,null,null,null,null,null,null,null,null,null,null,null,null,null,null,null,null,null,null,null,null,null,null,null,null,null,null,null,null,null,null,null,null,null,null,null,null,null,null,null,null,null,null,null,"9-17"]
["90-79","Medical / Health","Tech","Technician, CT Scanning","Performs computed topography procedures at a level requiring no constant supervision of technical detail.  Performs a variety of technical procedures that will require independent judgment, with ingenuity and initiative to apply prescribed ionizing radiation for radiographic diagnosis.",null,null,null,null,null,null,null,null,null,null,null,null,null,null,null,null,null,null,null,null,null,null,null,null,null,null,null,null,null,null,null,null,null,null,null,null,null,null,null,null,null,null,null,null,null,null,null,null,null,null,null,null,null,null,null,null,null,null,null,null,null,null,null,null,null,null,null,null,null,null,null,null,null,null,null,null,null,null,null,null,null,null,null,null,null,null,null,null,null,null,null,null,null,null,null,null,null,null,null,null,null,"9-18"]
["90-80","Medical / Health","Tech","Technician, MRI","Performs magnetic resonance imaging procedures at a level requiring no constant supervision of technical detail.  Performs a variety of technical procedures that require independent judgment, with ingenuity and initiative to provide for MRI diagnosis.",null,null,null,null,null,null,null,null,null,null,null,null,null,null,null,null,null,null,null,null,null,null,null,null,null,null,null,null,null,null,null,null,null,null,null,null,null,null,null,null,null,null,null,null,null,null,null,null,null,null,null,null,null,null,null,null,null,null,null,null,null,null,null,null,null,null,null,null,null,null,null,null,null,null,null,null,null,null,null,null,null,null,null,null,null,null,null,null,null,null,null,null,null,null,null,null,null,null,null,null,null,"9-19"]
["90-81","Medical / Health","Tech","Technician, Nuclear Medicine","Performs radio-nuclide procedures at a technical level requiring no constant supervision of technical detail.  Performs a wide variety of technical procedures that require independent judgment, with ingenuity and initiative to apply prescribed radio-pharmaceuticals for diagnosis and therapy. Must maintain certification.",null,null,null,null,null,null,null,null,null,null,null,null,null,null,null,null,null,null,null,null,null,null,null,null,null,null,null,null,null,null,null,null,null,null,null,null,null,null,null,null,null,null,null,null,null,null,null,null,null,null,null,null,null,null,null,null,null,null,null,null,null,null,null,null,null,null,null,null,null,null,null,null,null,null,null,null,null,null,null,null,null,null,null,null,null,null,null,null,null,null,null,null,null,null,null,null,null,null,null,null,null,"9-20"]
["90-82","Medical / Health","Tech","Technician, Ultrasound","Produces two-dimensional- ultrasonic recordings of internal organs using ultrasound equipment, for use by physician in diagnosis.  Discusses test results with supervisor or attending physician.",null,null,null,null,null,null,null,null,null,null,null,null,null,null,null,null,null,null,null,null,null,null,null,null,null,null,null,null,null,null,null,null,null,null,null,null,null,null,null,null,null,null,null,null,null,null,null,null,null,null,null,null,null,null,null,null,null,null,null,null,null,null,null,null,null,null,null,null,null,null,null,null,null,null,null,null,null,null,null,null,null,null,null,null,null,null,null,null,null,null,null,null,null,null,null,null,null,null,null,null,null,"9-21"]
["90-83","Medical / Health","Tech","Technician, X-Ray","Operates radiological equipment to produce radiographs (x-rays) of body for diagnostic purposes.  Positions patient on examining table to obtain optimum view of specific area of body requested by physician.  Adjust equipment setting to get best images. Must maintain certification.",null,null,null,null,null,null,null,null,null,null,null,null,null,null,null,null,null,null,null,null,null,null,null,null,null,null,null,null,null,null,null,null,null,null,null,null,null,null,null,null,null,null,null,null,null,null,null,null,null,null,null,null,null,null,null,null,null,null,null,null,null,null,null,null,null,null,null,null,null,null,null,null,null,null,null,null,null,null,null,null,null,null,null,null,null,null,null,null,null,null,null,null,null,null,null,null,null,null,null,null,null,"9-22"]
["30-00","Not-for-Profit","Public Assistance","Homeownership Planner I","Assist foreclosure clients in working with their loan servicer; Analyze clients budget and finances to determine ability to make mortgage payment; Guide clients in choosing the best option based on their situation; Follow up with servicers on clients status; Ensure that all required paperwork is in client file and is in compliance with HUD; Data entry; One on one counseling sessions with clients; Assist clients with budgeting and finances to determine mortgage readiness; Participate in the Section 8 to Homeownership team. Requires a Bachelor's degree in counseling, education, or a finance related field and 3 years experience in position with related duties.",null,null,null,null,null,null,null,null,null,null,null,null,null,null,null,null,null,null,null,null,null,null,null,null,null,null,null,null,null,null,null,null,null,null,null,null,null,null,null,null,null,null,null,null,null,null,null,null,null,null,null,null,null,null,null,null,null,null,null,null,null,null,null,null,null,null,null,null,null,null,null,null,null,null,null,null,null,null,null,null,null,null,null,null,null,null,null,null,null,null,null,null,null,null,null,null,null,null,null,null,null,"4-478"]
["30-01","Not-for-Profit","Public Assistance","Homeownership Planner II","Assist foreclosure clients in working with their loan servicer; Analyze clients budget and finances to determine ability to make mortgage payment; Guide clients in choosing the best option based on their situation; Follow up with servicers on clients status; Ensure that all required paperwork is in client file and is in compliance with HUD; Data entry; One on one counseling sessions with clients; Assist clients with budgeting and finances to determine mortgage readiness; Backup to Homebuyer Education facilitator; Participate in the Section 8 to Homeownership team. Requires a Bachelor's degree in counseling, education, or a finance related field and 5 years experience in position with related duties.",null,null,null,null,null,null,null,null,null,null,null,null,null,null,null,null,null,null,null,null,null,null,null,null,null,null,null,null,null,null,null,null,null,null,null,null,null,null,null,null,null,null,null,null,null,null,null,null,null,null,null,null,null,null,null,null,null,null,null,null,null,null,null,null,null,null,null,null,null,null,null,null,null,null,null,null,null,null,null,null,null,null,null,null,null,null,null,null,null,null,null,null,null,null,null,null,null,null,null,null,null,"4-479"]
["30-02","Not-for-Profit","Public Assistance","Section 8 Specialist I","Implement Section 8 Housing Choice Voucher (HCV) Program in accordance with Federal and State regulations and Housing and Urban Development (HUD) housing quality standards. Assist low-income clients by coordinating new and existing contracts with landlords and the clients in conjunction with local, State and Federal guidelines.  ",null,null,null,null,null,null,null,null,null,null,null,null,null,null,null,null,null,null,null,null,null,null,null,null,null,null,null,null,null,null,null,null,null,null,null,null,null,null,null,null,null,null,null,null,null,null,null,null,null,null,null,null,null,null,null,null,null,null,null,null,null,null,null,null,null,null,null,null,null,null,null,null,null,null,null,null,null,null,null,null,null,null,null,null,null,null,null,null,null,null,null,null,null,null,null,null,null,null,null,null,null,"4-473"]
["30-03","Not-for-Profit","Public Assistance","Section 8 Specialist II","Implement Section 8 Housing Choice Voucher (HCV) Program in accordance with Federal and State regulations and Housing and Urban Development (HUD) housing quality standards. Assist low-income clients by coordinating new and existing contracts with landlords and the clients in conjunction with local, State and Federal guidelines.  ",null,null,null,null,null,null,null,null,null,null,null,null,null,null,null,null,null,null,null,null,null,null,null,null,null,null,null,null,null,null,null,null,null,null,null,null,null,null,null,null,null,null,null,null,null,null,null,null,null,null,null,null,null,null,null,null,null,null,null,null,null,null,null,null,null,null,null,null,null,null,null,null,null,null,null,null,null,null,null,null,null,null,null,null,null,null,null,null,null,null,null,null,null,null,null,null,null,null,null,null,null,"4-474"]
["30-04","Not-for-Profit OR For-Profit","Admissions","Eligibility Examiner","Process applications and determine eligibility using complex and current regulations.  Analyze information provided as it applies to local, state and federal mandated regulations and through face-to-face interviews and extensive phone contact with clients in order to accurately determine eligibility.  Asses emergency situations and make appropriate referrals to help clients with immediate needs, negotiate with members.  Conduct outreach and education activities to increase awareness of programs, including public appearances at community events.  Requires two years college-level Human Services coursework or three years equivalent work experience",null,null,null,null,null,null,null,null,null,null,null,null,null,null,null,null,null,null,null,null,null,null,null,null,null,null,null,null,null,null,null,null,null,null,null,null,null,null,null,null,null,null,null,null,null,null,null,null,null,null,null,null,null,null,null,null,null,null,null,null,null,null,null,null,null,null,null,null,null,null,null,null,null,null,null,null,null,null,null,null,null,null,null,null,null,null,null,null,null,null,null,null,null,null,null,null,null,null,null,null,null,"4-472"]
["30-05","Not-for-Profit OR For-Profit","Direct Care","Family Support Assistant / Youth Support Specialist","Family Support Assistants work directly with youth and families in the community. Family Support Assistants provide supervised therapeutic services to youth and families with behavioral and emotional difficulties for the purpose of maintaining and supporting the family. High school graduate with at least two (2) years experience working with emotionally disturbed youth, or developmentally disabled youth. ",null,null,null,null,null,null,null,null,null,null,null,null,null,null,null,null,null,null,null,null,null,null,null,null,null,null,null,null,null,null,null,null,null,null,null,null,null,null,null,null,null,null,null,null,null,null,null,null,null,null,null,null,null,null,null,null,null,null,null,null,null,null,null,null,null,null,null,null,null,null,null,null,null,null,null,null,null,null,null,null,null,null,null,null,null,null,null,null,null,null,null,null,null,null,null,null,null,null,null,null,null,"4-477"]
["30-06","Not-for-Profit OR For-Profit","Direct Care","Counselor (Youth) , Mental Health Worker/Assistant","Counselors work directly with youth in the program. Counselors provide supervised therapeutic services to youth with developmental, behavioral and emotional difficulties for the purpose of meeting the goals of each youth’s Treatment Plan. Supervision is exercised over several youth clients on an assigned shift. Because an employee is this position is located in a work environment associated with potentially unstable youth, the work may involve an element of personal danger. Bachelor’s degree with a  focus on social work, psychology, education, guidance, human services or a similar discipline and one year of experience working with vulnerable clients.",null,null,null,null,null,null,null,null,null,null,null,null,null,null,null,null,null,null,null,null,null,null,null,null,null,null,null,null,null,null,null,null,null,null,null,null,null,null,null,null,null,null,null,null,null,null,null,null,null,null,null,null,null,null,null,null,null,null,null,null,null,null,null,null,null,null,null,null,null,null,null,null,null,null,null,null,null,null,null,null,null,null,null,null,null,null,null,null,null,null,null,null,null,null,null,null,null,null,null,null,null,"4-475"]
["30-065","Not-for-Profit OR For-Profit","Direct Care","Counselor (Adult) , Mental Health Worker/Assistant","Counselors work directly with Adults in the program. Counselors provide supervised therapeutic services to adults with developmental, behavioral and emotional difficulties for the purpose of meeting the goals of each youth’s Treatment Plan. Supervision is exercised over several adult clients on an assigned shift. Because an employee is this position is located in a work environment associated with potentially unstable adults, the work may involve an element of personal danger. Bachelor’s degree with a  focus on social work, psychology, education, guidance, human services or a similar discipline and one year of experience working with vulnerable clients.",null,null,null,null,null,null,null,null,null,null,null,null,null,null,null,null,null,null,null,null,null,null,null,null,null,null,null,null,null,null,null,null,null,null,null,null,null,null,null,null,null,null,null,null,null,null,null,null,null,null,null,null,null,null,null,null,null,null,null,null,null,null,null,null,null,null,null,null,null,null,null,null,null,null,null,null,null,null,null,null,null,null,null,null,null,null,null,null,null,null,null,null,null,null,null,null,null,null,null,null,null,"4-475"]
["30-07","Not-for-Profit OR For-Profit","Direct Care","Case Manager","Responsible for intensive case management services for program participants in a non-profit organization.  Determines specific needs, monitors and counsels participants, schedules activities, manages services and ensures participants are in compliance with specific program guidelines and licensing requirements.  Primarily responsible for providing information and referral to consumers, family members, advocates, agencies and interested parties about agencies, services and issues concerning persons with disabilities/diagnoses. Document supportive services, referrals, participant goals, and communications; maintain documentation within specific program guidelines.  Expand collaborations by participating in on-going communications with local and State agencies.  Requires Bachelor’s Degree in Human Services or equivalent plus two years of related Human Services work, or equivalent.",null,null,null,null,null,null,null,null,null,null,null,null,null,null,null,null,null,null,null,null,null,null,null,null,null,null,null,null,null,null,null,null,null,null,null,null,null,null,null,null,null,null,null,null,null,null,null,null,null,null,null,null,null,null,null,null,null,null,null,null,null,null,null,null,null,null,null,null,null,null,null,null,null,null,null,null,null,null,null,null,null,null,null,null,null,null,null,null,null,null,null,null,null,null,null,null,null,null,null,null,null,"4-471"]
["30-08","Not-for-Profit OR For-Profit","Direct Care","Program Coordinator","Under the direction of the Clinical Director, oversees the administrative duties and daily operation of the organization's youth programming.  Responsible for assisting the Lead Staff with ensuring the milieu is a therapeutic setting and a safe and secure environment at all times, while ensuring the application of all operating and reporting procedures are performed appropriately.  In collaboration with the Clinical Director, this role maintains program philosophy, goals and objectives, which are aligned with the organization's objectives for youth programming and services.  Requires a Bachelor’s degree in Human Service field and/or two years of therapeutic residential group home or hospital-based treatment experience.  Experience with both the seriously emotionally disturbed and chemical dependent is preferred.  ",null,null,null,null,null,null,null,null,null,null,null,null,null,null,null,null,null,null,null,null,null,null,null,null,null,null,null,null,null,null,null,null,null,null,null,null,null,null,null,null,null,null,null,null,null,null,null,null,null,null,null,null,null,null,null,null,null,null,null,null,null,null,null,null,null,null,null,null,null,null,null,null,null,null,null,null,null,null,null,null,null,null,null,null,null,null,null,null,null,null,null,null,null,null,null,null,null,null,null,null,null,"4-430"]
["30-09","Not-for-Profit OR For-Profit","Programs","Education Coordinator","Coordinates research activities concerned with educational programs and services.  Coordinates and schedules group viewing of exhibits or resources.  Ensures that high quality, individualized education is provided where appropriate.",null,null,null,null,null,null,null,null,null,null,null,null,null,null,null,null,null,null,null,null,null,null,null,null,null,null,null,null,null,null,null,null,null,null,null,null,null,null,null,null,null,null,null,null,null,null,null,null,null,null,null,null,null,null,null,null,null,null,null,null,null,null,null,null,null,null,null,null,null,null,null,null,null,null,null,null,null,null,null,null,null,null,null,null,null,null,null,null,null,null,null,null,null,null,null,null,null,null,null,null,null,"4-47"]
["30-10","Not-for-Profit OR For-Profit","Programs","Equine Program Coordinator","Under the supervision of the Program Director and/or Clinical Directorl  This position facilitates horsemanship/riding programs. Horsemanship/Riding programs involve; care for horses, and maintain horse facility. Present in a classroom educational format safe riding skills and habits of horsemanship to youth participating in the riding program. Ensure that youth-clients have appropriate apparel for horseback riding and that the proper safety procedures are followed at all times,  Develop a routine and implement equine-assisted therapeutic curriculum, Teach youth good horsemanship skills needed to safely work around and properly care for a horse, to include reading equine behavior, tacking and un-tacking, grooming, nutrition, anatomy, and basic horse first aid, through mounted and unmounted horse activities. This position is also responsible for grooming and checking horses for injuries or illness daily, and managing scheduling of veterinary care. Requires a minimum of a certificate from a nationally recognized horseback riding organization or riding school, or written verification of successful experience in formal horseback riding instruction."]
["30-12","Not-for-Profit OR For-Profit","Programs","Volunteer Coordinator","Coordinates/Supervises volunteer workers and coordinates activities in specified project or work area within an organization to help strengthen and extend selected public or private programs and projects by performing the following duties. Recruits, interviews and classifies applicants for volunteer work and trains and supervises volunteers in specific assignments. Informs volunteers of policies, procedures, and standards of volunteer service. Reviews written reports and observes work activities of volunteers to evaluate work performance.",null,null,null,null,null,null,null,null,null,null,null,null,null,null,null,null,null,null,null,null,null,null,null,null,null,null,null,null,null,null,null,null,null,null,null,null,null,null,null,null,null,null,null,null,null,null,null,null,null,null,null,null,null,null,null,null,null,null,null,null,null,null,null,null,null,null,null,null,null,null,null,null,null,null,null,null,null,null,null,null,null,null,null,null,null,null,null,null,null,null,null,null,null,null,null,null,null,null,null,null,null,"4-40"]
["30-13","Not-for-Profit OR For-Profit","Fundraising","Grant Administrator","Directs the activities concerned with the obtaining and administration of grants by performing the following duties either personally or through subordinates.  Examines estimates of material, equipment, production costs, performance requirements, and delivery schedules to insure completeness and accuracy.  Keeps abreast of all policy changes that affect the obtaining or administration of grants.",null,null,null,null,null,null,null,null,null,null,null,null,null,null,null,null,null,null,null,null,null,null,null,null,null,null,null,null,null,null,null,null,null,null,null,null,null,null,null,null,null,null,null,null,null,null,null,null,null,null,null,null,null,null,null,null,null,null,null,null,null,null,null,null,null,null,null,null,null,null,null,null,null,null,null,null,null,null,null,null,null,null,null,null,null,null,null,null,null,null,null,null,null,null,null,null,null,null,null,null,null,"3-11"]
["30-14","Not-for-Profit OR For-Profit","Fundraising","Grant Writer","Prepares proposals for submittal to potential funding sources to obtain funds for ongoing or special projects.  Identifies and researches sources of funding.  Researches funding source requirements and deadlines.  Determines goals and objectives for funding needs.",null,null,null,null,null,null,null,null,null,null,null,null,null,null,null,null,null,null,null,null,null,null,null,null,null,null,null,null,null,null,null,null,null,null,null,null,null,null,null,null,null,null,null,null,null,null,null,null,null,null,null,null,null,null,null,null,null,null,null,null,null,null,null,null,null,null,null,null,null,null,null,null,null,null,null,null,null,null,null,null,null,null,null,null,null,null,null,null,null,null,null,null,null,null,null,null,null,null,null,null,null,"3-111"]
["30-15","Not-for-Profit","Management","Chief Development Executive (Small Organization)","Responsible for directing the fundraising activities of the organization.  Oversees the development of fundraising strategies and campaigns, establishes and maintains  contact with potential financial supporters including private and public organizations, will identify potential grant or business opportunities and oversee the preparation of proposals.",null,null,null,null,null,null,null,null,null,null,null,null,null,null,null,null,null,null,null,null,null,null,null,null,null,null,null,null,null,null,null,null,null,null,null,null,null,null,null,null,null,null,null,null,null,null,null,null,null,null,null,null,null,null,null,null,null,null,null,null,null,null,null,null,null,null,null,null,null,null,null,null,null,null,null,null,null,null,null,null,null,null,null,null,null,null,null,null,null,null,null,null,null,null,null,null,null,null,null,null,null,"4-35"]
["30-16","Not-for-Profit","Management","Chief Development Executive (Large Organization)","Responsible for directing the fundraising activities of the organization.  Oversees the development of fundraising strategies and campaigns, establishes and maintains  contact with potential financial supporters including private and public organizations, will identify potential grant or business opportunities and oversee the preparation of proposals.",null,null,null,null,null,null,null,null,null,null,null,null,null,null,null,null,null,null,null,null,null,null,null,null,null,null,null,null,null,null,null,null,null,null,null,null,null,null,null,null,null,null,null,null,null,null,null,null,null,null,null,null,null,null,null,null,null,null,null,null,null,null,null,null,null,null,null,null,null,null,null,null,null,null,null,null,null,null,null,null,null,null,null,null,null,null,null,null,null,null,null,null,null,null,null,null,null,null,null,null,null,"4-351"]
["30-17","Not-for-Profit OR For-Profit","Management","Clinical Director","The Clinical Director is responsible for oversight of therapeutic services for enrolled youth to receive Health Treatment Services, and Group Home Services.  Provides professional guidance and direction in order to maintain and improve the quality of clinical services delivered, while effectively meeting the needs of the participants enrolled in the organization's services. Manages all departmental staff. Also facilitates training for clinical team members, staff therapist, lead clinical staff cognitive behavioral skill techniques that facilitate change, using motivational methods with behavior modification goals. This position also oversees the outpatient services offered by the organization, and administers mental health assessments for various diagnoses. May also be assigned to provide treatment to a caseload of clients. Requires a minimum of a Master's Degree from an accredited college or university with major course work in Social work, Counseling or Psychology. Also requires extensive experience working with troubled youth and families, and the subsequent development of the emotional problems in clients."]
["30-18","Not-for-Profit OR For-Profit","Management","Director of Community Engagement","Responsible for Community Building and Organizing programs, including personnel, budget, communications and program management. Work includes Identify emerging community needs, issues and trends in target neighborhoods, as well as duplication of and gaps in service; develop new programs and outreach activities; budgeting; participate in organizational strategic planning; manage program staff, volunteers; grant writing; manage project compliance and reporting requirements; enhance visibility of programs through media relations and community involvement; development and support for residents and volunteers by building stakeholder engagement; collaborate with various committees to develop strategy and resources for the programs, reviewing and assessing program data and promoting program; facilitate, develop and support, community building activities, such as neighborhood stabilization, public safety, community revitalization and healthy initiatives. BA or BS plus 5 years of related experience",null,null,null,null,null,null,null,null,null,null,null,null,null,null,null,null,null,null,null,null,null,null,null,null,null,null,null,null,null,null,null,null,null,null,null,null,null,null,null,null,null,null,null,null,null,null,null,null,null,null,null,null,null,null,null,null,null,null,null,null,null,null,null,null,null,null,null,null,null,null,null,null,null,null,null,null,null,null,null,null,null,null,null,null,null,null,null,null,null,null,null,null,null,null,null,null,null,null,null,null,null,"4-476"]
["30-19","Not-for-Profit OR For-Profit","Management","Executive Director / Chief Executive Officer (CEO) / President","Responsible for the overall organizational budget, plans and objectives including short and long range goals.  Provides leadership to the staff,  with the expected outcome of providing the highest quality service. May oversee business development, grant proposal and fundraising activities. In Non-Profit organizations, role reports directly to the Board of Directors.",null,null,null,null,null,null,null,null,null,null,null,null,null,null,null,null,null,null,null,null,null,null,null,null,null,null,null,null,null,null,null,null,null,null,null,null,null,null,null,null,null,null,null,null,null,null,null,null,null,null,null,null,null,null,null,null,null,null,null,null,null,null,null,null,null,null,null,null,null,null,null,null,null,null,null,null,null,null,null,null,null,null,null,null,null,null,null,null,null,null,null,null,null,null,null,null,null,null,null,null,null,"4-37"]
["30-20","Not-for-Profit OR For-Profit","Management","Program Director","'Directs and coordinates the activities of the line and staff components of the organizational unit toward the achievement of established objectives.  May be accountable for the full range of operations of the organizational unit, including: contract negotiating, grant writing, budget planning, personnel management, supportive services, accounting, communications, clerical, purchasing, information technology and facilities management. Provides guidance, in developing, planning, analyzing and appraising the effectiveness of all organizational programs. (This is a non-clinical position).",null,null,null,null,null,null,null,null,null,null,null,null,null,null,null,null,null,null,null,null,null,null,null,null,null,null,null,null,null,null,null,null,null,null,null,null,null,null,null,null,null,null,null,null,null,null,null,null,null,null,null,null,null,null,null,null,null,null,null,null,null,null,null,null,null,null,null,null,null,null,null,null,null,null,null,null,null,null,null,null,null,null,null,null,null,null,null,null,null,null,null,null,null,null,null,null,null,null,null,null,null,"4-432"]
["30-21","Not-for-Profit OR For-Profit","Management","Program Manager","The Program Manager in charge of a designated client care program.  Responsible for the development and administration of the program activities to ensure goals and objectives are accomplished within the prescribed time frame and funding parameters. May evaluate contract performance to determine compliance with contractual obligations, make recommendations to administration or may decide requests for deviations.  Duties may include preparing funding and project proposals, monitoring program performance, handling complaints, arbitrate and resolve grievances, and, database management to ensure compliance with state and other regulatory requirements.  Monitor the satisfaction of program collaborators.  May be required to maintain certification in areas associated with responsibilities.",null,null,null,null,null,null,null,null,null,null,null,null,null,null,null,null,null,null,null,null,null,null,null,null,null,null,null,null,null,null,null,null,null,null,null,null,null,null,null,null,null,null,null,null,null,null,null,null,null,null,null,null,null,null,null,null,null,null,null,null,null,null,null,null,null,null,null,null,null,null,null,null,null,null,null,null,null,null,null,null,null,null,null,null,null,null,null,null,null,null,null,null,null,null,null,null,null,null,null,null,null,"4-431"]
["30-25","Not-for-Profit OR For-Profit","Programs","Recreation Coordinator","Under the supervision of the Program Director and/or Clinical Director; the Recreation Coordinator is responsible for the supervision, coordination, planning, development, and evaluation of community recreation programs in a specific area of recreation occurring at various community recreation facilities; or provides multipurpose facility supervision supporting a specific area of recreation occurring at various facilities; and performs related duties as required.  Requires responsibility for analyzing community and group recreational needs, in selecting and adapting programs to meet those needs, in procuring the materials and resources necessary for implementing recreation programs, and in making the most effective use of the facilities and staff. This position facilitates recreation programming for clients, community members, or special interest groups as assigned or determined by business operations and mission.  Activities may include sports, trips, dramatics, social activities, fundraisers, and arts and crafts. May assess business/community conditions and recommend appropriate recreational activities to meet objectives. Reqiires a Bachelor's degree from an accredited college or university, 1-2 years experience with recreation activities or programming responsibilities."]
["30-26","Not-for-Profit OR For-Profit","Programs","RECREATIONAL PROGRAM SUPERVISOR","Under the general supervision of the Department Director, or the CEO, this position is responsible for overseeing and directing the recreational program by independently planning, scheduling, and coordinating a wide variety of adult and youth indoor and outdoor recreational activities; training, coordinating and evaluating the work of instructors, coaches, referees, score-keepers; supervision of regular program staff and volunteer personnel; evaluates the need and community support for the programs on a self-sustaining basis. This position has a considerable amount of contact in person, by phone, or in writing with the public to assess recreational programs; with employees of other departments to coordinate programs; and with public agencies or private businesses to locate facilities for programs or to obtain financial or other assistance.  Requires two years of recreational programming work experience which included year-round indoor and outdoor programs for all age groups; or substituting major course work or training in recreation programming for up to one year of experience; or any equivalent combination of experience and training.\n"]
["15-00","Operations","Labor","Laborer, General","Performs manual labor of a general character and simple nature, requiring no special training judgment, or skill.  Includes work such as moving and handling materials, unloading or loading freight cars and trucks.  Works under direct supervision.  Does not include helpers for skilled workers.",null,null,null,null,null,null,null,null,null,null,null,null,null,null,null,null,null,null,null,null,null,null,null,null,null,null,null,null,null,null,null,null,null,null,null,null,null,null,null,null,null,null,null,null,null,null,null,null,null,null,null,null,null,null,null,null,null,null,null,null,null,null,null,null,null,null,null,null,null,null,null,null,null,null,null,null,null,null,null,null,null,null,null,null,null,null,null,null,null,null,null,null,null,null,null,null,null,null,null,null,null,"2-12"]
["15-01","Operations","Supervisory","General Supervisor","Working under management guidance, schedules work, assists with employee selection, reviews employee performance, administers work rules and recommends compensation, unless it is governed by contract.  Responsible for productivity and quality management to the extent that it falls within the job's span of control.  Recommends equipment upgrades, staffing adjustments, process modifications and may recommend product or service modifications.  Manages a shift or multi-department area.  Responsibilities may extend to overall facilities security and maintenance during duty hours.",null,null,null,null,null,null,null,null,null,null,null,null,null,null,null,null,null,null,null,null,null,null,null,null,null,null,null,null,null,null,null,null,null,null,null,null,null,null,null,null,null,null,null,null,null,null,null,null,null,null,null,null,null,null,null,null,null,null,null,null,null,null,null,null,null,null,null,null,null,null,null,null,null,null,null,null,null,null,null,null,null,null,null,null,null,null,null,null,null,null,null,null,null,null,null,null,null,null,null,null,null,"7-26"]
["15-02","Operations","Management","Operations Manager","Please see Chief Operations Executive 13-01 for non-manufacturing positions.  Manager in charge of one or more business operations in a manufacturing organization.  Responsible for a business process, service to clients or similar activity.  Manages the quality and cost efficiency of operations through subordinate supervisors.  Duties include managing planning and process development, equipment selection and operations performance.",null,null,null,null,null,null,null,null,null,null,null,null,null,null,null,null,null,null,null,null,null,null,null,null,null,null,null,null,null,null,null,null,null,null,null,null,null,null,null,null,null,null,null,null,null,null,null,null,null,null,null,null,null,null,null,null,null,null,null,null,null,null,null,null,null,null,null,null,null,null,null,null,null,null,null,null,null,null,null,null,null,null,null,null,null,null,null,null,null,null,null,null,null,null,null,null,null,null,null,null,null,"7-27"]
["15-04","Operations","Management","Chief Operating Officer","Directs and coordinates the activities of the line and staff components of the organizational unit toward the achievement of established objectives.  Is accountable for the full range of operations of the organizational unit, providing operational guidance and analyzing and appraising the effectiveness of all operations.  Acts as Chief Executive in the absence of the Chief Executive Officer.  Typical position titles include:  Vice President, Executive Vice President, General Manager, Senior Vice President, etc.  This position reports to Chief Executive Officer, if your Chief Operating Officer is also your CEO, please report position under CEO only.",null,null,null,null,null,null,null,null,null,null,null,null,null,null,null,null,null,null,null,null,null,null,null,null,null,null,null,null,null,null,null,null,null,null,null,null,null,null,null,null,null,null,null,null,null,null,null,null,null,null,null,null,null,null,null,null,null,null,null,null,null,null,null,null,null,null,null,null,null,null,null,null,null,null,null,null,null,null,null,null,null,null,null,null,null,null,null,null,null,null,null,null,null,null,null,null,null,null,null,null,null,"4-34"]
["15-05","Operations","Management","Chief Operations Executive                       Non-Manufacturing","Responsible for planning, controlling the entire range of activities of the organizational unit associated with the non-manufacturing function.  Coordinates and adjusts organizational processes and facility operations as needed to ensure the smooth execution of policies and procedures.  Typical position titles include: Vice President of Non-manufacturing, Vice President of Operations, Director of Operations, etc.",null,null,null,null,null,null,null,null,null,null,null,null,null,null,null,null,null,null,null,null,null,null,null,null,null,null,null,null,null,null,null,null,null,null,null,null,null,null,null,null,null,null,null,null,null,null,null,null,null,null,null,null,null,null,null,null,null,null,null,null,null,null,null,null,null,null,null,null,null,null,null,null,null,null,null,null,null,null,null,null,null,null,null,null,null,null,null,null,null,null,null,null,null,null,null,null,null,null,null,null,null,"4-36"]
["64-30","Safety","Safety","Safety Specialist","Professional within the safety function in an organization, typically requiring a bachelor’s degree specializing in occupational safety.  Assists with development and implementation of programs intended to reduce or eliminate occupational injuries, illnesses, deaths, and financial losses.  Duties include identifying and appraising conditions that could produce accidents and financial losses and evaluating the potential extent of injuries resulting from accidents and developing accident-prevention and loss-control systems and programs for incorporation into operational policies of the organization.  Supports safety activities of unit managers to ensure implementation of safety activities throughout organization.  Compiles, analyzes, and interprets statistical data related to exposure factors concerning occupational illnesses and accidents and prepares reports.  May also maintain liaison with outside organizations, such as fire departments, mutual aid societies, and rescue teams to assure information exchange and mutual assistance and participates in activities of related professional organizations.",null,null,null,null,null,null,null,null,null,null,null,null,null,null,null,null,null,null,null,null,null,null,null,null,null,null,null,null,null,null,null,null,null,null,null,null,null,null,null,null,null,null,null,null,null,null,null,null,null,null,null,null,null,null,null,null,null,null,null,null,null,null,null,null,null,null,null,null,null,null,null,null,null,null,null,null,null,null,null,null,null,null,null,null,null,null,null,null,null,null,null,null,null,null,null,null,null,null,null,null,null,"4-26"]
["64-31","Safety","Risk","Risk Manager","Manager responsible for controlling exposure of the organization to losses associated with personal injury, products liability, property damage or other areas.  Develops and recommends to senior management risk management policies for the organization.  Seeks to identify and mitigate exposure to loss through prevention of loss and purchase of insurance product.  Duties include regular auditing of operations, facilities and practices to identify potential problems and monitoring industry experiences with regard to liability.  Works closely with insurance organizations specializing in property and casualty and/or workers compensation coverage and attempt to secure favorable insurance rates when insurance is deemed appropriate. May supervise safety and/or workers compensation staff.",null,null,null,null,null,null,null,null,null,null,null,null,null,null,null,null,null,null,null,null,null,null,null,null,null,null,null,null,null,null,null,null,null,null,null,null,null,null,null,null,null,null,null,null,null,null,null,null,null,null,null,null,null,null,null,null,null,null,null,null,null,null,null,null,null,null,null,null,null,null,null,null,null,null,null,null,null,null,null,null,null,null,null,null,null,null,null,null,null,null,null,null,null,null,null,null,null,null,null,null,null,"4-24"]
["64-32","Safety","Management","Safety Manager","Manager of the safety function in an organization.  Develops and implements programs intended to reduce or eliminate occupational injuries, illnesses, deaths, and financial losses.  Duties include identifying and appraising conditions which could produce accidents and financial losses and evaluating the potential extent of resulting injuries.  Develops accident-prevention and loss-control systems and programs for incorporation into operational policies of the organization.  Coordinates safety activities of unit managers to ensure implementation throughout organization.  Compiles, analyzes, and interprets statistical data related to exposure factors concerning occupational illnesses and accidents and prepares reports.  Maintains liaison with outside organizations, such as fire departments, mutual aid societies, and rescue teams to assure information exchange and mutual assistance and participates in activities of related professional organizations.  May supervise professional safety staff and may have responsibility for security.",null,null,null,null,null,null,null,null,null,null,null,null,null,null,null,null,null,null,null,null,null,null,null,null,null,null,null,null,null,null,null,null,null,null,null,null,null,null,null,null,null,null,null,null,null,null,null,null,null,null,null,null,null,null,null,null,null,null,null,null,null,null,null,null,null,null,null,null,null,null,null,null,null,null,null,null,null,null,null,null,null,null,null,null,null,null,null,null,null,null,null,null,null,null,null,null,null,null,null,null,null,"4-25"]
["75-30","Sales & Marketing","Administrative","Sales and Marketing Assistant","Experienced level sales and marketing administrative assistant job.  This job typically requires an associate's degree and 2+ years of experience, or equivalent.  Incumbents perform administrative support work specific to sales and marketing department(s).  Incumbents assist the department manager and other department staff by performing a variety of support duties, such as data collection, compilation, research, records maintenance, custom reports, sales reports, customer profiles or program reports.  Incumbents may assist with preparation of marketing materials, maintain marketing materials inventory, serve as liaison with print shop vendors or distribute literature.  Incumbents typically use computer applications for word processing, spreadsheets, databases, graphics, web page content preparation or scheduling.  Incumbents may set up audiovisual or telecommunications equipment.  Incumbents must have the ability to exercise independent judgment and discretion.  Incumbents make non-routine choices within established guidelines, with minimal supervision.",null,null,null,null,null,null,null,null,null,null,null,null,null,null,null,null,null,null,null,null,null,null,null,null,null,null,null,null,null,null,null,null,null,null,null,null,null,null,null,null,null,null,null,null,null,null,null,null,null,null,null,null,null,null,null,null,null,null,null,null,null,null,null,null,null,null,null,null,null,null,null,null,null,null,null,null,null,null,null,null,null,null,null,null,null,null,null,null,null,null,null,null,null,null,null,null,null,null,null,null,null,"10-47"]
["75-31","Sales & Marketing","Administrative","Public Relations / Events Coordinator","Under general direction, plans and conducts public relations programs and events designed to raise funds and/or create and maintain favorable public image for the employer or client.  Prepares and distributes fact sheets, news releases, and other information to media or public representatives.  May research data, generate ideas, write copy, lay out artwork, and perform other duties related to agencies public image and fundraising efforts.",null,null,null,null,null,null,null,null,null,null,null,null,null,null,null,null,null,null,null,null,null,null,null,null,null,null,null,null,null,null,null,null,null,null,null,null,null,null,null,null,null,null,null,null,null,null,null,null,null,null,null,null,null,null,null,null,null,null,null,null,null,null,null,null,null,null,null,null,null,null,null,null,null,null,null,null,null,null,null,null,null,null,null,null,null,null,null,null,null,null,null,null,null,null,null,null,null,null,null,null,null,"1-04"]
["75-32","Sales & Marketing","Administrative","Event Planner","The Event Planner is responsible for the planning, operational oversight and program implementation for Company's strategic meetings and functions. This role will manage the day by day plan of action for assigned programs including meeting planning, communications, food and beverage management, group activities  coordination, on‐site coordination, travel engagement, travel logistics, data management, third‐party purchasing, budget development/management, financial reporting and travel requirements for Company's current and future events. The role is strategically important and has a high level of accountability due to the business critical impact of the programs on our stakeholders and company profit. Requires a minimum of two years of experience in event planning or hotel management. An Associates degree from an applicable filed of study can be considered as part of the required experience.",null,null,null,null,null,null,null,null,null,null,null,null,null,null,null,null,null,null,null,null,null,null,null,null,null,null,null,null,null,null,null,null,null,null,null,null,null,null,null,null,null,null,null,null,null,null,null,null,null,null,null,null,null,null,null,null,null,null,null,null,null,null,null,null,null,null,null,null,null,null,null,null,null,null,null,null,null,null,null,null,null,null,null,null,null,null,null,null,null,null,null,null,null,null,null,null,null,null,null,null,null,"10-15"]
["75-33","Sales & Marketing","Marketing","Advertising / Sales Promotion Manager","Responsible for overall management, direction and coordination of the organization's advertising, promotion, and publicity programs.  May be responsible for planning and directing exhibits, conventions or trade shows.",null,null,null,null,null,null,null,null,null,null,null,null,null,null,null,null,null,null,null,null,null,null,null,null,null,null,null,null,null,null,null,null,null,null,null,null,null,null,null,null,null,null,null,null,null,null,null,null,null,null,null,null,null,null,null,null,null,null,null,null,null,null,null,null,null,null,null,null,null,null,null,null,null,null,null,null,null,null,null,null,null,null,null,null,null,null,null,null,null,null,null,null,null,null,null,null,null,null,null,null,null,"10-04"]
["75-34","Sales & Marketing","Marketing","Desktop Publishing Operator","Duties include preparation of more complex report documents,  or other printed media, and the judgment to lay out pages in a pleasing and efficient manner.  Incumbents use advanced features of software publishing applications.  Incumbents may prepare web page layouts.",null,null,null,null,null,null,null,null,null,null,null,null,null,null,null,null,null,null,null,null,null,null,null,null,null,null,null,null,null,null,null,null,null,null,null,null,null,null,null,null,null,null,null,null,null,null,null,null,null,null,null,null,null,null,null,null,null,null,null,null,null,null,null,null,null,null,null,null,null,null,null,null,null,null,null,null,null,null,null,null,null,null,null,null,null,null,null,null,null,null,null,null,null,null,null,null,null,null,null,null,null,"10-08"]
["75-35","Sales & Marketing","Marketing","Graphic Artist","Experienced commercial artist, typically requiring a two or four year liberal arts degree and 3+ years of experience, or equivalent.  Incumbents will draw, sketch or modify images of merchandise or models for use in catalogs, advertising, technical manuals, displays or web sites.  Incumbents may scan, edit, crop or otherwise modify images.  Incumbents may use brushes, air brushes, computer graphics applications or other media to accomplish the desired end result.",null,null,null,null,null,null,null,null,null,null,null,null,null,null,null,null,null,null,null,null,null,null,null,null,null,null,null,null,null,null,null,null,null,null,null,null,null,null,null,null,null,null,null,null,null,null,null,null,null,null,null,null,null,null,null,null,null,null,null,null,null,null,null,null,null,null,null,null,null,null,null,null,null,null,null,null,null,null,null,null,null,null,null,null,null,null,null,null,null,null,null,null,null,null,null,null,null,null,null,null,null,"10-09"]
["75-36","Sales & Marketing","Marketing","Market Research Analyst","Duties include collection of consumer or customer data from multiple sources as well as analysis of data and preparation of reports to assist with decision making.  Specific tasks may include interviewing individuals, designing and conducting surveys, designing databases and data mining.  Receives considerable project direction from senior staff and management and may spend the majority of time working on assigned segments of a project.",null,null,null,null,null,null,null,null,null,null,null,null,null,null,null,null,null,null,null,null,null,null,null,null,null,null,null,null,null,null,null,null,null,null,null,null,null,null,null,null,null,null,null,null,null,null,null,null,null,null,null,null,null,null,null,null,null,null,null,null,null,null,null,null,null,null,null,null,null,null,null,null,null,null,null,null,null,null,null,null,null,null,null,null,null,null,null,null,null,null,null,null,null,null,null,null,null,null,null,null,null,"10-01"]
["75-37","Sales & Marketing","Marketing","Marketing Director","Directs marketing activities.  Develops and implements marketing plans to meet overall organization plans and generate additional revenues.  Conducts feasibility and marketing research studies.  Suggests changes in strategy or services provided to respond to changing market conditions.  Promotes the organization's services to the public and business community.",null,null,null,null,null,null,null,null,null,null,null,null,null,null,null,null,null,null,null,null,null,null,null,null,null,null,null,null,null,null,null,null,null,null,null,null,null,null,null,null,null,null,null,null,null,null,null,null,null,null,null,null,null,null,null,null,null,null,null,null,null,null,null,null,null,null,null,null,null,null,null,null,null,null,null,null,null,null,null,null,null,null,null,null,null,null,null,null,null,null,null,null,null,null,null,null,null,null,null,null,null,"10-02"]
["75-38","Sales & Marketing","Marketing","Marketing Manager","Plans, directs, and coordinates the marketing of an organization's products and/or services by performing the following duties personally or through subordinates. Establishes marketing goals to ensure share of market and profitability, develops and executes marketing plans and programs (short & long range), develops and recommends pricing strategy, and prepares marketing activity reports.",null,null,null,null,null,null,null,null,null,null,null,null,null,null,null,null,null,null,null,null,null,null,null,null,null,null,null,null,null,null,null,null,null,null,null,null,null,null,null,null,null,null,null,null,null,null,null,null,null,null,null,null,null,null,null,null,null,null,null,null,null,null,null,null,null,null,null,null,null,null,null,null,null,null,null,null,null,null,null,null,null,null,null,null,null,null,null,null,null,null,null,null,null,null,null,null,null,null,null,null,null,"10-03"]
["75-39","Sales & Marketing","Marketing","Product / Brand Manager","Responsible for the sales promotional activities and profit margins of specified product(s) or a product line.  Usually a staff position with responsibility for coordinating the advertising, pricing, inventory, and the marketing of assigned products.",null,null,null,null,null,null,null,null,null,null,null,null,null,null,null,null,null,null,null,null,null,null,null,null,null,null,null,null,null,null,null,null,null,null,null,null,null,null,null,null,null,null,null,null,null,null,null,null,null,null,null,null,null,null,null,null,null,null,null,null,null,null,null,null,null,null,null,null,null,null,null,null,null,null,null,null,null,null,null,null,null,null,null,null,null,null,null,null,null,null,null,null,null,null,null,null,null,null,null,null,null,"10-05"]
["75-40","Sales & Marketing","Purchasing","Retail/Wholesale Buyer","Under supervision of a merchandising manager and/or with direction from senior merchandising staff, performs buyer duties within general or specialized areas.  Prepares bid specifications, receives bids and makes purchases of commodities or goods where the financial impact is significant.  Goods are purchased for resale at the wholesale or retail level.  Identifies products from assigned categories with appropriate consumer demand, quality, pricing and availability and negotiates terms of purchase, delivery and warranty support.",null,null,null,null,null,null,null,null,null,null,null,null,null,null,null,null,null,null,null,null,null,null,null,null,null,null,null,null,null,null,null,null,null,null,null,null,null,null,null,null,null,null,null,null,null,null,null,null,null,null,null,null,null,null,null,null,null,null,null,null,null,null,null,null,null,null,null,null,null,null,null,null,null,null,null,null,null,null,null,null,null,null,null,null,null,null,null,null,null,null,null,null,null,null,null,null,null,null,null,null,null,"10-18"]
["75-41","Sales & Marketing","Retail","Cash Register Clerk","Customer contact job providing retail cash register checkout service, typically requiring the ability to follow basic instructions and make basic math calculations.  Duties include scanning or keying product information, preparing sales receipts and handling cash or credit transactions, subject to close supervision.  In many cases customer contact is continuous.  Incumbents may stock shelves or perform other duties as a secondary part of the job.",null,null,null,null,null,null,null,null,null,null,null,null,null,null,null,null,null,null,null,null,null,null,null,null,null,null,null,null,null,null,null,null,null,null,null,null,null,null,null,null,null,null,null,null,null,null,null,null,null,null,null,null,null,null,null,null,null,null,null,null,null,null,null,null,null,null,null,null,null,null,null,null,null,null,null,null,null,null,null,null,null,null,null,null,null,null,null,null,null,null,null,null,null,null,null,null,null,null,null,null,null,"10-16"]
["75-42","Sales & Marketing","Retail","Retail Sales Clerk","Obtain and receive merchandise from customer.  Total price and tax on merchandise using cash register or calculator, and inform the customer of the total price of purchases.  Receive payment and make change.  May calculate sales discount as required.  May set up displays or arrange merchandise on counters.  May mark or tag price on merchandise.  May keep records of sales, prepare inventory of stock, or order merchandise.",null,null,null,null,null,null,null,null,null,null,null,null,null,null,null,null,null,null,null,null,null,null,null,null,null,null,null,null,null,null,null,null,null,null,null,null,null,null,null,null,null,null,null,null,null,null,null,null,null,null,null,null,null,null,null,null,null,null,null,null,null,null,null,null,null,null,null,null,null,null,null,null,null,null,null,null,null,null,null,null,null,null,null,null,null,null,null,null,null,null,null,null,null,null,null,null,null,null,null,null,null,"10-20"]
["75-43","Sales & Marketing","Retail","Retail Sales Manager","Supervise and coordinate activities of workers in a department within a retail store.  Listen to customer complaints, examine returned merchandise, resolve problems to restore and promote good public relations.  May train workers in store policies, department procedures and job duties.  Assist sales workers in completing difficult sales.  May sell merchandise.  May order merchandise, supplies and equipment.  May inspect merchandise to ensure it is correctly priced and displayed.  Prepare sales and inventory records.  Do not report on Retail Store Manager who are responsible for total store operations.",null,null,null,null,null,null,null,null,null,null,null,null,null,null,null,null,null,null,null,null,null,null,null,null,null,null,null,null,null,null,null,null,null,null,null,null,null,null,null,null,null,null,null,null,null,null,null,null,null,null,null,null,null,null,null,null,null,null,null,null,null,null,null,null,null,null,null,null,null,null,null,null,null,null,null,null,null,null,null,null,null,null,null,null,null,null,null,null,null,null,null,null,null,null,null,null,null,null,null,null,null,"10-21"]
["75-44","Sales & Marketing","Retail","Retail Store Manager","Manager of a retail store responsible for staffing, inventory, safety, customer service, price adjustments, promotions, community relations, maintenance and other elements of store operations.  Administers store policies based on owner direction and recommends policy modifications based on experiences.  Responsible for training, supervising and managing performance of store employees.",null,null,null,null,null,null,null,null,null,null,null,null,null,null,null,null,null,null,null,null,null,null,null,null,null,null,null,null,null,null,null,null,null,null,null,null,null,null,null,null,null,null,null,null,null,null,null,null,null,null,null,null,null,null,null,null,null,null,null,null,null,null,null,null,null,null,null,null,null,null,null,null,null,null,null,null,null,null,null,null,null,null,null,null,null,null,null,null,null,null,null,null,null,null,null,null,null,null,null,null,null,"10-22"]
["75-45","Sales & Marketing","Retail","Stock Clerk","Retail stock handling job, requiring the ability to follow basic instructions and read labels.  Duties include replenishing stock on retail shelves, applying price tags or labels and disposing of excess packaging material.  Incumbents may clean up spills or breakage, inspect merchandise for damage or reorganize goods on the shelf.  Some customer contact may be involved, such as answering basic questions or assisting with locating merchandise.",null,null,null,null,null,null,null,null,null,null,null,null,null,null,null,null,null,null,null,null,null,null,null,null,null,null,null,null,null,null,null,null,null,null,null,null,null,null,null,null,null,null,null,null,null,null,null,null,null,null,null,null,null,null,null,null,null,null,null,null,null,null,null,null,null,null,null,null,null,null,null,null,null,null,null,null,null,null,null,null,null,null,null,null,null,null,null,null,null,null,null,null,null,null,null,null,null,null,null,null,null,"10-17"]
["75-46","Sales & Marketing","Sales","District Sales Manager","Responsible for supervising sale of organization products in a single district or area.  Supervises a sales force, branch sales office, or conducts selling activities through dealers, distributors or agents.",null,null,null,null,null,null,null,null,null,null,null,null,null,null,null,null,null,null,null,null,null,null,null,null,null,null,null,null,null,null,null,null,null,null,null,null,null,null,null,null,null,null,null,null,null,null,null,null,null,null,null,null,null,null,null,null,null,null,null,null,null,null,null,null,null,null,null,null,null,null,null,null,null,null,null,null,null,null,null,null,null,null,null,null,null,null,null,null,null,null,null,null,null,null,null,null,null,null,null,null,null,"10-41"]
["75-47","Sales & Marketing","Sales","General Sales Manager","Responsible for field sales and the staff to achieve profitable sales volume.  Generally provides direction, counsel, and guidance for plans in marketing, advertising, sales promotion, sales training, etc.",null,null,null,null,null,null,null,null,null,null,null,null,null,null,null,null,null,null,null,null,null,null,null,null,null,null,null,null,null,null,null,null,null,null,null,null,null,null,null,null,null,null,null,null,null,null,null,null,null,null,null,null,null,null,null,null,null,null,null,null,null,null,null,null,null,null,null,null,null,null,null,null,null,null,null,null,null,null,null,null,null,null,null,null,null,null,null,null,null,null,null,null,null,null,null,null,null,null,null,null,null,"10-40"]
["75-48","Sales & Marketing","Sales","Inside Sales Representative","Contact and secure new business and major accounts by telephone.  Develop business in new territories and within new industries where the full market potential or product line acceptance has not been established.  Maintain contacts with customers in relation to their requirements.  Inform customers of supply and price trends and make company services available to customers.  Prepare price quotations, terms of sales, delivery dates, service obligations, etc.  May train and instruct and orient new personnel and trainees.",null,null,null,null,null,null,null,null,null,null,null,null,null,null,null,null,null,null,null,null,null,null,null,null,null,null,null,null,null,null,null,null,null,null,null,null,null,null,null,null,null,null,null,null,null,null,null,null,null,null,null,null,null,null,null,null,null,null,null,null,null,null,null,null,null,null,null,null,null,null,null,null,null,null,null,null,null,null,null,null,null,null,null,null,null,null,null,null,null,null,null,null,null,null,null,null,null,null,null,null,null,"10-35"]
["75-49","Sales & Marketing","Sales","Outside Sales Representative - Junior","Under the supervision of the Sales Supervisor or Sales Representative - Senior, performs field promotional work to obtain sales in an assigned territory where the company and product line are established. May canvas out prospective new accounts. Demonstrates products / services and assists in the selection of products / services most applicable to customers' needs. Demonstrates and familiarizes established accounts with new products / services and developments. Quotes prices, terms, delivery dates, etc. on new or repeat orders subject to the approval of company sales\nsupervisor. May investigate and report on warranty claims and complaints. Prepares periodic activity and expense reports.",null,null,null,null,null,null,null,null,null,null,null,null,null,null,null,null,null,null,null,null,null,null,null,null,null,null,null,null,null,null,null,null,null,null,null,null,null,null,null,null,null,null,null,null,null,null,null,null,null,null,null,null,null,null,null,null,null,null,null,null,null,null,null,null,null,null,null,null,null,null,null,null,null,null,null,null,null,null,null,null,null,null,null,null,null,null,null,null,null,null,null,null,null,null,null,null,null,null,null,null,null,"10-313"]
["75-50","Sales & Marketing","Sales","Outside Sales Representative - Senior","Performs field promotional work to sell and develop new business. May include work with current major accounts, development of new territories, new industries, or with customers where the full market potential or product acceptance has not been established. Demonstrates products / services and provides assistance in the best application to the product. Coordinates Company technical engineering services to determine customers' needs. Prepare price quotations, terms of sales, delivery dates, etc., and writes orders subject to company policy. Investigates product / service warranty claims and ensures resolution of customer complaints following marketing policies. Develops data relative to marketing trends, competitive products and pricing, and submits marketing reports to management. As required, prepares and submits reports on sales and marketing activities. Trains, instructs and orients new personnel and trainees.",null,null,null,null,null,null,null,null,null,null,null,null,null,null,null,null,null,null,null,null,null,null,null,null,null,null,null,null,null,null,null,null,null,null,null,null,null,null,null,null,null,null,null,null,null,null,null,null,null,null,null,null,null,null,null,null,null,null,null,null,null,null,null,null,null,null,null,null,null,null,null,null,null,null,null,null,null,null,null,null,null,null,null,null,null,null,null,null,null,null,null,null,null,null,null,null,null,null,null,null,null,"10-31"]
["75-51","Sales & Marketing","Sales","Sales Manager","Responsible for management and direction of a large segment of the overall sales volume.  Direct staffing, training, and performance evaluations of Sales Reps, Inside Sales Reps, or Manufacturing Reps to develop and control sales programs.  Coordinate sales distribution by establishing sales territories, quotas, and goals, and advise dealers and distributors concerning sales and advertising techniques.  Analyze sales statistics to formulate policy and promote sales.  Review market analyses to determine customer needs, volume potential, price schedules and discount rates.",null,null,null,null,null,null,null,null,null,null,null,null,null,null,null,null,null,null,null,null,null,null,null,null,null,null,null,null,null,null,null,null,null,null,null,null,null,null,null,null,null,null,null,null,null,null,null,null,null,null,null,null,null,null,null,null,null,null,null,null,null,null,null,null,null,null,null,null,null,null,null,null,null,null,null,null,null,null,null,null,null,null,null,null,null,null,null,null,null,null,null,null,null,null,null,null,null,null,null,null,null,"10-45"]
["75-52","Sales & Marketing","Sales","Top Sales Executive","Responsible for the overall management and direction of the sales functions and the entire range of sales planning and development, sales promotion and sales activities of the organizational unit.  Formulate, recommend and implement policies and programs in the areas of forecasting, sales pricing, marketing and product or service acceptance research, and related activities.  May also have responsibility for marketing programs, customer relations or advertising.",null,null,null,null,null,null,null,null,null,null,null,null,null,null,null,null,null,null,null,null,null,null,null,null,null,null,null,null,null,null,null,null,null,null,null,null,null,null,null,null,null,null,null,null,null,null,null,null,null,null,null,null,null,null,null,null,null,null,null,null,null,null,null,null,null,null,null,null,null,null,null,null,null,null,null,null,null,null,null,null,null,null,null,null,null,null,null,null,null,null,null,null,null,null,null,null,null,null,null,null,null,"10-43"]
["75-60","Sales & Marketing","Business Development","Chief Business Development Executive","Oversees and directs the analysis of business opportunities via operational and financial research associated with such business ventures. Confers with executive team to evaluate new business opportunities, assess potential markets, and develop projects for use in new marketing initiatives. Usually is responsible for development of licensing objectives, initiation of proposals, negotiations, and presentations for the acquisition of licensing opportunities and technologies."]
["65-00","Training","Program Development","Learning Management Systems Specialist","Under the leadership of  the Training Manager; The primary responsibly of the LMS Specialist is training program development. This development process includes copy-editing course materials, working closely with instructors and lead/management staff, and maintaining accurate course information in the Company's Learning Management System.  The LMS Specialist advances each course from proposed concept to final product via established development steps. Requires a Bachelor’s Degree in Communications, Education, Instructional design, or other related field. Education qualifications may be combined with 2 to 4 years of training experience. Technical writing and editing experience is preferred.",null,null,null,null,null,null,null,null,null,null,null,null,null,null,null,null,null,null,null,null,null,null,null,null,null,null,null,null,null,null,null,null,null,null,null,null,null,null,null,null,null,null,null,null,null,null,null,null,null,null,null,null,null,null,null,null,null,null,null,null,null,null,null,null,null,null,null,null,null,null,null,null,null,null,null,null,null,null,null,null,null,null,null,null,null,null,null,null,null,null,null,null,null,null,null,null,null,null,null,null,null,"4-213"]
["65-01","Training","Trainer","Training Coordinator","Coordinates the activities of the training department, may conduct training or oversee the training instructors.  Confers with management and or employee/customer representatives to determine training needs.  Develops and/or evaluates training packages to ensure success. May schedule classes, equipment or instructors. May provide direction to department staff.",null,null,null,null,null,null,null,null,null,null,null,null,null,null,null,null,null,null,null,null,null,null,null,null,null,null,null,null,null,null,null,null,null,null,null,null,null,null,null,null,null,null,null,null,null,null,null,null,null,null,null,null,null,null,null,null,null,null,null,null,null,null,null,null,null,null,null,null,null,null,null,null,null,null,null,null,null,null,null,null,null,null,null,null,null,null,null,null,null,null,null,null,null,null,null,null,null,null,null,null,null,"4-201"]
["65-02","Training","Trainer","Training Specialist I","First level of professional trainer with primary focus on conducting employee or customer training.  The job typically requires a bachelor’s degree and experience of less than 1 year, or equivalent.  Duties include assisting with preparation of multi-media training materials and delivery of those materials in a classroom or work environment.  Training content may cover work procedures, product use, safety, customer service, work skills, language skills or other topics.  Receives considerable development direction from senior staff and management and may spend the majority of time delivering training.",null,null,null,null,null,null,null,null,null,null,null,null,null,null,null,null,null,null,null,null,null,null,null,null,null,null,null,null,null,null,null,null,null,null,null,null,null,null,null,null,null,null,null,null,null,null,null,null,null,null,null,null,null,null,null,null,null,null,null,null,null,null,null,null,null,null,null,null,null,null,null,null,null,null,null,null,null,null,null,null,null,null,null,null,null,null,null,null,null,null,null,null,null,null,null,null,null,null,null,null,null,"4-21"]
["65-03","Training","Trainer","Training Specialist II","Experienced level of professional trainer with primary focus on conducting employee or customer training.  The job typically requires a bachelor’s degree and 3+ years of experience, or equivalent.  Duties include preparation of multi-media training materials and delivery of those materials in a classroom or work environment.  The training content may cover work procedures, product use, safety, customer service, work skills, language skills or other topics.  Works under limited supervision and has significant responsibility for needs identification and program design as well as delivery of training.  May provide training and direction to less experienced staff.",null,null,null,null,null,null,null,null,null,null,null,null,null,null,null,null,null,null,null,null,null,null,null,null,null,null,null,null,null,null,null,null,null,null,null,null,null,null,null,null,null,null,null,null,null,null,null,null,null,null,null,null,null,null,null,null,null,null,null,null,null,null,null,null,null,null,null,null,null,null,null,null,null,null,null,null,null,null,null,null,null,null,null,null,null,null,null,null,null,null,null,null,null,null,null,null,null,null,null,null,null,"4-212"]
["65-04","Training","Management","Training Manager","Manager of professional training with a primary focus on development and delivery of training materials and programs. The job typically requires a bachelor’s degree and 6+ years of experience, or equivalent.  Duties include needs identification, material preparation, media selection, vendor management and coordination with internal customers.  Training content may cover work procedures, product use, safety, customer service, work skills, language skills or other topics.  Specific tasks may include reviewing vendor proposals, monitoring quality of material, managing cost and assessing effectiveness.  Working within overall direction established by senior management, solves complex technical problems and develops and recommends new alternatives.  Manages department staff and budgets.",null,null,null,null,null,null,null,null,null,null,null,null,null,null,null,null,null,null,null,null,null,null,null,null,null,null,null,null,null,null,null,null,null,null,null,null,null,null,null,null,null,null,null,null,null,null,null,null,null,null,null,null,null,null,null,null,null,null,null,null,null,null,null,null,null,null,null,null,null,null,null,null,null,null,null,null,null,null,null,null,null,null,null,null,null,null,null,null,null,null,null,null,null,null,null,null,null,null,null,null,null,"4-20"]
["81-20","Transporation","Vehicle Maintenance","Auto, Tire, Body Repair Manager","Manages automobile repair and service shop.  Plans, develops, and implements policies for operating stations, such as hours of operation, workers required and duties, scope of operations, and prices for products and services.",null,null,null,null,null,null,null,null,null,null,null,null,null,null,null,null,null,null,null,null,null,null,null,null,null,null,null,null,null,null,null,null,null,null,null,null,null,null,null,null,null,null,null,null,null,null,null,null,null,null,null,null,null,null,null,null,null,null,null,null,null,null,null,null,null,null,null,null,null,null,null,null,null,null,null,null,null,null,null,null,null,null,null,null,null,null,null,null,null,null,null,null,null,null,null,null,null,null,null,null,null,"2-19"]
["81-21","Transporation","Vehicle Maintenance","Mechanic, Automobile","Repairs and overhauls automobiles, buses, trucks, and other automotive vehicles.  Examines vehicle and discusses with customer or service estimator the nature and extent of damage or malfunction.  Plans test and work procedures.  Repairs and/or replaces defective components.",null,null,null,null,null,null,null,null,null,null,null,null,null,null,null,null,null,null,null,null,null,null,null,null,null,null,null,null,null,null,null,null,null,null,null,null,null,null,null,null,null,null,null,null,null,null,null,null,null,null,null,null,null,null,null,null,null,null,null,null,null,null,null,null,null,null,null,null,null,null,null,null,null,null,null,null,null,null,null,null,null,null,null,null,null,null,null,null,null,null,null,null,null,null,null,null,null,null,null,null,null,"2-23"]
["81-22","Transporation","Vehicle Maintenance","Mechanic, Diesel","Responsible for overhaul and maintaining of diesel motors used to operate trucks, generators, and other equipment.  Performs diagnostic tests to determine problems.  Repairs and/or replaces defective components.  Also responsible for adjustment and tuning procedures.",null,null,null,null,null,null,null,null,null,null,null,null,null,null,null,null,null,null,null,null,null,null,null,null,null,null,null,null,null,null,null,null,null,null,null,null,null,null,null,null,null,null,null,null,null,null,null,null,null,null,null,null,null,null,null,null,null,null,null,null,null,null,null,null,null,null,null,null,null,null,null,null,null,null,null,null,null,null,null,null,null,null,null,null,null,null,null,null,null,null,null,null,null,null,null,null,null,null,null,null,null,"2-24"]
["81-23","Transporation","Vehicle Maintenance","Mechanic, Entry Level","Entry level mechanic with direct supervision for repairs and overhauls of automobiles, buses, trucks, and other automotive vehicles.",null,null,null,null,null,null,null,null,null,null,null,null,null,null,null,null,null,null,null,null,null,null,null,null,null,null,null,null,null,null,null,null,null,null,null,null,null,null,null,null,null,null,null,null,null,null,null,null,null,null,null,null,null,null,null,null,null,null,null,null,null,null,null,null,null,null,null,null,null,null,null,null,null,null,null,null,null,null,null,null,null,null,null,null,null,null,null,null,null,null,null,null,null,null,null,null,null,null,null,null,null,"2-25"]
["81-24","Transporation","Operations","BUS DRIVER"," Under the superision of the Transportation Manager, this position operates a 9 to 30 passenger radio-equipped van or bus to transport the general public, older adults and people with disabilities as part of a county-wide public transportation system.  Duties include: performing visual inspection and operational safety check of vehicle and equipment; documenting and reporting repair needs; engaging in safe driving practices, obeying traffic laws and attending to traffic hazards, accidents, and other adverse road conditions; ensuring passenger safety, including providing assistance to enter and exit the vehicle and securing wheelchairs; operating ADA- compliant lifts and ramps; collecting fares; communicating effectively with dispatch; using electronic tablets to manage routes and record required data; fueling and washing vehicles when needed; and assisting with bus garage clean-up. The job entails daily sustained contact with the general public.  Must have current CDL with passenger endorsement and air brakes, good driving record as verified by MT Highway Patrol, approved physical examination, and current First Aid card and CPR certification.  Five years’ experience in safe operation of passenger vehicles."]
["81-27","Transporation","Dispatch","TRANSIT DISPATCHER","Under the supervision of the Transit Lead Dispatcher, this position performs fixed route and paratransit scheduling, routing and dispatching duties in a fast-paced environment as part of a county-wide public transportation system. Tasks include: monitoring location of all buses and radio communications; processing customer requests for paratransit rides; using transit software to develop rider profiles and create daily manifests for paratransit rides; communicating important information to drivers that may impact their routes; troubleshooting and resolving daily scheduling or routing problems; running a variety of reports on ridership, use of resources and other statistics; and responding to requests for information about transit services.  This position requires exceptional customer service skills; ability to learn specialized transit software; ability to use multiple communication devices, including a multi-line telephone, two-way radio, computer dispatch terminal and mobile tablets; ability to learn federal transit rules and regulations. Requires a High School Diploma or GED by specialized training in communications or a related field, two years of increasingly responsible communications, dispatch, customer service or clerical experience, and/or any combination of education and experience. "]
["81-28","Transporation","Management","TRANSPORTATION  MANAGER","Under the supervision of a Director, develops, coordinates, implements and administers county-wide public transportation services, including fixed routes, paratransit services and city-to-city commuter routes.  Duties include: route and service development; personnel management, including hiring, training and supervising; development and implementation of operational policies and procedures; ensuring compliance with applicable federal, state and local rules and regulations; daily problem-solving and trouble-shooting; arranging for and documenting required maintenance of vehicles and facilities; promoting safety culture; investigating incidents, accidents and complaints; purchasing supplies and equipment; inventory and asset management; budget development and monitoring; annual transportation coordination planning, public relations, and required federal, state and local reporting.  Five + years’ experience in safe operation of passenger vehicles including two + year’s supervisory experience, or equivalent combination of experience and training."]
["94-00","Veterinary Services & Animal Care","Domestic Care","Kennel / Animal Attendant","Under the supervision of the Facility Manager/Lead Veterinarian;  This position is responsible for all aspects of domestic animal care (Horse, Cattle, Dog, Cat, Bird, Sheep, Goats, Pigs) for the variety of animals temporarily cared for in the facility. Work tasks include; creating and ensuring animals' enrichment, health, and safety, Observation and monitoring animal behavior and health. This role can also be invovled in preparing animal diets, Cleaning and maintaining stable, kennels, habitats, and cages. Performs some maintenance duties such as land scaping care, habitat upkeep, garbage removal, etc. Assists Vet Tech or veterinarian as assigned, communicates with other staff and departments as necesary.  Requires completion of High School or GED certificate, and the equivalent of two years full-time experience working with domestic animals.",null,null,null,null,null,null,null,null,null,null,null,null,null,null,null,null,null,null,null,null,null,null,null,null,null,null,null,null,null,null,null,null,null,null,null,null,null,null,null,null,null,null,null,null,null,null,null,null,null,null,null,null,null,null,null,null,null,null,null,null,null,null,null,null,null,null,null,null,null,null,null,null,null,null,null,null,null,null,null,null,null,null,null,null,null,null,null,null,null,null,null,null,null,null,null,null,null,null,null,null,null,"9-62"]
["94-02","Veterinary Services & Animal Care","Domestic Care","ANIMAL SHELTER MANAGER","Under the direction of the Director, this position is responsible for the management, planning, scheduling and assigning duties of Shelter employees; developing policies and procedures to enhance animal health and welfare within laws and ordinances; preparation and administration of department budget; approval of expenses, and response and resolution of citizen complaints.  Three + years experience in a similar position including administrative functions, or equivalent combination of experience and training/education."]
["94-03","Veterinary Services & Animal Care","Zoo Based Care","Animal Keeper / Caretaker","Under the supervision of the Facility Manager/Lead Veterinarian;  This position is responsible for all aspects of animal care (Zoo/Exotic) for the variety of animals cared for and housed in the facility, primarily rare wild animals in need of rehabilitation. Work tasks include; creating and ensuring animals' enrichment, health, and safety, Observation and monitoring animal behavior and health. This role can also be invovled in preparing animal diets, and processing meat and fish, Cleaning and maintaining dens, habitats, and cages. Performs some maintenance duties such as land scaping care, draining ponds and streams, habitat upkeep, garbage removal, etc. Assists Education Department with giving out information as assigned, communicates with other staff and departments as necesary.  Requires an Associate’s degree in Biology, Zoology, Veterinary Science or Wildlife Management or the equivalent of two years experience working with zoo/exotic animals, or any combination of training and experience which provides skills required for the position.",null,null,null,null,null,null,null,null,null,null,null,null,null,null,null,null,null,null,null,null,null,null,null,null,null,null,null,null,null,null,null,null,null,null,null,null,null,null,null,null,null,null,null,null,null,null,null,null,null,null,null,null,null,null,null,null,null,null,null,null,null,null,null,null,null,null,null,null,null,null,null,null,null,null,null,null,null,null,null,null,null,null,null,null,null,null,null,null,null,null,null,null,null,null,null,null,null,null,null,null,null,"9-60"]
["94-04","Veterinary Services & Animal Care","Zoo Based Care","Lead Animal Keeper / Caretaker","Under the supervision of the Facility Manager/Lead Veterinarian;  This position is responsible for Oversight of the day-to-day operations of Animal Department, Hires, supervises, and trains employees, makes employee schedule, Liaisons with USDA inspectors, Veterinarians, and permitting agencies. This position may be assigned some supervisory duties for other facility staff. This role is also responsible for; all aspects of animal care (Zoo/Exotic) for the variety of animals cared for and housed in the facility, primarily rare wild animals in need of rehabilitation. Work tasks include; creating and ensuring animals' enrichment, health, and safety, Observation and monitoring animal behavior and health. This role can also be involved in transporting and processing meat/fish for animal diets, Cleaning and maintaining dens, habitats, and cages. Performs some maintenance duties such as land scaping care, draining ponds and streams, habitat upkeep, garbage removal, etc. Assists Education Department with giving out information, communicates with other staff and departments as necesary.  Requires an Bachelor’s degree in Biology, Zoology, Veterinary Science or Wildlife Management or the equivalent of two years experience working with zoo/exotic animals, or any combination of training and experience which provides skills required for the position. ",null,null,null,null,null,null,null,null,null,null,null,null,null,null,null,null,null,null,null,null,null,null,null,null,null,null,null,null,null,null,null,null,null,null,null,null,null,null,null,null,null,null,null,null,null,null,null,null,null,null,null,null,null,null,null,null,null,null,null,null,null,null,null,null,null,null,null,null,null,null,null,null,null,null,null,null,null,null,null,null,null,null,null,null,null,null,null,null,null,null,null,null,null,null,null,null,null,null,null,null,null,"9-61"]
["94-05","Veterinary Services & Animal Care","Tech","Veterinarian Tech / Assistant","'Under the supervision of the Facility Manager/Lead Veterinarian; This position is responsible for such duties as: Hold or restrain animals during veterinary procedures. Fill and dispense medication prescriptions. Assist veterinarians in examining animals to determine the nature of illnesses or injuries. Monitor animals recovering from surgery and notify veterinarians of any unusual changes or symptoms. Feed, water, and examine pets and other animals for signs of illness, disease, or injury in laboratories and animal hospitals and clinics. Clean and disinfect cages and work areas, and sterilize laboratory and surgical equipment, or animal loading or unloading facilities to control the spread of disease. May provide routine post-operative care, administer medication orally or topically, or prepare samples for laboratory examination while under supervision. Requires an Associate’s degree in Biology, Veterinary Science, or Agricultural Science, or the equivalent of two years experience working with domestic animals, or any combination of training and experience which provides skills required for the position.",null,null,null,null,null,null,null,null,null,null,null,null,null,null,null,null,null,null,null,null,null,null,null,null,null,null,null,null,null,null,null,null,null,null,null,null,null,null,null,null,null,null,null,null,null,null,null,null,null,null,null,null,null,null,null,null,null,null,null,null,null,null,null,null,null,null,null,null,null,null,null,null,null,null,null,null,null,null,null,null,null,null,null,null,null,null,null,null,null,null,null,null,null,null,null,null,null,null,null,null,null,"9-63"]
["94-06","Veterinary Services & Animal Care","Advanced Specialist","Veterinarian","Examine animals to detect and determine the nature of diseases, illness or injuries (domestic/zoo/exotic). Includes veterinarians who conduct research and development, inspect livestock, or care for pets, companion animals, and wild animals receiving some form of care/treatment or rehabilitation. Treat sick or injured animals by prescribing medication, setting bones, dressing wounds, or performing surgery. Collect body tissue, feces, blood, urine, or other body fluids for examination and analysis. Inoculate animals against various diseases such as rabies or distemper. Counsel clients/community about the deaths of pets or about euthanasia decisions for pets, and/or zoo/exotic animals in captivity for rehabilitation or care purposes. This occupation requires completing graduate level school resulting in receipt of a D.V.M., and maintaining a current NAVLE License is also required.",null,null,null,null,null,null,null,null,null,null,null,null,null,null,null,null,null,null,null,null,null,null,null,null,null,null,null,null,null,null,null,null,null,null,null,null,null,null,null,null,null,null,null,null,null,null,null,null,null,null,null,null,null,null,null,null,null,null,null,null,null,null,null,null,null,null,null,null,null,null,null,null,null,null,null,null,null,null,null,null,null,null,null,null,null,null,null,null,null,null,null,null,null,null,null,null,null,null,null,null,null,"9-64"]